Workbook

Sheet InputC - Operations
F1: Project IRR
F2: Equity IRR
D3: Active Scenario | F3: 1 | K3: ='InputC-Financing'!K3 -> Base Case | L3: ='InputC-Financing'!L3 -> P90 Debt Size Case | M3: ='InputC-Financing'!M3 -> P99 Debt Size Case | N3: ='InputC-Financing'!N3 -> Maximum Debt to Capital Case | O3: ='InputC-Financing'!O3 -> Stress Case for Credit | P3: ='InputC-Financing'!P3 -> P90 and No Inflation | Q3: ='InputC-Financing'!Q3 -> Higher EPC | R3: ='InputC-Financing'!R3 -> Lower PPA | S3: ='InputC-Financing'!S3 -> Shareholder Loan
E4: Applied (Fixed) | F4: From Index | K4: 1 | L4: 2 | M4: 3 | N4: 4 | O4: 5 | P4: 6 | Q4: 7 | R4: 8 | S4: 9
B6: Model Timeline
D7: Financial Close Date | E7: 2023-01-01 | F7: =INDEX($K7:$S7,case_active) -> 2023-01-01 | G7: Date | K7: 2023-01-01 | L7: 2023-01-01 | M7: 2023-01-01 | N7: 2023-01-01 | O7: 2023-01-01 | P7: 2023-01-01 | Q7: 2023-01-01 | R7: 2023-01-01 | S7: 2023-01-01
D8: Construction Period | E8: 11 | F8: =INDEX(K8:S8,case_active) -> 11 | G8: Month | K8: 11 | L8: =K8 -> 11 | M8: 11 | N8: 11 | O8: 11 | P8: 11 | Q8: 14 | R8: 14 | S8: 14
D9: Commerical Operation Date | E9: 2023-12-01 | F9: =INDEX(K9:S9,case_active) -> 2023-12-01 | G9: Date | K9: =EDATE(K7,K8) -> 2023-12-01 | L9: =EDATE(L7,L8) -> 2023-12-01 | M9: 2023-12-01 | N9: 2023-12-01 | O9: 2023-12-01 | P9: 2023-12-01 | Q9: 2024-03-01 | R9: 2024-03-01 | S9: 2024-03-01
D10: Operating Life | E10: 35 | F10: =INDEX(K10:S10,case_active) -> 35 | G10: Years | K10: 35 | L10: 35 | M10: 35 | N10: 30 | O10: 35 | P10: 35 | Q10: 35 | R10: 35 | S10: 35
D11: Period After Operating Life | E11: 2058-12-01 | F11: =INDEX(K11:S11,case_active) -> 2058-12-01 | G11: Date | K11: =EDATE(K9,K10*Months) -> 2058-12-01 | L11: 2058-12-01 | M11: 2058-12-01 | N11: 2053-12-01 | O11: 2058-12-01 | P11: 2058-12-01 | Q11: 2059-03-01 | R11: 2059-03-01 | S11: 2059-03-01
D13: Months in Period for Semi-Annual | E13: 6 | F13: =INDEX(K13:S13,case_active) -> 6 | G13: Months | K13: 6 | L13: 6 | M13: 6 | N13: 6 | O13: 6 | P13: 6 | Q13: 6 | R13: 6 | S13: 6
D14: Months in Period pre-COD | E14: 1 | F14: =INDEX(K14:S14,case_active) -> 1 | G14: Months | K14: 1 | L14: 1 | M14: 1 | N14: 1 | O14: 1 | P14: 1 | Q14: 1 | R14: 1 | S14: 1
B16: Simple Data for Illustration
D17: Annual Generation =EBITDA - P50 | E17: 100 | F17: =INDEX(K17:S17,case_active) -> 100 | G17: Euro | K17: 100 | L17: 100 | M17: 100 | N17: 100 | O17: 100 | P17: 100 | Q17: 100 | R17: 100 | S17: 100
D19: Standard Deviation in Resoruce | E19: 0.1 | F19: =INDEX(K19:S19,case_active) -> 0.1 | G19: % | K19: 0.1 | L19: 0.1 | M19: 0.1 | N19: 0.1 | O19: 0.1 | P19: 0.1 | Q19: 0.1 | R19: 0.1 | S19: 0.1
D20: Complement of P Value | E20: 0.5 | F20: =INDEX(K20:S20,case_active) -> 0.5 | G20: % | K20: 0.5 | L20: 0.1 | M20: 0.01 | N20: 0.1 | O20: 0.05 | P20: 0.1 | Q20: 0.1 | R20: 0.1 | S20: 0.1
D22: Annual EBITDA Applied | E22: =_xlfn.NORM.INV(E20,E17,applied_stdev*E17) -> 100 | F22: =INDEX(K22:S22,case_active) -> 0 | G22: Euro
D24: Seasonality Code to InputS | E24: 1 | F24: =INDEX(K24:S24,case_active) -> 1 | G24: Code | H24: =InputS!D35 -> Base Degradation | K24: 1 | L24: 1 | M24: 1 | N24: 3 | O24: 2 | P24: 1 | Q24: 1 | R24: 1 | S24: 1
D25: Degradation Code to InputS | E25: =INDEX(InputS!D31:D33,'InputC - Operations'!F25) -> Base Degradation | F25: =INDEX(K25:S25,case_active) -> 1 | G25: Code | H25: =InputS!D36 -> 0 | K25: 1 | L25: 1 | M25: 1 | N25: 3 | O25: 2 | P25: 1 | Q25: 1 | R25: 1 | S25: 1
D27: PPA Inflation Rate Code to InputS | E27: =INDEX(InputS!D44:D46,'InputC - Operations'!F27) -> Low Inflation | F27: =INDEX(K27:S27,case_active) -> 3 | G27: % p.a. | H27: On costs and Revenues | K27: 3 | L27: 3 | M27: 3 | N27: 3 | O27: 3 | P27: 3 | Q27: 3 | R27: 3 | S27: 3
D29: Total EPC Cost | E29: 1800 | F29: =INDEX(K29:S29,case_active) -> 1800 | G29: Euro | K29: 1800 | L29: 1800 | M29: 1800 | N29: 1800 | O29: 1800 | P29: 1800 | Q29: 1800 | R29: 1800 | S29: 1800
D30: S-curve Code to InputS | E30: 1 | F30: =INDEX(K30:S30,case_active) -> 1 | G30: Code | H30: Detailed in Input-S | K30: 1 | L30: 1 | M30: 3 | N30: 3 | O30: 1 | P30: 1 | Q30: 1 | R30: 1 | S30: 1
E31: to applied | F31: from Index
B32: Constants
D33: Months in Year | F33: 12 | G33: Months
D34: Inflation Days in Year | F34: 365 | G34: Days Inflation
D35: Semi-Annual Periods | F35: 2 | G35: Semi
D36: Days in 360 Year | F36: 360 | G36: Year 360

Sheet InputC-Financing
E1: Project IRR
E2: Equity IRR
B3: Active Scenario | E3: =case_active -> 1 | K3: Base Case | L3: P90 Debt Size Case | M3: P99 Debt Size Case | N3: Maximum Debt to Capital Case | O3: Stress Case for Credit | P3: P90 and No Inflation | Q3: Higher EPC | R3: Lower PPA | S3: Shareholder Loan
E4: Applied | F4: Index | K4: 1 | L4: 2 | M4: 3 | N4: 4 | O4: 5 | P4: 6 | Q4: 7 | R4: 8 | S4: 9
B5: Dates
C6: Financial Close | E6: 2023-01-01 | F6: =INDEX(K6:S6,$E$3) -> 2023-12-01 | G6: Date | K6: ='InputC - Operations'!$E$9 -> 2023-12-01 | L6: ='InputC - Operations'!$E$9 -> 2023-12-01 | M6: ='InputC - Operations'!$E$9 -> 2023-12-01 | N6: ='InputC - Operations'!$E$9 -> 2023-12-01 | O6: ='InputC - Operations'!$E$9 -> 2023-12-01 | P6: ='InputC - Operations'!$E$9 -> 2023-12-01 | Q6: ='InputC - Operations'!$E$9 -> 2023-12-01 | R6: ='InputC - Operations'!$E$9 -> 2023-12-01 | S6: ='InputC - Operations'!$E$9 -> 2023-12-01
C7: Commercial Operation | E7: 2023-12-01 | F7: =INDEX(K7:S7,$E$3) -> 2023-12-01 | G7: Date | K7: ='InputC - Operations'!K9 -> 2023-12-01 | L7: ='InputC - Operations'!L9 -> 2023-12-01 | M7: ='InputC - Operations'!M9 -> 2023-12-01 | N7: ='InputC - Operations'!N9 -> 2023-12-01 | O7: ='InputC - Operations'!O9 -> 2023-12-01 | P7: ='InputC - Operations'!P9 -> 2023-12-01 | Q7: ='InputC - Operations'!Q9 -> 2024-03-01 | R7: ='InputC - Operations'!R9 -> 2024-03-01 | S7: ='InputC - Operations'!S9 -> 2024-03-01
B9: Funding
C10: First Repayment Month (Use 5 and not 6 Months) | E10: 5 | F10: =INDEX(K10:S10,$E$3) -> 5 | G10: Month | K10: =MONTH(EDATE(K6,5)) -> 5 | L10: =MONTH(EDATE(L6,5)) -> 5 | M10: 5 | N10: 5 | O10: 5 | P10: 5 | Q10: 5 | R10: 5 | S10: 5
C11: Second Repayment Month (Use 11 and not 12 Months) | E11: 11 | F11: =INDEX(K11:S11,$E$3) -> 11 | G11: Month | K11: =MONTH(EDATE(K6,11)) -> 11 | L11: =MONTH(EDATE(L6,11)) -> 11 | M11: 11 | N11: 11 | O11: 11 | P11: 11 | Q11: 11 | R11: 11 | S11: 11
C13: Senior Debt
D14: Maximum Debt to Capital | E14: 0.8 | F14: =INDEX(K14:S14,$E$3) -> 0.8 | G14: % | H14: Tested through DSCR | K14: 0.8 | L14: 0.8 | M14: 0.8 | N14: 0.8 | O14: 0.8 | P14: 0.8 | Q14: 0.8 | R14: 0.8 | S14: 0.8
D16: Debt Tenor | E16: 25 | F16: =INDEX(K16:S16,$E$3) -> 25 | G16: Years | K16: 25 | L16: 25 | M16: 25 | N16: 25 | O16: 25 | P16: 25 | Q16: 25 | R16: 25 | S16: 25
D17: End of Debt Repayment | E17: 2048-12-01 | F17: =INDEX(K17:S17,$E$3) -> 2048-12-01 | K17: =EDATE(K7,K16*Months) -> 2048-12-01 | L17: 2048-12-01 | M17: 2048-12-01 | N17: 2048-12-01 | O17: 2048-12-01 | P17: 2048-12-01 | Q17: 2049-03-01 | R17: 2049-03-01 | S17: 2049-03-01
D18: Interest and Principal Repayments Timing | E18: 6 | F18: =INDEX(K18:S18,$E$3) -> 6 | G18: Months | H18: Every 6 Months | K18: 6 | L18: 6 | M18: 6 | N18: 6 | O18: 6 | P18: 6 | Q18: 6 | R18: 6 | S18: 6
D20: Interest Rate | E20: 0.043 | F20: =INDEX(K20:S20,$E$3) -> 0.043 | G20: % p.a. | H20: Annual Rate | K20: 0.043 | L20: 0.043 | M20: 0.043 | N20: 0.043 | O20: 0.043 | P20: 0.043 | Q20: 0.043 | R20: 0.043 | S20: 0.043

Sheet InputS
A1: =RIGHT(CELL("filename",A1),LEN(CELL("filename",A1))- SEARCH("]",CELL("filename",A1))) -> InputS
C3: EPC - S-Curve
B5: Construction Operation
D6: Construction Period | G6: Month | L6: 1 | M6: 2 | N6: 3 | O6: 4 | P6: 5 | Q6: 6 | R6: 7 | S6: 8 | T6: 9 | U6: 10 | V6: 11 | W6: 12 | X6: 13 | Y6: 14 | Z6: 15 | AA6: 16 | AB6: 17 | AC6: 18 | AD6: 19 | AE6: 20 | AF6: 21 | AG6: 22 | AH6: 23 | AI6: 24
D7: Construction Year | G7: Year | L7: =ROUNDUP(L6/12,0) -> 1 | M7: =ROUNDUP(M6/12,0) -> 1 | N7: 1 | O7: 1 | P7: 1 | Q7: 1 | R7: 1 | S7: 1 | T7: 1 | U7: 1 | V7: 1 | W7: 1 | X7: 2 | Y7: 2 | Z7: 2 | AA7: 2 | AB7: 2 | AC7: 2 | AD7: 2 | AE7: 2 | AF7: 2 | AG7: 2 | AH7: 2 | AI7: 2
D8: Construction Months | G8: Flag | H8: ='InputC - Operations'!E8 -> 11 | L8: =L6<=$H$8 -> TRUE | M8: TRUE | N8: TRUE | O8: TRUE | P8: TRUE | Q8: TRUE | R8: TRUE | S8: TRUE | T8: TRUE | U8: TRUE | V8: TRUE | W8: FALSE | X8: FALSE | Y8: FALSE | Z8: FALSE | AA8: FALSE | AB8: FALSE | AC8: FALSE | AD8: FALSE | AE8: FALSE | AF8: FALSE | AG8: FALSE | AH8: FALSE | AI8: FALSE
C10: S-Curve - Scenario Number | G10: Code | H10: ='InputC - Operations'!E30 -> 1
D12: S-Curve - Base Case | F12: 1 | G12: % | H12: =SUM(L12:BI12) -> 1 | L12: 0.25 | M12: 0.1 | N12: 0 | O12: 0.15 | P12: 0.2 | Q12: 0.3 | R12: 0 | S12: 0 | T12: 0 | U12: 0 | V12: 0 | W12: 0 | X12: 0 | Y12: 0 | Z12: 0 | AA12: 0 | AB12: 0 | AC12: 0 | AD12: 0 | AE12: 0 | AF12: 0 | AG12: 0 | AH12: 0 | AI12: 0
D13: S-Curve - Flat Case | F13: 2 | G13: % | H13: =SUM(L13:BI13) -> 1 | L13: =1/$H$8*L8 -> 0.09090909091 | M13: 0.09090909091 | N13: 0.09090909091 | O13: 0.09090909091 | P13: 0.09090909091 | Q13: 0.09090909091 | R13: 0.09090909091 | S13: 0.09090909091 | T13: 0.09090909091 | U13: 0.09090909091 | V13: 0.09090909091 | W13: 0 | X13: 0 | Y13: 0 | Z13: 0 | AA13: 0 | AB13: 0 | AC13: 0 | AD13: 0 | AE13: 0 | AF13: 0 | AG13: 0 | AH13: 0 | AI13: 0
D14: S-Curve - Front Loaded Case | F14: 3 | G14: % | H14: =SUM(L14:BI14) -> 1 | L14: 0.4 | M14: 0.3 | N14: 0.2 | O14: 0.1 | P14: 0 | Q14: 0 | R14: 0 | S14: 0 | T14: 0 | U14: 0 | V14: 0 | W14: 0 | X14: 0 | Y14: 0 | Z14: 0 | AA14: 0 | AB14: 0 | AC14: 0 | AD14: 0 | AE14: 0 | AF14: 0 | AG14: 0 | AH14: 0 | AI14: 0
D16: =INDEX(D12:D14,$H$10) -> S-Curve - Base Case | G16: % | H16: =SUM(I16:XFD16) -> 1 | L16: =INDEX(L12:L15,$H$10) -> 0.25 | M16: =INDEX(M12:M15,$H$10) -> 0.1 | N16: =INDEX(N12:N15,$H$10) -> 0 | O16: =INDEX(O12:O15,$H$10) -> 0.15 | P16: =INDEX(P12:P15,$H$10) -> 0.2 | Q16: =INDEX(Q12:Q15,$H$10) -> 0.3 | R16: =INDEX(R12:R15,$H$10) -> 0 | S16: =INDEX(S12:S15,$H$10) -> 0 | T16: =INDEX(T12:T15,$H$10) -> 0 | U16: =INDEX(U12:U15,$H$10) -> 0 | V16: =INDEX(V12:V15,$H$10) -> 0 | W16: =INDEX(W12:W15,$H$10) -> 0 | X16: =INDEX(X12:X15,$H$10) -> 0 | Y16: =INDEX(Y12:Y15,$H$10) -> 0 | Z16: =INDEX(Z12:Z15,$H$10) -> 0 | AA16: =INDEX(AA12:AA15,$H$10) -> 0 | AB16: =INDEX(AB12:AB15,$H$10) -> 0 | AC16: =INDEX(AC12:AC15,$H$10) -> 0 | AD16: =INDEX(AD12:AD15,$H$10) -> 0 | AE16: =INDEX(AE12:AE15,$H$10) -> 0 | AF16: =INDEX(AF12:AF15,$H$10) -> 0 | AG16: =INDEX(AG12:AG15,$H$10) -> 0 | AH16: =INDEX(AH12:AH15,$H$10) -> 0 | AI16: =INDEX(AI12:AI15,$H$10) -> 0
C18: Solar Seasonality
D19: Month Name | K19: 1 | L19: Jan | M19: Feb | N19: March | O19: April | P19: May | Q19: June | R19: July | S19: August | T19: Sept | U19: October | V19: Nov | W19: Dec
D20: Month Number | G20: Counter | L20: 1 | M20: 2 | N20: 3 | O20: 4 | P20: 5 | Q20: 6 | R20: 7 | S20: 8 | T20: 9 | U20: 10 | V20: 11 | W20: 12
D21: Resource Availability 1 | G21: % | H21: =SUM(L21:W21) -> 1 | L21: 0.06666666667 | M21: 0.06666666667 | N21: 0.08 | O21: 0.085 | P21: 0.09 | Q21: 0.12 | R21: 0.12 | S21: 0.09 | T21: 0.08 | U21: 0.07 | V21: 0.065 | W21: 0.06666666667
D22: Resource Availability 2 | H22: =SUM(L22:W22) -> 1 | L22: 0.07 | M22: 0.07 | N22: 0.07 | O22: 0.09 | P22: 0.09 | Q22: 0.1 | R22: 0.1 | S22: 0.1 | T22: 0.09 | U22: 0.07 | V22: 0.07 | W22: 0.08
D23: Resource Availability 3 | H23: =SUM(L23:W23) -> 0.99 | L23: 0.04 | M23: 0.05 | N23: 0.05 | O23: 0.09 | P23: 0.09 | Q23: 0.15 | R23: 0.15 | S23: 0.15 | T23: 0.06 | U23: 0.06 | V23: 0.06 | W23: 0.04
C27: Degradation Rate | G27: Code | H27: ='InputC - Operations'!E24 -> 1
D29: Age - Annual | G29: Year | K29: 0 | L29: 1 | M29: 2 | N29: 3 | O29: 4 | P29: 5 | Q29: 6 | R29: 7 | S29: 8 | T29: 9 | U29: 10 | V29: 11 | W29: 12
D31: Base Degradation | F31: 1 | G31: % | L31: 0.0075 | M31: 0.005 | N31: 0.005 | O31: 0.005 | P31: 0.005 | Q31: 0.005 | R31: 0.005 | S31: 0.005 | T31: 0.005 | U31: 0.005 | V31: 0.005 | W31: 0.005
D32: High Degradation | F32: 2 | G32: % | L32: 0.0075 | M32: 0.0075 | N32: 0.0075 | O32: 0.0075 | P32: 0.0075 | Q32: 0.0075 | R32: 0.0075 | S32: 0.0075 | T32: 0.0075 | U32: 0.0075 | V32: 0.0075 | W32: 0.0075
D33: Low Degredation | F33: 3 | G33: % | L33: 0.004 | M33: 0.004 | N33: 0.004 | O33: 0.004 | P33: 0.004 | Q33: 0.004 | R33: 0.004 | S33: 0.004 | T33: 0.004 | U33: 0.004 | V33: 0.004 | W33: 0.004
D35: =INDEX(D31:D33,$H$27) -> Base Degradation | G35: % | L35: =INDEX(L31:L33,$H$27) -> 0.0075 | M35: =INDEX(M31:M33,$H$27) -> 0.005 | N35: =INDEX(N31:N33,$H$27) -> 0.005 | O35: =INDEX(O31:O33,$H$27) -> 0.005 | P35: =INDEX(P31:P33,$H$27) -> 0.005 | Q35: =INDEX(Q31:Q33,$H$27) -> 0.005 | R35: =INDEX(R31:R33,$H$27) -> 0.005 | S35: =INDEX(S31:S33,$H$27) -> 0.005 | T35: =INDEX(T31:T33,$H$27) -> 0.005 | U35: =INDEX(U31:U33,$H$27) -> 0.005 | V35: =INDEX(V31:V33,$H$27) -> 0.005 | W35: =INDEX(W31:W33,$H$27) -> 0.005
B40: Macro Economic
C41: General Inflation Rate | G41: Code | H41: ='InputC - Operations'!F27 -> 3
D43: Year | L43: 2021 | M43: 2022 | N43: 2023 | O43: 2024 | P43: 2025 | Q43: 2026 | R43: 2027 | S43: 2028 | T43: 2029
D44: Base Case | F44: 1 | G44: % | L44: 0.015 | M44: 0.04 | N44: 0.035 | O44: 0.03 | P44: 0.03 | Q44: 0.03 | R44: 0.03 | S44: 0.03 | T44: 0.03
D45: High Inflation | F45: 2 | G45: % | L45: 0.015 | M45: 0.04 | N45: 0.04 | O45: 0.04 | P45: 0.04 | Q45: 0.04 | R45: 0.04 | S45: 0.04 | T45: 0.04
D46: Low Inflation | F46: 3 | G46: % | L46: 0.015 | M46: 0.04 | N46: 0.02 | O46: 0.02 | P46: 0.015 | Q46: 0.015 | R46: 0.015 | S46: 0.015 | T46: 0.015
D48: =INDEX(D44:D46,$H$41) -> Low Inflation | G48: % | L48: =INDEX(L44:L46,$H$41) -> 0.015 | M48: =INDEX(M44:M46,$H$41) -> 0.04 | N48: =INDEX(N44:N46,$H$41) -> 0.02 | O48: =INDEX(O44:O46,$H$41) -> 0.02 | P48: =INDEX(P44:P46,$H$41) -> 0.015 | Q48: =INDEX(Q44:Q46,$H$41) -> 0.015 | R48: =INDEX(R44:R46,$H$41) -> 0.015 | S48: =INDEX(S44:S46,$H$41) -> 0.015 | T48: =INDEX(T44:T46,$H$41) -> 0.015

Sheet Operation Monthly
E2: Constant | F2: Constant | G2: Unit | H2: Check | J2: Sum/Total
D3: Period Number (800) | G3: Number | L3: 1 | M3: 2 | N3: 3 | O3: 4 | P3: 5 | Q3: 6 | R3: 7 | S3: 8 | T3: 9 | U3: 10 | V3: 11 | W3: 12 | X3: 13 | Y3: 14 | Z3: 15 | AA3: 16 | AB3: 17 | AC3: 18 | AD3: 19 | AE3: 20 | AF3: 21 | AG3: 22 | AH3: 23 | AI3: 24 | AJ3: 25 | AK3: 26 | AL3: 27 | AM3: 28 | AN3: 29 | AO3: 30 | AP3: 31 | AQ3: 32 | AR3: 33 | AS3: 34 | AT3: 35 | AU3: 36 | AV3: 37 | AW3: 38 | AX3: 39 | AY3: 40 | AZ3: 41 | BA3: 42 | BB3: 43 | BC3: 44 | BD3: 45 | BE3: 46 | BF3: 47 | BG3: 48 | BH3: 49 | BI3: 50 | BJ3: 51 | BK3: 52 | BL3: 53 | BM3: 54 | BN3: 55 | BO3: 56 | BP3: 57 | BQ3: 58 | BR3: 59 | BS3: 60 | BT3: 61 | BU3: 62 | BV3: 63 | BW3: 64 | BX3: 65 | BY3: 66 | BZ3: 67 | CA3: 68 | CB3: 69 | CC3: 70 | CD3: 71 | CE3: 72 | CF3: 73 | CG3: 74 | CH3: 75 | CI3: 76 | CJ3: 77 | CK3: 78 | CL3: 79 | CM3: 80 | CN3: 81 | CO3: 82 | CP3: 83 | CQ3: 84 | CR3: 85 | CS3: 86 | CT3: 87 | CU3: 88 | CV3: 89 | CW3: 90 | CX3: 91 | CY3: 92 | CZ3: 93 | DA3: 94 | DB3: 95 | DC3: 96 | DD3: 97 | DE3: 98 | DF3: 99 | DG3: 100 | DH3: 101 | DI3: 102 | DJ3: 103 | DK3: 104 | DL3: 105 | DM3: 106 | DN3: 107 | DO3: 108 | DP3: 109 | DQ3: 110 | DR3: 111 | DS3: 112 | DT3: 113 | DU3: 114 | DV3: 115 | DW3: 116 | DX3: 117 | DY3: 118 | DZ3: 119 | EA3: 120 | EB3: 121 | EC3: 122 | ED3: 123 | EE3: 124 | EF3: 125 | EG3: 126 | EH3: 127 | EI3: 128 | EJ3: 129 | EK3: 130 | EL3: 131 | EM3: 132 | EN3: 133 | EO3: 134 | EP3: 135 | EQ3: 136 | ER3: 137 | ES3: 138 | ET3: 139 | EU3: 140 | EV3: 141 | EW3: 142 | EX3: 143 | EY3: 144 | EZ3: 145 | FA3: 146 | FB3: 147 | FC3: 148 | FD3: 149 | FE3: 150 | FF3: 151 | FG3: 152 | FH3: 153 | FI3: 154 | FJ3: 155 | FK3: 156 | FL3: 157 | FM3: 158 | FN3: 159 | FO3: 160 | FP3: 161 | FQ3: 162 | FR3: 163 | FS3: 164 | FT3: 165 | FU3: 166 | FV3: 167 | FW3: 168 | FX3: 169 | FY3: 170 | FZ3: 171 | GA3: 172 | GB3: 173 | GC3: 174 | GD3: 175 | GE3: 176 | GF3: 177 | GG3: 178 | GH3: 179 | GI3: 180 | GJ3: 181 | GK3: 182 | GL3: 183 | GM3: 184 | GN3: 185 | GO3: 186 | GP3: 187 | GQ3: 188 | GR3: 189 | GS3: 190 | GT3: 191 | GU3: 192 | GV3: 193 | GW3: 194 | GX3: 195 | GY3: 196 | GZ3: 197 | HA3: 198 | HB3: 199 | HC3: 200 | HD3: 201 | HE3: 202 | HF3: 203 | HG3: 204 | HH3: 205 | HI3: 206 | HJ3: 207 | HK3: 208 | HL3: 209 | HM3: 210 | HN3: 211 | HO3: 212 | HP3: 213 | HQ3: 214 | HR3: 215 | HS3: 216 | HT3: 217 | HU3: 218 | HV3: 219 | HW3: 220 | HX3: 221 | HY3: 222 | HZ3: 223 | IA3: 224 | IB3: 225 | IC3: 226 | ID3: 227 | IE3: 228 | IF3: 229 | IG3: 230 | IH3: 231 | II3: 232 | IJ3: 233 | IK3: 234 | IL3: 235 | IM3: 236 | IN3: 237 | IO3: 238 | IP3: 239 | IQ3: 240 | IR3: 241 | IS3: 242 | IT3: 243 | IU3: 244 | IV3: 245 | IW3: 246 | IX3: 247 | IY3: 248 | IZ3: 249 | JA3: 250 | JB3: 251 | JC3: 252 | JD3: 253 | JE3: 254 | JF3: 255 | JG3: 256 | JH3: 257 | JI3: 258 | JJ3: 259 | JK3: 260 | JL3: 261 | JM3: 262 | JN3: 263 | JO3: 264 | JP3: 265 | JQ3: 266 | JR3: 267 | JS3: 268 | JT3: 269 | JU3: 270 | JV3: 271 | JW3: 272 | JX3: 273 | JY3: 274 | JZ3: 275 | KA3: 276 | KB3: 277 | KC3: 278 | KD3: 279 | KE3: 280 | KF3: 281 | KG3: 282 | KH3: 283 | KI3: 284 | KJ3: 285 | KK3: 286 | KL3: 287 | KM3: 288 | KN3: 289 | KO3: 290 | KP3: 291 | KQ3: 292 | KR3: 293 | KS3: 294 | KT3: 295 | KU3: 296 | KV3: 297 | KW3: 298 | KX3: 299 | KY3: 300 | KZ3: 301 | LA3: 302 | LB3: 303 | LC3: 304 | LD3: 305 | LE3: 306 | LF3: 307 | LG3: 308 | LH3: 309 | LI3: 310 | LJ3: 311 | LK3: 312 | LL3: 313 | LM3: 314 | LN3: 315 | LO3: 316 | LP3: 317 | LQ3: 318 | LR3: 319 | LS3: 320 | LT3: 321 | LU3: 322 | LV3: 323 | LW3: 324 | LX3: 325 | LY3: 326 | LZ3: 327 | MA3: 328 | MB3: 329 | MC3: 330 | MD3: 331 | ME3: 332 | MF3: 333 | MG3: 334 | MH3: 335 | MI3: 336 | MJ3: 337 | MK3: 338 | ML3: 339 | MM3: 340 | MN3: 341 | MO3: 342 | MP3: 343 | MQ3: 344 | MR3: 345 | MS3: 346 | MT3: 347 | MU3: 348 | MV3: 349 | MW3: 350 | MX3: 351 | MY3: 352 | MZ3: 353 | NA3: 354 | NB3: 355 | NC3: 356 | ND3: 357 | NE3: 358 | NF3: 359 | NG3: 360 | NH3: 361 | NI3: 362 | NJ3: 363 | NK3: 364 | NL3: 365 | NM3: 366 | NN3: 367 | NO3: 368 | NP3: 369 | NQ3: 370 | NR3: 371 | NS3: 372 | NT3: 373 | NU3: 374 | NV3: 375 | NW3: 376 | NX3: 377 | NY3: 378 | NZ3: 379 | OA3: 380 | OB3: 381 | OC3: 382 | OD3: 383 | OE3: 384 | OF3: 385 | OG3: 386 | OH3: 387 | OI3: 388 | OJ3: 389 | OK3: 390 | OL3: 391 | OM3: 392 | ON3: 393 | OO3: 394 | OP3: 395 | OQ3: 396 | OR3: 397 | OS3: 398 | OT3: 399 | OU3: 400 | OV3: 401 | OW3: 402 | OX3: 403 | OY3: 404 | OZ3: 405 | PA3: 406 | PB3: 407 | PC3: 408 | PD3: 409 | PE3: 410 | PF3: 411 | PG3: 412 | PH3: 413 | PI3: 414 | PJ3: 415 | PK3: 416 | PL3: 417 | PM3: 418 | PN3: 419 | PO3: 420 | PP3: 421 | PQ3: 422 | PR3: 423 | PS3: 424 | PT3: 425 | PU3: 426 | PV3: 427 | PW3: 428 | PX3: 429 | PY3: 430 | PZ3: 431 | QA3: 432 | QB3: 433 | QC3: 434 | QD3: 435 | QE3: 436 | QF3: 437 | QG3: 438 | QH3: 439 | QI3: 440 | QJ3: 441 | QK3: 442 | QL3: 443 | QM3: 444 | QN3: 445 | QO3: 446 | QP3: 447 | QQ3: 448 | QR3: 449 | QS3: 450 | QT3: 451 | QU3: 452 | QV3: 453 | QW3: 454 | QX3: 455 | QY3: 456 | QZ3: 457 | RA3: 458 | RB3: 459 | RC3: 460 | RD3: 461 | RE3: 462 | RF3: 463 | RG3: 464 | RH3: 465 | RI3: 466 | RJ3: 467 | RK3: 468 | RL3: 469 | RM3: 470 | RN3: 471 | RO3: 472 | RP3: 473 | RQ3: 474 | RR3: 475 | RS3: 476 | RT3: 477 | RU3: 478 | RV3: 479 | RW3: 480 | RX3: 481 | RY3: 482 | RZ3: 483 | SA3: 484 | SB3: 485 | SC3: 486 | SD3: 487 | SE3: 488 | SF3: 489 | SG3: 490 | SH3: 491 | SI3: 492 | SJ3: 493 | SK3: 494 | SL3: 495 | SM3: 496 | SN3: 497 | SO3: 498 | SP3: 499 | SQ3: 500 | SR3: 501 | SS3: 502 | ST3: 503 | SU3: 504 | SV3: 505 | SW3: 506 | SX3: 507 | SY3: 508 | SZ3: 509 | TA3: 510 | TB3: 511 | TC3: 512 | TD3: 513 | TE3: 514 | TF3: 515 | TG3: 516 | TH3: 517 | TI3: 518 | TJ3: 519 | TK3: 520 | TL3: 521 | TM3: 522 | TN3: 523 | TO3: 524 | TP3: 525 | TQ3: 526 | TR3: 527 | TS3: 528 | TT3: 529 | TU3: 530 | TV3: 531 | TW3: 532 | TX3: 533 | TY3: 534 | TZ3: 535 | UA3: 536 | UB3: 537 | UC3: 538 | UD3: 539 | UE3: 540 | UF3: 541 | UG3: 542 | UH3: 543 | UI3: 544 | UJ3: 545 | UK3: 546 | UL3: 547 | UM3: 548 | UN3: 549 | UO3: 550 | UP3: 551 | UQ3: 552 | UR3: 553 | US3: 554 | UT3: 555 | UU3: 556 | UV3: 557 | UW3: 558 | UX3: 559 | UY3: 560 | UZ3: 561 | VA3: 562 | VB3: 563 | VC3: 564 | VD3: 565 | VE3: 566 | VF3: 567 | VG3: 568 | VH3: 569 | VI3: 570 | VJ3: 571 | VK3: 572 | VL3: 573 | VM3: 574 | VN3: 575 | VO3: 576 | VP3: 577 | VQ3: 578 | VR3: 579 | VS3: 580 | VT3: 581 | VU3: 582 | VV3: 583 | VW3: 584 | VX3: 585 | VY3: 586 | VZ3: 587 | WA3: 588 | WB3: 589 | WC3: 590 | WD3: 591 | WE3: 592 | WF3: 593 | WG3: 594 | WH3: 595 | WI3: 596 | WJ3: 597 | WK3: 598 | WL3: 599 | WM3: 600 | WN3: 601 | WO3: 602 | WP3: 603 | WQ3: 604 | WR3: 605 | WS3: 606 | WT3: 607 | WU3: 608 | WV3: 609 | WW3: 610 | WX3: 611 | WY3: 612 | WZ3: 613 | XA3: 614 | XB3: 615 | XC3: 616 | XD3: 617 | XE3: 618 | XF3: 619 | XG3: 620 | XH3: 621 | XI3: 622 | XJ3: 623 | XK3: 624 | XL3: 625 | XM3: 626 | XN3: 627 | XO3: 628 | XP3: 629 | XQ3: 630 | XR3: 631 | XS3: 632 | XT3: 633 | XU3: 634 | XV3: 635 | XW3: 636 | XX3: 637 | XY3: 638 | XZ3: 639 | YA3: 640 | YB3: 641 | YC3: 642 | YD3: 643 | YE3: 644 | YF3: 645 | YG3: 646 | YH3: 647 | YI3: 648 | YJ3: 649 | YK3: 650 | YL3: 651 | YM3: 652 | YN3: 653 | YO3: 654 | YP3: 655 | YQ3: 656 | YR3: 657 | YS3: 658 | YT3: 659 | YU3: 660 | YV3: 661 | YW3: 662 | YX3: 663 | YY3: 664 | YZ3: 665 | ZA3: 666 | ZB3: 667 | ZC3: 668 | ZD3: 669 | ZE3: 670 | ZF3: 671 | ZG3: 672 | ZH3: 673 | ZI3: 674 | ZJ3: 675 | ZK3: 676 | ZL3: 677 | ZM3: 678 | ZN3: 679 | ZO3: 680 | ZP3: 681 | ZQ3: 682 | ZR3: 683 | ZS3: 684 | ZT3: 685 | ZU3: 686 | ZV3: 687 | ZW3: 688 | ZX3: 689 | ZY3: 690 | ZZ3: 691 | AAA3: 692 | AAB3: 693 | AAC3: 694 | AAD3: 695 | AAE3: 696 | AAF3: 697 | AAG3: 698 | AAH3: 699 | AAI3: 700 | AAJ3: 701 | AAK3: 702 | AAL3: 703 | AAM3: 704 | AAN3: 705 | AAO3: 706 | AAP3: 707 | AAQ3: 708 | AAR3: 709 | AAS3: 710 | AAT3: 711 | AAU3: 712 | AAV3: 713 | AAW3: 714 | AAX3: 715 | AAY3: 716 | AAZ3: 717 | ABA3: 718 | ABB3: 719 | ABC3: 720 | ABD3: 721 | ABE3: 722 | ABF3: 723 | ABG3: 724 | ABH3: 725 | ABI3: 726 | ABJ3: 727 | ABK3: 728 | ABL3: 729 | ABM3: 730 | ABN3: 731 | ABO3: 732 | ABP3: 733 | ABQ3: 734 | ABR3: 735 | ABS3: 736 | ABT3: 737 | ABU3: 738 | ABV3: 739 | ABW3: 740 | ABX3: 741 | ABY3: 742 | ABZ3: 743 | ACA3: 744 | ACB3: 745 | ACC3: 746 | ACD3: 747 | ACE3: 748 | ACF3: 749 | ACG3: 750 | ACH3: 751 | ACI3: 752 | ACJ3: 753 | ACK3: 754 | ACL3: 755 | ACM3: 756 | ACN3: 757 | ACO3: 758 | ACP3: 759 | ACQ3: 760 | ACR3: 761 | ACS3: 762 | ACT3: 763 | ACU3: 764 | ACV3: 765 | ACW3: 766 | ACX3: 767 | ACY3: 768 | ACZ3: 769 | ADA3: 770 | ADB3: 771 | ADC3: 772 | ADD3: 773 | ADE3: 774 | ADF3: 775 | ADG3: 776 | ADH3: 777 | ADI3: 778 | ADJ3: 779 | ADK3: 780 | ADL3: 781 | ADM3: 782 | ADN3: 783 | ADO3: 784 | ADP3: 785 | ADQ3: 786 | ADR3: 787 | ADS3: 788 | ADT3: 789 | ADU3: 790 | ADV3: 791 | ADW3: 792 | ADX3: 793 | ADY3: 794 | ADZ3: 795 | AEA3: 796 | AEB3: 797 | AEC3: 798 | AED3: 799 | AEE3: 800
D4: Start of Period | E4: ='InputC - Operations'!$F$7 -> 2023-01-01 | G4: Date | L4: =K5+1 -> 2023-01-01 | M4: =L5+1 -> 2023-02-01 | N4: 2023-03-01 | O4: 2023-04-01 | P4: 2023-05-01 | Q4: 2023-06-01 | R4: 2023-07-01 | S4: 2023-08-01 | T4: 2023-09-01 | U4: 2023-10-01 | V4: 2023-11-01 | W4: 2023-12-01 | X4: 2024-01-01 | Y4: 2024-02-01 | Z4: 2024-03-01 | AA4: 2024-04-01 | AB4: 2024-05-01 | AC4: 2024-06-01 | AD4: 2024-07-01 | AE4: 2024-08-01 | AF4: 2024-09-01 | AG4: 2024-10-01 | AH4: 2024-11-01 | AI4: 2024-12-01 | AJ4: 2025-01-01 | AK4: 2025-02-01 | AL4: 2025-03-01 | AM4: 2025-04-01 | AN4: 2025-05-01 | AO4: 2025-06-01 | AP4: 2025-07-01 | AQ4: 2025-08-01 | AR4: 2025-09-01 | AS4: 2025-10-01 | AT4: 2025-11-01 | AU4: 2025-12-01 | AV4: 2026-01-01 | AW4: 2026-02-01 | AX4: 2026-03-01 | AY4: 2026-04-01 | AZ4: 2026-05-01 | BA4: 2026-06-01 | BB4: 2026-07-01 | BC4: 2026-08-01 | BD4: 2026-09-01 | BE4: 2026-10-01 | BF4: 2026-11-01 | BG4: 2026-12-01 | BH4: 2027-01-01 | BI4: 2027-02-01 | BJ4: 2027-03-01 | BK4: 2027-04-01 | BL4: 2027-05-01 | BM4: 2027-06-01 | BN4: 2027-07-01 | BO4: 2027-08-01 | BP4: 2027-09-01 | BQ4: 2027-10-01 | BR4: 2027-11-01 | BS4: 2027-12-01 | BT4: 2028-01-01 | BU4: 2028-02-01 | BV4: 2028-03-01 | BW4: 2028-04-01 | BX4: 2028-05-01 | BY4: =BX5+1 -> 2028-06-01 | BZ4: 2028-07-01 | CA4: 2028-08-01 | CB4: 2028-09-01 | CC4: 2028-10-01 | CD4: 2028-11-01 | CE4: 2028-12-01 | CF4: 2029-01-01 | CG4: 2029-02-01 | CH4: 2029-03-01 | CI4: 2029-04-01 | CJ4: 2029-05-01 | CK4: 2029-06-01 | CL4: 2029-07-01 | CM4: 2029-08-01 | CN4: 2029-09-01 | CO4: 2029-10-01 | CP4: 2029-11-01 | CQ4: 2029-12-01 | CR4: 2030-01-01 | CS4: 2030-02-01 | CT4: 2030-03-01 | CU4: 2030-04-01 | CV4: 2030-05-01 | CW4: 2030-06-01 | CX4: 2030-07-01 | CY4: 2030-08-01 | CZ4: 2030-09-01 | DA4: 2030-10-01 | DB4: 2030-11-01 | DC4: 2030-12-01 | DD4: 2031-01-01 | DE4: 2031-02-01 | DF4: 2031-03-01 | DG4: 2031-04-01 | DH4: 2031-05-01 | DI4: 2031-06-01 | DJ4: 2031-07-01 | DK4: 2031-08-01 | DL4: 2031-09-01 | DM4: 2031-10-01 | DN4: 2031-11-01 | DO4: 2031-12-01 | DP4: 2032-01-01 | DQ4: 2032-02-01 | DR4: 2032-03-01 | DS4: 2032-04-01 | DT4: 2032-05-01 | DU4: 2032-06-01 | DV4: 2032-07-01 | DW4: 2032-08-01 | DX4: 2032-09-01 | DY4: 2032-10-01 | DZ4: 2032-11-01 | EA4: 2032-12-01 | EB4: 2033-01-01 | EC4: 2033-02-01 | ED4: 2033-03-01 | EE4: 2033-04-01 | EF4: 2033-05-01 | EG4: 2033-06-01 | EH4: 2033-07-01 | EI4: 2033-08-01 | EJ4: 2033-09-01 | EK4: =EJ5+1 -> 2033-10-01 | EL4: 2033-11-01 | EM4: 2033-12-01 | EN4: 2034-01-01 | EO4: 2034-02-01 | EP4: 2034-03-01 | EQ4: 2034-04-01 | ER4: 2034-05-01 | ES4: 2034-06-01 | ET4: 2034-07-01 | EU4: 2034-08-01 | EV4: 2034-09-01 | EW4: 2034-10-01 | EX4: 2034-11-01 | EY4: 2034-12-01 | EZ4: 2035-01-01 | FA4: 2035-02-01 | FB4: 2035-03-01 | FC4: 2035-04-01 | FD4: 2035-05-01 | FE4: 2035-06-01 | FF4: 2035-07-01 | FG4: 2035-08-01 | FH4: 2035-09-01 | FI4: 2035-10-01 | FJ4: 2035-11-01 | FK4: 2035-12-01 | FL4: 2036-01-01 | FM4: 2036-02-01 | FN4: 2036-03-01 | FO4: 2036-04-01 | FP4: 2036-05-01 | FQ4: 2036-06-01 | FR4: 2036-07-01 | FS4: 2036-08-01 | FT4: 2036-09-01 | FU4: 2036-10-01 | FV4: 2036-11-01 | FW4: 2036-12-01 | FX4: 2037-01-01 | FY4: 2037-02-01 | FZ4: 2037-03-01 | GA4: 2037-04-01 | GB4: 2037-05-01 | GC4: 2037-06-01 | GD4: 2037-07-01 | GE4: 2037-08-01 | GF4: 2037-09-01 | GG4: 2037-10-01 | GH4: 2037-11-01 | GI4: 2037-12-01 | GJ4: 2038-01-01 | GK4: 2038-02-01 | GL4: 2038-03-01 | GM4: 2038-04-01 | GN4: 2038-05-01 | GO4: 2038-06-01 | GP4: 2038-07-01 | GQ4: 2038-08-01 | GR4: 2038-09-01 | GS4: 2038-10-01 | GT4: 2038-11-01 | GU4: 2038-12-01 | GV4: 2039-01-01 | GW4: =GV5+1 -> 2039-02-01 | GX4: 2039-03-01 | GY4: 2039-04-01 | GZ4: 2039-05-01 | HA4: 2039-06-01 | HB4: 2039-07-01 | HC4: 2039-08-01 | HD4: 2039-09-01 | HE4: 2039-10-01 | HF4: 2039-11-01 | HG4: 2039-12-01 | HH4: 2040-01-01 | HI4: 2040-02-01 | HJ4: 2040-03-01 | HK4: 2040-04-01 | HL4: 2040-05-01 | HM4: 2040-06-01 | HN4: 2040-07-01 | HO4: 2040-08-01 | HP4: 2040-09-01 | HQ4: 2040-10-01 | HR4: 2040-11-01 | HS4: 2040-12-01 | HT4: 2041-01-01 | HU4: 2041-02-01 | HV4: 2041-03-01 | HW4: 2041-04-01 | HX4: 2041-05-01 | HY4: 2041-06-01 | HZ4: 2041-07-01 | IA4: 2041-08-01 | IB4: 2041-09-01 | IC4: 2041-10-01 | ID4: 2041-11-01 | IE4: 2041-12-01 | IF4: 2042-01-01 | IG4: 2042-02-01 | IH4: 2042-03-01 | II4: 2042-04-01 | IJ4: 2042-05-01 | IK4: 2042-06-01 | IL4: 2042-07-01 | IM4: 2042-08-01 | IN4: 2042-09-01 | IO4: 2042-10-01 | IP4: 2042-11-01 | IQ4: 2042-12-01 | IR4: 2043-01-01 | IS4: 2043-02-01 | IT4: 2043-03-01 | IU4: 2043-04-01 | IV4: 2043-05-01 | IW4: 2043-06-01 | IX4: 2043-07-01 | IY4: 2043-08-01 | IZ4: 2043-09-01 | JA4: 2043-10-01 | JB4: 2043-11-01 | JC4: 2043-12-01 | JD4: 2044-01-01 | JE4: 2044-02-01 | JF4: 2044-03-01 | JG4: 2044-04-01 | JH4: 2044-05-01 | JI4: =JH5+1 -> 2044-06-01 | JJ4: 2044-07-01 | JK4: 2044-08-01 | JL4: 2044-09-01 | JM4: 2044-10-01 | JN4: 2044-11-01 | JO4: 2044-12-01 | JP4: 2045-01-01 | JQ4: 2045-02-01 | JR4: 2045-03-01 | JS4: 2045-04-01 | JT4: 2045-05-01 | JU4: 2045-06-01 | JV4: 2045-07-01 | JW4: 2045-08-01 | JX4: 2045-09-01 | JY4: 2045-10-01 | JZ4: 2045-11-01 | KA4: 2045-12-01 | KB4: 2046-01-01 | KC4: 2046-02-01 | KD4: 2046-03-01 | KE4: 2046-04-01 | KF4: 2046-05-01 | KG4: 2046-06-01 | KH4: 2046-07-01 | KI4: 2046-08-01 | KJ4: 2046-09-01 | KK4: 2046-10-01 | KL4: 2046-11-01 | KM4: 2046-12-01 | KN4: 2047-01-01 | KO4: 2047-02-01 | KP4: 2047-03-01 | KQ4: 2047-04-01 | KR4: 2047-05-01 | KS4: 2047-06-01 | KT4: 2047-07-01 | KU4: 2047-08-01 | KV4: 2047-09-01 | KW4: 2047-10-01 | KX4: 2047-11-01 | KY4: 2047-12-01 | KZ4: 2048-01-01 | LA4: 2048-02-01 | LB4: 2048-03-01 | LC4: 2048-04-01 | LD4: 2048-05-01 | LE4: 2048-06-01 | LF4: 2048-07-01 | LG4: 2048-08-01 | LH4: 2048-09-01 | LI4: 2048-10-01 | LJ4: 2048-11-01 | LK4: 2048-12-01 | LL4: 2049-01-01 | LM4: 2049-02-01 | LN4: 2049-03-01 | LO4: 2049-04-01 | LP4: 2049-05-01 | LQ4: 2049-06-01 | LR4: 2049-07-01 | LS4: 2049-08-01 | LT4: 2049-09-01 | LU4: =LT5+1 -> 2049-10-01 | LV4: 2049-11-01 | LW4: 2049-12-01 | LX4: 2050-01-01 | LY4: 2050-02-01 | LZ4: 2050-03-01 | MA4: 2050-04-01 | MB4: 2050-05-01 | MC4: 2050-06-01 | MD4: 2050-07-01 | ME4: 2050-08-01 | MF4: 2050-09-01 | MG4: 2050-10-01 | MH4: 2050-11-01 | MI4: 2050-12-01 | MJ4: 2051-01-01 | MK4: 2051-02-01 | ML4: 2051-03-01 | MM4: 2051-04-01 | MN4: 2051-05-01 | MO4: 2051-06-01 | MP4: 2051-07-01 | MQ4: 2051-08-01 | MR4: 2051-09-01 | MS4: 2051-10-01 | MT4: 2051-11-01 | MU4: 2051-12-01 | MV4: 2052-01-01 | MW4: 2052-02-01 | MX4: 2052-03-01 | MY4: 2052-04-01 | MZ4: 2052-05-01 | NA4: 2052-06-01 | NB4: 2052-07-01 | NC4: 2052-08-01 | ND4: 2052-09-01 | NE4: 2052-10-01 | NF4: 2052-11-01 | NG4: 2052-12-01 | NH4: 2053-01-01 | NI4: 2053-02-01 | NJ4: 2053-03-01 | NK4: 2053-04-01 | NL4: 2053-05-01 | NM4: 2053-06-01 | NN4: 2053-07-01 | NO4: 2053-08-01 | NP4: 2053-09-01 | NQ4: 2053-10-01 | NR4: 2053-11-01 | NS4: 2053-12-01 | NT4: 2054-01-01 | NU4: 2054-02-01 | NV4: 2054-03-01 | NW4: 2054-04-01 | NX4: 2054-05-01 | NY4: 2054-06-01 | NZ4: 2054-07-01 | OA4: 2054-08-01 | OB4: 2054-09-01 | OC4: 2054-10-01 | OD4: 2054-11-01 | OE4: 2054-12-01 | OF4: 2055-01-01 | OG4: =OF5+1 -> 2055-02-01 | OH4: 2055-03-01 | OI4: 2055-04-01 | OJ4: 2055-05-01 | OK4: 2055-06-01 | OL4: 2055-07-01 | OM4: 2055-08-01 | ON4: 2055-09-01 | OO4: 2055-10-01 | OP4: 2055-11-01 | OQ4: 2055-12-01 | OR4: 2056-01-01 | OS4: 2056-02-01 | OT4: 2056-03-01 | OU4: 2056-04-01 | OV4: 2056-05-01 | OW4: 2056-06-01 | OX4: 2056-07-01 | OY4: 2056-08-01 | OZ4: 2056-09-01 | PA4: 2056-10-01 | PB4: 2056-11-01 | PC4: 2056-12-01 | PD4: 2057-01-01 | PE4: 2057-02-01 | PF4: 2057-03-01 | PG4: 2057-04-01 | PH4: 2057-05-01 | PI4: 2057-06-01 | PJ4: 2057-07-01 | PK4: 2057-08-01 | PL4: 2057-09-01 | PM4: 2057-10-01 | PN4: 2057-11-01 | PO4: 2057-12-01 | PP4: 2058-01-01 | PQ4: 2058-02-01 | PR4: 2058-03-01 | PS4: 2058-04-01 | PT4: 2058-05-01 | PU4: 2058-06-01 | PV4: 2058-07-01 | PW4: 2058-08-01 | PX4: 2058-09-01 | PY4: 2058-10-01 | PZ4: 2058-11-01 | QA4: 2058-12-01 | QB4: 2059-01-01 | QC4: 2059-02-01 | QD4: 2059-03-01 | QE4: 2059-04-01 | QF4: 2059-05-01 | QG4: 2059-06-01 | QH4: 2059-07-01 | QI4: 2059-08-01 | QJ4: 2059-09-01 | QK4: 2059-10-01 | QL4: 2059-11-01 | QM4: 2059-12-01 | QN4: 2060-01-01 | QO4: 2060-02-01 | QP4: 2060-03-01 | QQ4: 2060-04-01 | QR4: 2060-05-01 | QS4: =QR5+1 -> 2060-06-01 | QT4: 2060-07-01 | QU4: 2060-08-01 | QV4: 2060-09-01 | QW4: 2060-10-01 | QX4: 2060-11-01 | QY4: 2060-12-01 | QZ4: 2061-01-01 | RA4: 2061-02-01 | RB4: 2061-03-01 | RC4: 2061-04-01 | RD4: 2061-05-01 | RE4: 2061-06-01 | RF4: 2061-07-01 | RG4: 2061-08-01 | RH4: 2061-09-01 | RI4: 2061-10-01 | RJ4: 2061-11-01 | RK4: 2061-12-01 | RL4: 2062-01-01 | RM4: 2062-02-01 | RN4: 2062-03-01 | RO4: 2062-04-01 | RP4: 2062-05-01 | RQ4: 2062-06-01 | RR4: 2062-07-01 | RS4: 2062-08-01 | RT4: 2062-09-01 | RU4: 2062-10-01 | RV4: 2062-11-01 | RW4: 2062-12-01 | RX4: 2063-01-01 | RY4: 2063-02-01 | RZ4: 2063-03-01 | SA4: 2063-04-01 | SB4: 2063-05-01 | SC4: 2063-06-01 | SD4: 2063-07-01 | SE4: 2063-08-01 | SF4: 2063-09-01 | SG4: 2063-10-01 | SH4: 2063-11-01 | SI4: 2063-12-01 | SJ4: 2064-01-01 | SK4: 2064-02-01 | SL4: 2064-03-01 | SM4: 2064-04-01 | SN4: 2064-05-01 | SO4: 2064-06-01 | SP4: 2064-07-01 | SQ4: 2064-08-01 | SR4: 2064-09-01 | SS4: 2064-10-01 | ST4: 2064-11-01 | SU4: 2064-12-01 | SV4: 2065-01-01 | SW4: 2065-02-01 | SX4: 2065-03-01 | SY4: 2065-04-01 | SZ4: 2065-05-01 | TA4: 2065-06-01 | TB4: 2065-07-01 | TC4: 2065-08-01 | TD4: 2065-09-01 | TE4: =TD5+1 -> 2065-10-01 | TF4: 2065-11-01 | TG4: 2065-12-01 | TH4: 2066-01-01 | TI4: 2066-02-01 | TJ4: 2066-03-01 | TK4: 2066-04-01 | TL4: 2066-05-01 | TM4: 2066-06-01 | TN4: 2066-07-01 | TO4: 2066-08-01 | TP4: 2066-09-01 | TQ4: 2066-10-01 | TR4: 2066-11-01 | TS4: 2066-12-01 | TT4: 2067-01-01 | TU4: 2067-02-01 | TV4: 2067-03-01 | TW4: 2067-04-01 | TX4: 2067-05-01 | TY4: 2067-06-01 | TZ4: 2067-07-01 | UA4: 2067-08-01 | UB4: 2067-09-01 | UC4: 2067-10-01 | UD4: 2067-11-01 | UE4: 2067-12-01 | UF4: 2068-01-01 | UG4: 2068-02-01 | UH4: 2068-03-01 | UI4: 2068-04-01 | UJ4: 2068-05-01 | UK4: 2068-06-01 | UL4: 2068-07-01 | UM4: 2068-08-01 | UN4: 2068-09-01 | UO4: 2068-10-01 | UP4: 2068-11-01 | UQ4: 2068-12-01 | UR4: 2069-01-01 | US4: 2069-02-01 | UT4: 2069-03-01 | UU4: 2069-04-01 | UV4: 2069-05-01 | UW4: 2069-06-01 | UX4: 2069-07-01 | UY4: 2069-08-01 | UZ4: 2069-09-01 | VA4: 2069-10-01 | VB4: 2069-11-01 | VC4: 2069-12-01 | VD4: 2070-01-01 | VE4: 2070-02-01 | VF4: 2070-03-01 | VG4: 2070-04-01 | VH4: 2070-05-01 | VI4: 2070-06-01 | VJ4: 2070-07-01 | VK4: 2070-08-01 | VL4: 2070-09-01 | VM4: 2070-10-01 | VN4: 2070-11-01 | VO4: 2070-12-01 | VP4: 2071-01-01 | VQ4: =VP5+1 -> 2071-02-01 | VR4: 2071-03-01 | VS4: 2071-04-01 | VT4: 2071-05-01 | VU4: 2071-06-01 | VV4: 2071-07-01 | VW4: 2071-08-01 | VX4: 2071-09-01 | VY4: 2071-10-01 | VZ4: 2071-11-01 | WA4: 2071-12-01 | WB4: 2072-01-01 | WC4: 2072-02-01 | WD4: 2072-03-01 | WE4: 2072-04-01 | WF4: 2072-05-01 | WG4: 2072-06-01 | WH4: 2072-07-01 | WI4: 2072-08-01 | WJ4: 2072-09-01 | WK4: 2072-10-01 | WL4: 2072-11-01 | WM4: 2072-12-01 | WN4: 2073-01-01 | WO4: 2073-02-01 | WP4: 2073-03-01 | WQ4: 2073-04-01 | WR4: 2073-05-01 | WS4: 2073-06-01 | WT4: 2073-07-01 | WU4: 2073-08-01 | WV4: 2073-09-01 | WW4: 2073-10-01 | WX4: 2073-11-01 | WY4: 2073-12-01 | WZ4: 2074-01-01 | XA4: 2074-02-01 | XB4: 2074-03-01 | XC4: 2074-04-01 | XD4: 2074-05-01 | XE4: 2074-06-01 | XF4: 2074-07-01 | XG4: 2074-08-01 | XH4: 2074-09-01 | XI4: 2074-10-01 | XJ4: 2074-11-01 | XK4: 2074-12-01 | XL4: 2075-01-01 | XM4: 2075-02-01 | XN4: 2075-03-01 | XO4: 2075-04-01 | XP4: 2075-05-01 | XQ4: 2075-06-01 | XR4: 2075-07-01 | XS4: 2075-08-01 | XT4: 2075-09-01 | XU4: 2075-10-01 | XV4: 2075-11-01 | XW4: 2075-12-01 | XX4: 2076-01-01 | XY4: 2076-02-01 | XZ4: 2076-03-01 | YA4: 2076-04-01 | YB4: 2076-05-01 | YC4: =YB5+1 -> 2076-06-01 | YD4: 2076-07-01 | YE4: 2076-08-01 | YF4: 2076-09-01 | YG4: 2076-10-01 | YH4: 2076-11-01 | YI4: 2076-12-01 | YJ4: 2077-01-01 | YK4: 2077-02-01 | YL4: 2077-03-01 | YM4: 2077-04-01 | YN4: 2077-05-01 | YO4: 2077-06-01 | YP4: 2077-07-01 | YQ4: 2077-08-01 | YR4: 2077-09-01 | YS4: 2077-10-01 | YT4: 2077-11-01 | YU4: 2077-12-01 | YV4: 2078-01-01 | YW4: 2078-02-01 | YX4: 2078-03-01 | YY4: 2078-04-01 | YZ4: 2078-05-01 | ZA4: 2078-06-01 | ZB4: 2078-07-01 | ZC4: 2078-08-01 | ZD4: 2078-09-01 | ZE4: 2078-10-01 | ZF4: 2078-11-01 | ZG4: 2078-12-01 | ZH4: 2079-01-01 | ZI4: 2079-02-01 | ZJ4: 2079-03-01 | ZK4: 2079-04-01 | ZL4: 2079-05-01 | ZM4: 2079-06-01 | ZN4: 2079-07-01 | ZO4: 2079-08-01 | ZP4: 2079-09-01 | ZQ4: 2079-10-01 | ZR4: 2079-11-01 | ZS4: 2079-12-01 | ZT4: 2080-01-01 | ZU4: 2080-02-01 | ZV4: 2080-03-01 | ZW4: 2080-04-01 | ZX4: 2080-05-01 | ZY4: 2080-06-01 | ZZ4: 2080-07-01 | AAA4: 2080-08-01 | AAB4: 2080-09-01 | AAC4: 2080-10-01 | AAD4: 2080-11-01 | AAE4: 2080-12-01 | AAF4: 2081-01-01 | AAG4: 2081-02-01 | AAH4: 2081-03-01 | AAI4: 2081-04-01 | AAJ4: 2081-05-01 | AAK4: 2081-06-01 | AAL4: 2081-07-01 | AAM4: 2081-08-01 | AAN4: 2081-09-01 | AAO4: =AAN5+1 -> 2081-10-01 | AAP4: 2081-11-01 | AAQ4: 2081-12-01 | AAR4: 2082-01-01 | AAS4: 2082-02-01 | AAT4: 2082-03-01 | AAU4: 2082-04-01 | AAV4: 2082-05-01 | AAW4: 2082-06-01 | AAX4: 2082-07-01 | AAY4: 2082-08-01 | AAZ4: 2082-09-01 | ABA4: 2082-10-01 | ABB4: 2082-11-01 | ABC4: 2082-12-01 | ABD4: 2083-01-01 | ABE4: 2083-02-01 | ABF4: 2083-03-01 | ABG4: 2083-04-01 | ABH4: 2083-05-01 | ABI4: 2083-06-01 | ABJ4: 2083-07-01 | ABK4: 2083-08-01 | ABL4: 2083-09-01 | ABM4: 2083-10-01 | ABN4: 2083-11-01 | ABO4: 2083-12-01 | ABP4: 2084-01-01 | ABQ4: 2084-02-01 | ABR4: 2084-03-01 | ABS4: 2084-04-01 | ABT4: 2084-05-01 | ABU4: 2084-06-01 | ABV4: 2084-07-01 | ABW4: 2084-08-01 | ABX4: 2084-09-01 | ABY4: 2084-10-01 | ABZ4: 2084-11-01 | ACA4: 2084-12-01 | ACB4: 2085-01-01 | ACC4: 2085-02-01 | ACD4: 2085-03-01 | ACE4: 2085-04-01 | ACF4: 2085-05-01 | ACG4: 2085-06-01 | ACH4: 2085-07-01 | ACI4: 2085-08-01 | ACJ4: 2085-09-01 | ACK4: 2085-10-01 | ACL4: 2085-11-01 | ACM4: 2085-12-01 | ACN4: 2086-01-01 | ACO4: 2086-02-01 | ACP4: 2086-03-01 | ACQ4: 2086-04-01 | ACR4: 2086-05-01 | ACS4: 2086-06-01 | ACT4: 2086-07-01 | ACU4: 2086-08-01 | ACV4: 2086-09-01 | ACW4: 2086-10-01 | ACX4: 2086-11-01 | ACY4: 2086-12-01 | ACZ4: 2087-01-01 | ADA4: =ACZ5+1 -> 2087-02-01 | ADB4: 2087-03-01 | ADC4: 2087-04-01 | ADD4: 2087-05-01 | ADE4: 2087-06-01 | ADF4: 2087-07-01 | ADG4: 2087-08-01 | ADH4: 2087-09-01 | ADI4: 2087-10-01 | ADJ4: 2087-11-01 | ADK4: 2087-12-01 | ADL4: 2088-01-01 | ADM4: 2088-02-01 | ADN4: 2088-03-01 | ADO4: 2088-04-01 | ADP4: 2088-05-01 | ADQ4: 2088-06-01 | ADR4: 2088-07-01 | ADS4: 2088-08-01 | ADT4: 2088-09-01 | ADU4: 2088-10-01 | ADV4: 2088-11-01 | ADW4: 2088-12-01 | ADX4: 2089-01-01 | ADY4: 2089-02-01 | ADZ4: 2089-03-01 | AEA4: 2089-04-01 | AEB4: 2089-05-01 | AEC4: 2089-06-01 | AED4: 2089-07-01 | AEE4: 2089-08-01
D5: End of Period | G5: Date | K5: ='InputC - Operations'!E7-1 -> 2022-12-31 | L5: =EDATE(L4,1)-1 -> 2023-01-31 | M5: =EDATE(M4,1)-1 -> 2023-02-28 | N5: 2023-03-31 | O5: 2023-04-30 | P5: 2023-05-31 | Q5: 2023-06-30 | R5: 2023-07-31 | S5: 2023-08-31 | T5: 2023-09-30 | U5: 2023-10-31 | V5: 2023-11-30 | W5: 2023-12-31 | X5: 2024-01-31 | Y5: 2024-02-29 | Z5: 2024-03-31 | AA5: 2024-04-30 | AB5: 2024-05-31 | AC5: 2024-06-30 | AD5: 2024-07-31 | AE5: 2024-08-31 | AF5: 2024-09-30 | AG5: 2024-10-31 | AH5: 2024-11-30 | AI5: 2024-12-31 | AJ5: 2025-01-31 | AK5: 2025-02-28 | AL5: 2025-03-31 | AM5: 2025-04-30 | AN5: 2025-05-31 | AO5: 2025-06-30 | AP5: 2025-07-31 | AQ5: 2025-08-31 | AR5: 2025-09-30 | AS5: 2025-10-31 | AT5: 2025-11-30 | AU5: 2025-12-31 | AV5: 2026-01-31 | AW5: 2026-02-28 | AX5: 2026-03-31 | AY5: 2026-04-30 | AZ5: 2026-05-31 | BA5: 2026-06-30 | BB5: 2026-07-31 | BC5: 2026-08-31 | BD5: 2026-09-30 | BE5: 2026-10-31 | BF5: 2026-11-30 | BG5: 2026-12-31 | BH5: 2027-01-31 | BI5: 2027-02-28 | BJ5: 2027-03-31 | BK5: 2027-04-30 | BL5: 2027-05-31 | BM5: 2027-06-30 | BN5: 2027-07-31 | BO5: 2027-08-31 | BP5: 2027-09-30 | BQ5: 2027-10-31 | BR5: 2027-11-30 | BS5: 2027-12-31 | BT5: 2028-01-31 | BU5: 2028-02-29 | BV5: 2028-03-31 | BW5: 2028-04-30 | BX5: 2028-05-31 | BY5: =EDATE(BY4,1)-1 -> 2028-06-30 | BZ5: 2028-07-31 | CA5: 2028-08-31 | CB5: 2028-09-30 | CC5: 2028-10-31 | CD5: 2028-11-30 | CE5: 2028-12-31 | CF5: 2029-01-31 | CG5: 2029-02-28 | CH5: 2029-03-31 | CI5: 2029-04-30 | CJ5: 2029-05-31 | CK5: 2029-06-30 | CL5: 2029-07-31 | CM5: 2029-08-31 | CN5: 2029-09-30 | CO5: 2029-10-31 | CP5: 2029-11-30 | CQ5: 2029-12-31 | CR5: 2030-01-31 | CS5: 2030-02-28 | CT5: 2030-03-31 | CU5: 2030-04-30 | CV5: 2030-05-31 | CW5: 2030-06-30 | CX5: 2030-07-31 | CY5: 2030-08-31 | CZ5: 2030-09-30 | DA5: 2030-10-31 | DB5: 2030-11-30 | DC5: 2030-12-31 | DD5: 2031-01-31 | DE5: 2031-02-28 | DF5: 2031-03-31 | DG5: 2031-04-30 | DH5: 2031-05-31 | DI5: 2031-06-30 | DJ5: 2031-07-31 | DK5: 2031-08-31 | DL5: 2031-09-30 | DM5: 2031-10-31 | DN5: 2031-11-30 | DO5: 2031-12-31 | DP5: 2032-01-31 | DQ5: 2032-02-29 | DR5: 2032-03-31 | DS5: 2032-04-30 | DT5: 2032-05-31 | DU5: 2032-06-30 | DV5: 2032-07-31 | DW5: 2032-08-31 | DX5: 2032-09-30 | DY5: 2032-10-31 | DZ5: 2032-11-30 | EA5: 2032-12-31 | EB5: 2033-01-31 | EC5: 2033-02-28 | ED5: 2033-03-31 | EE5: 2033-04-30 | EF5: 2033-05-31 | EG5: 2033-06-30 | EH5: 2033-07-31 | EI5: 2033-08-31 | EJ5: 2033-09-30 | EK5: =EDATE(EK4,1)-1 -> 2033-10-31 | EL5: 2033-11-30 | EM5: 2033-12-31 | EN5: 2034-01-31 | EO5: 2034-02-28 | EP5: 2034-03-31 | EQ5: 2034-04-30 | ER5: 2034-05-31 | ES5: 2034-06-30 | ET5: 2034-07-31 | EU5: 2034-08-31 | EV5: 2034-09-30 | EW5: 2034-10-31 | EX5: 2034-11-30 | EY5: 2034-12-31 | EZ5: 2035-01-31 | FA5: 2035-02-28 | FB5: 2035-03-31 | FC5: 2035-04-30 | FD5: 2035-05-31 | FE5: 2035-06-30 | FF5: 2035-07-31 | FG5: 2035-08-31 | FH5: 2035-09-30 | FI5: 2035-10-31 | FJ5: 2035-11-30 | FK5: 2035-12-31 | FL5: 2036-01-31 | FM5: 2036-02-29 | FN5: 2036-03-31 | FO5: 2036-04-30 | FP5: 2036-05-31 | FQ5: 2036-06-30 | FR5: 2036-07-31 | FS5: 2036-08-31 | FT5: 2036-09-30 | FU5: 2036-10-31 | FV5: 2036-11-30 | FW5: 2036-12-31 | FX5: 2037-01-31 | FY5: 2037-02-28 | FZ5: 2037-03-31 | GA5: 2037-04-30 | GB5: 2037-05-31 | GC5: 2037-06-30 | GD5: 2037-07-31 | GE5: 2037-08-31 | GF5: 2037-09-30 | GG5: 2037-10-31 | GH5: 2037-11-30 | GI5: 2037-12-31 | GJ5: 2038-01-31 | GK5: 2038-02-28 | GL5: 2038-03-31 | GM5: 2038-04-30 | GN5: 2038-05-31 | GO5: 2038-06-30 | GP5: 2038-07-31 | GQ5: 2038-08-31 | GR5: 2038-09-30 | GS5: 2038-10-31 | GT5: 2038-11-30 | GU5: 2038-12-31 | GV5: 2039-01-31 | GW5: =EDATE(GW4,1)-1 -> 2039-02-28 | GX5: 2039-03-31 | GY5: 2039-04-30 | GZ5: 2039-05-31 | HA5: 2039-06-30 | HB5: 2039-07-31 | HC5: 2039-08-31 | HD5: 2039-09-30 | HE5: 2039-10-31 | HF5: 2039-11-30 | HG5: 2039-12-31 | HH5: 2040-01-31 | HI5: 2040-02-29 | HJ5: 2040-03-31 | HK5: 2040-04-30 | HL5: 2040-05-31 | HM5: 2040-06-30 | HN5: 2040-07-31 | HO5: 2040-08-31 | HP5: 2040-09-30 | HQ5: 2040-10-31 | HR5: 2040-11-30 | HS5: 2040-12-31 | HT5: 2041-01-31 | HU5: 2041-02-28 | HV5: 2041-03-31 | HW5: 2041-04-30 | HX5: 2041-05-31 | HY5: 2041-06-30 | HZ5: 2041-07-31 | IA5: 2041-08-31 | IB5: 2041-09-30 | IC5: 2041-10-31 | ID5: 2041-11-30 | IE5: 2041-12-31 | IF5: 2042-01-31 | IG5: 2042-02-28 | IH5: 2042-03-31 | II5: 2042-04-30 | IJ5: 2042-05-31 | IK5: 2042-06-30 | IL5: 2042-07-31 | IM5: 2042-08-31 | IN5: 2042-09-30 | IO5: 2042-10-31 | IP5: 2042-11-30 | IQ5: 2042-12-31 | IR5: 2043-01-31 | IS5: 2043-02-28 | IT5: 2043-03-31 | IU5: 2043-04-30 | IV5: 2043-05-31 | IW5: 2043-06-30 | IX5: 2043-07-31 | IY5: 2043-08-31 | IZ5: 2043-09-30 | JA5: 2043-10-31 | JB5: 2043-11-30 | JC5: 2043-12-31 | JD5: 2044-01-31 | JE5: 2044-02-29 | JF5: 2044-03-31 | JG5: 2044-04-30 | JH5: 2044-05-31 | JI5: =EDATE(JI4,1)-1 -> 2044-06-30 | JJ5: 2044-07-31 | JK5: 2044-08-31 | JL5: 2044-09-30 | JM5: 2044-10-31 | JN5: 2044-11-30 | JO5: 2044-12-31 | JP5: 2045-01-31 | JQ5: 2045-02-28 | JR5: 2045-03-31 | JS5: 2045-04-30 | JT5: 2045-05-31 | JU5: 2045-06-30 | JV5: 2045-07-31 | JW5: 2045-08-31 | JX5: 2045-09-30 | JY5: 2045-10-31 | JZ5: 2045-11-30 | KA5: 2045-12-31 | KB5: 2046-01-31 | KC5: 2046-02-28 | KD5: 2046-03-31 | KE5: 2046-04-30 | KF5: 2046-05-31 | KG5: 2046-06-30 | KH5: 2046-07-31 | KI5: 2046-08-31 | KJ5: 2046-09-30 | KK5: 2046-10-31 | KL5: 2046-11-30 | KM5: 2046-12-31 | KN5: 2047-01-31 | KO5: 2047-02-28 | KP5: 2047-03-31 | KQ5: 2047-04-30 | KR5: 2047-05-31 | KS5: 2047-06-30 | KT5: 2047-07-31 | KU5: 2047-08-31 | KV5: 2047-09-30 | KW5: 2047-10-31 | KX5: 2047-11-30 | KY5: 2047-12-31 | KZ5: 2048-01-31 | LA5: 2048-02-29 | LB5: 2048-03-31 | LC5: 2048-04-30 | LD5: 2048-05-31 | LE5: 2048-06-30 | LF5: 2048-07-31 | LG5: 2048-08-31 | LH5: 2048-09-30 | LI5: 2048-10-31 | LJ5: 2048-11-30 | LK5: 2048-12-31 | LL5: 2049-01-31 | LM5: 2049-02-28 | LN5: 2049-03-31 | LO5: 2049-04-30 | LP5: 2049-05-31 | LQ5: 2049-06-30 | LR5: 2049-07-31 | LS5: 2049-08-31 | LT5: 2049-09-30 | LU5: =EDATE(LU4,1)-1 -> 2049-10-31 | LV5: 2049-11-30 | LW5: 2049-12-31 | LX5: 2050-01-31 | LY5: 2050-02-28 | LZ5: 2050-03-31 | MA5: 2050-04-30 | MB5: 2050-05-31 | MC5: 2050-06-30 | MD5: 2050-07-31 | ME5: 2050-08-31 | MF5: 2050-09-30 | MG5: 2050-10-31 | MH5: 2050-11-30 | MI5: 2050-12-31 | MJ5: 2051-01-31 | MK5: 2051-02-28 | ML5: 2051-03-31 | MM5: 2051-04-30 | MN5: 2051-05-31 | MO5: 2051-06-30 | MP5: 2051-07-31 | MQ5: 2051-08-31 | MR5: 2051-09-30 | MS5: 2051-10-31 | MT5: 2051-11-30 | MU5: 2051-12-31 | MV5: 2052-01-31 | MW5: 2052-02-29 | MX5: 2052-03-31 | MY5: 2052-04-30 | MZ5: 2052-05-31 | NA5: 2052-06-30 | NB5: 2052-07-31 | NC5: 2052-08-31 | ND5: 2052-09-30 | NE5: 2052-10-31 | NF5: 2052-11-30 | NG5: 2052-12-31 | NH5: 2053-01-31 | NI5: 2053-02-28 | NJ5: 2053-03-31 | NK5: 2053-04-30 | NL5: 2053-05-31 | NM5: 2053-06-30 | NN5: 2053-07-31 | NO5: 2053-08-31 | NP5: 2053-09-30 | NQ5: 2053-10-31 | NR5: 2053-11-30 | NS5: 2053-12-31 | NT5: 2054-01-31 | NU5: 2054-02-28 | NV5: 2054-03-31 | NW5: 2054-04-30 | NX5: 2054-05-31 | NY5: 2054-06-30 | NZ5: 2054-07-31 | OA5: 2054-08-31 | OB5: 2054-09-30 | OC5: 2054-10-31 | OD5: 2054-11-30 | OE5: 2054-12-31 | OF5: 2055-01-31 | OG5: =EDATE(OG4,1)-1 -> 2055-02-28 | OH5: 2055-03-31 | OI5: 2055-04-30 | OJ5: 2055-05-31 | OK5: 2055-06-30 | OL5: 2055-07-31 | OM5: 2055-08-31 | ON5: 2055-09-30 | OO5: 2055-10-31 | OP5: 2055-11-30 | OQ5: 2055-12-31 | OR5: 2056-01-31 | OS5: 2056-02-29 | OT5: 2056-03-31 | OU5: 2056-04-30 | OV5: 2056-05-31 | OW5: 2056-06-30 | OX5: 2056-07-31 | OY5: 2056-08-31 | OZ5: 2056-09-30 | PA5: 2056-10-31 | PB5: 2056-11-30 | PC5: 2056-12-31 | PD5: 2057-01-31 | PE5: 2057-02-28 | PF5: 2057-03-31 | PG5: 2057-04-30 | PH5: 2057-05-31 | PI5: 2057-06-30 | PJ5: 2057-07-31 | PK5: 2057-08-31 | PL5: 2057-09-30 | PM5: 2057-10-31 | PN5: 2057-11-30 | PO5: 2057-12-31 | PP5: 2058-01-31 | PQ5: 2058-02-28 | PR5: 2058-03-31 | PS5: 2058-04-30 | PT5: 2058-05-31 | PU5: 2058-06-30 | PV5: 2058-07-31 | PW5: 2058-08-31 | PX5: 2058-09-30 | PY5: 2058-10-31 | PZ5: 2058-11-30 | QA5: 2058-12-31 | QB5: 2059-01-31 | QC5: 2059-02-28 | QD5: 2059-03-31 | QE5: 2059-04-30 | QF5: 2059-05-31 | QG5: 2059-06-30 | QH5: 2059-07-31 | QI5: 2059-08-31 | QJ5: 2059-09-30 | QK5: 2059-10-31 | QL5: 2059-11-30 | QM5: 2059-12-31 | QN5: 2060-01-31 | QO5: 2060-02-29 | QP5: 2060-03-31 | QQ5: 2060-04-30 | QR5: 2060-05-31 | QS5: =EDATE(QS4,1)-1 -> 2060-06-30 | QT5: 2060-07-31 | QU5: 2060-08-31 | QV5: 2060-09-30 | QW5: 2060-10-31 | QX5: 2060-11-30 | QY5: 2060-12-31 | QZ5: 2061-01-31 | RA5: 2061-02-28 | RB5: 2061-03-31 | RC5: 2061-04-30 | RD5: 2061-05-31 | RE5: 2061-06-30 | RF5: 2061-07-31 | RG5: 2061-08-31 | RH5: 2061-09-30 | RI5: 2061-10-31 | RJ5: 2061-11-30 | RK5: 2061-12-31 | RL5: 2062-01-31 | RM5: 2062-02-28 | RN5: 2062-03-31 | RO5: 2062-04-30 | RP5: 2062-05-31 | RQ5: 2062-06-30 | RR5: 2062-07-31 | RS5: 2062-08-31 | RT5: 2062-09-30 | RU5: 2062-10-31 | RV5: 2062-11-30 | RW5: 2062-12-31 | RX5: 2063-01-31 | RY5: 2063-02-28 | RZ5: 2063-03-31 | SA5: 2063-04-30 | SB5: 2063-05-31 | SC5: 2063-06-30 | SD5: 2063-07-31 | SE5: 2063-08-31 | SF5: 2063-09-30 | SG5: 2063-10-31 | SH5: 2063-11-30 | SI5: 2063-12-31 | SJ5: 2064-01-31 | SK5: 2064-02-29 | SL5: 2064-03-31 | SM5: 2064-04-30 | SN5: 2064-05-31 | SO5: 2064-06-30 | SP5: 2064-07-31 | SQ5: 2064-08-31 | SR5: 2064-09-30 | SS5: 2064-10-31 | ST5: 2064-11-30 | SU5: 2064-12-31 | SV5: 2065-01-31 | SW5: 2065-02-28 | SX5: 2065-03-31 | SY5: 2065-04-30 | SZ5: 2065-05-31 | TA5: 2065-06-30 | TB5: 2065-07-31 | TC5: 2065-08-31 | TD5: 2065-09-30 | TE5: =EDATE(TE4,1)-1 -> 2065-10-31 | TF5: 2065-11-30 | TG5: 2065-12-31 | TH5: 2066-01-31 | TI5: 2066-02-28 | TJ5: 2066-03-31 | TK5: 2066-04-30 | TL5: 2066-05-31 | TM5: 2066-06-30 | TN5: 2066-07-31 | TO5: 2066-08-31 | TP5: 2066-09-30 | TQ5: 2066-10-31 | TR5: 2066-11-30 | TS5: 2066-12-31 | TT5: 2067-01-31 | TU5: 2067-02-28 | TV5: 2067-03-31 | TW5: 2067-04-30 | TX5: 2067-05-31 | TY5: 2067-06-30 | TZ5: 2067-07-31 | UA5: 2067-08-31 | UB5: 2067-09-30 | UC5: 2067-10-31 | UD5: 2067-11-30 | UE5: 2067-12-31 | UF5: 2068-01-31 | UG5: 2068-02-29 | UH5: 2068-03-31 | UI5: 2068-04-30 | UJ5: 2068-05-31 | UK5: 2068-06-30 | UL5: 2068-07-31 | UM5: 2068-08-31 | UN5: 2068-09-30 | UO5: 2068-10-31 | UP5: 2068-11-30 | UQ5: 2068-12-31 | UR5: 2069-01-31 | US5: 2069-02-28 | UT5: 2069-03-31 | UU5: 2069-04-30 | UV5: 2069-05-31 | UW5: 2069-06-30 | UX5: 2069-07-31 | UY5: 2069-08-31 | UZ5: 2069-09-30 | VA5: 2069-10-31 | VB5: 2069-11-30 | VC5: 2069-12-31 | VD5: 2070-01-31 | VE5: 2070-02-28 | VF5: 2070-03-31 | VG5: 2070-04-30 | VH5: 2070-05-31 | VI5: 2070-06-30 | VJ5: 2070-07-31 | VK5: 2070-08-31 | VL5: 2070-09-30 | VM5: 2070-10-31 | VN5: 2070-11-30 | VO5: 2070-12-31 | VP5: 2071-01-31 | VQ5: =EDATE(VQ4,1)-1 -> 2071-02-28 | VR5: 2071-03-31 | VS5: 2071-04-30 | VT5: 2071-05-31 | VU5: 2071-06-30 | VV5: 2071-07-31 | VW5: 2071-08-31 | VX5: 2071-09-30 | VY5: 2071-10-31 | VZ5: 2071-11-30 | WA5: 2071-12-31 | WB5: 2072-01-31 | WC5: 2072-02-29 | WD5: 2072-03-31 | WE5: 2072-04-30 | WF5: 2072-05-31 | WG5: 2072-06-30 | WH5: 2072-07-31 | WI5: 2072-08-31 | WJ5: 2072-09-30 | WK5: 2072-10-31 | WL5: 2072-11-30 | WM5: 2072-12-31 | WN5: 2073-01-31 | WO5: 2073-02-28 | WP5: 2073-03-31 | WQ5: 2073-04-30 | WR5: 2073-05-31 | WS5: 2073-06-30 | WT5: 2073-07-31 | WU5: 2073-08-31 | WV5: 2073-09-30 | WW5: 2073-10-31 | WX5: 2073-11-30 | WY5: 2073-12-31 | WZ5: 2074-01-31 | XA5: 2074-02-28 | XB5: 2074-03-31 | XC5: 2074-04-30 | XD5: 2074-05-31 | XE5: 2074-06-30 | XF5: 2074-07-31 | XG5: 2074-08-31 | XH5: 2074-09-30 | XI5: 2074-10-31 | XJ5: 2074-11-30 | XK5: 2074-12-31 | XL5: 2075-01-31 | XM5: 2075-02-28 | XN5: 2075-03-31 | XO5: 2075-04-30 | XP5: 2075-05-31 | XQ5: 2075-06-30 | XR5: 2075-07-31 | XS5: 2075-08-31 | XT5: 2075-09-30 | XU5: 2075-10-31 | XV5: 2075-11-30 | XW5: 2075-12-31 | XX5: 2076-01-31 | XY5: 2076-02-29 | XZ5: 2076-03-31 | YA5: 2076-04-30 | YB5: 2076-05-31 | YC5: =EDATE(YC4,1)-1 -> 2076-06-30 | YD5: 2076-07-31 | YE5: 2076-08-31 | YF5: 2076-09-30 | YG5: 2076-10-31 | YH5: 2076-11-30 | YI5: 2076-12-31 | YJ5: 2077-01-31 | YK5: 2077-02-28 | YL5: 2077-03-31 | YM5: 2077-04-30 | YN5: 2077-05-31 | YO5: 2077-06-30 | YP5: 2077-07-31 | YQ5: 2077-08-31 | YR5: 2077-09-30 | YS5: 2077-10-31 | YT5: 2077-11-30 | YU5: 2077-12-31 | YV5: 2078-01-31 | YW5: 2078-02-28 | YX5: 2078-03-31 | YY5: 2078-04-30 | YZ5: 2078-05-31 | ZA5: 2078-06-30 | ZB5: 2078-07-31 | ZC5: 2078-08-31 | ZD5: 2078-09-30 | ZE5: 2078-10-31 | ZF5: 2078-11-30 | ZG5: 2078-12-31 | ZH5: 2079-01-31 | ZI5: 2079-02-28 | ZJ5: 2079-03-31 | ZK5: 2079-04-30 | ZL5: 2079-05-31 | ZM5: 2079-06-30 | ZN5: 2079-07-31 | ZO5: 2079-08-31 | ZP5: 2079-09-30 | ZQ5: 2079-10-31 | ZR5: 2079-11-30 | ZS5: 2079-12-31 | ZT5: 2080-01-31 | ZU5: 2080-02-29 | ZV5: 2080-03-31 | ZW5: 2080-04-30 | ZX5: 2080-05-31 | ZY5: 2080-06-30 | ZZ5: 2080-07-31 | AAA5: 2080-08-31 | AAB5: 2080-09-30 | AAC5: 2080-10-31 | AAD5: 2080-11-30 | AAE5: 2080-12-31 | AAF5: 2081-01-31 | AAG5: 2081-02-28 | AAH5: 2081-03-31 | AAI5: 2081-04-30 | AAJ5: 2081-05-31 | AAK5: 2081-06-30 | AAL5: 2081-07-31 | AAM5: 2081-08-31 | AAN5: 2081-09-30 | AAO5: =EDATE(AAO4,1)-1 -> 2081-10-31 | AAP5: 2081-11-30 | AAQ5: 2081-12-31 | AAR5: 2082-01-31 | AAS5: 2082-02-28 | AAT5: 2082-03-31 | AAU5: 2082-04-30 | AAV5: 2082-05-31 | AAW5: 2082-06-30 | AAX5: 2082-07-31 | AAY5: 2082-08-31 | AAZ5: 2082-09-30 | ABA5: 2082-10-31 | ABB5: 2082-11-30 | ABC5: 2082-12-31 | ABD5: 2083-01-31 | ABE5: 2083-02-28 | ABF5: 2083-03-31 | ABG5: 2083-04-30 | ABH5: 2083-05-31 | ABI5: 2083-06-30 | ABJ5: 2083-07-31 | ABK5: 2083-08-31 | ABL5: 2083-09-30 | ABM5: 2083-10-31 | ABN5: 2083-11-30 | ABO5: 2083-12-31 | ABP5: 2084-01-31 | ABQ5: 2084-02-29 | ABR5: 2084-03-31 | ABS5: 2084-04-30 | ABT5: 2084-05-31 | ABU5: 2084-06-30 | ABV5: 2084-07-31 | ABW5: 2084-08-31 | ABX5: 2084-09-30 | ABY5: 2084-10-31 | ABZ5: 2084-11-30 | ACA5: 2084-12-31 | ACB5: 2085-01-31 | ACC5: 2085-02-28 | ACD5: 2085-03-31 | ACE5: 2085-04-30 | ACF5: 2085-05-31 | ACG5: 2085-06-30 | ACH5: 2085-07-31 | ACI5: 2085-08-31 | ACJ5: 2085-09-30 | ACK5: 2085-10-31 | ACL5: 2085-11-30 | ACM5: 2085-12-31 | ACN5: 2086-01-31 | ACO5: 2086-02-28 | ACP5: 2086-03-31 | ACQ5: 2086-04-30 | ACR5: 2086-05-31 | ACS5: 2086-06-30 | ACT5: 2086-07-31 | ACU5: 2086-08-31 | ACV5: 2086-09-30 | ACW5: 2086-10-31 | ACX5: 2086-11-30 | ACY5: 2086-12-31 | ACZ5: 2087-01-31 | ADA5: =EDATE(ADA4,1)-1 -> 2087-02-28 | ADB5: 2087-03-31 | ADC5: 2087-04-30 | ADD5: 2087-05-31 | ADE5: 2087-06-30 | ADF5: 2087-07-31 | ADG5: 2087-08-31 | ADH5: 2087-09-30 | ADI5: 2087-10-31 | ADJ5: 2087-11-30 | ADK5: 2087-12-31 | ADL5: 2088-01-31 | ADM5: 2088-02-29 | ADN5: 2088-03-31 | ADO5: 2088-04-30 | ADP5: 2088-05-31 | ADQ5: 2088-06-30 | ADR5: 2088-07-31 | ADS5: 2088-08-31 | ADT5: 2088-09-30 | ADU5: 2088-10-31 | ADV5: 2088-11-30 | ADW5: 2088-12-31 | ADX5: 2089-01-31 | ADY5: 2089-02-28 | ADZ5: 2089-03-31 | AEA5: 2089-04-30 | AEB5: 2089-05-31 | AEC5: 2089-06-30 | AED5: 2089-07-31 | AEE5: 2089-08-31
D6: Pre-COD Flag | E6: ='InputC - Operations'!$F$9 -> 2023-12-01 | G6: Flag | L6: =(L4<$E$6)*1 -> 1 | M6: 1 | N6: 1 | O6: 1 | P6: 1 | Q6: 1 | R6: 1 | S6: 1 | T6: 1 | U6: 1 | V6: 1 | W6: 0 | X6: 0 | Y6: 0 | Z6: 0 | AA6: 0 | AB6: 0 | AC6: 0 | AD6: 0 | AE6: 0 | AF6: 0 | AG6: 0 | AH6: 0 | AI6: 0 | AJ6: 0 | AK6: 0 | AL6: 0 | AM6: 0 | AN6: 0 | AO6: 0 | AP6: 0 | AQ6: 0 | AR6: 0 | AS6: 0 | AT6: 0 | AU6: 0 | AV6: 0 | AW6: 0 | AX6: 0 | AY6: 0 | AZ6: 0 | BA6: 0 | BB6: 0 | BC6: 0 | BD6: 0 | BE6: 0 | BF6: 0 | BG6: 0 | BH6: 0 | BI6: 0 | BJ6: 0 | BK6: 0 | BL6: 0 | BM6: 0 | BN6: 0 | BO6: 0 | BP6: 0 | BQ6: 0 | BR6: 0 | BS6: 0 | BT6: 0 | BU6: 0 | BV6: 0 | BW6: 0 | BX6: =(BX4<$E$6)*1 -> 0 | BY6: 0 | BZ6: 0 | CA6: 0 | CB6: 0 | CC6: 0 | CD6: 0 | CE6: 0 | CF6: 0 | CG6: 0 | CH6: 0 | CI6: 0 | CJ6: 0 | CK6: 0 | CL6: 0 | CM6: 0 | CN6: 0 | CO6: 0 | CP6: 0 | CQ6: 0 | CR6: 0 | CS6: 0 | CT6: 0 | CU6: 0 | CV6: 0 | CW6: 0 | CX6: 0 | CY6: 0 | CZ6: 0 | DA6: 0 | DB6: 0 | DC6: 0 | DD6: 0 | DE6: 0 | DF6: 0 | DG6: 0 | DH6: 0 | DI6: 0 | DJ6: 0 | DK6: 0 | DL6: 0 | DM6: 0 | DN6: 0 | DO6: 0 | DP6: 0 | DQ6: 0 | DR6: 0 | DS6: 0 | DT6: 0 | DU6: 0 | DV6: 0 | DW6: 0 | DX6: 0 | DY6: 0 | DZ6: 0 | EA6: 0 | EB6: 0 | EC6: 0 | ED6: 0 | EE6: 0 | EF6: 0 | EG6: 0 | EH6: 0 | EI6: 0 | EJ6: =(EJ4<$E$6)*1 -> 0 | EK6: 0 | EL6: 0 | EM6: 0 | EN6: 0 | EO6: 0 | EP6: 0 | EQ6: 0 | ER6: 0 | ES6: 0 | ET6: 0 | EU6: 0 | EV6: 0 | EW6: 0 | EX6: 0 | EY6: 0 | EZ6: 0 | FA6: 0 | FB6: 0 | FC6: 0 | FD6: 0 | FE6: 0 | FF6: 0 | FG6: 0 | FH6: 0 | FI6: 0 | FJ6: 0 | FK6: 0 | FL6: 0 | FM6: 0 | FN6: 0 | FO6: 0 | FP6: 0 | FQ6: 0 | FR6: 0 | FS6: 0 | FT6: 0 | FU6: 0 | FV6: 0 | FW6: 0 | FX6: 0 | FY6: 0 | FZ6: 0 | GA6: 0 | GB6: 0 | GC6: 0 | GD6: 0 | GE6: 0 | GF6: 0 | GG6: 0 | GH6: 0 | GI6: 0 | GJ6: 0 | GK6: 0 | GL6: 0 | GM6: 0 | GN6: 0 | GO6: 0 | GP6: 0 | GQ6: 0 | GR6: 0 | GS6: 0 | GT6: 0 | GU6: 0 | GV6: =(GV4<$E$6)*1 -> 0 | GW6: 0 | GX6: 0 | GY6: 0 | GZ6: 0 | HA6: 0 | HB6: 0 | HC6: 0 | HD6: 0 | HE6: 0 | HF6: 0 | HG6: 0 | HH6: 0 | HI6: 0 | HJ6: 0 | HK6: 0 | HL6: 0 | HM6: 0 | HN6: 0 | HO6: 0 | HP6: 0 | HQ6: 0 | HR6: 0 | HS6: 0 | HT6: 0 | HU6: 0 | HV6: 0 | HW6: 0 | HX6: 0 | HY6: 0 | HZ6: 0 | IA6: 0 | IB6: 0 | IC6: 0 | ID6: 0 | IE6: 0 | IF6: 0 | IG6: 0 | IH6: 0 | II6: 0 | IJ6: 0 | IK6: 0 | IL6: 0 | IM6: 0 | IN6: 0 | IO6: 0 | IP6: 0 | IQ6: 0 | IR6: 0 | IS6: 0 | IT6: 0 | IU6: 0 | IV6: 0 | IW6: 0 | IX6: 0 | IY6: 0 | IZ6: 0 | JA6: 0 | JB6: 0 | JC6: 0 | JD6: 0 | JE6: 0 | JF6: 0 | JG6: 0 | JH6: =(JH4<$E$6)*1 -> 0 | JI6: 0 | JJ6: 0 | JK6: 0 | JL6: 0 | JM6: 0 | JN6: 0 | JO6: 0 | JP6: 0 | JQ6: 0 | JR6: 0 | JS6: 0 | JT6: 0 | JU6: 0 | JV6: 0 | JW6: 0 | JX6: 0 | JY6: 0 | JZ6: 0 | KA6: 0 | KB6: 0 | KC6: 0 | KD6: 0 | KE6: 0 | KF6: 0 | KG6: 0 | KH6: 0 | KI6: 0 | KJ6: 0 | KK6: 0 | KL6: 0 | KM6: 0 | KN6: 0 | KO6: 0 | KP6: 0 | KQ6: 0 | KR6: 0 | KS6: 0 | KT6: 0 | KU6: 0 | KV6: 0 | KW6: 0 | KX6: 0 | KY6: 0 | KZ6: 0 | LA6: 0 | LB6: 0 | LC6: 0 | LD6: 0 | LE6: 0 | LF6: 0 | LG6: 0 | LH6: 0 | LI6: 0 | LJ6: 0 | LK6: 0 | LL6: 0 | LM6: 0 | LN6: 0 | LO6: 0 | LP6: 0 | LQ6: 0 | LR6: 0 | LS6: 0 | LT6: =(LT4<$E$6)*1 -> 0 | LU6: 0 | LV6: 0 | LW6: 0 | LX6: 0 | LY6: 0 | LZ6: 0 | MA6: 0 | MB6: 0 | MC6: 0 | MD6: 0 | ME6: 0 | MF6: 0 | MG6: 0 | MH6: 0 | MI6: 0 | MJ6: 0 | MK6: 0 | ML6: 0 | MM6: 0 | MN6: 0 | MO6: 0 | MP6: 0 | MQ6: 0 | MR6: 0 | MS6: 0 | MT6: 0 | MU6: 0 | MV6: 0 | MW6: 0 | MX6: 0 | MY6: 0 | MZ6: 0 | NA6: 0 | NB6: 0 | NC6: 0 | ND6: 0 | NE6: 0 | NF6: 0 | NG6: 0 | NH6: 0 | NI6: 0 | NJ6: 0 | NK6: 0 | NL6: 0 | NM6: 0 | NN6: 0 | NO6: 0 | NP6: 0 | NQ6: 0 | NR6: 0 | NS6: 0 | NT6: 0 | NU6: 0 | NV6: 0 | NW6: 0 | NX6: 0 | NY6: 0 | NZ6: 0 | OA6: 0 | OB6: 0 | OC6: 0 | OD6: 0 | OE6: 0 | OF6: =(OF4<$E$6)*1 -> 0 | OG6: 0 | OH6: 0 | OI6: 0 | OJ6: 0 | OK6: 0 | OL6: 0 | OM6: 0 | ON6: 0 | OO6: 0 | OP6: 0 | OQ6: 0 | OR6: 0 | OS6: 0 | OT6: 0 | OU6: 0 | OV6: 0 | OW6: 0 | OX6: 0 | OY6: 0 | OZ6: 0 | PA6: 0 | PB6: 0 | PC6: 0 | PD6: 0 | PE6: 0 | PF6: 0 | PG6: 0 | PH6: 0 | PI6: 0 | PJ6: 0 | PK6: 0 | PL6: 0 | PM6: 0 | PN6: 0 | PO6: 0 | PP6: 0 | PQ6: 0 | PR6: 0 | PS6: 0 | PT6: 0 | PU6: 0 | PV6: 0 | PW6: 0 | PX6: 0 | PY6: 0 | PZ6: 0 | QA6: 0 | QB6: 0 | QC6: 0 | QD6: 0 | QE6: 0 | QF6: 0 | QG6: 0 | QH6: 0 | QI6: 0 | QJ6: 0 | QK6: 0 | QL6: 0 | QM6: 0 | QN6: 0 | QO6: 0 | QP6: 0 | QQ6: 0 | QR6: =(QR4<$E$6)*1 -> 0 | QS6: 0 | QT6: 0 | QU6: 0 | QV6: 0 | QW6: 0 | QX6: 0 | QY6: 0 | QZ6: 0 | RA6: 0 | RB6: 0 | RC6: 0 | RD6: 0 | RE6: 0 | RF6: 0 | RG6: 0 | RH6: 0 | RI6: 0 | RJ6: 0 | RK6: 0 | RL6: 0 | RM6: 0 | RN6: 0 | RO6: 0 | RP6: 0 | RQ6: 0 | RR6: 0 | RS6: 0 | RT6: 0 | RU6: 0 | RV6: 0 | RW6: 0 | RX6: 0 | RY6: 0 | RZ6: 0 | SA6: 0 | SB6: 0 | SC6: 0 | SD6: 0 | SE6: 0 | SF6: 0 | SG6: 0 | SH6: 0 | SI6: 0 | SJ6: 0 | SK6: 0 | SL6: 0 | SM6: 0 | SN6: 0 | SO6: 0 | SP6: 0 | SQ6: 0 | SR6: 0 | SS6: 0 | ST6: 0 | SU6: 0 | SV6: 0 | SW6: 0 | SX6: 0 | SY6: 0 | SZ6: 0 | TA6: 0 | TB6: 0 | TC6: 0 | TD6: =(TD4<$E$6)*1 -> 0 | TE6: 0 | TF6: 0 | TG6: 0 | TH6: 0 | TI6: 0 | TJ6: 0 | TK6: 0 | TL6: 0 | TM6: 0 | TN6: 0 | TO6: 0 | TP6: 0 | TQ6: 0 | TR6: 0 | TS6: 0 | TT6: 0 | TU6: 0 | TV6: 0 | TW6: 0 | TX6: 0 | TY6: 0 | TZ6: 0 | UA6: 0 | UB6: 0 | UC6: 0 | UD6: 0 | UE6: 0 | UF6: 0 | UG6: 0 | UH6: 0 | UI6: 0 | UJ6: 0 | UK6: 0 | UL6: 0 | UM6: 0 | UN6: 0 | UO6: 0 | UP6: 0 | UQ6: 0 | UR6: 0 | US6: 0 | UT6: 0 | UU6: 0 | UV6: 0 | UW6: 0 | UX6: 0 | UY6: 0 | UZ6: 0 | VA6: 0 | VB6: 0 | VC6: 0 | VD6: 0 | VE6: 0 | VF6: 0 | VG6: 0 | VH6: 0 | VI6: 0 | VJ6: 0 | VK6: 0 | VL6: 0 | VM6: 0 | VN6: 0 | VO6: 0 | VP6: =(VP4<$E$6)*1 -> 0 | VQ6: 0 | VR6: 0 | VS6: 0 | VT6: 0 | VU6: 0 | VV6: 0 | VW6: 0 | VX6: 0 | VY6: 0 | VZ6: 0 | WA6: 0 | WB6: 0 | WC6: 0 | WD6: 0 | WE6: 0 | WF6: 0 | WG6: 0 | WH6: 0 | WI6: 0 | WJ6: 0 | WK6: 0 | WL6: 0 | WM6: 0 | WN6: 0 | WO6: 0 | WP6: 0 | WQ6: 0 | WR6: 0 | WS6: 0 | WT6: 0 | WU6: 0 | WV6: 0 | WW6: 0 | WX6: 0 | WY6: 0 | WZ6: 0 | XA6: 0 | XB6: 0 | XC6: 0 | XD6: 0 | XE6: 0 | XF6: 0 | XG6: 0 | XH6: 0 | XI6: 0 | XJ6: 0 | XK6: 0 | XL6: 0 | XM6: 0 | XN6: 0 | XO6: 0 | XP6: 0 | XQ6: 0 | XR6: 0 | XS6: 0 | XT6: 0 | XU6: 0 | XV6: 0 | XW6: 0 | XX6: 0 | XY6: 0 | XZ6: 0 | YA6: 0 | YB6: =(YB4<$E$6)*1 -> 0 | YC6: 0 | YD6: 0 | YE6: 0 | YF6: 0 | YG6: 0 | YH6: 0 | YI6: 0 | YJ6: 0 | YK6: 0 | YL6: 0 | YM6: 0 | YN6: 0 | YO6: 0 | YP6: 0 | YQ6: 0 | YR6: 0 | YS6: 0 | YT6: 0 | YU6: 0 | YV6: 0 | YW6: 0 | YX6: 0 | YY6: 0 | YZ6: 0 | ZA6: 0 | ZB6: 0 | ZC6: 0 | ZD6: 0 | ZE6: 0 | ZF6: 0 | ZG6: 0 | ZH6: 0 | ZI6: 0 | ZJ6: 0 | ZK6: 0 | ZL6: 0 | ZM6: 0 | ZN6: 0 | ZO6: 0 | ZP6: 0 | ZQ6: 0 | ZR6: 0 | ZS6: 0 | ZT6: 0 | ZU6: 0 | ZV6: 0 | ZW6: 0 | ZX6: 0 | ZY6: 0 | ZZ6: 0 | AAA6: 0 | AAB6: 0 | AAC6: 0 | AAD6: 0 | AAE6: 0 | AAF6: 0 | AAG6: 0 | AAH6: 0 | AAI6: 0 | AAJ6: 0 | AAK6: 0 | AAL6: 0 | AAM6: 0 | AAN6: =(AAN4<$E$6)*1 -> 0 | AAO6: 0 | AAP6: 0 | AAQ6: 0 | AAR6: 0 | AAS6: 0 | AAT6: 0 | AAU6: 0 | AAV6: 0 | AAW6: 0 | AAX6: 0 | AAY6: 0 | AAZ6: 0 | ABA6: 0 | ABB6: 0 | ABC6: 0 | ABD6: 0 | ABE6: 0 | ABF6: 0 | ABG6: 0 | ABH6: 0 | ABI6: 0 | ABJ6: 0 | ABK6: 0 | ABL6: 0 | ABM6: 0 | ABN6: 0 | ABO6: 0 | ABP6: 0 | ABQ6: 0 | ABR6: 0 | ABS6: 0 | ABT6: 0 | ABU6: 0 | ABV6: 0 | ABW6: 0 | ABX6: 0 | ABY6: 0 | ABZ6: 0 | ACA6: 0 | ACB6: 0 | ACC6: 0 | ACD6: 0 | ACE6: 0 | ACF6: 0 | ACG6: 0 | ACH6: 0 | ACI6: 0 | ACJ6: 0 | ACK6: 0 | ACL6: 0 | ACM6: 0 | ACN6: 0 | ACO6: 0 | ACP6: 0 | ACQ6: 0 | ACR6: 0 | ACS6: 0 | ACT6: 0 | ACU6: 0 | ACV6: 0 | ACW6: 0 | ACX6: 0 | ACY6: 0 | ACZ6: =(ACZ4<$E$6)*1 -> 0 | ADA6: 0 | ADB6: 0 | ADC6: 0 | ADD6: 0 | ADE6: 0 | ADF6: 0 | ADG6: 0 | ADH6: 0 | ADI6: 0 | ADJ6: 0 | ADK6: 0 | ADL6: 0 | ADM6: 0 | ADN6: 0 | ADO6: 0 | ADP6: 0 | ADQ6: 0 | ADR6: 0 | ADS6: 0 | ADT6: 0 | ADU6: 0 | ADV6: 0 | ADW6: 0 | ADX6: 0 | ADY6: 0 | ADZ6: 0 | AEA6: 0 | AEB6: 0 | AEC6: 0 | AED6: 0 | AEE6: 0
D7: Operations Flag | E7: ='InputC - Operations'!$F$9 -> 2023-12-01 | F7: ='InputC - Operations'!$F$11 -> 2058-12-01 | G7: Flag | L7: =(AND(L4>=$E$7,L$4<$F$7))*1 -> 0 | M7: =(AND(M4>=$E$7,M$4<$F$7))*1 -> 0 | N7: 0 | O7: 0 | P7: 0 | Q7: 0 | R7: 0 | S7: 0 | T7: 0 | U7: 0 | V7: 0 | W7: 1 | X7: 1 | Y7: 1 | Z7: 1 | AA7: 1 | AB7: 1 | AC7: 1 | AD7: 1 | AE7: 1 | AF7: 1 | AG7: 1 | AH7: 1 | AI7: 1 | AJ7: 1 | AK7: 1 | AL7: 1 | AM7: 1 | AN7: 1 | AO7: 1 | AP7: 1 | AQ7: 1 | AR7: 1 | AS7: 1 | AT7: 1 | AU7: 1 | AV7: 1 | AW7: 1 | AX7: 1 | AY7: 1 | AZ7: 1 | BA7: 1 | BB7: 1 | BC7: 1 | BD7: 1 | BE7: 1 | BF7: 1 | BG7: 1 | BH7: 1 | BI7: 1 | BJ7: 1 | BK7: 1 | BL7: 1 | BM7: 1 | BN7: 1 | BO7: 1 | BP7: 1 | BQ7: 1 | BR7: 1 | BS7: 1 | BT7: 1 | BU7: 1 | BV7: 1 | BW7: 1 | BX7: 1 | BY7: =(AND(BY4>=$E$7,BY$4<$F$7))*1 -> 1 | BZ7: 1 | CA7: 1 | CB7: 1 | CC7: 1 | CD7: 1 | CE7: 1 | CF7: 1 | CG7: 1 | CH7: 1 | CI7: 1 | CJ7: 1 | CK7: 1 | CL7: 1 | CM7: 1 | CN7: 1 | CO7: 1 | CP7: 1 | CQ7: 1 | CR7: 1 | CS7: 1 | CT7: 1 | CU7: 1 | CV7: 1 | CW7: 1 | CX7: 1 | CY7: 1 | CZ7: 1 | DA7: 1 | DB7: 1 | DC7: 1 | DD7: 1 | DE7: 1 | DF7: 1 | DG7: 1 | DH7: 1 | DI7: 1 | DJ7: 1 | DK7: 1 | DL7: 1 | DM7: 1 | DN7: 1 | DO7: 1 | DP7: 1 | DQ7: 1 | DR7: 1 | DS7: 1 | DT7: 1 | DU7: 1 | DV7: 1 | DW7: 1 | DX7: 1 | DY7: 1 | DZ7: 1 | EA7: 1 | EB7: 1 | EC7: 1 | ED7: 1 | EE7: 1 | EF7: 1 | EG7: 1 | EH7: 1 | EI7: 1 | EJ7: 1 | EK7: =(AND(EK4>=$E$7,EK$4<$F$7))*1 -> 1 | EL7: 1 | EM7: 1 | EN7: 1 | EO7: 1 | EP7: 1 | EQ7: 1 | ER7: 1 | ES7: 1 | ET7: 1 | EU7: 1 | EV7: 1 | EW7: 1 | EX7: 1 | EY7: 1 | EZ7: 1 | FA7: 1 | FB7: 1 | FC7: 1 | FD7: 1 | FE7: 1 | FF7: 1 | FG7: 1 | FH7: 1 | FI7: 1 | FJ7: 1 | FK7: 1 | FL7: 1 | FM7: 1 | FN7: 1 | FO7: 1 | FP7: 1 | FQ7: 1 | FR7: 1 | FS7: 1 | FT7: 1 | FU7: 1 | FV7: 1 | FW7: 1 | FX7: 1 | FY7: 1 | FZ7: 1 | GA7: 1 | GB7: 1 | GC7: 1 | GD7: 1 | GE7: 1 | GF7: 1 | GG7: 1 | GH7: 1 | GI7: 1 | GJ7: 1 | GK7: 1 | GL7: 1 | GM7: 1 | GN7: 1 | GO7: 1 | GP7: 1 | GQ7: 1 | GR7: 1 | GS7: 1 | GT7: 1 | GU7: 1 | GV7: 1 | GW7: =(AND(GW4>=$E$7,GW$4<$F$7))*1 -> 1 | GX7: 1 | GY7: 1 | GZ7: 1 | HA7: 1 | HB7: 1 | HC7: 1 | HD7: 1 | HE7: 1 | HF7: 1 | HG7: 1 | HH7: 1 | HI7: 1 | HJ7: 1 | HK7: 1 | HL7: 1 | HM7: 1 | HN7: 1 | HO7: 1 | HP7: 1 | HQ7: 1 | HR7: 1 | HS7: 1 | HT7: 1 | HU7: 1 | HV7: 1 | HW7: 1 | HX7: 1 | HY7: 1 | HZ7: 1 | IA7: 1 | IB7: 1 | IC7: 1 | ID7: 1 | IE7: 1 | IF7: 1 | IG7: 1 | IH7: 1 | II7: 1 | IJ7: 1 | IK7: 1 | IL7: 1 | IM7: 1 | IN7: 1 | IO7: 1 | IP7: 1 | IQ7: 1 | IR7: 1 | IS7: 1 | IT7: 1 | IU7: 1 | IV7: 1 | IW7: 1 | IX7: 1 | IY7: 1 | IZ7: 1 | JA7: 1 | JB7: 1 | JC7: 1 | JD7: 1 | JE7: 1 | JF7: 1 | JG7: 1 | JH7: 1 | JI7: =(AND(JI4>=$E$7,JI$4<$F$7))*1 -> 1 | JJ7: 1 | JK7: 1 | JL7: 1 | JM7: 1 | JN7: 1 | JO7: 1 | JP7: 1 | JQ7: 1 | JR7: 1 | JS7: 1 | JT7: 1 | JU7: 1 | JV7: 1 | JW7: 1 | JX7: 1 | JY7: 1 | JZ7: 1 | KA7: 1 | KB7: 1 | KC7: 1 | KD7: 1 | KE7: 1 | KF7: 1 | KG7: 1 | KH7: 1 | KI7: 1 | KJ7: 1 | KK7: 1 | KL7: 1 | KM7: 1 | KN7: 1 | KO7: 1 | KP7: 1 | KQ7: 1 | KR7: 1 | KS7: 1 | KT7: 1 | KU7: 1 | KV7: 1 | KW7: 1 | KX7: 1 | KY7: 1 | KZ7: 1 | LA7: 1 | LB7: 1 | LC7: 1 | LD7: 1 | LE7: 1 | LF7: 1 | LG7: 1 | LH7: 1 | LI7: 1 | LJ7: 1 | LK7: 1 | LL7: 1 | LM7: 1 | LN7: 1 | LO7: 1 | LP7: 1 | LQ7: 1 | LR7: 1 | LS7: 1 | LT7: 1 | LU7: =(AND(LU4>=$E$7,LU$4<$F$7))*1 -> 1 | LV7: 1 | LW7: 1 | LX7: 1 | LY7: 1 | LZ7: 1 | MA7: 1 | MB7: 1 | MC7: 1 | MD7: 1 | ME7: 1 | MF7: 1 | MG7: 1 | MH7: 1 | MI7: 1 | MJ7: 1 | MK7: 1 | ML7: 1 | MM7: 1 | MN7: 1 | MO7: 1 | MP7: 1 | MQ7: 1 | MR7: 1 | MS7: 1 | MT7: 1 | MU7: 1 | MV7: 1 | MW7: 1 | MX7: 1 | MY7: 1 | MZ7: 1 | NA7: 1 | NB7: 1 | NC7: 1 | ND7: 1 | NE7: 1 | NF7: 1 | NG7: 1 | NH7: 1 | NI7: 1 | NJ7: 1 | NK7: 1 | NL7: 1 | NM7: 1 | NN7: 1 | NO7: 1 | NP7: 1 | NQ7: 1 | NR7: 1 | NS7: 1 | NT7: 1 | NU7: 1 | NV7: 1 | NW7: 1 | NX7: 1 | NY7: 1 | NZ7: 1 | OA7: 1 | OB7: 1 | OC7: 1 | OD7: 1 | OE7: 1 | OF7: 1 | OG7: =(AND(OG4>=$E$7,OG$4<$F$7))*1 -> 1 | OH7: 1 | OI7: 1 | OJ7: 1 | OK7: 1 | OL7: 1 | OM7: 1 | ON7: 1 | OO7: 1 | OP7: 1 | OQ7: 1 | OR7: 1 | OS7: 1 | OT7: 1 | OU7: 1 | OV7: 1 | OW7: 1 | OX7: 1 | OY7: 1 | OZ7: 1 | PA7: 1 | PB7: 1 | PC7: 1 | PD7: 1 | PE7: 1 | PF7: 1 | PG7: 1 | PH7: 1 | PI7: 1 | PJ7: 1 | PK7: 1 | PL7: 1 | PM7: 1 | PN7: 1 | PO7: 1 | PP7: 1 | PQ7: 1 | PR7: 1 | PS7: 1 | PT7: 1 | PU7: 1 | PV7: 1 | PW7: 1 | PX7: 1 | PY7: 1 | PZ7: 1 | QA7: 0 | QB7: 0 | QC7: 0 | QD7: 0 | QE7: 0 | QF7: 0 | QG7: 0 | QH7: 0 | QI7: 0 | QJ7: 0 | QK7: 0 | QL7: 0 | QM7: 0 | QN7: 0 | QO7: 0 | QP7: 0 | QQ7: 0 | QR7: 0 | QS7: =(AND(QS4>=$E$7,QS$4<$F$7))*1 -> 0 | QT7: 0 | QU7: 0 | QV7: 0 | QW7: 0 | QX7: 0 | QY7: 0 | QZ7: 0 | RA7: 0 | RB7: 0 | RC7: 0 | RD7: 0 | RE7: 0 | RF7: 0 | RG7: 0 | RH7: 0 | RI7: 0 | RJ7: 0 | RK7: 0 | RL7: 0 | RM7: 0 | RN7: 0 | RO7: 0 | RP7: 0 | RQ7: 0 | RR7: 0 | RS7: 0 | RT7: 0 | RU7: 0 | RV7: 0 | RW7: 0 | RX7: 0 | RY7: 0 | RZ7: 0 | SA7: 0 | SB7: 0 | SC7: 0 | SD7: 0 | SE7: 0 | SF7: 0 | SG7: 0 | SH7: 0 | SI7: 0 | SJ7: 0 | SK7: 0 | SL7: 0 | SM7: 0 | SN7: 0 | SO7: 0 | SP7: 0 | SQ7: 0 | SR7: 0 | SS7: 0 | ST7: 0 | SU7: 0 | SV7: 0 | SW7: 0 | SX7: 0 | SY7: 0 | SZ7: 0 | TA7: 0 | TB7: 0 | TC7: 0 | TD7: 0 | TE7: =(AND(TE4>=$E$7,TE$4<$F$7))*1 -> 0 | TF7: 0 | TG7: 0 | TH7: 0 | TI7: 0 | TJ7: 0 | TK7: 0 | TL7: 0 | TM7: 0 | TN7: 0 | TO7: 0 | TP7: 0 | TQ7: 0 | TR7: 0 | TS7: 0 | TT7: 0 | TU7: 0 | TV7: 0 | TW7: 0 | TX7: 0 | TY7: 0 | TZ7: 0 | UA7: 0 | UB7: 0 | UC7: 0 | UD7: 0 | UE7: 0 | UF7: 0 | UG7: 0 | UH7: 0 | UI7: 0 | UJ7: 0 | UK7: 0 | UL7: 0 | UM7: 0 | UN7: 0 | UO7: 0 | UP7: 0 | UQ7: 0 | UR7: 0 | US7: 0 | UT7: 0 | UU7: 0 | UV7: 0 | UW7: 0 | UX7: 0 | UY7: 0 | UZ7: 0 | VA7: 0 | VB7: 0 | VC7: 0 | VD7: 0 | VE7: 0 | VF7: 0 | VG7: 0 | VH7: 0 | VI7: 0 | VJ7: 0 | VK7: 0 | VL7: 0 | VM7: 0 | VN7: 0 | VO7: 0 | VP7: 0 | VQ7: =(AND(VQ4>=$E$7,VQ$4<$F$7))*1 -> 0 | VR7: 0 | VS7: 0 | VT7: 0 | VU7: 0 | VV7: 0 | VW7: 0 | VX7: 0 | VY7: 0 | VZ7: 0 | WA7: 0 | WB7: 0 | WC7: 0 | WD7: 0 | WE7: 0 | WF7: 0 | WG7: 0 | WH7: 0 | WI7: 0 | WJ7: 0 | WK7: 0 | WL7: 0 | WM7: 0 | WN7: 0 | WO7: 0 | WP7: 0 | WQ7: 0 | WR7: 0 | WS7: 0 | WT7: 0 | WU7: 0 | WV7: 0 | WW7: 0 | WX7: 0 | WY7: 0 | WZ7: 0 | XA7: 0 | XB7: 0 | XC7: 0 | XD7: 0 | XE7: 0 | XF7: 0 | XG7: 0 | XH7: 0 | XI7: 0 | XJ7: 0 | XK7: 0 | XL7: 0 | XM7: 0 | XN7: 0 | XO7: 0 | XP7: 0 | XQ7: 0 | XR7: 0 | XS7: 0 | XT7: 0 | XU7: 0 | XV7: 0 | XW7: 0 | XX7: 0 | XY7: 0 | XZ7: 0 | YA7: 0 | YB7: 0 | YC7: =(AND(YC4>=$E$7,YC$4<$F$7))*1 -> 0 | YD7: 0 | YE7: 0 | YF7: 0 | YG7: 0 | YH7: 0 | YI7: 0 | YJ7: 0 | YK7: 0 | YL7: 0 | YM7: 0 | YN7: 0 | YO7: 0 | YP7: 0 | YQ7: 0 | YR7: 0 | YS7: 0 | YT7: 0 | YU7: 0 | YV7: 0 | YW7: 0 | YX7: 0 | YY7: 0 | YZ7: 0 | ZA7: 0 | ZB7: 0 | ZC7: 0 | ZD7: 0 | ZE7: 0 | ZF7: 0 | ZG7: 0 | ZH7: 0 | ZI7: 0 | ZJ7: 0 | ZK7: 0 | ZL7: 0 | ZM7: 0 | ZN7: 0 | ZO7: 0 | ZP7: 0 | ZQ7: 0 | ZR7: 0 | ZS7: 0 | ZT7: 0 | ZU7: 0 | ZV7: 0 | ZW7: 0 | ZX7: 0 | ZY7: 0 | ZZ7: 0 | AAA7: 0 | AAB7: 0 | AAC7: 0 | AAD7: 0 | AAE7: 0 | AAF7: 0 | AAG7: 0 | AAH7: 0 | AAI7: 0 | AAJ7: 0 | AAK7: 0 | AAL7: 0 | AAM7: 0 | AAN7: 0 | AAO7: =(AND(AAO4>=$E$7,AAO$4<$F$7))*1 -> 0 | AAP7: 0 | AAQ7: 0 | AAR7: 0 | AAS7: 0 | AAT7: 0 | AAU7: 0 | AAV7: 0 | AAW7: 0 | AAX7: 0 | AAY7: 0 | AAZ7: 0 | ABA7: 0 | ABB7: 0 | ABC7: 0 | ABD7: 0 | ABE7: 0 | ABF7: 0 | ABG7: 0 | ABH7: 0 | ABI7: 0 | ABJ7: 0 | ABK7: 0 | ABL7: 0 | ABM7: 0 | ABN7: 0 | ABO7: 0 | ABP7: 0 | ABQ7: 0 | ABR7: 0 | ABS7: 0 | ABT7: 0 | ABU7: 0 | ABV7: 0 | ABW7: 0 | ABX7: 0 | ABY7: 0 | ABZ7: 0 | ACA7: 0 | ACB7: 0 | ACC7: 0 | ACD7: 0 | ACE7: 0 | ACF7: 0 | ACG7: 0 | ACH7: 0 | ACI7: 0 | ACJ7: 0 | ACK7: 0 | ACL7: 0 | ACM7: 0 | ACN7: 0 | ACO7: 0 | ACP7: 0 | ACQ7: 0 | ACR7: 0 | ACS7: 0 | ACT7: 0 | ACU7: 0 | ACV7: 0 | ACW7: 0 | ACX7: 0 | ACY7: 0 | ACZ7: 0 | ADA7: =(AND(ADA4>=$E$7,ADA$4<$F$7))*1 -> 0 | ADB7: 0 | ADC7: 0 | ADD7: 0 | ADE7: 0 | ADF7: 0 | ADG7: 0 | ADH7: 0 | ADI7: 0 | ADJ7: 0 | ADK7: 0 | ADL7: 0 | ADM7: 0 | ADN7: 0 | ADO7: 0 | ADP7: 0 | ADQ7: 0 | ADR7: 0 | ADS7: 0 | ADT7: 0 | ADU7: 0 | ADV7: 0 | ADW7: 0 | ADX7: 0 | ADY7: 0 | ADZ7: 0 | AEA7: 0 | AEB7: 0 | AEC7: 0 | AED7: 0 | AEE7: 0
D8: Year | G8: Year | L8: =YEAR(L5) -> 2023 | M8: =YEAR(M5) -> 2023 | N8: 2023 | O8: 2023 | P8: 2023 | Q8: 2023 | R8: 2023 | S8: 2023 | T8: 2023 | U8: 2023 | V8: 2023 | W8: 2023 | X8: 2024 | Y8: 2024 | Z8: 2024 | AA8: 2024 | AB8: 2024 | AC8: 2024 | AD8: 2024 | AE8: 2024 | AF8: 2024 | AG8: 2024 | AH8: 2024 | AI8: 2024 | AJ8: 2025 | AK8: 2025 | AL8: 2025 | AM8: 2025 | AN8: 2025 | AO8: 2025 | AP8: 2025 | AQ8: 2025 | AR8: 2025 | AS8: 2025 | AT8: 2025 | AU8: 2025 | AV8: 2026 | AW8: 2026 | AX8: 2026 | AY8: 2026 | AZ8: 2026 | BA8: 2026 | BB8: 2026 | BC8: 2026 | BD8: 2026 | BE8: 2026 | BF8: 2026 | BG8: 2026 | BH8: 2027 | BI8: 2027 | BJ8: 2027 | BK8: 2027 | BL8: 2027 | BM8: 2027 | BN8: 2027 | BO8: 2027 | BP8: 2027 | BQ8: 2027 | BR8: 2027 | BS8: 2027 | BT8: 2028 | BU8: 2028 | BV8: 2028 | BW8: 2028 | BX8: 2028 | BY8: =YEAR(BY5) -> 2028 | BZ8: 2028 | CA8: 2028 | CB8: 2028 | CC8: 2028 | CD8: 2028 | CE8: 2028 | CF8: 2029 | CG8: 2029 | CH8: 2029 | CI8: 2029 | CJ8: 2029 | CK8: 2029 | CL8: 2029 | CM8: 2029 | CN8: 2029 | CO8: 2029 | CP8: 2029 | CQ8: 2029 | CR8: 2030 | CS8: 2030 | CT8: 2030 | CU8: 2030 | CV8: 2030 | CW8: 2030 | CX8: 2030 | CY8: 2030 | CZ8: 2030 | DA8: 2030 | DB8: 2030 | DC8: 2030 | DD8: 2031 | DE8: 2031 | DF8: 2031 | DG8: 2031 | DH8: 2031 | DI8: 2031 | DJ8: 2031 | DK8: 2031 | DL8: 2031 | DM8: 2031 | DN8: 2031 | DO8: 2031 | DP8: 2032 | DQ8: 2032 | DR8: 2032 | DS8: 2032 | DT8: 2032 | DU8: 2032 | DV8: 2032 | DW8: 2032 | DX8: 2032 | DY8: 2032 | DZ8: 2032 | EA8: 2032 | EB8: 2033 | EC8: 2033 | ED8: 2033 | EE8: 2033 | EF8: 2033 | EG8: 2033 | EH8: 2033 | EI8: 2033 | EJ8: 2033 | EK8: =YEAR(EK5) -> 2033 | EL8: 2033 | EM8: 2033 | EN8: 2034 | EO8: 2034 | EP8: 2034 | EQ8: 2034 | ER8: 2034 | ES8: 2034 | ET8: 2034 | EU8: 2034 | EV8: 2034 | EW8: 2034 | EX8: 2034 | EY8: 2034 | EZ8: 2035 | FA8: 2035 | FB8: 2035 | FC8: 2035 | FD8: 2035 | FE8: 2035 | FF8: 2035 | FG8: 2035 | FH8: 2035 | FI8: 2035 | FJ8: 2035 | FK8: 2035 | FL8: 2036 | FM8: 2036 | FN8: 2036 | FO8: 2036 | FP8: 2036 | FQ8: 2036 | FR8: 2036 | FS8: 2036 | FT8: 2036 | FU8: 2036 | FV8: 2036 | FW8: 2036 | FX8: 2037 | FY8: 2037 | FZ8: 2037 | GA8: 2037 | GB8: 2037 | GC8: 2037 | GD8: 2037 | GE8: 2037 | GF8: 2037 | GG8: 2037 | GH8: 2037 | GI8: 2037 | GJ8: 2038 | GK8: 2038 | GL8: 2038 | GM8: 2038 | GN8: 2038 | GO8: 2038 | GP8: 2038 | GQ8: 2038 | GR8: 2038 | GS8: 2038 | GT8: 2038 | GU8: 2038 | GV8: 2039 | GW8: =YEAR(GW5) -> 2039 | GX8: 2039 | GY8: 2039 | GZ8: 2039 | HA8: 2039 | HB8: 2039 | HC8: 2039 | HD8: 2039 | HE8: 2039 | HF8: 2039 | HG8: 2039 | HH8: 2040 | HI8: 2040 | HJ8: 2040 | HK8: 2040 | HL8: 2040 | HM8: 2040 | HN8: 2040 | HO8: 2040 | HP8: 2040 | HQ8: 2040 | HR8: 2040 | HS8: 2040 | HT8: 2041 | HU8: 2041 | HV8: 2041 | HW8: 2041 | HX8: 2041 | HY8: 2041 | HZ8: 2041 | IA8: 2041 | IB8: 2041 | IC8: 2041 | ID8: 2041 | IE8: 2041 | IF8: 2042 | IG8: 2042 | IH8: 2042 | II8: 2042 | IJ8: 2042 | IK8: 2042 | IL8: 2042 | IM8: 2042 | IN8: 2042 | IO8: 2042 | IP8: 2042 | IQ8: 2042 | IR8: 2043 | IS8: 2043 | IT8: 2043 | IU8: 2043 | IV8: 2043 | IW8: 2043 | IX8: 2043 | IY8: 2043 | IZ8: 2043 | JA8: 2043 | JB8: 2043 | JC8: 2043 | JD8: 2044 | JE8: 2044 | JF8: 2044 | JG8: 2044 | JH8: 2044 | JI8: =YEAR(JI5) -> 2044 | JJ8: 2044 | JK8: 2044 | JL8: 2044 | JM8: 2044 | JN8: 2044 | JO8: 2044 | JP8: 2045 | JQ8: 2045 | JR8: 2045 | JS8: 2045 | JT8: 2045 | JU8: 2045 | JV8: 2045 | JW8: 2045 | JX8: 2045 | JY8: 2045 | JZ8: 2045 | KA8: 2045 | KB8: 2046 | KC8: 2046 | KD8: 2046 | KE8: 2046 | KF8: 2046 | KG8: 2046 | KH8: 2046 | KI8: 2046 | KJ8: 2046 | KK8: 2046 | KL8: 2046 | KM8: 2046 | KN8: 2047 | KO8: 2047 | KP8: 2047 | KQ8: 2047 | KR8: 2047 | KS8: 2047 | KT8: 2047 | KU8: 2047 | KV8: 2047 | KW8: 2047 | KX8: 2047 | KY8: 2047 | KZ8: 2048 | LA8: 2048 | LB8: 2048 | LC8: 2048 | LD8: 2048 | LE8: 2048 | LF8: 2048 | LG8: 2048 | LH8: 2048 | LI8: 2048 | LJ8: 2048 | LK8: 2048 | LL8: 2049 | LM8: 2049 | LN8: 2049 | LO8: 2049 | LP8: 2049 | LQ8: 2049 | LR8: 2049 | LS8: 2049 | LT8: 2049 | LU8: =YEAR(LU5) -> 2049 | LV8: 2049 | LW8: 2049 | LX8: 2050 | LY8: 2050 | LZ8: 2050 | MA8: 2050 | MB8: 2050 | MC8: 2050 | MD8: 2050 | ME8: 2050 | MF8: 2050 | MG8: 2050 | MH8: 2050 | MI8: 2050 | MJ8: 2051 | MK8: 2051 | ML8: 2051 | MM8: 2051 | MN8: 2051 | MO8: 2051 | MP8: 2051 | MQ8: 2051 | MR8: 2051 | MS8: 2051 | MT8: 2051 | MU8: 2051 | MV8: 2052 | MW8: 2052 | MX8: 2052 | MY8: 2052 | MZ8: 2052 | NA8: 2052 | NB8: 2052 | NC8: 2052 | ND8: 2052 | NE8: 2052 | NF8: 2052 | NG8: 2052 | NH8: 2053 | NI8: 2053 | NJ8: 2053 | NK8: 2053 | NL8: 2053 | NM8: 2053 | NN8: 2053 | NO8: 2053 | NP8: 2053 | NQ8: 2053 | NR8: 2053 | NS8: 2053 | NT8: 2054 | NU8: 2054 | NV8: 2054 | NW8: 2054 | NX8: 2054 | NY8: 2054 | NZ8: 2054 | OA8: 2054 | OB8: 2054 | OC8: 2054 | OD8: 2054 | OE8: 2054 | OF8: 2055 | OG8: =YEAR(OG5) -> 2055 | OH8: 2055 | OI8: 2055 | OJ8: 2055 | OK8: 2055 | OL8: 2055 | OM8: 2055 | ON8: 2055 | OO8: 2055 | OP8: 2055 | OQ8: 2055 | OR8: 2056 | OS8: 2056 | OT8: 2056 | OU8: 2056 | OV8: 2056 | OW8: 2056 | OX8: 2056 | OY8: 2056 | OZ8: 2056 | PA8: 2056 | PB8: 2056 | PC8: 2056 | PD8: 2057 | PE8: 2057 | PF8: 2057 | PG8: 2057 | PH8: 2057 | PI8: 2057 | PJ8: 2057 | PK8: 2057 | PL8: 2057 | PM8: 2057 | PN8: 2057 | PO8: 2057 | PP8: 2058 | PQ8: 2058 | PR8: 2058 | PS8: 2058 | PT8: 2058 | PU8: 2058 | PV8: 2058 | PW8: 2058 | PX8: 2058 | PY8: 2058 | PZ8: 2058 | QA8: 2058 | QB8: 2059 | QC8: 2059 | QD8: 2059 | QE8: 2059 | QF8: 2059 | QG8: 2059 | QH8: 2059 | QI8: 2059 | QJ8: 2059 | QK8: 2059 | QL8: 2059 | QM8: 2059 | QN8: 2060 | QO8: 2060 | QP8: 2060 | QQ8: 2060 | QR8: 2060 | QS8: =YEAR(QS5) -> 2060 | QT8: 2060 | QU8: 2060 | QV8: 2060 | QW8: 2060 | QX8: 2060 | QY8: 2060 | QZ8: 2061 | RA8: 2061 | RB8: 2061 | RC8: 2061 | RD8: 2061 | RE8: 2061 | RF8: 2061 | RG8: 2061 | RH8: 2061 | RI8: 2061 | RJ8: 2061 | RK8: 2061 | RL8: 2062 | RM8: 2062 | RN8: 2062 | RO8: 2062 | RP8: 2062 | RQ8: 2062 | RR8: 2062 | RS8: 2062 | RT8: 2062 | RU8: 2062 | RV8: 2062 | RW8: 2062 | RX8: 2063 | RY8: 2063 | RZ8: 2063 | SA8: 2063 | SB8: 2063 | SC8: 2063 | SD8: 2063 | SE8: 2063 | SF8: 2063 | SG8: 2063 | SH8: 2063 | SI8: 2063 | SJ8: 2064 | SK8: 2064 | SL8: 2064 | SM8: 2064 | SN8: 2064 | SO8: 2064 | SP8: 2064 | SQ8: 2064 | SR8: 2064 | SS8: 2064 | ST8: 2064 | SU8: 2064 | SV8: 2065 | SW8: 2065 | SX8: 2065 | SY8: 2065 | SZ8: 2065 | TA8: 2065 | TB8: 2065 | TC8: 2065 | TD8: 2065 | TE8: =YEAR(TE5) -> 2065 | TF8: 2065 | TG8: 2065 | TH8: 2066 | TI8: 2066 | TJ8: 2066 | TK8: 2066 | TL8: 2066 | TM8: 2066 | TN8: 2066 | TO8: 2066 | TP8: 2066 | TQ8: 2066 | TR8: 2066 | TS8: 2066 | TT8: 2067 | TU8: 2067 | TV8: 2067 | TW8: 2067 | TX8: 2067 | TY8: 2067 | TZ8: 2067 | UA8: 2067 | UB8: 2067 | UC8: 2067 | UD8: 2067 | UE8: 2067 | UF8: 2068 | UG8: 2068 | UH8: 2068 | UI8: 2068 | UJ8: 2068 | UK8: 2068 | UL8: 2068 | UM8: 2068 | UN8: 2068 | UO8: 2068 | UP8: 2068 | UQ8: 2068 | UR8: 2069 | US8: 2069 | UT8: 2069 | UU8: 2069 | UV8: 2069 | UW8: 2069 | UX8: 2069 | UY8: 2069 | UZ8: 2069 | VA8: 2069 | VB8: 2069 | VC8: 2069 | VD8: 2070 | VE8: 2070 | VF8: 2070 | VG8: 2070 | VH8: 2070 | VI8: 2070 | VJ8: 2070 | VK8: 2070 | VL8: 2070 | VM8: 2070 | VN8: 2070 | VO8: 2070 | VP8: 2071 | VQ8: =YEAR(VQ5) -> 2071 | VR8: 2071 | VS8: 2071 | VT8: 2071 | VU8: 2071 | VV8: 2071 | VW8: 2071 | VX8: 2071 | VY8: 2071 | VZ8: 2071 | WA8: 2071 | WB8: 2072 | WC8: 2072 | WD8: 2072 | WE8: 2072 | WF8: 2072 | WG8: 2072 | WH8: 2072 | WI8: 2072 | WJ8: 2072 | WK8: 2072 | WL8: 2072 | WM8: 2072 | WN8: 2073 | WO8: 2073 | WP8: 2073 | WQ8: 2073 | WR8: 2073 | WS8: 2073 | WT8: 2073 | WU8: 2073 | WV8: 2073 | WW8: 2073 | WX8: 2073 | WY8: 2073 | WZ8: 2074 | XA8: 2074 | XB8: 2074 | XC8: 2074 | XD8: 2074 | XE8: 2074 | XF8: 2074 | XG8: 2074 | XH8: 2074 | XI8: 2074 | XJ8: 2074 | XK8: 2074 | XL8: 2075 | XM8: 2075 | XN8: 2075 | XO8: 2075 | XP8: 2075 | XQ8: 2075 | XR8: 2075 | XS8: 2075 | XT8: 2075 | XU8: 2075 | XV8: 2075 | XW8: 2075 | XX8: 2076 | XY8: 2076 | XZ8: 2076 | YA8: 2076 | YB8: 2076 | YC8: =YEAR(YC5) -> 2076 | YD8: 2076 | YE8: 2076 | YF8: 2076 | YG8: 2076 | YH8: 2076 | YI8: 2076 | YJ8: 2077 | YK8: 2077 | YL8: 2077 | YM8: 2077 | YN8: 2077 | YO8: 2077 | YP8: 2077 | YQ8: 2077 | YR8: 2077 | YS8: 2077 | YT8: 2077 | YU8: 2077 | YV8: 2078 | YW8: 2078 | YX8: 2078 | YY8: 2078 | YZ8: 2078 | ZA8: 2078 | ZB8: 2078 | ZC8: 2078 | ZD8: 2078 | ZE8: 2078 | ZF8: 2078 | ZG8: 2078 | ZH8: 2079 | ZI8: 2079 | ZJ8: 2079 | ZK8: 2079 | ZL8: 2079 | ZM8: 2079 | ZN8: 2079 | ZO8: 2079 | ZP8: 2079 | ZQ8: 2079 | ZR8: 2079 | ZS8: 2079 | ZT8: 2080 | ZU8: 2080 | ZV8: 2080 | ZW8: 2080 | ZX8: 2080 | ZY8: 2080 | ZZ8: 2080 | AAA8: 2080 | AAB8: 2080 | AAC8: 2080 | AAD8: 2080 | AAE8: 2080 | AAF8: 2081 | AAG8: 2081 | AAH8: 2081 | AAI8: 2081 | AAJ8: 2081 | AAK8: 2081 | AAL8: 2081 | AAM8: 2081 | AAN8: 2081 | AAO8: =YEAR(AAO5) -> 2081 | AAP8: 2081 | AAQ8: 2081 | AAR8: 2082 | AAS8: 2082 | AAT8: 2082 | AAU8: 2082 | AAV8: 2082 | AAW8: 2082 | AAX8: 2082 | AAY8: 2082 | AAZ8: 2082 | ABA8: 2082 | ABB8: 2082 | ABC8: 2082 | ABD8: 2083 | ABE8: 2083 | ABF8: 2083 | ABG8: 2083 | ABH8: 2083 | ABI8: 2083 | ABJ8: 2083 | ABK8: 2083 | ABL8: 2083 | ABM8: 2083 | ABN8: 2083 | ABO8: 2083 | ABP8: 2084 | ABQ8: 2084 | ABR8: 2084 | ABS8: 2084 | ABT8: 2084 | ABU8: 2084 | ABV8: 2084 | ABW8: 2084 | ABX8: 2084 | ABY8: 2084 | ABZ8: 2084 | ACA8: 2084 | ACB8: 2085 | ACC8: 2085 | ACD8: 2085 | ACE8: 2085 | ACF8: 2085 | ACG8: 2085 | ACH8: 2085 | ACI8: 2085 | ACJ8: 2085 | ACK8: 2085 | ACL8: 2085 | ACM8: 2085 | ACN8: 2086 | ACO8: 2086 | ACP8: 2086 | ACQ8: 2086 | ACR8: 2086 | ACS8: 2086 | ACT8: 2086 | ACU8: 2086 | ACV8: 2086 | ACW8: 2086 | ACX8: 2086 | ACY8: 2086 | ACZ8: 2087 | ADA8: =YEAR(ADA5) -> 2087 | ADB8: 2087 | ADC8: 2087 | ADD8: 2087 | ADE8: 2087 | ADF8: 2087 | ADG8: 2087 | ADH8: 2087 | ADI8: 2087 | ADJ8: 2087 | ADK8: 2087 | ADL8: 2088 | ADM8: 2088 | ADN8: 2088 | ADO8: 2088 | ADP8: 2088 | ADQ8: 2088 | ADR8: 2088 | ADS8: 2088 | ADT8: 2088 | ADU8: 2088 | ADV8: 2088 | ADW8: 2088 | ADX8: 2089 | ADY8: 2089 | ADZ8: 2089 | AEA8: 2089 | AEB8: 2089 | AEC8: 2089 | AED8: 2089 | AEE8: 2089
B10: Monthly and Semi-Annual Date for Financing
D11: Month Number | J11: =_xlfn.FORMULATEXT(L11) -> =MONTH(L4) | L11: =MONTH(L4) -> 1 | M11: 2 | N11: 3 | O11: 4 | P11: 5 | Q11: 6 | R11: 7 | S11: 8 | T11: 9 | U11: 10 | V11: 11 | W11: 12 | X11: 1 | Y11: 2 | Z11: 3 | AA11: 4 | AB11: 5 | AC11: 6 | AD11: 7 | AE11: 8 | AF11: 9 | AG11: 10 | AH11: 11 | AI11: 12 | AJ11: 1 | AK11: 2 | AL11: 3 | AM11: 4 | AN11: 5 | AO11: 6 | AP11: 7 | AQ11: 8 | AR11: 9 | AS11: 10 | AT11: 11 | AU11: 12 | AV11: 1 | AW11: 2 | AX11: 3 | AY11: 4 | AZ11: 5 | BA11: 6 | BB11: 7 | BC11: 8 | BD11: 9 | BE11: 10 | BF11: 11 | BG11: 12 | BH11: 1 | BI11: 2 | BJ11: 3 | BK11: 4 | BL11: 5 | BM11: 6 | BN11: 7 | BO11: 8 | BP11: 9 | BQ11: 10 | BR11: 11 | BS11: 12 | BT11: 1 | BU11: 2 | BV11: 3 | BW11: 4 | BX11: =MONTH(BX4) -> 5 | BY11: 6 | BZ11: 7 | CA11: 8 | CB11: 9 | CC11: 10 | CD11: 11 | CE11: 12 | CF11: 1 | CG11: 2 | CH11: 3 | CI11: 4 | CJ11: 5 | CK11: 6 | CL11: 7 | CM11: 8 | CN11: 9 | CO11: 10 | CP11: 11 | CQ11: 12 | CR11: 1 | CS11: 2 | CT11: 3 | CU11: 4 | CV11: 5 | CW11: 6 | CX11: 7 | CY11: 8 | CZ11: 9 | DA11: 10 | DB11: 11 | DC11: 12 | DD11: 1 | DE11: 2 | DF11: 3 | DG11: 4 | DH11: 5 | DI11: 6 | DJ11: 7 | DK11: 8 | DL11: 9 | DM11: 10 | DN11: 11 | DO11: 12 | DP11: 1 | DQ11: 2 | DR11: 3 | DS11: 4 | DT11: 5 | DU11: 6 | DV11: 7 | DW11: 8 | DX11: 9 | DY11: 10 | DZ11: 11 | EA11: 12 | EB11: 1 | EC11: 2 | ED11: 3 | EE11: 4 | EF11: 5 | EG11: 6 | EH11: 7 | EI11: 8 | EJ11: =MONTH(EJ4) -> 9 | EK11: 10 | EL11: 11 | EM11: 12 | EN11: 1 | EO11: 2 | EP11: 3 | EQ11: 4 | ER11: 5 | ES11: 6 | ET11: 7 | EU11: 8 | EV11: 9 | EW11: 10 | EX11: 11 | EY11: 12 | EZ11: 1 | FA11: 2 | FB11: 3 | FC11: 4 | FD11: 5 | FE11: 6 | FF11: 7 | FG11: 8 | FH11: 9 | FI11: 10 | FJ11: 11 | FK11: 12 | FL11: 1 | FM11: 2 | FN11: 3 | FO11: 4 | FP11: 5 | FQ11: 6 | FR11: 7 | FS11: 8 | FT11: 9 | FU11: 10 | FV11: 11 | FW11: 12 | FX11: 1 | FY11: 2 | FZ11: 3 | GA11: 4 | GB11: 5 | GC11: 6 | GD11: 7 | GE11: 8 | GF11: 9 | GG11: 10 | GH11: 11 | GI11: 12 | GJ11: 1 | GK11: 2 | GL11: 3 | GM11: 4 | GN11: 5 | GO11: 6 | GP11: 7 | GQ11: 8 | GR11: 9 | GS11: 10 | GT11: 11 | GU11: 12 | GV11: =MONTH(GV4) -> 1 | GW11: 2 | GX11: 3 | GY11: 4 | GZ11: 5 | HA11: 6 | HB11: 7 | HC11: 8 | HD11: 9 | HE11: 10 | HF11: 11 | HG11: 12 | HH11: 1 | HI11: 2 | HJ11: 3 | HK11: 4 | HL11: 5 | HM11: 6 | HN11: 7 | HO11: 8 | HP11: 9 | HQ11: 10 | HR11: 11 | HS11: 12 | HT11: 1 | HU11: 2 | HV11: 3 | HW11: 4 | HX11: 5 | HY11: 6 | HZ11: 7 | IA11: 8 | IB11: 9 | IC11: 10 | ID11: 11 | IE11: 12 | IF11: 1 | IG11: 2 | IH11: 3 | II11: 4 | IJ11: 5 | IK11: 6 | IL11: 7 | IM11: 8 | IN11: 9 | IO11: 10 | IP11: 11 | IQ11: 12 | IR11: 1 | IS11: 2 | IT11: 3 | IU11: 4 | IV11: 5 | IW11: 6 | IX11: 7 | IY11: 8 | IZ11: 9 | JA11: 10 | JB11: 11 | JC11: 12 | JD11: 1 | JE11: 2 | JF11: 3 | JG11: 4 | JH11: =MONTH(JH4) -> 5 | JI11: 6 | JJ11: 7 | JK11: 8 | JL11: 9 | JM11: 10 | JN11: 11 | JO11: 12 | JP11: 1 | JQ11: 2 | JR11: 3 | JS11: 4 | JT11: 5 | JU11: 6 | JV11: 7 | JW11: 8 | JX11: 9 | JY11: 10 | JZ11: 11 | KA11: 12 | KB11: 1 | KC11: 2 | KD11: 3 | KE11: 4 | KF11: 5 | KG11: 6 | KH11: 7 | KI11: 8 | KJ11: 9 | KK11: 10 | KL11: 11 | KM11: 12 | KN11: 1 | KO11: 2 | KP11: 3 | KQ11: 4 | KR11: 5 | KS11: 6 | KT11: 7 | KU11: 8 | KV11: 9 | KW11: 10 | KX11: 11 | KY11: 12 | KZ11: 1 | LA11: 2 | LB11: 3 | LC11: 4 | LD11: 5 | LE11: 6 | LF11: 7 | LG11: 8 | LH11: 9 | LI11: 10 | LJ11: 11 | LK11: 12 | LL11: 1 | LM11: 2 | LN11: 3 | LO11: 4 | LP11: 5 | LQ11: 6 | LR11: 7 | LS11: 8 | LT11: =MONTH(LT4) -> 9 | LU11: 10 | LV11: 11 | LW11: 12 | LX11: 1 | LY11: 2 | LZ11: 3 | MA11: 4 | MB11: 5 | MC11: 6 | MD11: 7 | ME11: 8 | MF11: 9 | MG11: 10 | MH11: 11 | MI11: 12 | MJ11: 1 | MK11: 2 | ML11: 3 | MM11: 4 | MN11: 5 | MO11: 6 | MP11: 7 | MQ11: 8 | MR11: 9 | MS11: 10 | MT11: 11 | MU11: 12 | MV11: 1 | MW11: 2 | MX11: 3 | MY11: 4 | MZ11: 5 | NA11: 6 | NB11: 7 | NC11: 8 | ND11: 9 | NE11: 10 | NF11: 11 | NG11: 12 | NH11: 1 | NI11: 2 | NJ11: 3 | NK11: 4 | NL11: 5 | NM11: 6 | NN11: 7 | NO11: 8 | NP11: 9 | NQ11: 10 | NR11: 11 | NS11: 12 | NT11: 1 | NU11: 2 | NV11: 3 | NW11: 4 | NX11: 5 | NY11: 6 | NZ11: 7 | OA11: 8 | OB11: 9 | OC11: 10 | OD11: 11 | OE11: 12 | OF11: =MONTH(OF4) -> 1 | OG11: 2 | OH11: 3 | OI11: 4 | OJ11: 5 | OK11: 6 | OL11: 7 | OM11: 8 | ON11: 9 | OO11: 10 | OP11: 11 | OQ11: 12 | OR11: 1 | OS11: 2 | OT11: 3 | OU11: 4 | OV11: 5 | OW11: 6 | OX11: 7 | OY11: 8 | OZ11: 9 | PA11: 10 | PB11: 11 | PC11: 12 | PD11: 1 | PE11: 2 | PF11: 3 | PG11: 4 | PH11: 5 | PI11: 6 | PJ11: 7 | PK11: 8 | PL11: 9 | PM11: 10 | PN11: 11 | PO11: 12 | PP11: 1 | PQ11: 2 | PR11: 3 | PS11: 4 | PT11: 5 | PU11: 6 | PV11: 7 | PW11: 8 | PX11: 9 | PY11: 10 | PZ11: 11 | QA11: 12 | QB11: 1 | QC11: 2 | QD11: 3 | QE11: 4 | QF11: 5 | QG11: 6 | QH11: 7 | QI11: 8 | QJ11: 9 | QK11: 10 | QL11: 11 | QM11: 12 | QN11: 1 | QO11: 2 | QP11: 3 | QQ11: 4 | QR11: =MONTH(QR4) -> 5 | QS11: 6 | QT11: 7 | QU11: 8 | QV11: 9 | QW11: 10 | QX11: 11 | QY11: 12 | QZ11: 1 | RA11: 2 | RB11: 3 | RC11: 4 | RD11: 5 | RE11: 6 | RF11: 7 | RG11: 8 | RH11: 9 | RI11: 10 | RJ11: 11 | RK11: 12 | RL11: 1 | RM11: 2 | RN11: 3 | RO11: 4 | RP11: 5 | RQ11: 6 | RR11: 7 | RS11: 8 | RT11: 9 | RU11: 10 | RV11: 11 | RW11: 12 | RX11: 1 | RY11: 2 | RZ11: 3 | SA11: 4 | SB11: 5 | SC11: 6 | SD11: 7 | SE11: 8 | SF11: 9 | SG11: 10 | SH11: 11 | SI11: 12 | SJ11: 1 | SK11: 2 | SL11: 3 | SM11: 4 | SN11: 5 | SO11: 6 | SP11: 7 | SQ11: 8 | SR11: 9 | SS11: 10 | ST11: 11 | SU11: 12 | SV11: 1 | SW11: 2 | SX11: 3 | SY11: 4 | SZ11: 5 | TA11: 6 | TB11: 7 | TC11: 8 | TD11: =MONTH(TD4) -> 9 | TE11: 10 | TF11: 11 | TG11: 12 | TH11: 1 | TI11: 2 | TJ11: 3 | TK11: 4 | TL11: 5 | TM11: 6 | TN11: 7 | TO11: 8 | TP11: 9 | TQ11: 10 | TR11: 11 | TS11: 12 | TT11: 1 | TU11: 2 | TV11: 3 | TW11: 4 | TX11: 5 | TY11: 6 | TZ11: 7 | UA11: 8 | UB11: 9 | UC11: 10 | UD11: 11 | UE11: 12 | UF11: 1 | UG11: 2 | UH11: 3 | UI11: 4 | UJ11: 5 | UK11: 6 | UL11: 7 | UM11: 8 | UN11: 9 | UO11: 10 | UP11: 11 | UQ11: 12 | UR11: 1 | US11: 2 | UT11: 3 | UU11: 4 | UV11: 5 | UW11: 6 | UX11: 7 | UY11: 8 | UZ11: 9 | VA11: 10 | VB11: 11 | VC11: 12 | VD11: 1 | VE11: 2 | VF11: 3 | VG11: 4 | VH11: 5 | VI11: 6 | VJ11: 7 | VK11: 8 | VL11: 9 | VM11: 10 | VN11: 11 | VO11: 12 | VP11: =MONTH(VP4) -> 1 | VQ11: 2 | VR11: 3 | VS11: 4 | VT11: 5 | VU11: 6 | VV11: 7 | VW11: 8 | VX11: 9 | VY11: 10 | VZ11: 11 | WA11: 12 | WB11: 1 | WC11: 2 | WD11: 3 | WE11: 4 | WF11: 5 | WG11: 6 | WH11: 7 | WI11: 8 | WJ11: 9 | WK11: 10 | WL11: 11 | WM11: 12 | WN11: 1 | WO11: 2 | WP11: 3 | WQ11: 4 | WR11: 5 | WS11: 6 | WT11: 7 | WU11: 8 | WV11: 9 | WW11: 10 | WX11: 11 | WY11: 12 | WZ11: 1 | XA11: 2 | XB11: 3 | XC11: 4 | XD11: 5 | XE11: 6 | XF11: 7 | XG11: 8 | XH11: 9 | XI11: 10 | XJ11: 11 | XK11: 12 | XL11: 1 | XM11: 2 | XN11: 3 | XO11: 4 | XP11: 5 | XQ11: 6 | XR11: 7 | XS11: 8 | XT11: 9 | XU11: 10 | XV11: 11 | XW11: 12 | XX11: 1 | XY11: 2 | XZ11: 3 | YA11: 4 | YB11: =MONTH(YB4) -> 5 | YC11: 6 | YD11: 7 | YE11: 8 | YF11: 9 | YG11: 10 | YH11: 11 | YI11: 12 | YJ11: 1 | YK11: 2 | YL11: 3 | YM11: 4 | YN11: 5 | YO11: 6 | YP11: 7 | YQ11: 8 | YR11: 9 | YS11: 10 | YT11: 11 | YU11: 12 | YV11: 1 | YW11: 2 | YX11: 3 | YY11: 4 | YZ11: 5 | ZA11: 6 | ZB11: 7 | ZC11: 8 | ZD11: 9 | ZE11: 10 | ZF11: 11 | ZG11: 12 | ZH11: 1 | ZI11: 2 | ZJ11: 3 | ZK11: 4 | ZL11: 5 | ZM11: 6 | ZN11: 7 | ZO11: 8 | ZP11: 9 | ZQ11: 10 | ZR11: 11 | ZS11: 12 | ZT11: 1 | ZU11: 2 | ZV11: 3 | ZW11: 4 | ZX11: 5 | ZY11: 6 | ZZ11: 7 | AAA11: 8 | AAB11: 9 | AAC11: 10 | AAD11: 11 | AAE11: 12 | AAF11: 1 | AAG11: 2 | AAH11: 3 | AAI11: 4 | AAJ11: 5 | AAK11: 6 | AAL11: 7 | AAM11: 8 | AAN11: =MONTH(AAN4) -> 9 | AAO11: 10 | AAP11: 11 | AAQ11: 12 | AAR11: 1 | AAS11: 2 | AAT11: 3 | AAU11: 4 | AAV11: 5 | AAW11: 6 | AAX11: 7 | AAY11: 8 | AAZ11: 9 | ABA11: 10 | ABB11: 11 | ABC11: 12 | ABD11: 1 | ABE11: 2 | ABF11: 3 | ABG11: 4 | ABH11: 5 | ABI11: 6 | ABJ11: 7 | ABK11: 8 | ABL11: 9 | ABM11: 10 | ABN11: 11 | ABO11: 12 | ABP11: 1 | ABQ11: 2 | ABR11: 3 | ABS11: 4 | ABT11: 5 | ABU11: 6 | ABV11: 7 | ABW11: 8 | ABX11: 9 | ABY11: 10 | ABZ11: 11 | ACA11: 12 | ACB11: 1 | ACC11: 2 | ACD11: 3 | ACE11: 4 | ACF11: 5 | ACG11: 6 | ACH11: 7 | ACI11: 8 | ACJ11: 9 | ACK11: 10 | ACL11: 11 | ACM11: 12 | ACN11: 1 | ACO11: 2 | ACP11: 3 | ACQ11: 4 | ACR11: 5 | ACS11: 6 | ACT11: 7 | ACU11: 8 | ACV11: 9 | ACW11: 10 | ACX11: 11 | ACY11: 12 | ACZ11: =MONTH(ACZ4) -> 1 | ADA11: 2 | ADB11: 3 | ADC11: 4 | ADD11: 5 | ADE11: 6 | ADF11: 7 | ADG11: 8 | ADH11: 9 | ADI11: 10 | ADJ11: 11 | ADK11: 12 | ADL11: 1 | ADM11: 2 | ADN11: 3 | ADO11: 4 | ADP11: 5 | ADQ11: 6 | ADR11: 7 | ADS11: 8 | ADT11: 9 | ADU11: 10 | ADV11: 11 | ADW11: 12 | ADX11: 1 | ADY11: 2 | ADZ11: 3 | AEA11: 4 | AEB11: 5 | AEC11: 6 | AED11: 7 | AEE11: 8
D12: Flag for Semi Annual Period Post COD | E12: ='InputC-Financing'!E10 -> 5 | F12: ='InputC-Financing'!E11 -> 11 | G12: Flag | J12: =_xlfn.FORMULATEXT(L12) -> =(OR(L11=$E$12,L11=$F$12))*L7 | L12: =(OR(L11=$E$12,L11=$F$12))*L7 -> 0 | M12: 0 | N12: 0 | O12: 0 | P12: 0 | Q12: 0 | R12: 0 | S12: 0 | T12: 0 | U12: 0 | V12: 0 | W12: 0 | X12: 0 | Y12: 0 | Z12: 0 | AA12: 0 | AB12: 1 | AC12: 0 | AD12: 0 | AE12: 0 | AF12: 0 | AG12: 0 | AH12: 1 | AI12: 0 | AJ12: 0 | AK12: 0 | AL12: 0 | AM12: 0 | AN12: 1 | AO12: 0 | AP12: 0 | AQ12: 0 | AR12: 0 | AS12: 0 | AT12: 1 | AU12: 0 | AV12: 0 | AW12: 0 | AX12: 0 | AY12: 0 | AZ12: 1 | BA12: 0 | BB12: 0 | BC12: 0 | BD12: 0 | BE12: 0 | BF12: 1 | BG12: 0 | BH12: 0 | BI12: 0 | BJ12: 0 | BK12: 0 | BL12: 1 | BM12: 0 | BN12: 0 | BO12: 0 | BP12: 0 | BQ12: 0 | BR12: 1 | BS12: 0 | BT12: 0 | BU12: 0 | BV12: 0 | BW12: 0 | BX12: =(OR(BX11=$E$12,BX11=$F$12))*BX7 -> 1 | BY12: 0 | BZ12: 0 | CA12: 0 | CB12: 0 | CC12: 0 | CD12: 1 | CE12: 0 | CF12: 0 | CG12: 0 | CH12: 0 | CI12: 0 | CJ12: 1 | CK12: 0 | CL12: 0 | CM12: 0 | CN12: 0 | CO12: 0 | CP12: 1 | CQ12: 0 | CR12: 0 | CS12: 0 | CT12: 0 | CU12: 0 | CV12: 1 | CW12: 0 | CX12: 0 | CY12: 0 | CZ12: 0 | DA12: 0 | DB12: 1 | DC12: 0 | DD12: 0 | DE12: 0 | DF12: 0 | DG12: 0 | DH12: 1 | DI12: 0 | DJ12: 0 | DK12: 0 | DL12: 0 | DM12: 0 | DN12: 1 | DO12: 0 | DP12: 0 | DQ12: 0 | DR12: 0 | DS12: 0 | DT12: 1 | DU12: 0 | DV12: 0 | DW12: 0 | DX12: 0 | DY12: 0 | DZ12: 1 | EA12: 0 | EB12: 0 | EC12: 0 | ED12: 0 | EE12: 0 | EF12: 1 | EG12: 0 | EH12: 0 | EI12: 0 | EJ12: =(OR(EJ11=$E$12,EJ11=$F$12))*EJ7 -> 0 | EK12: 0 | EL12: 1 | EM12: 0 | EN12: 0 | EO12: 0 | EP12: 0 | EQ12: 0 | ER12: 1 | ES12: 0 | ET12: 0 | EU12: 0 | EV12: 0 | EW12: 0 | EX12: 1 | EY12: 0 | EZ12: 0 | FA12: 0 | FB12: 0 | FC12: 0 | FD12: 1 | FE12: 0 | FF12: 0 | FG12: 0 | FH12: 0 | FI12: 0 | FJ12: 1 | FK12: 0 | FL12: 0 | FM12: 0 | FN12: 0 | FO12: 0 | FP12: 1 | FQ12: 0 | FR12: 0 | FS12: 0 | FT12: 0 | FU12: 0 | FV12: 1 | FW12: 0 | FX12: 0 | FY12: 0 | FZ12: 0 | GA12: 0 | GB12: 1 | GC12: 0 | GD12: 0 | GE12: 0 | GF12: 0 | GG12: 0 | GH12: 1 | GI12: 0 | GJ12: 0 | GK12: 0 | GL12: 0 | GM12: 0 | GN12: 1 | GO12: 0 | GP12: 0 | GQ12: 0 | GR12: 0 | GS12: 0 | GT12: 1 | GU12: 0 | GV12: =(OR(GV11=$E$12,GV11=$F$12))*GV7 -> 0 | GW12: 0 | GX12: 0 | GY12: 0 | GZ12: 1 | HA12: 0 | HB12: 0 | HC12: 0 | HD12: 0 | HE12: 0 | HF12: 1 | HG12: 0 | HH12: 0 | HI12: 0 | HJ12: 0 | HK12: 0 | HL12: 1 | HM12: 0 | HN12: 0 | HO12: 0 | HP12: 0 | HQ12: 0 | HR12: 1 | HS12: 0 | HT12: 0 | HU12: 0 | HV12: 0 | HW12: 0 | HX12: 1 | HY12: 0 | HZ12: 0 | IA12: 0 | IB12: 0 | IC12: 0 | ID12: 1 | IE12: 0 | IF12: 0 | IG12: 0 | IH12: 0 | II12: 0 | IJ12: 1 | IK12: 0 | IL12: 0 | IM12: 0 | IN12: 0 | IO12: 0 | IP12: 1 | IQ12: 0 | IR12: 0 | IS12: 0 | IT12: 0 | IU12: 0 | IV12: 1 | IW12: 0 | IX12: 0 | IY12: 0 | IZ12: 0 | JA12: 0 | JB12: 1 | JC12: 0 | JD12: 0 | JE12: 0 | JF12: 0 | JG12: 0 | JH12: =(OR(JH11=$E$12,JH11=$F$12))*JH7 -> 1 | JI12: 0 | JJ12: 0 | JK12: 0 | JL12: 0 | JM12: 0 | JN12: 1 | JO12: 0 | JP12: 0 | JQ12: 0 | JR12: 0 | JS12: 0 | JT12: 1 | JU12: 0 | JV12: 0 | JW12: 0 | JX12: 0 | JY12: 0 | JZ12: 1 | KA12: 0 | KB12: 0 | KC12: 0 | KD12: 0 | KE12: 0 | KF12: 1 | KG12: 0 | KH12: 0 | KI12: 0 | KJ12: 0 | KK12: 0 | KL12: 1 | KM12: 0 | KN12: 0 | KO12: 0 | KP12: 0 | KQ12: 0 | KR12: 1 | KS12: 0 | KT12: 0 | KU12: 0 | KV12: 0 | KW12: 0 | KX12: 1 | KY12: 0 | KZ12: 0 | LA12: 0 | LB12: 0 | LC12: 0 | LD12: 1 | LE12: 0 | LF12: 0 | LG12: 0 | LH12: 0 | LI12: 0 | LJ12: 1 | LK12: 0 | LL12: 0 | LM12: 0 | LN12: 0 | LO12: 0 | LP12: 1 | LQ12: 0 | LR12: 0 | LS12: 0 | LT12: =(OR(LT11=$E$12,LT11=$F$12))*LT7 -> 0 | LU12: 0 | LV12: 1 | LW12: 0 | LX12: 0 | LY12: 0 | LZ12: 0 | MA12: 0 | MB12: 1 | MC12: 0 | MD12: 0 | ME12: 0 | MF12: 0 | MG12: 0 | MH12: 1 | MI12: 0 | MJ12: 0 | MK12: 0 | ML12: 0 | MM12: 0 | MN12: 1 | MO12: 0 | MP12: 0 | MQ12: 0 | MR12: 0 | MS12: 0 | MT12: 1 | MU12: 0 | MV12: 0 | MW12: 0 | MX12: 0 | MY12: 0 | MZ12: 1 | NA12: 0 | NB12: 0 | NC12: 0 | ND12: 0 | NE12: 0 | NF12: 1 | NG12: 0 | NH12: 0 | NI12: 0 | NJ12: 0 | NK12: 0 | NL12: 1 | NM12: 0 | NN12: 0 | NO12: 0 | NP12: 0 | NQ12: 0 | NR12: 1 | NS12: 0 | NT12: 0 | NU12: 0 | NV12: 0 | NW12: 0 | NX12: 1 | NY12: 0 | NZ12: 0 | OA12: 0 | OB12: 0 | OC12: 0 | OD12: 1 | OE12: 0 | OF12: =(OR(OF11=$E$12,OF11=$F$12))*OF7 -> 0 | OG12: 0 | OH12: 0 | OI12: 0 | OJ12: 1 | OK12: 0 | OL12: 0 | OM12: 0 | ON12: 0 | OO12: 0 | OP12: 1 | OQ12: 0 | OR12: 0 | OS12: 0 | OT12: 0 | OU12: 0 | OV12: 1 | OW12: 0 | OX12: 0 | OY12: 0 | OZ12: 0 | PA12: 0 | PB12: 1 | PC12: 0 | PD12: 0 | PE12: 0 | PF12: 0 | PG12: 0 | PH12: 1 | PI12: 0 | PJ12: 0 | PK12: 0 | PL12: 0 | PM12: 0 | PN12: 1 | PO12: 0 | PP12: 0 | PQ12: 0 | PR12: 0 | PS12: 0 | PT12: 1 | PU12: 0 | PV12: 0 | PW12: 0 | PX12: 0 | PY12: 0 | PZ12: 1 | QA12: 0 | QB12: 0 | QC12: 0 | QD12: 0 | QE12: 0 | QF12: 0 | QG12: 0 | QH12: 0 | QI12: 0 | QJ12: 0 | QK12: 0 | QL12: 0 | QM12: 0 | QN12: 0 | QO12: 0 | QP12: 0 | QQ12: 0 | QR12: =(OR(QR11=$E$12,QR11=$F$12))*QR7 -> 0 | QS12: 0 | QT12: 0 | QU12: 0 | QV12: 0 | QW12: 0 | QX12: 0 | QY12: 0 | QZ12: 0 | RA12: 0 | RB12: 0 | RC12: 0 | RD12: 0 | RE12: 0 | RF12: 0 | RG12: 0 | RH12: 0 | RI12: 0 | RJ12: 0 | RK12: 0 | RL12: 0 | RM12: 0 | RN12: 0 | RO12: 0 | RP12: 0 | RQ12: 0 | RR12: 0 | RS12: 0 | RT12: 0 | RU12: 0 | RV12: 0 | RW12: 0 | RX12: 0 | RY12: 0 | RZ12: 0 | SA12: 0 | SB12: 0 | SC12: 0 | SD12: 0 | SE12: 0 | SF12: 0 | SG12: 0 | SH12: 0 | SI12: 0 | SJ12: 0 | SK12: 0 | SL12: 0 | SM12: 0 | SN12: 0 | SO12: 0 | SP12: 0 | SQ12: 0 | SR12: 0 | SS12: 0 | ST12: 0 | SU12: 0 | SV12: 0 | SW12: 0 | SX12: 0 | SY12: 0 | SZ12: 0 | TA12: 0 | TB12: 0 | TC12: 0 | TD12: =(OR(TD11=$E$12,TD11=$F$12))*TD7 -> 0 | TE12: 0 | TF12: 0 | TG12: 0 | TH12: 0 | TI12: 0 | TJ12: 0 | TK12: 0 | TL12: 0 | TM12: 0 | TN12: 0 | TO12: 0 | TP12: 0 | TQ12: 0 | TR12: 0 | TS12: 0 | TT12: 0 | TU12: 0 | TV12: 0 | TW12: 0 | TX12: 0 | TY12: 0 | TZ12: 0 | UA12: 0 | UB12: 0 | UC12: 0 | UD12: 0 | UE12: 0 | UF12: 0 | UG12: 0 | UH12: 0 | UI12: 0 | UJ12: 0 | UK12: 0 | UL12: 0 | UM12: 0 | UN12: 0 | UO12: 0 | UP12: 0 | UQ12: 0 | UR12: 0 | US12: 0 | UT12: 0 | UU12: 0 | UV12: 0 | UW12: 0 | UX12: 0 | UY12: 0 | UZ12: 0 | VA12: 0 | VB12: 0 | VC12: 0 | VD12: 0 | VE12: 0 | VF12: 0 | VG12: 0 | VH12: 0 | VI12: 0 | VJ12: 0 | VK12: 0 | VL12: 0 | VM12: 0 | VN12: 0 | VO12: 0 | VP12: =(OR(VP11=$E$12,VP11=$F$12))*VP7 -> 0 | VQ12: 0 | VR12: 0 | VS12: 0 | VT12: 0 | VU12: 0 | VV12: 0 | VW12: 0 | VX12: 0 | VY12: 0 | VZ12: 0 | WA12: 0 | WB12: 0 | WC12: 0 | WD12: 0 | WE12: 0 | WF12: 0 | WG12: 0 | WH12: 0 | WI12: 0 | WJ12: 0 | WK12: 0 | WL12: 0 | WM12: 0 | WN12: 0 | WO12: 0 | WP12: 0 | WQ12: 0 | WR12: 0 | WS12: 0 | WT12: 0 | WU12: 0 | WV12: 0 | WW12: 0 | WX12: 0 | WY12: 0 | WZ12: 0 | XA12: 0 | XB12: 0 | XC12: 0 | XD12: 0 | XE12: 0 | XF12: 0 | XG12: 0 | XH12: 0 | XI12: 0 | XJ12: 0 | XK12: 0 | XL12: 0 | XM12: 0 | XN12: 0 | XO12: 0 | XP12: 0 | XQ12: 0 | XR12: 0 | XS12: 0 | XT12: 0 | XU12: 0 | XV12: 0 | XW12: 0 | XX12: 0 | XY12: 0 | XZ12: 0 | YA12: 0 | YB12: =(OR(YB11=$E$12,YB11=$F$12))*YB7 -> 0 | YC12: 0 | YD12: 0 | YE12: 0 | YF12: 0 | YG12: 0 | YH12: 0 | YI12: 0 | YJ12: 0 | YK12: 0 | YL12: 0 | YM12: 0 | YN12: 0 | YO12: 0 | YP12: 0 | YQ12: 0 | YR12: 0 | YS12: 0 | YT12: 0 | YU12: 0 | YV12: 0 | YW12: 0 | YX12: 0 | YY12: 0 | YZ12: 0 | ZA12: 0 | ZB12: 0 | ZC12: 0 | ZD12: 0 | ZE12: 0 | ZF12: 0 | ZG12: 0 | ZH12: 0 | ZI12: 0 | ZJ12: 0 | ZK12: 0 | ZL12: 0 | ZM12: 0 | ZN12: 0 | ZO12: 0 | ZP12: 0 | ZQ12: 0 | ZR12: 0 | ZS12: 0 | ZT12: 0 | ZU12: 0 | ZV12: 0 | ZW12: 0 | ZX12: 0 | ZY12: 0 | ZZ12: 0 | AAA12: 0 | AAB12: 0 | AAC12: 0 | AAD12: 0 | AAE12: 0 | AAF12: 0 | AAG12: 0 | AAH12: 0 | AAI12: 0 | AAJ12: 0 | AAK12: 0 | AAL12: 0 | AAM12: 0 | AAN12: =(OR(AAN11=$E$12,AAN11=$F$12))*AAN7 -> 0 | AAO12: 0 | AAP12: 0 | AAQ12: 0 | AAR12: 0 | AAS12: 0 | AAT12: 0 | AAU12: 0 | AAV12: 0 | AAW12: 0 | AAX12: 0 | AAY12: 0 | AAZ12: 0 | ABA12: 0 | ABB12: 0 | ABC12: 0 | ABD12: 0 | ABE12: 0 | ABF12: 0 | ABG12: 0 | ABH12: 0 | ABI12: 0 | ABJ12: 0 | ABK12: 0 | ABL12: 0 | ABM12: 0 | ABN12: 0 | ABO12: 0 | ABP12: 0 | ABQ12: 0 | ABR12: 0 | ABS12: 0 | ABT12: 0 | ABU12: 0 | ABV12: 0 | ABW12: 0 | ABX12: 0 | ABY12: 0 | ABZ12: 0 | ACA12: 0 | ACB12: 0 | ACC12: 0 | ACD12: 0 | ACE12: 0 | ACF12: 0 | ACG12: 0 | ACH12: 0 | ACI12: 0 | ACJ12: 0 | ACK12: 0 | ACL12: 0 | ACM12: 0 | ACN12: 0 | ACO12: 0 | ACP12: 0 | ACQ12: 0 | ACR12: 0 | ACS12: 0 | ACT12: 0 | ACU12: 0 | ACV12: 0 | ACW12: 0 | ACX12: 0 | ACY12: 0 | ACZ12: =(OR(ACZ11=$E$12,ACZ11=$F$12))*ACZ7 -> 0 | ADA12: 0 | ADB12: 0 | ADC12: 0 | ADD12: 0 | ADE12: 0 | ADF12: 0 | ADG12: 0 | ADH12: 0 | ADI12: 0 | ADJ12: 0 | ADK12: 0 | ADL12: 0 | ADM12: 0 | ADN12: 0 | ADO12: 0 | ADP12: 0 | ADQ12: 0 | ADR12: 0 | ADS12: 0 | ADT12: 0 | ADU12: 0 | ADV12: 0 | ADW12: 0 | ADX12: 0 | ADY12: 0 | ADZ12: 0 | AEA12: 0 | AEB12: 0 | AEC12: 0 | AED12: 0 | AEE12: 0
D13: COD Flag | E13: =E7 -> 2023-12-01 | G13: Flag | J13: =(L4=$E$13)*1 | L13: =(L4=$E$13)*1 -> 0 | M13: 0 | N13: 0 | O13: 0 | P13: 0 | Q13: 0 | R13: 0 | S13: 0 | T13: 0 | U13: 0 | V13: 0 | W13: 1 | X13: 0 | Y13: 0 | Z13: 0 | AA13: 0 | AB13: 0 | AC13: 0 | AD13: 0 | AE13: 0 | AF13: 0 | AG13: 0 | AH13: 0 | AI13: 0 | AJ13: 0 | AK13: 0 | AL13: 0 | AM13: 0 | AN13: 0 | AO13: 0 | AP13: 0 | AQ13: 0 | AR13: 0 | AS13: 0 | AT13: 0 | AU13: 0 | AV13: 0 | AW13: 0 | AX13: 0 | AY13: 0 | AZ13: 0 | BA13: 0 | BB13: 0 | BC13: 0 | BD13: 0 | BE13: 0 | BF13: 0 | BG13: 0 | BH13: 0 | BI13: 0 | BJ13: 0 | BK13: 0 | BL13: 0 | BM13: 0 | BN13: 0 | BO13: 0 | BP13: 0 | BQ13: 0 | BR13: 0 | BS13: 0 | BT13: 0 | BU13: 0 | BV13: 0 | BW13: 0 | BX13: =(BX4=$E$13)*1 -> 0 | BY13: 0 | BZ13: 0 | CA13: 0 | CB13: 0 | CC13: 0 | CD13: 0 | CE13: 0 | CF13: 0 | CG13: 0 | CH13: 0 | CI13: 0 | CJ13: 0 | CK13: 0 | CL13: 0 | CM13: 0 | CN13: 0 | CO13: 0 | CP13: 0 | CQ13: 0 | CR13: 0 | CS13: 0 | CT13: 0 | CU13: 0 | CV13: 0 | CW13: 0 | CX13: 0 | CY13: 0 | CZ13: 0 | DA13: 0 | DB13: 0 | DC13: 0 | DD13: 0 | DE13: 0 | DF13: 0 | DG13: 0 | DH13: 0 | DI13: 0 | DJ13: 0 | DK13: 0 | DL13: 0 | DM13: 0 | DN13: 0 | DO13: 0 | DP13: 0 | DQ13: 0 | DR13: 0 | DS13: 0 | DT13: 0 | DU13: 0 | DV13: 0 | DW13: 0 | DX13: 0 | DY13: 0 | DZ13: 0 | EA13: 0 | EB13: 0 | EC13: 0 | ED13: 0 | EE13: 0 | EF13: 0 | EG13: 0 | EH13: 0 | EI13: 0 | EJ13: =(EJ4=$E$13)*1 -> 0 | EK13: 0 | EL13: 0 | EM13: 0 | EN13: 0 | EO13: 0 | EP13: 0 | EQ13: 0 | ER13: 0 | ES13: 0 | ET13: 0 | EU13: 0 | EV13: 0 | EW13: 0 | EX13: 0 | EY13: 0 | EZ13: 0 | FA13: 0 | FB13: 0 | FC13: 0 | FD13: 0 | FE13: 0 | FF13: 0 | FG13: 0 | FH13: 0 | FI13: 0 | FJ13: 0 | FK13: 0 | FL13: 0 | FM13: 0 | FN13: 0 | FO13: 0 | FP13: 0 | FQ13: 0 | FR13: 0 | FS13: 0 | FT13: 0 | FU13: 0 | FV13: 0 | FW13: 0 | FX13: 0 | FY13: 0 | FZ13: 0 | GA13: 0 | GB13: 0 | GC13: 0 | GD13: 0 | GE13: 0 | GF13: 0 | GG13: 0 | GH13: 0 | GI13: 0 | GJ13: 0 | GK13: 0 | GL13: 0 | GM13: 0 | GN13: 0 | GO13: 0 | GP13: 0 | GQ13: 0 | GR13: 0 | GS13: 0 | GT13: 0 | GU13: 0 | GV13: =(GV4=$E$13)*1 -> 0 | GW13: 0 | GX13: 0 | GY13: 0 | GZ13: 0 | HA13: 0 | HB13: 0 | HC13: 0 | HD13: 0 | HE13: 0 | HF13: 0 | HG13: 0 | HH13: 0 | HI13: 0 | HJ13: 0 | HK13: 0 | HL13: 0 | HM13: 0 | HN13: 0 | HO13: 0 | HP13: 0 | HQ13: 0 | HR13: 0 | HS13: 0 | HT13: 0 | HU13: 0 | HV13: 0 | HW13: 0 | HX13: 0 | HY13: 0 | HZ13: 0 | IA13: 0 | IB13: 0 | IC13: 0 | ID13: 0 | IE13: 0 | IF13: 0 | IG13: 0 | IH13: 0 | II13: 0 | IJ13: 0 | IK13: 0 | IL13: 0 | IM13: 0 | IN13: 0 | IO13: 0 | IP13: 0 | IQ13: 0 | IR13: 0 | IS13: 0 | IT13: 0 | IU13: 0 | IV13: 0 | IW13: 0 | IX13: 0 | IY13: 0 | IZ13: 0 | JA13: 0 | JB13: 0 | JC13: 0 | JD13: 0 | JE13: 0 | JF13: 0 | JG13: 0 | JH13: =(JH4=$E$13)*1 -> 0 | JI13: 0 | JJ13: 0 | JK13: 0 | JL13: 0 | JM13: 0 | JN13: 0 | JO13: 0 | JP13: 0 | JQ13: 0 | JR13: 0 | JS13: 0 | JT13: 0 | JU13: 0 | JV13: 0 | JW13: 0 | JX13: 0 | JY13: 0 | JZ13: 0 | KA13: 0 | KB13: 0 | KC13: 0 | KD13: 0 | KE13: 0 | KF13: 0 | KG13: 0 | KH13: 0 | KI13: 0 | KJ13: 0 | KK13: 0 | KL13: 0 | KM13: 0 | KN13: 0 | KO13: 0 | KP13: 0 | KQ13: 0 | KR13: 0 | KS13: 0 | KT13: 0 | KU13: 0 | KV13: 0 | KW13: 0 | KX13: 0 | KY13: 0 | KZ13: 0 | LA13: 0 | LB13: 0 | LC13: 0 | LD13: 0 | LE13: 0 | LF13: 0 | LG13: 0 | LH13: 0 | LI13: 0 | LJ13: 0 | LK13: 0 | LL13: 0 | LM13: 0 | LN13: 0 | LO13: 0 | LP13: 0 | LQ13: 0 | LR13: 0 | LS13: 0 | LT13: =(LT4=$E$13)*1 -> 0 | LU13: 0 | LV13: 0 | LW13: 0 | LX13: 0 | LY13: 0 | LZ13: 0 | MA13: 0 | MB13: 0 | MC13: 0 | MD13: 0 | ME13: 0 | MF13: 0 | MG13: 0 | MH13: 0 | MI13: 0 | MJ13: 0 | MK13: 0 | ML13: 0 | MM13: 0 | MN13: 0 | MO13: 0 | MP13: 0 | MQ13: 0 | MR13: 0 | MS13: 0 | MT13: 0 | MU13: 0 | MV13: 0 | MW13: 0 | MX13: 0 | MY13: 0 | MZ13: 0 | NA13: 0 | NB13: 0 | NC13: 0 | ND13: 0 | NE13: 0 | NF13: 0 | NG13: 0 | NH13: 0 | NI13: 0 | NJ13: 0 | NK13: 0 | NL13: 0 | NM13: 0 | NN13: 0 | NO13: 0 | NP13: 0 | NQ13: 0 | NR13: 0 | NS13: 0 | NT13: 0 | NU13: 0 | NV13: 0 | NW13: 0 | NX13: 0 | NY13: 0 | NZ13: 0 | OA13: 0 | OB13: 0 | OC13: 0 | OD13: 0 | OE13: 0 | OF13: =(OF4=$E$13)*1 -> 0 | OG13: 0 | OH13: 0 | OI13: 0 | OJ13: 0 | OK13: 0 | OL13: 0 | OM13: 0 | ON13: 0 | OO13: 0 | OP13: 0 | OQ13: 0 | OR13: 0 | OS13: 0 | OT13: 0 | OU13: 0 | OV13: 0 | OW13: 0 | OX13: 0 | OY13: 0 | OZ13: 0 | PA13: 0 | PB13: 0 | PC13: 0 | PD13: 0 | PE13: 0 | PF13: 0 | PG13: 0 | PH13: 0 | PI13: 0 | PJ13: 0 | PK13: 0 | PL13: 0 | PM13: 0 | PN13: 0 | PO13: 0 | PP13: 0 | PQ13: 0 | PR13: 0 | PS13: 0 | PT13: 0 | PU13: 0 | PV13: 0 | PW13: 0 | PX13: 0 | PY13: 0 | PZ13: 0 | QA13: 0 | QB13: 0 | QC13: 0 | QD13: 0 | QE13: 0 | QF13: 0 | QG13: 0 | QH13: 0 | QI13: 0 | QJ13: 0 | QK13: 0 | QL13: 0 | QM13: 0 | QN13: 0 | QO13: 0 | QP13: 0 | QQ13: 0 | QR13: =(QR4=$E$13)*1 -> 0 | QS13: 0 | QT13: 0 | QU13: 0 | QV13: 0 | QW13: 0 | QX13: 0 | QY13: 0 | QZ13: 0 | RA13: 0 | RB13: 0 | RC13: 0 | RD13: 0 | RE13: 0 | RF13: 0 | RG13: 0 | RH13: 0 | RI13: 0 | RJ13: 0 | RK13: 0 | RL13: 0 | RM13: 0 | RN13: 0 | RO13: 0 | RP13: 0 | RQ13: 0 | RR13: 0 | RS13: 0 | RT13: 0 | RU13: 0 | RV13: 0 | RW13: 0 | RX13: 0 | RY13: 0 | RZ13: 0 | SA13: 0 | SB13: 0 | SC13: 0 | SD13: 0 | SE13: 0 | SF13: 0 | SG13: 0 | SH13: 0 | SI13: 0 | SJ13: 0 | SK13: 0 | SL13: 0 | SM13: 0 | SN13: 0 | SO13: 0 | SP13: 0 | SQ13: 0 | SR13: 0 | SS13: 0 | ST13: 0 | SU13: 0 | SV13: 0 | SW13: 0 | SX13: 0 | SY13: 0 | SZ13: 0 | TA13: 0 | TB13: 0 | TC13: 0 | TD13: =(TD4=$E$13)*1 -> 0 | TE13: 0 | TF13: 0 | TG13: 0 | TH13: 0 | TI13: 0 | TJ13: 0 | TK13: 0 | TL13: 0 | TM13: 0 | TN13: 0 | TO13: 0 | TP13: 0 | TQ13: 0 | TR13: 0 | TS13: 0 | TT13: 0 | TU13: 0 | TV13: 0 | TW13: 0 | TX13: 0 | TY13: 0 | TZ13: 0 | UA13: 0 | UB13: 0 | UC13: 0 | UD13: 0 | UE13: 0 | UF13: 0 | UG13: 0 | UH13: 0 | UI13: 0 | UJ13: 0 | UK13: 0 | UL13: 0 | UM13: 0 | UN13: 0 | UO13: 0 | UP13: 0 | UQ13: 0 | UR13: 0 | US13: 0 | UT13: 0 | UU13: 0 | UV13: 0 | UW13: 0 | UX13: 0 | UY13: 0 | UZ13: 0 | VA13: 0 | VB13: 0 | VC13: 0 | VD13: 0 | VE13: 0 | VF13: 0 | VG13: 0 | VH13: 0 | VI13: 0 | VJ13: 0 | VK13: 0 | VL13: 0 | VM13: 0 | VN13: 0 | VO13: 0 | VP13: =(VP4=$E$13)*1 -> 0 | VQ13: 0 | VR13: 0 | VS13: 0 | VT13: 0 | VU13: 0 | VV13: 0 | VW13: 0 | VX13: 0 | VY13: 0 | VZ13: 0 | WA13: 0 | WB13: 0 | WC13: 0 | WD13: 0 | WE13: 0 | WF13: 0 | WG13: 0 | WH13: 0 | WI13: 0 | WJ13: 0 | WK13: 0 | WL13: 0 | WM13: 0 | WN13: 0 | WO13: 0 | WP13: 0 | WQ13: 0 | WR13: 0 | WS13: 0 | WT13: 0 | WU13: 0 | WV13: 0 | WW13: 0 | WX13: 0 | WY13: 0 | WZ13: 0 | XA13: 0 | XB13: 0 | XC13: 0 | XD13: 0 | XE13: 0 | XF13: 0 | XG13: 0 | XH13: 0 | XI13: 0 | XJ13: 0 | XK13: 0 | XL13: 0 | XM13: 0 | XN13: 0 | XO13: 0 | XP13: 0 | XQ13: 0 | XR13: 0 | XS13: 0 | XT13: 0 | XU13: 0 | XV13: 0 | XW13: 0 | XX13: 0 | XY13: 0 | XZ13: 0 | YA13: 0 | YB13: =(YB4=$E$13)*1 -> 0 | YC13: 0 | YD13: 0 | YE13: 0 | YF13: 0 | YG13: 0 | YH13: 0 | YI13: 0 | YJ13: 0 | YK13: 0 | YL13: 0 | YM13: 0 | YN13: 0 | YO13: 0 | YP13: 0 | YQ13: 0 | YR13: 0 | YS13: 0 | YT13: 0 | YU13: 0 | YV13: 0 | YW13: 0 | YX13: 0 | YY13: 0 | YZ13: 0 | ZA13: 0 | ZB13: 0 | ZC13: 0 | ZD13: 0 | ZE13: 0 | ZF13: 0 | ZG13: 0 | ZH13: 0 | ZI13: 0 | ZJ13: 0 | ZK13: 0 | ZL13: 0 | ZM13: 0 | ZN13: 0 | ZO13: 0 | ZP13: 0 | ZQ13: 0 | ZR13: 0 | ZS13: 0 | ZT13: 0 | ZU13: 0 | ZV13: 0 | ZW13: 0 | ZX13: 0 | ZY13: 0 | ZZ13: 0 | AAA13: 0 | AAB13: 0 | AAC13: 0 | AAD13: 0 | AAE13: 0 | AAF13: 0 | AAG13: 0 | AAH13: 0 | AAI13: 0 | AAJ13: 0 | AAK13: 0 | AAL13: 0 | AAM13: 0 | AAN13: =(AAN4=$E$13)*1 -> 0 | AAO13: 0 | AAP13: 0 | AAQ13: 0 | AAR13: 0 | AAS13: 0 | AAT13: 0 | AAU13: 0 | AAV13: 0 | AAW13: 0 | AAX13: 0 | AAY13: 0 | AAZ13: 0 | ABA13: 0 | ABB13: 0 | ABC13: 0 | ABD13: 0 | ABE13: 0 | ABF13: 0 | ABG13: 0 | ABH13: 0 | ABI13: 0 | ABJ13: 0 | ABK13: 0 | ABL13: 0 | ABM13: 0 | ABN13: 0 | ABO13: 0 | ABP13: 0 | ABQ13: 0 | ABR13: 0 | ABS13: 0 | ABT13: 0 | ABU13: 0 | ABV13: 0 | ABW13: 0 | ABX13: 0 | ABY13: 0 | ABZ13: 0 | ACA13: 0 | ACB13: 0 | ACC13: 0 | ACD13: 0 | ACE13: 0 | ACF13: 0 | ACG13: 0 | ACH13: 0 | ACI13: 0 | ACJ13: 0 | ACK13: 0 | ACL13: 0 | ACM13: 0 | ACN13: 0 | ACO13: 0 | ACP13: 0 | ACQ13: 0 | ACR13: 0 | ACS13: 0 | ACT13: 0 | ACU13: 0 | ACV13: 0 | ACW13: 0 | ACX13: 0 | ACY13: 0 | ACZ13: =(ACZ4=$E$13)*1 -> 0 | ADA13: 0 | ADB13: 0 | ADC13: 0 | ADD13: 0 | ADE13: 0 | ADF13: 0 | ADG13: 0 | ADH13: 0 | ADI13: 0 | ADJ13: 0 | ADK13: 0 | ADL13: 0 | ADM13: 0 | ADN13: 0 | ADO13: 0 | ADP13: 0 | ADQ13: 0 | ADR13: 0 | ADS13: 0 | ADT13: 0 | ADU13: 0 | ADV13: 0 | ADW13: 0 | ADX13: 0 | ADY13: 0 | ADZ13: 0 | AEA13: 0 | AEB13: 0 | AEC13: 0 | AED13: 0 | AEE13: 0
D15: Key Flag - IF pre cod -1, COD, Last Monthly Flag | J15: =IF(K6,L13,K12) | L15: =IF(K6,L13,K12) -> 0 | M15: 0 | N15: 0 | O15: 0 | P15: 0 | Q15: 0 | R15: 0 | S15: 0 | T15: 0 | U15: 0 | V15: 0 | W15: 1 | X15: 0 | Y15: 0 | Z15: 0 | AA15: 0 | AB15: 0 | AC15: 1 | AD15: 0 | AE15: 0 | AF15: 0 | AG15: 0 | AH15: 0 | AI15: 1 | AJ15: 0 | AK15: 0 | AL15: 0 | AM15: 0 | AN15: 0 | AO15: 1 | AP15: 0 | AQ15: 0 | AR15: 0 | AS15: 0 | AT15: 0 | AU15: 1 | AV15: 0 | AW15: 0 | AX15: 0 | AY15: 0 | AZ15: 0 | BA15: 1 | BB15: 0 | BC15: 0 | BD15: 0 | BE15: 0 | BF15: 0 | BG15: 1 | BH15: 0 | BI15: 0 | BJ15: 0 | BK15: 0 | BL15: 0 | BM15: 1 | BN15: 0 | BO15: 0 | BP15: 0 | BQ15: 0 | BR15: 0 | BS15: 1 | BT15: 0 | BU15: 0 | BV15: 0 | BW15: 0 | BX15: =IF(BW6,BX13,BW12) -> 0 | BY15: 1 | BZ15: 0 | CA15: 0 | CB15: 0 | CC15: 0 | CD15: 0 | CE15: 1 | CF15: 0 | CG15: 0 | CH15: 0 | CI15: 0 | CJ15: 0 | CK15: 1 | CL15: 0 | CM15: 0 | CN15: 0 | CO15: 0 | CP15: 0 | CQ15: 1 | CR15: 0 | CS15: 0 | CT15: 0 | CU15: 0 | CV15: 0 | CW15: 1 | CX15: 0 | CY15: 0 | CZ15: 0 | DA15: 0 | DB15: 0 | DC15: 1 | DD15: 0 | DE15: 0 | DF15: 0 | DG15: 0 | DH15: 0 | DI15: 1 | DJ15: 0 | DK15: 0 | DL15: 0 | DM15: 0 | DN15: 0 | DO15: 1 | DP15: 0 | DQ15: 0 | DR15: 0 | DS15: 0 | DT15: 0 | DU15: 1 | DV15: 0 | DW15: 0 | DX15: 0 | DY15: 0 | DZ15: 0 | EA15: 1 | EB15: 0 | EC15: 0 | ED15: 0 | EE15: 0 | EF15: 0 | EG15: 1 | EH15: 0 | EI15: 0 | EJ15: =IF(EI6,EJ13,EI12) -> 0 | EK15: 0 | EL15: 0 | EM15: 1 | EN15: 0 | EO15: 0 | EP15: 0 | EQ15: 0 | ER15: 0 | ES15: 1 | ET15: 0 | EU15: 0 | EV15: 0 | EW15: 0 | EX15: 0 | EY15: 1 | EZ15: 0 | FA15: 0 | FB15: 0 | FC15: 0 | FD15: 0 | FE15: 1 | FF15: 0 | FG15: 0 | FH15: 0 | FI15: 0 | FJ15: 0 | FK15: 1 | FL15: 0 | FM15: 0 | FN15: 0 | FO15: 0 | FP15: 0 | FQ15: 1 | FR15: 0 | FS15: 0 | FT15: 0 | FU15: 0 | FV15: 0 | FW15: 1 | FX15: 0 | FY15: 0 | FZ15: 0 | GA15: 0 | GB15: 0 | GC15: 1 | GD15: 0 | GE15: 0 | GF15: 0 | GG15: 0 | GH15: 0 | GI15: 1 | GJ15: 0 | GK15: 0 | GL15: 0 | GM15: 0 | GN15: 0 | GO15: 1 | GP15: 0 | GQ15: 0 | GR15: 0 | GS15: 0 | GT15: 0 | GU15: 1 | GV15: =IF(GU6,GV13,GU12) -> 0 | GW15: 0 | GX15: 0 | GY15: 0 | GZ15: 0 | HA15: 1 | HB15: 0 | HC15: 0 | HD15: 0 | HE15: 0 | HF15: 0 | HG15: 1 | HH15: 0 | HI15: 0 | HJ15: 0 | HK15: 0 | HL15: 0 | HM15: 1 | HN15: 0 | HO15: 0 | HP15: 0 | HQ15: 0 | HR15: 0 | HS15: 1 | HT15: 0 | HU15: 0 | HV15: 0 | HW15: 0 | HX15: 0 | HY15: 1 | HZ15: 0 | IA15: 0 | IB15: 0 | IC15: 0 | ID15: 0 | IE15: 1 | IF15: 0 | IG15: 0 | IH15: 0 | II15: 0 | IJ15: 0 | IK15: 1 | IL15: 0 | IM15: 0 | IN15: 0 | IO15: 0 | IP15: 0 | IQ15: 1 | IR15: 0 | IS15: 0 | IT15: 0 | IU15: 0 | IV15: 0 | IW15: 1 | IX15: 0 | IY15: 0 | IZ15: 0 | JA15: 0 | JB15: 0 | JC15: 1 | JD15: 0 | JE15: 0 | JF15: 0 | JG15: 0 | JH15: =IF(JG6,JH13,JG12) -> 0 | JI15: 1 | JJ15: 0 | JK15: 0 | JL15: 0 | JM15: 0 | JN15: 0 | JO15: 1 | JP15: 0 | JQ15: 0 | JR15: 0 | JS15: 0 | JT15: 0 | JU15: 1 | JV15: 0 | JW15: 0 | JX15: 0 | JY15: 0 | JZ15: 0 | KA15: 1 | KB15: 0 | KC15: 0 | KD15: 0 | KE15: 0 | KF15: 0 | KG15: 1 | KH15: 0 | KI15: 0 | KJ15: 0 | KK15: 0 | KL15: 0 | KM15: 1 | KN15: 0 | KO15: 0 | KP15: 0 | KQ15: 0 | KR15: 0 | KS15: 1 | KT15: 0 | KU15: 0 | KV15: 0 | KW15: 0 | KX15: 0 | KY15: 1 | KZ15: 0 | LA15: 0 | LB15: 0 | LC15: 0 | LD15: 0 | LE15: 1 | LF15: 0 | LG15: 0 | LH15: 0 | LI15: 0 | LJ15: 0 | LK15: 1 | LL15: 0 | LM15: 0 | LN15: 0 | LO15: 0 | LP15: 0 | LQ15: 1 | LR15: 0 | LS15: 0 | LT15: =IF(LS6,LT13,LS12) -> 0 | LU15: 0 | LV15: 0 | LW15: 1 | LX15: 0 | LY15: 0 | LZ15: 0 | MA15: 0 | MB15: 0 | MC15: 1 | MD15: 0 | ME15: 0 | MF15: 0 | MG15: 0 | MH15: 0 | MI15: 1 | MJ15: 0 | MK15: 0 | ML15: 0 | MM15: 0 | MN15: 0 | MO15: 1 | MP15: 0 | MQ15: 0 | MR15: 0 | MS15: 0 | MT15: 0 | MU15: 1 | MV15: 0 | MW15: 0 | MX15: 0 | MY15: 0 | MZ15: 0 | NA15: 1 | NB15: 0 | NC15: 0 | ND15: 0 | NE15: 0 | NF15: 0 | NG15: 1 | NH15: 0 | NI15: 0 | NJ15: 0 | NK15: 0 | NL15: 0 | NM15: 1 | NN15: 0 | NO15: 0 | NP15: 0 | NQ15: 0 | NR15: 0 | NS15: 1 | NT15: 0 | NU15: 0 | NV15: 0 | NW15: 0 | NX15: 0 | NY15: 1 | NZ15: 0 | OA15: 0 | OB15: 0 | OC15: 0 | OD15: 0 | OE15: 1 | OF15: =IF(OE6,OF13,OE12) -> 0 | OG15: 0 | OH15: 0 | OI15: 0 | OJ15: 0 | OK15: 1 | OL15: 0 | OM15: 0 | ON15: 0 | OO15: 0 | OP15: 0 | OQ15: 1 | OR15: 0 | OS15: 0 | OT15: 0 | OU15: 0 | OV15: 0 | OW15: 1 | OX15: 0 | OY15: 0 | OZ15: 0 | PA15: 0 | PB15: 0 | PC15: 1 | PD15: 0 | PE15: 0 | PF15: 0 | PG15: 0 | PH15: 0 | PI15: 1 | PJ15: 0 | PK15: 0 | PL15: 0 | PM15: 0 | PN15: 0 | PO15: 1 | PP15: 0 | PQ15: 0 | PR15: 0 | PS15: 0 | PT15: 0 | PU15: 1 | PV15: 0 | PW15: 0 | PX15: 0 | PY15: 0 | PZ15: 0 | QA15: 1 | QB15: 0 | QC15: 0 | QD15: 0 | QE15: 0 | QF15: 0 | QG15: 0 | QH15: 0 | QI15: 0 | QJ15: 0 | QK15: 0 | QL15: 0 | QM15: 0 | QN15: 0 | QO15: 0 | QP15: 0 | QQ15: 0 | QR15: =IF(QQ6,QR13,QQ12) -> 0 | QS15: 0 | QT15: 0 | QU15: 0 | QV15: 0 | QW15: 0 | QX15: 0 | QY15: 0 | QZ15: 0 | RA15: 0 | RB15: 0 | RC15: 0 | RD15: 0 | RE15: 0 | RF15: 0 | RG15: 0 | RH15: 0 | RI15: 0 | RJ15: 0 | RK15: 0 | RL15: 0 | RM15: 0 | RN15: 0 | RO15: 0 | RP15: 0 | RQ15: 0 | RR15: 0 | RS15: 0 | RT15: 0 | RU15: 0 | RV15: 0 | RW15: 0 | RX15: 0 | RY15: 0 | RZ15: 0 | SA15: 0 | SB15: 0 | SC15: 0 | SD15: 0 | SE15: 0 | SF15: 0 | SG15: 0 | SH15: 0 | SI15: 0 | SJ15: 0 | SK15: 0 | SL15: 0 | SM15: 0 | SN15: 0 | SO15: 0 | SP15: 0 | SQ15: 0 | SR15: 0 | SS15: 0 | ST15: 0 | SU15: 0 | SV15: 0 | SW15: 0 | SX15: 0 | SY15: 0 | SZ15: 0 | TA15: 0 | TB15: 0 | TC15: 0 | TD15: =IF(TC6,TD13,TC12) -> 0 | TE15: 0 | TF15: 0 | TG15: 0 | TH15: 0 | TI15: 0 | TJ15: 0 | TK15: 0 | TL15: 0 | TM15: 0 | TN15: 0 | TO15: 0 | TP15: 0 | TQ15: 0 | TR15: 0 | TS15: 0 | TT15: 0 | TU15: 0 | TV15: 0 | TW15: 0 | TX15: 0 | TY15: 0 | TZ15: 0 | UA15: 0 | UB15: 0 | UC15: 0 | UD15: 0 | UE15: 0 | UF15: 0 | UG15: 0 | UH15: 0 | UI15: 0 | UJ15: 0 | UK15: 0 | UL15: 0 | UM15: 0 | UN15: 0 | UO15: 0 | UP15: 0 | UQ15: 0 | UR15: 0 | US15: 0 | UT15: 0 | UU15: 0 | UV15: 0 | UW15: 0 | UX15: 0 | UY15: 0 | UZ15: 0 | VA15: 0 | VB15: 0 | VC15: 0 | VD15: 0 | VE15: 0 | VF15: 0 | VG15: 0 | VH15: 0 | VI15: 0 | VJ15: 0 | VK15: 0 | VL15: 0 | VM15: 0 | VN15: 0 | VO15: 0 | VP15: =IF(VO6,VP13,VO12) -> 0 | VQ15: 0 | VR15: 0 | VS15: 0 | VT15: 0 | VU15: 0 | VV15: 0 | VW15: 0 | VX15: 0 | VY15: 0 | VZ15: 0 | WA15: 0 | WB15: 0 | WC15: 0 | WD15: 0 | WE15: 0 | WF15: 0 | WG15: 0 | WH15: 0 | WI15: 0 | WJ15: 0 | WK15: 0 | WL15: 0 | WM15: 0 | WN15: 0 | WO15: 0 | WP15: 0 | WQ15: 0 | WR15: 0 | WS15: 0 | WT15: 0 | WU15: 0 | WV15: 0 | WW15: 0 | WX15: 0 | WY15: 0 | WZ15: 0 | XA15: 0 | XB15: 0 | XC15: 0 | XD15: 0 | XE15: 0 | XF15: 0 | XG15: 0 | XH15: 0 | XI15: 0 | XJ15: 0 | XK15: 0 | XL15: 0 | XM15: 0 | XN15: 0 | XO15: 0 | XP15: 0 | XQ15: 0 | XR15: 0 | XS15: 0 | XT15: 0 | XU15: 0 | XV15: 0 | XW15: 0 | XX15: 0 | XY15: 0 | XZ15: 0 | YA15: 0 | YB15: =IF(YA6,YB13,YA12) -> 0 | YC15: 0 | YD15: 0 | YE15: 0 | YF15: 0 | YG15: 0 | YH15: 0 | YI15: 0 | YJ15: 0 | YK15: 0 | YL15: 0 | YM15: 0 | YN15: 0 | YO15: 0 | YP15: 0 | YQ15: 0 | YR15: 0 | YS15: 0 | YT15: 0 | YU15: 0 | YV15: 0 | YW15: 0 | YX15: 0 | YY15: 0 | YZ15: 0 | ZA15: 0 | ZB15: 0 | ZC15: 0 | ZD15: 0 | ZE15: 0 | ZF15: 0 | ZG15: 0 | ZH15: 0 | ZI15: 0 | ZJ15: 0 | ZK15: 0 | ZL15: 0 | ZM15: 0 | ZN15: 0 | ZO15: 0 | ZP15: 0 | ZQ15: 0 | ZR15: 0 | ZS15: 0 | ZT15: 0 | ZU15: 0 | ZV15: 0 | ZW15: 0 | ZX15: 0 | ZY15: 0 | ZZ15: 0 | AAA15: 0 | AAB15: 0 | AAC15: 0 | AAD15: 0 | AAE15: 0 | AAF15: 0 | AAG15: 0 | AAH15: 0 | AAI15: 0 | AAJ15: 0 | AAK15: 0 | AAL15: 0 | AAM15: 0 | AAN15: =IF(AAM6,AAN13,AAM12) -> 0 | AAO15: 0 | AAP15: 0 | AAQ15: 0 | AAR15: 0 | AAS15: 0 | AAT15: 0 | AAU15: 0 | AAV15: 0 | AAW15: 0 | AAX15: 0 | AAY15: 0 | AAZ15: 0 | ABA15: 0 | ABB15: 0 | ABC15: 0 | ABD15: 0 | ABE15: 0 | ABF15: 0 | ABG15: 0 | ABH15: 0 | ABI15: 0 | ABJ15: 0 | ABK15: 0 | ABL15: 0 | ABM15: 0 | ABN15: 0 | ABO15: 0 | ABP15: 0 | ABQ15: 0 | ABR15: 0 | ABS15: 0 | ABT15: 0 | ABU15: 0 | ABV15: 0 | ABW15: 0 | ABX15: 0 | ABY15: 0 | ABZ15: 0 | ACA15: 0 | ACB15: 0 | ACC15: 0 | ACD15: 0 | ACE15: 0 | ACF15: 0 | ACG15: 0 | ACH15: 0 | ACI15: 0 | ACJ15: 0 | ACK15: 0 | ACL15: 0 | ACM15: 0 | ACN15: 0 | ACO15: 0 | ACP15: 0 | ACQ15: 0 | ACR15: 0 | ACS15: 0 | ACT15: 0 | ACU15: 0 | ACV15: 0 | ACW15: 0 | ACX15: 0 | ACY15: 0 | ACZ15: =IF(ACY6,ACZ13,ACY12) -> 0 | ADA15: 0 | ADB15: 0 | ADC15: 0 | ADD15: 0 | ADE15: 0 | ADF15: 0 | ADG15: 0 | ADH15: 0 | ADI15: 0 | ADJ15: 0 | ADK15: 0 | ADL15: 0 | ADM15: 0 | ADN15: 0 | ADO15: 0 | ADP15: 0 | ADQ15: 0 | ADR15: 0 | ADS15: 0 | ADT15: 0 | ADU15: 0 | ADV15: 0 | ADW15: 0 | ADX15: 0 | ADY15: 0 | ADZ15: 0 | AEA15: 0 | AEB15: 0 | AEC15: 0 | AED15: 0 | AEE15: 0
D16: Starting Date (Day b/4 COD) | E16: =EDATE(E6,0)-1 -> 2023-11-30 | J16: =K17 | L16: =K17 -> 2023-11-30 | M16: =L17 -> 2023-11-30 | N16: 2023-11-30 | O16: 2023-11-30 | P16: 2023-11-30 | Q16: 2023-11-30 | R16: 2023-11-30 | S16: 2023-11-30 | T16: 2023-11-30 | U16: 2023-11-30 | V16: 2023-11-30 | W16: 2023-11-30 | X16: 2024-05-31 | Y16: 2024-05-31 | Z16: 2024-05-31 | AA16: 2024-05-31 | AB16: 2024-05-31 | AC16: 2024-05-31 | AD16: 2024-11-30 | AE16: 2024-11-30 | AF16: 2024-11-30 | AG16: 2024-11-30 | AH16: 2024-11-30 | AI16: 2024-11-30 | AJ16: 2025-05-31 | AK16: 2025-05-31 | AL16: 2025-05-31 | AM16: 2025-05-31 | AN16: 2025-05-31 | AO16: 2025-05-31 | AP16: 2025-11-30 | AQ16: 2025-11-30 | AR16: 2025-11-30 | AS16: 2025-11-30 | AT16: 2025-11-30 | AU16: 2025-11-30 | AV16: 2026-05-31 | AW16: 2026-05-31 | AX16: 2026-05-31 | AY16: 2026-05-31 | AZ16: 2026-05-31 | BA16: 2026-05-31 | BB16: 2026-11-30 | BC16: 2026-11-30 | BD16: 2026-11-30 | BE16: 2026-11-30 | BF16: 2026-11-30 | BG16: 2026-11-30 | BH16: 2027-05-31 | BI16: 2027-05-31 | BJ16: 2027-05-31 | BK16: 2027-05-31 | BL16: 2027-05-31 | BM16: 2027-05-31 | BN16: 2027-11-30 | BO16: 2027-11-30 | BP16: 2027-11-30 | BQ16: 2027-11-30 | BR16: 2027-11-30 | BS16: 2027-11-30 | BT16: 2028-05-31 | BU16: 2028-05-31 | BV16: 2028-05-31 | BW16: 2028-05-31 | BX16: 2028-05-31 | BY16: =BX17 -> 2028-05-31 | BZ16: 2028-11-30 | CA16: 2028-11-30 | CB16: 2028-11-30 | CC16: 2028-11-30 | CD16: 2028-11-30 | CE16: 2028-11-30 | CF16: 2029-05-31 | CG16: 2029-05-31 | CH16: 2029-05-31 | CI16: 2029-05-31 | CJ16: 2029-05-31 | CK16: 2029-05-31 | CL16: 2029-11-30 | CM16: 2029-11-30 | CN16: 2029-11-30 | CO16: 2029-11-30 | CP16: 2029-11-30 | CQ16: 2029-11-30 | CR16: 2030-05-31 | CS16: 2030-05-31 | CT16: 2030-05-31 | CU16: 2030-05-31 | CV16: 2030-05-31 | CW16: 2030-05-31 | CX16: 2030-11-30 | CY16: 2030-11-30 | CZ16: 2030-11-30 | DA16: 2030-11-30 | DB16: 2030-11-30 | DC16: 2030-11-30 | DD16: 2031-05-31 | DE16: 2031-05-31 | DF16: 2031-05-31 | DG16: 2031-05-31 | DH16: 2031-05-31 | DI16: 2031-05-31 | DJ16: 2031-11-30 | DK16: 2031-11-30 | DL16: 2031-11-30 | DM16: 2031-11-30 | DN16: 2031-11-30 | DO16: 2031-11-30 | DP16: 2032-05-31 | DQ16: 2032-05-31 | DR16: 2032-05-31 | DS16: 2032-05-31 | DT16: 2032-05-31 | DU16: 2032-05-31 | DV16: 2032-11-30 | DW16: 2032-11-30 | DX16: 2032-11-30 | DY16: 2032-11-30 | DZ16: 2032-11-30 | EA16: 2032-11-30 | EB16: 2033-05-31 | EC16: 2033-05-31 | ED16: 2033-05-31 | EE16: 2033-05-31 | EF16: 2033-05-31 | EG16: 2033-05-31 | EH16: 2033-11-30 | EI16: 2033-11-30 | EJ16: 2033-11-30 | EK16: =EJ17 -> 2033-11-30 | EL16: 2033-11-30 | EM16: 2033-11-30 | EN16: 2034-05-31 | EO16: 2034-05-31 | EP16: 2034-05-31 | EQ16: 2034-05-31 | ER16: 2034-05-31 | ES16: 2034-05-31 | ET16: 2034-11-30 | EU16: 2034-11-30 | EV16: 2034-11-30 | EW16: 2034-11-30 | EX16: 2034-11-30 | EY16: 2034-11-30 | EZ16: 2035-05-31 | FA16: 2035-05-31 | FB16: 2035-05-31 | FC16: 2035-05-31 | FD16: 2035-05-31 | FE16: 2035-05-31 | FF16: 2035-11-30 | FG16: 2035-11-30 | FH16: 2035-11-30 | FI16: 2035-11-30 | FJ16: 2035-11-30 | FK16: 2035-11-30 | FL16: 2036-05-31 | FM16: 2036-05-31 | FN16: 2036-05-31 | FO16: 2036-05-31 | FP16: 2036-05-31 | FQ16: 2036-05-31 | FR16: 2036-11-30 | FS16: 2036-11-30 | FT16: 2036-11-30 | FU16: 2036-11-30 | FV16: 2036-11-30 | FW16: 2036-11-30 | FX16: 2037-05-31 | FY16: 2037-05-31 | FZ16: 2037-05-31 | GA16: 2037-05-31 | GB16: 2037-05-31 | GC16: 2037-05-31 | GD16: 2037-11-30 | GE16: 2037-11-30 | GF16: 2037-11-30 | GG16: 2037-11-30 | GH16: 2037-11-30 | GI16: 2037-11-30 | GJ16: 2038-05-31 | GK16: 2038-05-31 | GL16: 2038-05-31 | GM16: 2038-05-31 | GN16: 2038-05-31 | GO16: 2038-05-31 | GP16: 2038-11-30 | GQ16: 2038-11-30 | GR16: 2038-11-30 | GS16: 2038-11-30 | GT16: 2038-11-30 | GU16: 2038-11-30 | GV16: 2039-05-31 | GW16: =GV17 -> 2039-05-31 | GX16: 2039-05-31 | GY16: 2039-05-31 | GZ16: 2039-05-31 | HA16: 2039-05-31 | HB16: 2039-11-30 | HC16: 2039-11-30 | HD16: 2039-11-30 | HE16: 2039-11-30 | HF16: 2039-11-30 | HG16: 2039-11-30 | HH16: 2040-05-31 | HI16: 2040-05-31 | HJ16: 2040-05-31 | HK16: 2040-05-31 | HL16: 2040-05-31 | HM16: 2040-05-31 | HN16: 2040-11-30 | HO16: 2040-11-30 | HP16: 2040-11-30 | HQ16: 2040-11-30 | HR16: 2040-11-30 | HS16: 2040-11-30 | HT16: 2041-05-31 | HU16: 2041-05-31 | HV16: 2041-05-31 | HW16: 2041-05-31 | HX16: 2041-05-31 | HY16: 2041-05-31 | HZ16: 2041-11-30 | IA16: 2041-11-30 | IB16: 2041-11-30 | IC16: 2041-11-30 | ID16: 2041-11-30 | IE16: 2041-11-30 | IF16: 2042-05-31 | IG16: 2042-05-31 | IH16: 2042-05-31 | II16: 2042-05-31 | IJ16: 2042-05-31 | IK16: 2042-05-31 | IL16: 2042-11-30 | IM16: 2042-11-30 | IN16: 2042-11-30 | IO16: 2042-11-30 | IP16: 2042-11-30 | IQ16: 2042-11-30 | IR16: 2043-05-31 | IS16: 2043-05-31 | IT16: 2043-05-31 | IU16: 2043-05-31 | IV16: 2043-05-31 | IW16: 2043-05-31 | IX16: 2043-11-30 | IY16: 2043-11-30 | IZ16: 2043-11-30 | JA16: 2043-11-30 | JB16: 2043-11-30 | JC16: 2043-11-30 | JD16: 2044-05-31 | JE16: 2044-05-31 | JF16: 2044-05-31 | JG16: 2044-05-31 | JH16: 2044-05-31 | JI16: =JH17 -> 2044-05-31 | JJ16: 2044-11-30 | JK16: 2044-11-30 | JL16: 2044-11-30 | JM16: 2044-11-30 | JN16: 2044-11-30 | JO16: 2044-11-30 | JP16: 2045-05-31 | JQ16: 2045-05-31 | JR16: 2045-05-31 | JS16: 2045-05-31 | JT16: 2045-05-31 | JU16: 2045-05-31 | JV16: 2045-11-30 | JW16: 2045-11-30 | JX16: 2045-11-30 | JY16: 2045-11-30 | JZ16: 2045-11-30 | KA16: 2045-11-30 | KB16: 2046-05-31 | KC16: 2046-05-31 | KD16: 2046-05-31 | KE16: 2046-05-31 | KF16: 2046-05-31 | KG16: 2046-05-31 | KH16: 2046-11-30 | KI16: 2046-11-30 | KJ16: 2046-11-30 | KK16: 2046-11-30 | KL16: 2046-11-30 | KM16: 2046-11-30 | KN16: 2047-05-31 | KO16: 2047-05-31 | KP16: 2047-05-31 | KQ16: 2047-05-31 | KR16: 2047-05-31 | KS16: 2047-05-31 | KT16: 2047-11-30 | KU16: 2047-11-30 | KV16: 2047-11-30 | KW16: 2047-11-30 | KX16: 2047-11-30 | KY16: 2047-11-30 | KZ16: 2048-05-31 | LA16: 2048-05-31 | LB16: 2048-05-31 | LC16: 2048-05-31 | LD16: 2048-05-31 | LE16: 2048-05-31 | LF16: 2048-11-30 | LG16: 2048-11-30 | LH16: 2048-11-30 | LI16: 2048-11-30 | LJ16: 2048-11-30 | LK16: 2048-11-30 | LL16: 2049-05-31 | LM16: 2049-05-31 | LN16: 2049-05-31 | LO16: 2049-05-31 | LP16: 2049-05-31 | LQ16: 2049-05-31 | LR16: 2049-11-30 | LS16: 2049-11-30 | LT16: 2049-11-30 | LU16: =LT17 -> 2049-11-30 | LV16: 2049-11-30 | LW16: 2049-11-30 | LX16: 2050-05-31 | LY16: 2050-05-31 | LZ16: 2050-05-31 | MA16: 2050-05-31 | MB16: 2050-05-31 | MC16: 2050-05-31 | MD16: 2050-11-30 | ME16: 2050-11-30 | MF16: 2050-11-30 | MG16: 2050-11-30 | MH16: 2050-11-30 | MI16: 2050-11-30 | MJ16: 2051-05-31 | MK16: 2051-05-31 | ML16: 2051-05-31 | MM16: 2051-05-31 | MN16: 2051-05-31 | MO16: 2051-05-31 | MP16: 2051-11-30 | MQ16: 2051-11-30 | MR16: 2051-11-30 | MS16: 2051-11-30 | MT16: 2051-11-30 | MU16: 2051-11-30 | MV16: 2052-05-31 | MW16: 2052-05-31 | MX16: 2052-05-31 | MY16: 2052-05-31 | MZ16: 2052-05-31 | NA16: 2052-05-31 | NB16: 2052-11-30 | NC16: 2052-11-30 | ND16: 2052-11-30 | NE16: 2052-11-30 | NF16: 2052-11-30 | NG16: 2052-11-30 | NH16: 2053-05-31 | NI16: 2053-05-31 | NJ16: 2053-05-31 | NK16: 2053-05-31 | NL16: 2053-05-31 | NM16: 2053-05-31 | NN16: 2053-11-30 | NO16: 2053-11-30 | NP16: 2053-11-30 | NQ16: 2053-11-30 | NR16: 2053-11-30 | NS16: 2053-11-30 | NT16: 2054-05-31 | NU16: 2054-05-31 | NV16: 2054-05-31 | NW16: 2054-05-31 | NX16: 2054-05-31 | NY16: 2054-05-31 | NZ16: 2054-11-30 | OA16: 2054-11-30 | OB16: 2054-11-30 | OC16: 2054-11-30 | OD16: 2054-11-30 | OE16: 2054-11-30 | OF16: 2055-05-31 | OG16: =OF17 -> 2055-05-31 | OH16: 2055-05-31 | OI16: 2055-05-31 | OJ16: 2055-05-31 | OK16: 2055-05-31 | OL16: 2055-11-30 | OM16: 2055-11-30 | ON16: 2055-11-30 | OO16: 2055-11-30 | OP16: 2055-11-30 | OQ16: 2055-11-30 | OR16: 2056-05-31 | OS16: 2056-05-31 | OT16: 2056-05-31 | OU16: 2056-05-31 | OV16: 2056-05-31 | OW16: 2056-05-31 | OX16: 2056-11-30 | OY16: 2056-11-30 | OZ16: 2056-11-30 | PA16: 2056-11-30 | PB16: 2056-11-30 | PC16: 2056-11-30 | PD16: 2057-05-31 | PE16: 2057-05-31 | PF16: 2057-05-31 | PG16: 2057-05-31 | PH16: 2057-05-31 | PI16: 2057-05-31 | PJ16: 2057-11-30 | PK16: 2057-11-30 | PL16: 2057-11-30 | PM16: 2057-11-30 | PN16: 2057-11-30 | PO16: 2057-11-30 | PP16: 2058-05-31 | PQ16: 2058-05-31 | PR16: 2058-05-31 | PS16: 2058-05-31 | PT16: 2058-05-31 | PU16: 2058-05-31 | PV16: 2058-11-30 | PW16: 2058-11-30 | PX16: 2058-11-30 | PY16: 2058-11-30 | PZ16: 2058-11-30 | QA16: 2058-11-30 | QB16: 2059-05-31 | QC16: 2059-05-31 | QD16: 2059-05-31 | QE16: 2059-05-31 | QF16: 2059-05-31 | QG16: 2059-05-31 | QH16: 2059-05-31 | QI16: 2059-05-31 | QJ16: 2059-05-31 | QK16: 2059-05-31 | QL16: 2059-05-31 | QM16: 2059-05-31 | QN16: 2059-05-31 | QO16: 2059-05-31 | QP16: 2059-05-31 | QQ16: 2059-05-31 | QR16: 2059-05-31 | QS16: =QR17 -> 2059-05-31 | QT16: 2059-05-31 | QU16: 2059-05-31 | QV16: 2059-05-31 | QW16: 2059-05-31 | QX16: 2059-05-31 | QY16: 2059-05-31 | QZ16: 2059-05-31 | RA16: 2059-05-31 | RB16: 2059-05-31 | RC16: 2059-05-31 | RD16: 2059-05-31 | RE16: 2059-05-31 | RF16: 2059-05-31 | RG16: 2059-05-31 | RH16: 2059-05-31 | RI16: 2059-05-31 | RJ16: 2059-05-31 | RK16: 2059-05-31 | RL16: 2059-05-31 | RM16: 2059-05-31 | RN16: 2059-05-31 | RO16: 2059-05-31 | RP16: 2059-05-31 | RQ16: 2059-05-31 | RR16: 2059-05-31 | RS16: 2059-05-31 | RT16: 2059-05-31 | RU16: 2059-05-31 | RV16: 2059-05-31 | RW16: 2059-05-31 | RX16: 2059-05-31 | RY16: 2059-05-31 | RZ16: 2059-05-31 | SA16: 2059-05-31 | SB16: 2059-05-31 | SC16: 2059-05-31 | SD16: 2059-05-31 | SE16: 2059-05-31 | SF16: 2059-05-31 | SG16: 2059-05-31 | SH16: 2059-05-31 | SI16: 2059-05-31 | SJ16: 2059-05-31 | SK16: 2059-05-31 | SL16: 2059-05-31 | SM16: 2059-05-31 | SN16: 2059-05-31 | SO16: 2059-05-31 | SP16: 2059-05-31 | SQ16: 2059-05-31 | SR16: 2059-05-31 | SS16: 2059-05-31 | ST16: 2059-05-31 | SU16: 2059-05-31 | SV16: 2059-05-31 | SW16: 2059-05-31 | SX16: 2059-05-31 | SY16: 2059-05-31 | SZ16: 2059-05-31 | TA16: 2059-05-31 | TB16: 2059-05-31 | TC16: 2059-05-31 | TD16: 2059-05-31 | TE16: =TD17 -> 2059-05-31 | TF16: 2059-05-31 | TG16: 2059-05-31 | TH16: 2059-05-31 | TI16: 2059-05-31 | TJ16: 2059-05-31 | TK16: 2059-05-31 | TL16: 2059-05-31 | TM16: 2059-05-31 | TN16: 2059-05-31 | TO16: 2059-05-31 | TP16: 2059-05-31 | TQ16: 2059-05-31 | TR16: 2059-05-31 | TS16: 2059-05-31 | TT16: 2059-05-31 | TU16: 2059-05-31 | TV16: 2059-05-31 | TW16: 2059-05-31 | TX16: 2059-05-31 | TY16: 2059-05-31 | TZ16: 2059-05-31 | UA16: 2059-05-31 | UB16: 2059-05-31 | UC16: 2059-05-31 | UD16: 2059-05-31 | UE16: 2059-05-31 | UF16: 2059-05-31 | UG16: 2059-05-31 | UH16: 2059-05-31 | UI16: 2059-05-31 | UJ16: 2059-05-31 | UK16: 2059-05-31 | UL16: 2059-05-31 | UM16: 2059-05-31 | UN16: 2059-05-31 | UO16: 2059-05-31 | UP16: 2059-05-31 | UQ16: 2059-05-31 | UR16: 2059-05-31 | US16: 2059-05-31 | UT16: 2059-05-31 | UU16: 2059-05-31 | UV16: 2059-05-31 | UW16: 2059-05-31 | UX16: 2059-05-31 | UY16: 2059-05-31 | UZ16: 2059-05-31 | VA16: 2059-05-31 | VB16: 2059-05-31 | VC16: 2059-05-31 | VD16: 2059-05-31 | VE16: 2059-05-31 | VF16: 2059-05-31 | VG16: 2059-05-31 | VH16: 2059-05-31 | VI16: 2059-05-31 | VJ16: 2059-05-31 | VK16: 2059-05-31 | VL16: 2059-05-31 | VM16: 2059-05-31 | VN16: 2059-05-31 | VO16: 2059-05-31 | VP16: 2059-05-31 | VQ16: =VP17 -> 2059-05-31 | VR16: 2059-05-31 | VS16: 2059-05-31 | VT16: 2059-05-31 | VU16: 2059-05-31 | VV16: 2059-05-31 | VW16: 2059-05-31 | VX16: 2059-05-31 | VY16: 2059-05-31 | VZ16: 2059-05-31 | WA16: 2059-05-31 | WB16: 2059-05-31 | WC16: 2059-05-31 | WD16: 2059-05-31 | WE16: 2059-05-31 | WF16: 2059-05-31 | WG16: 2059-05-31 | WH16: 2059-05-31 | WI16: 2059-05-31 | WJ16: 2059-05-31 | WK16: 2059-05-31 | WL16: 2059-05-31 | WM16: 2059-05-31 | WN16: 2059-05-31 | WO16: 2059-05-31 | WP16: 2059-05-31 | WQ16: 2059-05-31 | WR16: 2059-05-31 | WS16: 2059-05-31 | WT16: 2059-05-31 | WU16: 2059-05-31 | WV16: 2059-05-31 | WW16: 2059-05-31 | WX16: 2059-05-31 | WY16: 2059-05-31 | WZ16: 2059-05-31 | XA16: 2059-05-31 | XB16: 2059-05-31 | XC16: 2059-05-31 | XD16: 2059-05-31 | XE16: 2059-05-31 | XF16: 2059-05-31 | XG16: 2059-05-31 | XH16: 2059-05-31 | XI16: 2059-05-31 | XJ16: 2059-05-31 | XK16: 2059-05-31 | XL16: 2059-05-31 | XM16: 2059-05-31 | XN16: 2059-05-31 | XO16: 2059-05-31 | XP16: 2059-05-31 | XQ16: 2059-05-31 | XR16: 2059-05-31 | XS16: 2059-05-31 | XT16: 2059-05-31 | XU16: 2059-05-31 | XV16: 2059-05-31 | XW16: 2059-05-31 | XX16: 2059-05-31 | XY16: 2059-05-31 | XZ16: 2059-05-31 | YA16: 2059-05-31 | YB16: 2059-05-31 | YC16: =YB17 -> 2059-05-31 | YD16: 2059-05-31 | YE16: 2059-05-31 | YF16: 2059-05-31 | YG16: 2059-05-31 | YH16: 2059-05-31 | YI16: 2059-05-31 | YJ16: 2059-05-31 | YK16: 2059-05-31 | YL16: 2059-05-31 | YM16: 2059-05-31 | YN16: 2059-05-31 | YO16: 2059-05-31 | YP16: 2059-05-31 | YQ16: 2059-05-31 | YR16: 2059-05-31 | YS16: 2059-05-31 | YT16: 2059-05-31 | YU16: 2059-05-31 | YV16: 2059-05-31 | YW16: 2059-05-31 | YX16: 2059-05-31 | YY16: 2059-05-31 | YZ16: 2059-05-31 | ZA16: 2059-05-31 | ZB16: 2059-05-31 | ZC16: 2059-05-31 | ZD16: 2059-05-31 | ZE16: 2059-05-31 | ZF16: 2059-05-31 | ZG16: 2059-05-31 | ZH16: 2059-05-31 | ZI16: 2059-05-31 | ZJ16: 2059-05-31 | ZK16: 2059-05-31 | ZL16: 2059-05-31 | ZM16: 2059-05-31 | ZN16: 2059-05-31 | ZO16: 2059-05-31 | ZP16: 2059-05-31 | ZQ16: 2059-05-31 | ZR16: 2059-05-31 | ZS16: 2059-05-31 | ZT16: 2059-05-31 | ZU16: 2059-05-31 | ZV16: 2059-05-31 | ZW16: 2059-05-31 | ZX16: 2059-05-31 | ZY16: 2059-05-31 | ZZ16: 2059-05-31 | AAA16: 2059-05-31 | AAB16: 2059-05-31 | AAC16: 2059-05-31 | AAD16: 2059-05-31 | AAE16: 2059-05-31 | AAF16: 2059-05-31 | AAG16: 2059-05-31 | AAH16: 2059-05-31 | AAI16: 2059-05-31 | AAJ16: 2059-05-31 | AAK16: 2059-05-31 | AAL16: 2059-05-31 | AAM16: 2059-05-31 | AAN16: 2059-05-31 | AAO16: =AAN17 -> 2059-05-31 | AAP16: 2059-05-31 | AAQ16: 2059-05-31 | AAR16: 2059-05-31 | AAS16: 2059-05-31 | AAT16: 2059-05-31 | AAU16: 2059-05-31 | AAV16: 2059-05-31 | AAW16: 2059-05-31 | AAX16: 2059-05-31 | AAY16: 2059-05-31 | AAZ16: 2059-05-31 | ABA16: 2059-05-31 | ABB16: 2059-05-31 | ABC16: 2059-05-31 | ABD16: 2059-05-31 | ABE16: 2059-05-31 | ABF16: 2059-05-31 | ABG16: 2059-05-31 | ABH16: 2059-05-31 | ABI16: 2059-05-31 | ABJ16: 2059-05-31 | ABK16: 2059-05-31 | ABL16: 2059-05-31 | ABM16: 2059-05-31 | ABN16: 2059-05-31 | ABO16: 2059-05-31 | ABP16: 2059-05-31 | ABQ16: 2059-05-31 | ABR16: 2059-05-31 | ABS16: 2059-05-31 | ABT16: 2059-05-31 | ABU16: 2059-05-31 | ABV16: 2059-05-31 | ABW16: 2059-05-31 | ABX16: 2059-05-31 | ABY16: 2059-05-31 | ABZ16: 2059-05-31 | ACA16: 2059-05-31 | ACB16: 2059-05-31 | ACC16: 2059-05-31 | ACD16: 2059-05-31 | ACE16: 2059-05-31 | ACF16: 2059-05-31 | ACG16: 2059-05-31 | ACH16: 2059-05-31 | ACI16: 2059-05-31 | ACJ16: 2059-05-31 | ACK16: 2059-05-31 | ACL16: 2059-05-31 | ACM16: 2059-05-31 | ACN16: 2059-05-31 | ACO16: 2059-05-31 | ACP16: 2059-05-31 | ACQ16: 2059-05-31 | ACR16: 2059-05-31 | ACS16: 2059-05-31 | ACT16: 2059-05-31 | ACU16: 2059-05-31 | ACV16: 2059-05-31 | ACW16: 2059-05-31 | ACX16: 2059-05-31 | ACY16: 2059-05-31 | ACZ16: 2059-05-31 | ADA16: =ACZ17 -> 2059-05-31 | ADB16: 2059-05-31 | ADC16: 2059-05-31 | ADD16: 2059-05-31 | ADE16: 2059-05-31 | ADF16: 2059-05-31 | ADG16: 2059-05-31 | ADH16: 2059-05-31 | ADI16: 2059-05-31 | ADJ16: 2059-05-31 | ADK16: 2059-05-31 | ADL16: 2059-05-31 | ADM16: 2059-05-31 | ADN16: 2059-05-31 | ADO16: 2059-05-31 | ADP16: 2059-05-31 | ADQ16: 2059-05-31 | ADR16: 2059-05-31 | ADS16: 2059-05-31 | ADT16: 2059-05-31 | ADU16: 2059-05-31 | ADV16: 2059-05-31 | ADW16: 2059-05-31 | ADX16: 2059-05-31 | ADY16: 2059-05-31 | ADZ16: 2059-05-31 | AEA16: 2059-05-31 | AEB16: 2059-05-31 | AEC16: 2059-05-31 | AED16: 2059-05-31 | AEE16: 2059-05-31
D17: Forward Semi-Annual Date with Same Dates | E17: =E16 -> 2023-11-30 | F17: ='InputC - Operations'!E13 -> 6 | G17: Date | J17: =IF(L15,EOMONTH(L16,$F$17),K17) | K17: =E17 -> 2023-11-30 | L17: =IF(L15,EOMONTH(L16,$F$17),K17) -> 2023-11-30 | M17: =IF(M15,EOMONTH(M16,$F$17),L17) -> 2023-11-30 | N17: =IF(N15,EOMONTH(N16,$F$17),M17) -> 2023-11-30 | O17: =IF(O15,EOMONTH(O16,$F$17),N17) -> 2023-11-30 | P17: =IF(P15,EOMONTH(P16,$F$17),O17) -> 2023-11-30 | Q17: =IF(Q15,EOMONTH(Q16,$F$17),P17) -> 2023-11-30 | R17: =IF(R15,EOMONTH(R16,$F$17),Q17) -> 2023-11-30 | S17: =IF(S15,EOMONTH(S16,$F$17),R17) -> 2023-11-30 | T17: =IF(T15,EOMONTH(T16,$F$17),S17) -> 2023-11-30 | U17: =IF(U15,EOMONTH(U16,$F$17),T17) -> 2023-11-30 | V17: =IF(V15,EOMONTH(V16,$F$17),U17) -> 2023-11-30 | W17: =IF(W15,EOMONTH(W16,$F$17),V17) -> 2024-05-31 | X17: =IF(X15,EOMONTH(X16,$F$17),W17) -> 2024-05-31 | Y17: =IF(Y15,EOMONTH(Y16,$F$17),X17) -> 2024-05-31 | Z17: =IF(Z15,EOMONTH(Z16,$F$17),Y17) -> 2024-05-31 | AA17: =IF(AA15,EOMONTH(AA16,$F$17),Z17) -> 2024-05-31 | AB17: =IF(AB15,EOMONTH(AB16,$F$17),AA17) -> 2024-05-31 | AC17: =IF(AC15,EOMONTH(AC16,$F$17),AB17) -> 2024-11-30 | AD17: =IF(AD15,EOMONTH(AD16,$F$17),AC17) -> 2024-11-30 | AE17: =IF(AE15,EOMONTH(AE16,$F$17),AD17) -> 2024-11-30 | AF17: =IF(AF15,EOMONTH(AF16,$F$17),AE17) -> 2024-11-30 | AG17: =IF(AG15,EOMONTH(AG16,$F$17),AF17) -> 2024-11-30 | AH17: =IF(AH15,EOMONTH(AH16,$F$17),AG17) -> 2024-11-30 | AI17: =IF(AI15,EOMONTH(AI16,$F$17),AH17) -> 2025-05-31 | AJ17: =IF(AJ15,EOMONTH(AJ16,$F$17),AI17) -> 2025-05-31 | AK17: =IF(AK15,EOMONTH(AK16,$F$17),AJ17) -> 2025-05-31 | AL17: =IF(AL15,EOMONTH(AL16,$F$17),AK17) -> 2025-05-31 | AM17: =IF(AM15,EOMONTH(AM16,$F$17),AL17) -> 2025-05-31 | AN17: =IF(AN15,EOMONTH(AN16,$F$17),AM17) -> 2025-05-31 | AO17: =IF(AO15,EOMONTH(AO16,$F$17),AN17) -> 2025-11-30 | AP17: =IF(AP15,EOMONTH(AP16,$F$17),AO17) -> 2025-11-30 | AQ17: =IF(AQ15,EOMONTH(AQ16,$F$17),AP17) -> 2025-11-30 | AR17: =IF(AR15,EOMONTH(AR16,$F$17),AQ17) -> 2025-11-30 | AS17: =IF(AS15,EOMONTH(AS16,$F$17),AR17) -> 2025-11-30 | AT17: =IF(AT15,EOMONTH(AT16,$F$17),AS17) -> 2025-11-30 | AU17: =IF(AU15,EOMONTH(AU16,$F$17),AT17) -> 2026-05-31 | AV17: =IF(AV15,EOMONTH(AV16,$F$17),AU17) -> 2026-05-31 | AW17: =IF(AW15,EOMONTH(AW16,$F$17),AV17) -> 2026-05-31 | AX17: =IF(AX15,EOMONTH(AX16,$F$17),AW17) -> 2026-05-31 | AY17: =IF(AY15,EOMONTH(AY16,$F$17),AX17) -> 2026-05-31 | AZ17: =IF(AZ15,EOMONTH(AZ16,$F$17),AY17) -> 2026-05-31 | BA17: =IF(BA15,EOMONTH(BA16,$F$17),AZ17) -> 2026-11-30 | BB17: =IF(BB15,EOMONTH(BB16,$F$17),BA17) -> 2026-11-30 | BC17: =IF(BC15,EOMONTH(BC16,$F$17),BB17) -> 2026-11-30 | BD17: =IF(BD15,EOMONTH(BD16,$F$17),BC17) -> 2026-11-30 | BE17: =IF(BE15,EOMONTH(BE16,$F$17),BD17) -> 2026-11-30 | BF17: =IF(BF15,EOMONTH(BF16,$F$17),BE17) -> 2026-11-30 | BG17: =IF(BG15,EOMONTH(BG16,$F$17),BF17) -> 2027-05-31 | BH17: =IF(BH15,EOMONTH(BH16,$F$17),BG17) -> 2027-05-31 | BI17: =IF(BI15,EOMONTH(BI16,$F$17),BH17) -> 2027-05-31 | BJ17: =IF(BJ15,EOMONTH(BJ16,$F$17),BI17) -> 2027-05-31 | BK17: =IF(BK15,EOMONTH(BK16,$F$17),BJ17) -> 2027-05-31 | BL17: =IF(BL15,EOMONTH(BL16,$F$17),BK17) -> 2027-05-31 | BM17: =IF(BM15,EOMONTH(BM16,$F$17),BL17) -> 2027-11-30 | BN17: =IF(BN15,EOMONTH(BN16,$F$17),BM17) -> 2027-11-30 | BO17: =IF(BO15,EOMONTH(BO16,$F$17),BN17) -> 2027-11-30 | BP17: =IF(BP15,EOMONTH(BP16,$F$17),BO17) -> 2027-11-30 | BQ17: =IF(BQ15,EOMONTH(BQ16,$F$17),BP17) -> 2027-11-30 | BR17: =IF(BR15,EOMONTH(BR16,$F$17),BQ17) -> 2027-11-30 | BS17: =IF(BS15,EOMONTH(BS16,$F$17),BR17) -> 2028-05-31 | BT17: =IF(BT15,EOMONTH(BT16,$F$17),BS17) -> 2028-05-31 | BU17: =IF(BU15,EOMONTH(BU16,$F$17),BT17) -> 2028-05-31 | BV17: =IF(BV15,EOMONTH(BV16,$F$17),BU17) -> 2028-05-31 | BW17: =IF(BW15,EOMONTH(BW16,$F$17),BV17) -> 2028-05-31 | BX17: =IF(BX15,EOMONTH(BX16,$F$17),BW17) -> 2028-05-31 | BY17: =IF(BY15,EOMONTH(BY16,$F$17),BX17) -> 2028-11-30 | BZ17: =IF(BZ15,EOMONTH(BZ16,$F$17),BY17) -> 2028-11-30 | CA17: =IF(CA15,EOMONTH(CA16,$F$17),BZ17) -> 2028-11-30 | CB17: =IF(CB15,EOMONTH(CB16,$F$17),CA17) -> 2028-11-30 | CC17: =IF(CC15,EOMONTH(CC16,$F$17),CB17) -> 2028-11-30 | CD17: =IF(CD15,EOMONTH(CD16,$F$17),CC17) -> 2028-11-30 | CE17: =IF(CE15,EOMONTH(CE16,$F$17),CD17) -> 2029-05-31 | CF17: =IF(CF15,EOMONTH(CF16,$F$17),CE17) -> 2029-05-31 | CG17: =IF(CG15,EOMONTH(CG16,$F$17),CF17) -> 2029-05-31 | CH17: =IF(CH15,EOMONTH(CH16,$F$17),CG17) -> 2029-05-31 | CI17: =IF(CI15,EOMONTH(CI16,$F$17),CH17) -> 2029-05-31 | CJ17: =IF(CJ15,EOMONTH(CJ16,$F$17),CI17) -> 2029-05-31 | CK17: =IF(CK15,EOMONTH(CK16,$F$17),CJ17) -> 2029-11-30 | CL17: =IF(CL15,EOMONTH(CL16,$F$17),CK17) -> 2029-11-30 | CM17: =IF(CM15,EOMONTH(CM16,$F$17),CL17) -> 2029-11-30 | CN17: =IF(CN15,EOMONTH(CN16,$F$17),CM17) -> 2029-11-30 | CO17: =IF(CO15,EOMONTH(CO16,$F$17),CN17) -> 2029-11-30 | CP17: =IF(CP15,EOMONTH(CP16,$F$17),CO17) -> 2029-11-30 | CQ17: =IF(CQ15,EOMONTH(CQ16,$F$17),CP17) -> 2030-05-31 | CR17: =IF(CR15,EOMONTH(CR16,$F$17),CQ17) -> 2030-05-31 | CS17: =IF(CS15,EOMONTH(CS16,$F$17),CR17) -> 2030-05-31 | CT17: =IF(CT15,EOMONTH(CT16,$F$17),CS17) -> 2030-05-31 | CU17: =IF(CU15,EOMONTH(CU16,$F$17),CT17) -> 2030-05-31 | CV17: =IF(CV15,EOMONTH(CV16,$F$17),CU17) -> 2030-05-31 | CW17: =IF(CW15,EOMONTH(CW16,$F$17),CV17) -> 2030-11-30 | CX17: =IF(CX15,EOMONTH(CX16,$F$17),CW17) -> 2030-11-30 | CY17: =IF(CY15,EOMONTH(CY16,$F$17),CX17) -> 2030-11-30 | CZ17: =IF(CZ15,EOMONTH(CZ16,$F$17),CY17) -> 2030-11-30 | DA17: =IF(DA15,EOMONTH(DA16,$F$17),CZ17) -> 2030-11-30 | DB17: =IF(DB15,EOMONTH(DB16,$F$17),DA17) -> 2030-11-30 | DC17: =IF(DC15,EOMONTH(DC16,$F$17),DB17) -> 2031-05-31 | DD17: =IF(DD15,EOMONTH(DD16,$F$17),DC17) -> 2031-05-31 | DE17: =IF(DE15,EOMONTH(DE16,$F$17),DD17) -> 2031-05-31 | DF17: =IF(DF15,EOMONTH(DF16,$F$17),DE17) -> 2031-05-31 | DG17: =IF(DG15,EOMONTH(DG16,$F$17),DF17) -> 2031-05-31 | DH17: =IF(DH15,EOMONTH(DH16,$F$17),DG17) -> 2031-05-31 | DI17: =IF(DI15,EOMONTH(DI16,$F$17),DH17) -> 2031-11-30 | DJ17: =IF(DJ15,EOMONTH(DJ16,$F$17),DI17) -> 2031-11-30 | DK17: =IF(DK15,EOMONTH(DK16,$F$17),DJ17) -> 2031-11-30 | DL17: =IF(DL15,EOMONTH(DL16,$F$17),DK17) -> 2031-11-30 | DM17: =IF(DM15,EOMONTH(DM16,$F$17),DL17) -> 2031-11-30 | DN17: =IF(DN15,EOMONTH(DN16,$F$17),DM17) -> 2031-11-30 | DO17: =IF(DO15,EOMONTH(DO16,$F$17),DN17) -> 2032-05-31 | DP17: =IF(DP15,EOMONTH(DP16,$F$17),DO17) -> 2032-05-31 | DQ17: =IF(DQ15,EOMONTH(DQ16,$F$17),DP17) -> 2032-05-31 | DR17: =IF(DR15,EOMONTH(DR16,$F$17),DQ17) -> 2032-05-31 | DS17: =IF(DS15,EOMONTH(DS16,$F$17),DR17) -> 2032-05-31 | DT17: =IF(DT15,EOMONTH(DT16,$F$17),DS17) -> 2032-05-31 | DU17: =IF(DU15,EOMONTH(DU16,$F$17),DT17) -> 2032-11-30 | DV17: =IF(DV15,EOMONTH(DV16,$F$17),DU17) -> 2032-11-30 | DW17: =IF(DW15,EOMONTH(DW16,$F$17),DV17) -> 2032-11-30 | DX17: =IF(DX15,EOMONTH(DX16,$F$17),DW17) -> 2032-11-30 | DY17: =IF(DY15,EOMONTH(DY16,$F$17),DX17) -> 2032-11-30 | DZ17: =IF(DZ15,EOMONTH(DZ16,$F$17),DY17) -> 2032-11-30 | EA17: =IF(EA15,EOMONTH(EA16,$F$17),DZ17) -> 2033-05-31 | EB17: =IF(EB15,EOMONTH(EB16,$F$17),EA17) -> 2033-05-31 | EC17: =IF(EC15,EOMONTH(EC16,$F$17),EB17) -> 2033-05-31 | ED17: =IF(ED15,EOMONTH(ED16,$F$17),EC17) -> 2033-05-31 | EE17: =IF(EE15,EOMONTH(EE16,$F$17),ED17) -> 2033-05-31 | EF17: =IF(EF15,EOMONTH(EF16,$F$17),EE17) -> 2033-05-31 | EG17: =IF(EG15,EOMONTH(EG16,$F$17),EF17) -> 2033-11-30 | EH17: =IF(EH15,EOMONTH(EH16,$F$17),EG17) -> 2033-11-30 | EI17: =IF(EI15,EOMONTH(EI16,$F$17),EH17) -> 2033-11-30 | EJ17: =IF(EJ15,EOMONTH(EJ16,$F$17),EI17) -> 2033-11-30 | EK17: =IF(EK15,EOMONTH(EK16,$F$17),EJ17) -> 2033-11-30 | EL17: =IF(EL15,EOMONTH(EL16,$F$17),EK17) -> 2033-11-30 | EM17: =IF(EM15,EOMONTH(EM16,$F$17),EL17) -> 2034-05-31 | EN17: =IF(EN15,EOMONTH(EN16,$F$17),EM17) -> 2034-05-31 | EO17: =IF(EO15,EOMONTH(EO16,$F$17),EN17) -> 2034-05-31 | EP17: =IF(EP15,EOMONTH(EP16,$F$17),EO17) -> 2034-05-31 | EQ17: =IF(EQ15,EOMONTH(EQ16,$F$17),EP17) -> 2034-05-31 | ER17: =IF(ER15,EOMONTH(ER16,$F$17),EQ17) -> 2034-05-31 | ES17: =IF(ES15,EOMONTH(ES16,$F$17),ER17) -> 2034-11-30 | ET17: =IF(ET15,EOMONTH(ET16,$F$17),ES17) -> 2034-11-30 | EU17: =IF(EU15,EOMONTH(EU16,$F$17),ET17) -> 2034-11-30 | EV17: =IF(EV15,EOMONTH(EV16,$F$17),EU17) -> 2034-11-30 | EW17: =IF(EW15,EOMONTH(EW16,$F$17),EV17) -> 2034-11-30 | EX17: =IF(EX15,EOMONTH(EX16,$F$17),EW17) -> 2034-11-30 | EY17: =IF(EY15,EOMONTH(EY16,$F$17),EX17) -> 2035-05-31 | EZ17: =IF(EZ15,EOMONTH(EZ16,$F$17),EY17) -> 2035-05-31 | FA17: =IF(FA15,EOMONTH(FA16,$F$17),EZ17) -> 2035-05-31 | FB17: =IF(FB15,EOMONTH(FB16,$F$17),FA17) -> 2035-05-31 | FC17: =IF(FC15,EOMONTH(FC16,$F$17),FB17) -> 2035-05-31 | FD17: =IF(FD15,EOMONTH(FD16,$F$17),FC17) -> 2035-05-31 | FE17: =IF(FE15,EOMONTH(FE16,$F$17),FD17) -> 2035-11-30 | FF17: =IF(FF15,EOMONTH(FF16,$F$17),FE17) -> 2035-11-30 | FG17: =IF(FG15,EOMONTH(FG16,$F$17),FF17) -> 2035-11-30 | FH17: =IF(FH15,EOMONTH(FH16,$F$17),FG17) -> 2035-11-30 | FI17: =IF(FI15,EOMONTH(FI16,$F$17),FH17) -> 2035-11-30 | FJ17: =IF(FJ15,EOMONTH(FJ16,$F$17),FI17) -> 2035-11-30 | FK17: =IF(FK15,EOMONTH(FK16,$F$17),FJ17) -> 2036-05-31 | FL17: =IF(FL15,EOMONTH(FL16,$F$17),FK17) -> 2036-05-31 | FM17: =IF(FM15,EOMONTH(FM16,$F$17),FL17) -> 2036-05-31 | FN17: =IF(FN15,EOMONTH(FN16,$F$17),FM17) -> 2036-05-31 | FO17: =IF(FO15,EOMONTH(FO16,$F$17),FN17) -> 2036-05-31 | FP17: =IF(FP15,EOMONTH(FP16,$F$17),FO17) -> 2036-05-31 | FQ17: =IF(FQ15,EOMONTH(FQ16,$F$17),FP17) -> 2036-11-30 | FR17: =IF(FR15,EOMONTH(FR16,$F$17),FQ17) -> 2036-11-30 | FS17: =IF(FS15,EOMONTH(FS16,$F$17),FR17) -> 2036-11-30 | FT17: =IF(FT15,EOMONTH(FT16,$F$17),FS17) -> 2036-11-30 | FU17: =IF(FU15,EOMONTH(FU16,$F$17),FT17) -> 2036-11-30 | FV17: =IF(FV15,EOMONTH(FV16,$F$17),FU17) -> 2036-11-30 | FW17: =IF(FW15,EOMONTH(FW16,$F$17),FV17) -> 2037-05-31 | FX17: =IF(FX15,EOMONTH(FX16,$F$17),FW17) -> 2037-05-31 | FY17: =IF(FY15,EOMONTH(FY16,$F$17),FX17) -> 2037-05-31 | FZ17: =IF(FZ15,EOMONTH(FZ16,$F$17),FY17) -> 2037-05-31 | GA17: =IF(GA15,EOMONTH(GA16,$F$17),FZ17) -> 2037-05-31 | GB17: =IF(GB15,EOMONTH(GB16,$F$17),GA17) -> 2037-05-31 | GC17: =IF(GC15,EOMONTH(GC16,$F$17),GB17) -> 2037-11-30 | GD17: =IF(GD15,EOMONTH(GD16,$F$17),GC17) -> 2037-11-30 | GE17: =IF(GE15,EOMONTH(GE16,$F$17),GD17) -> 2037-11-30 | GF17: =IF(GF15,EOMONTH(GF16,$F$17),GE17) -> 2037-11-30 | GG17: =IF(GG15,EOMONTH(GG16,$F$17),GF17) -> 2037-11-30 | GH17: =IF(GH15,EOMONTH(GH16,$F$17),GG17) -> 2037-11-30 | GI17: =IF(GI15,EOMONTH(GI16,$F$17),GH17) -> 2038-05-31 | GJ17: =IF(GJ15,EOMONTH(GJ16,$F$17),GI17) -> 2038-05-31 | GK17: =IF(GK15,EOMONTH(GK16,$F$17),GJ17) -> 2038-05-31 | GL17: =IF(GL15,EOMONTH(GL16,$F$17),GK17) -> 2038-05-31 | GM17: =IF(GM15,EOMONTH(GM16,$F$17),GL17) -> 2038-05-31 | GN17: =IF(GN15,EOMONTH(GN16,$F$17),GM17) -> 2038-05-31 | GO17: =IF(GO15,EOMONTH(GO16,$F$17),GN17) -> 2038-11-30 | GP17: =IF(GP15,EOMONTH(GP16,$F$17),GO17) -> 2038-11-30 | GQ17: =IF(GQ15,EOMONTH(GQ16,$F$17),GP17) -> 2038-11-30 | GR17: =IF(GR15,EOMONTH(GR16,$F$17),GQ17) -> 2038-11-30 | GS17: =IF(GS15,EOMONTH(GS16,$F$17),GR17) -> 2038-11-30 | GT17: =IF(GT15,EOMONTH(GT16,$F$17),GS17) -> 2038-11-30 | GU17: =IF(GU15,EOMONTH(GU16,$F$17),GT17) -> 2039-05-31 | GV17: =IF(GV15,EOMONTH(GV16,$F$17),GU17) -> 2039-05-31 | GW17: =IF(GW15,EOMONTH(GW16,$F$17),GV17) -> 2039-05-31 | GX17: =IF(GX15,EOMONTH(GX16,$F$17),GW17) -> 2039-05-31 | GY17: =IF(GY15,EOMONTH(GY16,$F$17),GX17) -> 2039-05-31 | GZ17: =IF(GZ15,EOMONTH(GZ16,$F$17),GY17) -> 2039-05-31 | HA17: =IF(HA15,EOMONTH(HA16,$F$17),GZ17) -> 2039-11-30 | HB17: =IF(HB15,EOMONTH(HB16,$F$17),HA17) -> 2039-11-30 | HC17: =IF(HC15,EOMONTH(HC16,$F$17),HB17) -> 2039-11-30 | HD17: =IF(HD15,EOMONTH(HD16,$F$17),HC17) -> 2039-11-30 | HE17: =IF(HE15,EOMONTH(HE16,$F$17),HD17) -> 2039-11-30 | HF17: =IF(HF15,EOMONTH(HF16,$F$17),HE17) -> 2039-11-30 | HG17: =IF(HG15,EOMONTH(HG16,$F$17),HF17) -> 2040-05-31 | HH17: =IF(HH15,EOMONTH(HH16,$F$17),HG17) -> 2040-05-31 | HI17: =IF(HI15,EOMONTH(HI16,$F$17),HH17) -> 2040-05-31 | HJ17: =IF(HJ15,EOMONTH(HJ16,$F$17),HI17) -> 2040-05-31 | HK17: =IF(HK15,EOMONTH(HK16,$F$17),HJ17) -> 2040-05-31 | HL17: =IF(HL15,EOMONTH(HL16,$F$17),HK17) -> 2040-05-31 | HM17: =IF(HM15,EOMONTH(HM16,$F$17),HL17) -> 2040-11-30 | HN17: =IF(HN15,EOMONTH(HN16,$F$17),HM17) -> 2040-11-30 | HO17: =IF(HO15,EOMONTH(HO16,$F$17),HN17) -> 2040-11-30 | HP17: =IF(HP15,EOMONTH(HP16,$F$17),HO17) -> 2040-11-30 | HQ17: =IF(HQ15,EOMONTH(HQ16,$F$17),HP17) -> 2040-11-30 | HR17: =IF(HR15,EOMONTH(HR16,$F$17),HQ17) -> 2040-11-30 | HS17: =IF(HS15,EOMONTH(HS16,$F$17),HR17) -> 2041-05-31 | HT17: =IF(HT15,EOMONTH(HT16,$F$17),HS17) -> 2041-05-31 | HU17: =IF(HU15,EOMONTH(HU16,$F$17),HT17) -> 2041-05-31 | HV17: =IF(HV15,EOMONTH(HV16,$F$17),HU17) -> 2041-05-31 | HW17: =IF(HW15,EOMONTH(HW16,$F$17),HV17) -> 2041-05-31 | HX17: =IF(HX15,EOMONTH(HX16,$F$17),HW17) -> 2041-05-31 | HY17: =IF(HY15,EOMONTH(HY16,$F$17),HX17) -> 2041-11-30 | HZ17: =IF(HZ15,EOMONTH(HZ16,$F$17),HY17) -> 2041-11-30 | IA17: =IF(IA15,EOMONTH(IA16,$F$17),HZ17) -> 2041-11-30 | IB17: =IF(IB15,EOMONTH(IB16,$F$17),IA17) -> 2041-11-30 | IC17: =IF(IC15,EOMONTH(IC16,$F$17),IB17) -> 2041-11-30 | ID17: =IF(ID15,EOMONTH(ID16,$F$17),IC17) -> 2041-11-30 | IE17: =IF(IE15,EOMONTH(IE16,$F$17),ID17) -> 2042-05-31 | IF17: =IF(IF15,EOMONTH(IF16,$F$17),IE17) -> 2042-05-31 | IG17: =IF(IG15,EOMONTH(IG16,$F$17),IF17) -> 2042-05-31 | IH17: =IF(IH15,EOMONTH(IH16,$F$17),IG17) -> 2042-05-31 | II17: =IF(II15,EOMONTH(II16,$F$17),IH17) -> 2042-05-31 | IJ17: =IF(IJ15,EOMONTH(IJ16,$F$17),II17) -> 2042-05-31 | IK17: =IF(IK15,EOMONTH(IK16,$F$17),IJ17) -> 2042-11-30 | IL17: =IF(IL15,EOMONTH(IL16,$F$17),IK17) -> 2042-11-30 | IM17: =IF(IM15,EOMONTH(IM16,$F$17),IL17) -> 2042-11-30 | IN17: =IF(IN15,EOMONTH(IN16,$F$17),IM17) -> 2042-11-30 | IO17: =IF(IO15,EOMONTH(IO16,$F$17),IN17) -> 2042-11-30 | IP17: =IF(IP15,EOMONTH(IP16,$F$17),IO17) -> 2042-11-30 | IQ17: =IF(IQ15,EOMONTH(IQ16,$F$17),IP17) -> 2043-05-31 | IR17: =IF(IR15,EOMONTH(IR16,$F$17),IQ17) -> 2043-05-31 | IS17: =IF(IS15,EOMONTH(IS16,$F$17),IR17) -> 2043-05-31 | IT17: =IF(IT15,EOMONTH(IT16,$F$17),IS17) -> 2043-05-31 | IU17: =IF(IU15,EOMONTH(IU16,$F$17),IT17) -> 2043-05-31 | IV17: =IF(IV15,EOMONTH(IV16,$F$17),IU17) -> 2043-05-31 | IW17: =IF(IW15,EOMONTH(IW16,$F$17),IV17) -> 2043-11-30 | IX17: =IF(IX15,EOMONTH(IX16,$F$17),IW17) -> 2043-11-30 | IY17: =IF(IY15,EOMONTH(IY16,$F$17),IX17) -> 2043-11-30 | IZ17: =IF(IZ15,EOMONTH(IZ16,$F$17),IY17) -> 2043-11-30 | JA17: =IF(JA15,EOMONTH(JA16,$F$17),IZ17) -> 2043-11-30 | JB17: =IF(JB15,EOMONTH(JB16,$F$17),JA17) -> 2043-11-30 | JC17: =IF(JC15,EOMONTH(JC16,$F$17),JB17) -> 2044-05-31 | JD17: =IF(JD15,EOMONTH(JD16,$F$17),JC17) -> 2044-05-31 | JE17: =IF(JE15,EOMONTH(JE16,$F$17),JD17) -> 2044-05-31 | JF17: =IF(JF15,EOMONTH(JF16,$F$17),JE17) -> 2044-05-31 | JG17: =IF(JG15,EOMONTH(JG16,$F$17),JF17) -> 2044-05-31 | JH17: =IF(JH15,EOMONTH(JH16,$F$17),JG17) -> 2044-05-31 | JI17: =IF(JI15,EOMONTH(JI16,$F$17),JH17) -> 2044-11-30 | JJ17: =IF(JJ15,EOMONTH(JJ16,$F$17),JI17) -> 2044-11-30 | JK17: =IF(JK15,EOMONTH(JK16,$F$17),JJ17) -> 2044-11-30 | JL17: =IF(JL15,EOMONTH(JL16,$F$17),JK17) -> 2044-11-30 | JM17: =IF(JM15,EOMONTH(JM16,$F$17),JL17) -> 2044-11-30 | JN17: =IF(JN15,EOMONTH(JN16,$F$17),JM17) -> 2044-11-30 | JO17: =IF(JO15,EOMONTH(JO16,$F$17),JN17) -> 2045-05-31 | JP17: =IF(JP15,EOMONTH(JP16,$F$17),JO17) -> 2045-05-31 | JQ17: =IF(JQ15,EOMONTH(JQ16,$F$17),JP17) -> 2045-05-31 | JR17: =IF(JR15,EOMONTH(JR16,$F$17),JQ17) -> 2045-05-31 | JS17: =IF(JS15,EOMONTH(JS16,$F$17),JR17) -> 2045-05-31 | JT17: =IF(JT15,EOMONTH(JT16,$F$17),JS17) -> 2045-05-31 | JU17: =IF(JU15,EOMONTH(JU16,$F$17),JT17) -> 2045-11-30 | JV17: =IF(JV15,EOMONTH(JV16,$F$17),JU17) -> 2045-11-30 | JW17: =IF(JW15,EOMONTH(JW16,$F$17),JV17) -> 2045-11-30 | JX17: =IF(JX15,EOMONTH(JX16,$F$17),JW17) -> 2045-11-30 | JY17: =IF(JY15,EOMONTH(JY16,$F$17),JX17) -> 2045-11-30 | JZ17: =IF(JZ15,EOMONTH(JZ16,$F$17),JY17) -> 2045-11-30 | KA17: =IF(KA15,EOMONTH(KA16,$F$17),JZ17) -> 2046-05-31 | KB17: =IF(KB15,EOMONTH(KB16,$F$17),KA17) -> 2046-05-31 | KC17: =IF(KC15,EOMONTH(KC16,$F$17),KB17) -> 2046-05-31 | KD17: =IF(KD15,EOMONTH(KD16,$F$17),KC17) -> 2046-05-31 | KE17: =IF(KE15,EOMONTH(KE16,$F$17),KD17) -> 2046-05-31 | KF17: =IF(KF15,EOMONTH(KF16,$F$17),KE17) -> 2046-05-31 | KG17: =IF(KG15,EOMONTH(KG16,$F$17),KF17) -> 2046-11-30 | KH17: =IF(KH15,EOMONTH(KH16,$F$17),KG17) -> 2046-11-30 | KI17: =IF(KI15,EOMONTH(KI16,$F$17),KH17) -> 2046-11-30 | KJ17: =IF(KJ15,EOMONTH(KJ16,$F$17),KI17) -> 2046-11-30 | KK17: =IF(KK15,EOMONTH(KK16,$F$17),KJ17) -> 2046-11-30 | KL17: =IF(KL15,EOMONTH(KL16,$F$17),KK17) -> 2046-11-30 | KM17: =IF(KM15,EOMONTH(KM16,$F$17),KL17) -> 2047-05-31 | KN17: =IF(KN15,EOMONTH(KN16,$F$17),KM17) -> 2047-05-31 | KO17: =IF(KO15,EOMONTH(KO16,$F$17),KN17) -> 2047-05-31 | KP17: =IF(KP15,EOMONTH(KP16,$F$17),KO17) -> 2047-05-31 | KQ17: =IF(KQ15,EOMONTH(KQ16,$F$17),KP17) -> 2047-05-31 | KR17: =IF(KR15,EOMONTH(KR16,$F$17),KQ17) -> 2047-05-31 | KS17: =IF(KS15,EOMONTH(KS16,$F$17),KR17) -> 2047-11-30 | KT17: =IF(KT15,EOMONTH(KT16,$F$17),KS17) -> 2047-11-30 | KU17: =IF(KU15,EOMONTH(KU16,$F$17),KT17) -> 2047-11-30 | KV17: =IF(KV15,EOMONTH(KV16,$F$17),KU17) -> 2047-11-30 | KW17: =IF(KW15,EOMONTH(KW16,$F$17),KV17) -> 2047-11-30 | KX17: =IF(KX15,EOMONTH(KX16,$F$17),KW17) -> 2047-11-30 | KY17: =IF(KY15,EOMONTH(KY16,$F$17),KX17) -> 2048-05-31 | KZ17: =IF(KZ15,EOMONTH(KZ16,$F$17),KY17) -> 2048-05-31 | LA17: =IF(LA15,EOMONTH(LA16,$F$17),KZ17) -> 2048-05-31 | LB17: =IF(LB15,EOMONTH(LB16,$F$17),LA17) -> 2048-05-31 | LC17: =IF(LC15,EOMONTH(LC16,$F$17),LB17) -> 2048-05-31 | LD17: =IF(LD15,EOMONTH(LD16,$F$17),LC17) -> 2048-05-31 | LE17: =IF(LE15,EOMONTH(LE16,$F$17),LD17) -> 2048-11-30 | LF17: =IF(LF15,EOMONTH(LF16,$F$17),LE17) -> 2048-11-30 | LG17: =IF(LG15,EOMONTH(LG16,$F$17),LF17) -> 2048-11-30 | LH17: =IF(LH15,EOMONTH(LH16,$F$17),LG17) -> 2048-11-30 | LI17: =IF(LI15,EOMONTH(LI16,$F$17),LH17) -> 2048-11-30 | LJ17: =IF(LJ15,EOMONTH(LJ16,$F$17),LI17) -> 2048-11-30 | LK17: =IF(LK15,EOMONTH(LK16,$F$17),LJ17) -> 2049-05-31 | LL17: =IF(LL15,EOMONTH(LL16,$F$17),LK17) -> 2049-05-31 | LM17: =IF(LM15,EOMONTH(LM16,$F$17),LL17) -> 2049-05-31 | LN17: =IF(LN15,EOMONTH(LN16,$F$17),LM17) -> 2049-05-31 | LO17: =IF(LO15,EOMONTH(LO16,$F$17),LN17) -> 2049-05-31 | LP17: =IF(LP15,EOMONTH(LP16,$F$17),LO17) -> 2049-05-31 | LQ17: =IF(LQ15,EOMONTH(LQ16,$F$17),LP17) -> 2049-11-30 | LR17: =IF(LR15,EOMONTH(LR16,$F$17),LQ17) -> 2049-11-30 | LS17: =IF(LS15,EOMONTH(LS16,$F$17),LR17) -> 2049-11-30 | LT17: =IF(LT15,EOMONTH(LT16,$F$17),LS17) -> 2049-11-30 | LU17: =IF(LU15,EOMONTH(LU16,$F$17),LT17) -> 2049-11-30 | LV17: =IF(LV15,EOMONTH(LV16,$F$17),LU17) -> 2049-11-30 | LW17: =IF(LW15,EOMONTH(LW16,$F$17),LV17) -> 2050-05-31 | LX17: =IF(LX15,EOMONTH(LX16,$F$17),LW17) -> 2050-05-31 | LY17: =IF(LY15,EOMONTH(LY16,$F$17),LX17) -> 2050-05-31 | LZ17: =IF(LZ15,EOMONTH(LZ16,$F$17),LY17) -> 2050-05-31 | MA17: =IF(MA15,EOMONTH(MA16,$F$17),LZ17) -> 2050-05-31 | MB17: =IF(MB15,EOMONTH(MB16,$F$17),MA17) -> 2050-05-31 | MC17: =IF(MC15,EOMONTH(MC16,$F$17),MB17) -> 2050-11-30 | MD17: =IF(MD15,EOMONTH(MD16,$F$17),MC17) -> 2050-11-30 | ME17: =IF(ME15,EOMONTH(ME16,$F$17),MD17) -> 2050-11-30 | MF17: =IF(MF15,EOMONTH(MF16,$F$17),ME17) -> 2050-11-30 | MG17: =IF(MG15,EOMONTH(MG16,$F$17),MF17) -> 2050-11-30 | MH17: =IF(MH15,EOMONTH(MH16,$F$17),MG17) -> 2050-11-30 | MI17: =IF(MI15,EOMONTH(MI16,$F$17),MH17) -> 2051-05-31 | MJ17: =IF(MJ15,EOMONTH(MJ16,$F$17),MI17) -> 2051-05-31 | MK17: =IF(MK15,EOMONTH(MK16,$F$17),MJ17) -> 2051-05-31 | ML17: =IF(ML15,EOMONTH(ML16,$F$17),MK17) -> 2051-05-31 | MM17: =IF(MM15,EOMONTH(MM16,$F$17),ML17) -> 2051-05-31 | MN17: =IF(MN15,EOMONTH(MN16,$F$17),MM17) -> 2051-05-31 | MO17: =IF(MO15,EOMONTH(MO16,$F$17),MN17) -> 2051-11-30 | MP17: =IF(MP15,EOMONTH(MP16,$F$17),MO17) -> 2051-11-30 | MQ17: =IF(MQ15,EOMONTH(MQ16,$F$17),MP17) -> 2051-11-30 | MR17: =IF(MR15,EOMONTH(MR16,$F$17),MQ17) -> 2051-11-30 | MS17: =IF(MS15,EOMONTH(MS16,$F$17),MR17) -> 2051-11-30 | MT17: =IF(MT15,EOMONTH(MT16,$F$17),MS17) -> 2051-11-30 | MU17: =IF(MU15,EOMONTH(MU16,$F$17),MT17) -> 2052-05-31 | MV17: =IF(MV15,EOMONTH(MV16,$F$17),MU17) -> 2052-05-31 | MW17: =IF(MW15,EOMONTH(MW16,$F$17),MV17) -> 2052-05-31 | MX17: =IF(MX15,EOMONTH(MX16,$F$17),MW17) -> 2052-05-31 | MY17: =IF(MY15,EOMONTH(MY16,$F$17),MX17) -> 2052-05-31 | MZ17: =IF(MZ15,EOMONTH(MZ16,$F$17),MY17) -> 2052-05-31 | NA17: =IF(NA15,EOMONTH(NA16,$F$17),MZ17) -> 2052-11-30 | NB17: =IF(NB15,EOMONTH(NB16,$F$17),NA17) -> 2052-11-30 | NC17: =IF(NC15,EOMONTH(NC16,$F$17),NB17) -> 2052-11-30 | ND17: =IF(ND15,EOMONTH(ND16,$F$17),NC17) -> 2052-11-30 | NE17: =IF(NE15,EOMONTH(NE16,$F$17),ND17) -> 2052-11-30 | NF17: =IF(NF15,EOMONTH(NF16,$F$17),NE17) -> 2052-11-30 | NG17: =IF(NG15,EOMONTH(NG16,$F$17),NF17) -> 2053-05-31 | NH17: =IF(NH15,EOMONTH(NH16,$F$17),NG17) -> 2053-05-31 | NI17: =IF(NI15,EOMONTH(NI16,$F$17),NH17) -> 2053-05-31 | NJ17: =IF(NJ15,EOMONTH(NJ16,$F$17),NI17) -> 2053-05-31 | NK17: =IF(NK15,EOMONTH(NK16,$F$17),NJ17) -> 2053-05-31 | NL17: =IF(NL15,EOMONTH(NL16,$F$17),NK17) -> 2053-05-31 | NM17: =IF(NM15,EOMONTH(NM16,$F$17),NL17) -> 2053-11-30 | NN17: =IF(NN15,EOMONTH(NN16,$F$17),NM17) -> 2053-11-30 | NO17: =IF(NO15,EOMONTH(NO16,$F$17),NN17) -> 2053-11-30 | NP17: =IF(NP15,EOMONTH(NP16,$F$17),NO17) -> 2053-11-30 | NQ17: =IF(NQ15,EOMONTH(NQ16,$F$17),NP17) -> 2053-11-30 | NR17: =IF(NR15,EOMONTH(NR16,$F$17),NQ17) -> 2053-11-30 | NS17: =IF(NS15,EOMONTH(NS16,$F$17),NR17) -> 2054-05-31 | NT17: =IF(NT15,EOMONTH(NT16,$F$17),NS17) -> 2054-05-31 | NU17: =IF(NU15,EOMONTH(NU16,$F$17),NT17) -> 2054-05-31 | NV17: =IF(NV15,EOMONTH(NV16,$F$17),NU17) -> 2054-05-31 | NW17: =IF(NW15,EOMONTH(NW16,$F$17),NV17) -> 2054-05-31 | NX17: =IF(NX15,EOMONTH(NX16,$F$17),NW17) -> 2054-05-31 | NY17: =IF(NY15,EOMONTH(NY16,$F$17),NX17) -> 2054-11-30 | NZ17: =IF(NZ15,EOMONTH(NZ16,$F$17),NY17) -> 2054-11-30 | OA17: =IF(OA15,EOMONTH(OA16,$F$17),NZ17) -> 2054-11-30 | OB17: =IF(OB15,EOMONTH(OB16,$F$17),OA17) -> 2054-11-30 | OC17: =IF(OC15,EOMONTH(OC16,$F$17),OB17) -> 2054-11-30 | OD17: =IF(OD15,EOMONTH(OD16,$F$17),OC17) -> 2054-11-30 | OE17: =IF(OE15,EOMONTH(OE16,$F$17),OD17) -> 2055-05-31 | OF17: =IF(OF15,EOMONTH(OF16,$F$17),OE17) -> 2055-05-31 | OG17: =IF(OG15,EOMONTH(OG16,$F$17),OF17) -> 2055-05-31 | OH17: =IF(OH15,EOMONTH(OH16,$F$17),OG17) -> 2055-05-31 | OI17: =IF(OI15,EOMONTH(OI16,$F$17),OH17) -> 2055-05-31 | OJ17: =IF(OJ15,EOMONTH(OJ16,$F$17),OI17) -> 2055-05-31 | OK17: =IF(OK15,EOMONTH(OK16,$F$17),OJ17) -> 2055-11-30 | OL17: =IF(OL15,EOMONTH(OL16,$F$17),OK17) -> 2055-11-30 | OM17: =IF(OM15,EOMONTH(OM16,$F$17),OL17) -> 2055-11-30 | ON17: =IF(ON15,EOMONTH(ON16,$F$17),OM17) -> 2055-11-30 | OO17: =IF(OO15,EOMONTH(OO16,$F$17),ON17) -> 2055-11-30 | OP17: =IF(OP15,EOMONTH(OP16,$F$17),OO17) -> 2055-11-30 | OQ17: =IF(OQ15,EOMONTH(OQ16,$F$17),OP17) -> 2056-05-31 | OR17: =IF(OR15,EOMONTH(OR16,$F$17),OQ17) -> 2056-05-31 | OS17: =IF(OS15,EOMONTH(OS16,$F$17),OR17) -> 2056-05-31 | OT17: =IF(OT15,EOMONTH(OT16,$F$17),OS17) -> 2056-05-31 | OU17: =IF(OU15,EOMONTH(OU16,$F$17),OT17) -> 2056-05-31 | OV17: =IF(OV15,EOMONTH(OV16,$F$17),OU17) -> 2056-05-31 | OW17: =IF(OW15,EOMONTH(OW16,$F$17),OV17) -> 2056-11-30 | OX17: =IF(OX15,EOMONTH(OX16,$F$17),OW17) -> 2056-11-30 | OY17: =IF(OY15,EOMONTH(OY16,$F$17),OX17) -> 2056-11-30 | OZ17: =IF(OZ15,EOMONTH(OZ16,$F$17),OY17) -> 2056-11-30 | PA17: =IF(PA15,EOMONTH(PA16,$F$17),OZ17) -> 2056-11-30 | PB17: =IF(PB15,EOMONTH(PB16,$F$17),PA17) -> 2056-11-30 | PC17: =IF(PC15,EOMONTH(PC16,$F$17),PB17) -> 2057-05-31 | PD17: =IF(PD15,EOMONTH(PD16,$F$17),PC17) -> 2057-05-31 | PE17: =IF(PE15,EOMONTH(PE16,$F$17),PD17) -> 2057-05-31 | PF17: =IF(PF15,EOMONTH(PF16,$F$17),PE17) -> 2057-05-31 | PG17: =IF(PG15,EOMONTH(PG16,$F$17),PF17) -> 2057-05-31 | PH17: =IF(PH15,EOMONTH(PH16,$F$17),PG17) -> 2057-05-31 | PI17: =IF(PI15,EOMONTH(PI16,$F$17),PH17) -> 2057-11-30 | PJ17: =IF(PJ15,EOMONTH(PJ16,$F$17),PI17) -> 2057-11-30 | PK17: =IF(PK15,EOMONTH(PK16,$F$17),PJ17) -> 2057-11-30 | PL17: =IF(PL15,EOMONTH(PL16,$F$17),PK17) -> 2057-11-30 | PM17: =IF(PM15,EOMONTH(PM16,$F$17),PL17) -> 2057-11-30 | PN17: =IF(PN15,EOMONTH(PN16,$F$17),PM17) -> 2057-11-30 | PO17: =IF(PO15,EOMONTH(PO16,$F$17),PN17) -> 2058-05-31 | PP17: =IF(PP15,EOMONTH(PP16,$F$17),PO17) -> 2058-05-31 | PQ17: =IF(PQ15,EOMONTH(PQ16,$F$17),PP17) -> 2058-05-31 | PR17: =IF(PR15,EOMONTH(PR16,$F$17),PQ17) -> 2058-05-31 | PS17: =IF(PS15,EOMONTH(PS16,$F$17),PR17) -> 2058-05-31 | PT17: =IF(PT15,EOMONTH(PT16,$F$17),PS17) -> 2058-05-31 | PU17: =IF(PU15,EOMONTH(PU16,$F$17),PT17) -> 2058-11-30 | PV17: =IF(PV15,EOMONTH(PV16,$F$17),PU17) -> 2058-11-30 | PW17: =IF(PW15,EOMONTH(PW16,$F$17),PV17) -> 2058-11-30 | PX17: =IF(PX15,EOMONTH(PX16,$F$17),PW17) -> 2058-11-30 | PY17: =IF(PY15,EOMONTH(PY16,$F$17),PX17) -> 2058-11-30 | PZ17: =IF(PZ15,EOMONTH(PZ16,$F$17),PY17) -> 2058-11-30 | QA17: =IF(QA15,EOMONTH(QA16,$F$17),PZ17) -> 2059-05-31 | QB17: =IF(QB15,EOMONTH(QB16,$F$17),QA17) -> 2059-05-31 | QC17: =IF(QC15,EOMONTH(QC16,$F$17),QB17) -> 2059-05-31 | QD17: =IF(QD15,EOMONTH(QD16,$F$17),QC17) -> 2059-05-31 | QE17: =IF(QE15,EOMONTH(QE16,$F$17),QD17) -> 2059-05-31 | QF17: =IF(QF15,EOMONTH(QF16,$F$17),QE17) -> 2059-05-31 | QG17: =IF(QG15,EOMONTH(QG16,$F$17),QF17) -> 2059-05-31 | QH17: =IF(QH15,EOMONTH(QH16,$F$17),QG17) -> 2059-05-31 | QI17: =IF(QI15,EOMONTH(QI16,$F$17),QH17) -> 2059-05-31 | QJ17: =IF(QJ15,EOMONTH(QJ16,$F$17),QI17) -> 2059-05-31 | QK17: =IF(QK15,EOMONTH(QK16,$F$17),QJ17) -> 2059-05-31 | QL17: =IF(QL15,EOMONTH(QL16,$F$17),QK17) -> 2059-05-31 | QM17: =IF(QM15,EOMONTH(QM16,$F$17),QL17) -> 2059-05-31 | QN17: =IF(QN15,EOMONTH(QN16,$F$17),QM17) -> 2059-05-31 | QO17: =IF(QO15,EOMONTH(QO16,$F$17),QN17) -> 2059-05-31 | QP17: =IF(QP15,EOMONTH(QP16,$F$17),QO17) -> 2059-05-31 | QQ17: =IF(QQ15,EOMONTH(QQ16,$F$17),QP17) -> 2059-05-31 | QR17: =IF(QR15,EOMONTH(QR16,$F$17),QQ17) -> 2059-05-31 | QS17: =IF(QS15,EOMONTH(QS16,$F$17),QR17) -> 2059-05-31 | QT17: =IF(QT15,EOMONTH(QT16,$F$17),QS17) -> 2059-05-31 | QU17: =IF(QU15,EOMONTH(QU16,$F$17),QT17) -> 2059-05-31 | QV17: =IF(QV15,EOMONTH(QV16,$F$17),QU17) -> 2059-05-31 | QW17: =IF(QW15,EOMONTH(QW16,$F$17),QV17) -> 2059-05-31 | QX17: =IF(QX15,EOMONTH(QX16,$F$17),QW17) -> 2059-05-31 | QY17: =IF(QY15,EOMONTH(QY16,$F$17),QX17) -> 2059-05-31 | QZ17: =IF(QZ15,EOMONTH(QZ16,$F$17),QY17) -> 2059-05-31 | RA17: =IF(RA15,EOMONTH(RA16,$F$17),QZ17) -> 2059-05-31 | RB17: =IF(RB15,EOMONTH(RB16,$F$17),RA17) -> 2059-05-31 | RC17: =IF(RC15,EOMONTH(RC16,$F$17),RB17) -> 2059-05-31 | RD17: =IF(RD15,EOMONTH(RD16,$F$17),RC17) -> 2059-05-31 | RE17: =IF(RE15,EOMONTH(RE16,$F$17),RD17) -> 2059-05-31 | RF17: =IF(RF15,EOMONTH(RF16,$F$17),RE17) -> 2059-05-31 | RG17: =IF(RG15,EOMONTH(RG16,$F$17),RF17) -> 2059-05-31 | RH17: =IF(RH15,EOMONTH(RH16,$F$17),RG17) -> 2059-05-31 | RI17: =IF(RI15,EOMONTH(RI16,$F$17),RH17) -> 2059-05-31 | RJ17: =IF(RJ15,EOMONTH(RJ16,$F$17),RI17) -> 2059-05-31 | RK17: =IF(RK15,EOMONTH(RK16,$F$17),RJ17) -> 2059-05-31 | RL17: =IF(RL15,EOMONTH(RL16,$F$17),RK17) -> 2059-05-31 | RM17: =IF(RM15,EOMONTH(RM16,$F$17),RL17) -> 2059-05-31 | RN17: =IF(RN15,EOMONTH(RN16,$F$17),RM17) -> 2059-05-31 | RO17: =IF(RO15,EOMONTH(RO16,$F$17),RN17) -> 2059-05-31 | RP17: =IF(RP15,EOMONTH(RP16,$F$17),RO17) -> 2059-05-31 | RQ17: =IF(RQ15,EOMONTH(RQ16,$F$17),RP17) -> 2059-05-31 | RR17: =IF(RR15,EOMONTH(RR16,$F$17),RQ17) -> 2059-05-31 | RS17: =IF(RS15,EOMONTH(RS16,$F$17),RR17) -> 2059-05-31 | RT17: =IF(RT15,EOMONTH(RT16,$F$17),RS17) -> 2059-05-31 | RU17: =IF(RU15,EOMONTH(RU16,$F$17),RT17) -> 2059-05-31 | RV17: =IF(RV15,EOMONTH(RV16,$F$17),RU17) -> 2059-05-31 | RW17: =IF(RW15,EOMONTH(RW16,$F$17),RV17) -> 2059-05-31 | RX17: =IF(RX15,EOMONTH(RX16,$F$17),RW17) -> 2059-05-31 | RY17: =IF(RY15,EOMONTH(RY16,$F$17),RX17) -> 2059-05-31 | RZ17: =IF(RZ15,EOMONTH(RZ16,$F$17),RY17) -> 2059-05-31 | SA17: =IF(SA15,EOMONTH(SA16,$F$17),RZ17) -> 2059-05-31 | SB17: =IF(SB15,EOMONTH(SB16,$F$17),SA17) -> 2059-05-31 | SC17: =IF(SC15,EOMONTH(SC16,$F$17),SB17) -> 2059-05-31 | SD17: =IF(SD15,EOMONTH(SD16,$F$17),SC17) -> 2059-05-31 | SE17: =IF(SE15,EOMONTH(SE16,$F$17),SD17) -> 2059-05-31 | SF17: =IF(SF15,EOMONTH(SF16,$F$17),SE17) -> 2059-05-31 | SG17: =IF(SG15,EOMONTH(SG16,$F$17),SF17) -> 2059-05-31 | SH17: =IF(SH15,EOMONTH(SH16,$F$17),SG17) -> 2059-05-31 | SI17: =IF(SI15,EOMONTH(SI16,$F$17),SH17) -> 2059-05-31 | SJ17: =IF(SJ15,EOMONTH(SJ16,$F$17),SI17) -> 2059-05-31 | SK17: =IF(SK15,EOMONTH(SK16,$F$17),SJ17) -> 2059-05-31 | SL17: =IF(SL15,EOMONTH(SL16,$F$17),SK17) -> 2059-05-31 | SM17: =IF(SM15,EOMONTH(SM16,$F$17),SL17) -> 2059-05-31 | SN17: =IF(SN15,EOMONTH(SN16,$F$17),SM17) -> 2059-05-31 | SO17: =IF(SO15,EOMONTH(SO16,$F$17),SN17) -> 2059-05-31 | SP17: =IF(SP15,EOMONTH(SP16,$F$17),SO17) -> 2059-05-31 | SQ17: =IF(SQ15,EOMONTH(SQ16,$F$17),SP17) -> 2059-05-31 | SR17: =IF(SR15,EOMONTH(SR16,$F$17),SQ17) -> 2059-05-31 | SS17: =IF(SS15,EOMONTH(SS16,$F$17),SR17) -> 2059-05-31 | ST17: =IF(ST15,EOMONTH(ST16,$F$17),SS17) -> 2059-05-31 | SU17: =IF(SU15,EOMONTH(SU16,$F$17),ST17) -> 2059-05-31 | SV17: =IF(SV15,EOMONTH(SV16,$F$17),SU17) -> 2059-05-31 | SW17: =IF(SW15,EOMONTH(SW16,$F$17),SV17) -> 2059-05-31 | SX17: =IF(SX15,EOMONTH(SX16,$F$17),SW17) -> 2059-05-31 | SY17: =IF(SY15,EOMONTH(SY16,$F$17),SX17) -> 2059-05-31 | SZ17: =IF(SZ15,EOMONTH(SZ16,$F$17),SY17) -> 2059-05-31 | TA17: =IF(TA15,EOMONTH(TA16,$F$17),SZ17) -> 2059-05-31 | TB17: =IF(TB15,EOMONTH(TB16,$F$17),TA17) -> 2059-05-31 | TC17: =IF(TC15,EOMONTH(TC16,$F$17),TB17) -> 2059-05-31 | TD17: =IF(TD15,EOMONTH(TD16,$F$17),TC17) -> 2059-05-31 | TE17: =IF(TE15,EOMONTH(TE16,$F$17),TD17) -> 2059-05-31 | TF17: =IF(TF15,EOMONTH(TF16,$F$17),TE17) -> 2059-05-31 | TG17: =IF(TG15,EOMONTH(TG16,$F$17),TF17) -> 2059-05-31 | TH17: =IF(TH15,EOMONTH(TH16,$F$17),TG17) -> 2059-05-31 | TI17: =IF(TI15,EOMONTH(TI16,$F$17),TH17) -> 2059-05-31 | TJ17: =IF(TJ15,EOMONTH(TJ16,$F$17),TI17) -> 2059-05-31 | TK17: =IF(TK15,EOMONTH(TK16,$F$17),TJ17) -> 2059-05-31 | TL17: =IF(TL15,EOMONTH(TL16,$F$17),TK17) -> 2059-05-31 | TM17: =IF(TM15,EOMONTH(TM16,$F$17),TL17) -> 2059-05-31 | TN17: =IF(TN15,EOMONTH(TN16,$F$17),TM17) -> 2059-05-31 | TO17: =IF(TO15,EOMONTH(TO16,$F$17),TN17) -> 2059-05-31 | TP17: =IF(TP15,EOMONTH(TP16,$F$17),TO17) -> 2059-05-31 | TQ17: =IF(TQ15,EOMONTH(TQ16,$F$17),TP17) -> 2059-05-31 | TR17: =IF(TR15,EOMONTH(TR16,$F$17),TQ17) -> 2059-05-31 | TS17: =IF(TS15,EOMONTH(TS16,$F$17),TR17) -> 2059-05-31 | TT17: =IF(TT15,EOMONTH(TT16,$F$17),TS17) -> 2059-05-31 | TU17: =IF(TU15,EOMONTH(TU16,$F$17),TT17) -> 2059-05-31 | TV17: =IF(TV15,EOMONTH(TV16,$F$17),TU17) -> 2059-05-31 | TW17: =IF(TW15,EOMONTH(TW16,$F$17),TV17) -> 2059-05-31 | TX17: =IF(TX15,EOMONTH(TX16,$F$17),TW17) -> 2059-05-31 | TY17: =IF(TY15,EOMONTH(TY16,$F$17),TX17) -> 2059-05-31 | TZ17: =IF(TZ15,EOMONTH(TZ16,$F$17),TY17) -> 2059-05-31 | UA17: =IF(UA15,EOMONTH(UA16,$F$17),TZ17) -> 2059-05-31 | UB17: =IF(UB15,EOMONTH(UB16,$F$17),UA17) -> 2059-05-31 | UC17: =IF(UC15,EOMONTH(UC16,$F$17),UB17) -> 2059-05-31 | UD17: =IF(UD15,EOMONTH(UD16,$F$17),UC17) -> 2059-05-31 | UE17: =IF(UE15,EOMONTH(UE16,$F$17),UD17) -> 2059-05-31 | UF17: =IF(UF15,EOMONTH(UF16,$F$17),UE17) -> 2059-05-31 | UG17: =IF(UG15,EOMONTH(UG16,$F$17),UF17) -> 2059-05-31 | UH17: =IF(UH15,EOMONTH(UH16,$F$17),UG17) -> 2059-05-31 | UI17: =IF(UI15,EOMONTH(UI16,$F$17),UH17) -> 2059-05-31 | UJ17: =IF(UJ15,EOMONTH(UJ16,$F$17),UI17) -> 2059-05-31 | UK17: =IF(UK15,EOMONTH(UK16,$F$17),UJ17) -> 2059-05-31 | UL17: =IF(UL15,EOMONTH(UL16,$F$17),UK17) -> 2059-05-31 | UM17: =IF(UM15,EOMONTH(UM16,$F$17),UL17) -> 2059-05-31 | UN17: =IF(UN15,EOMONTH(UN16,$F$17),UM17) -> 2059-05-31 | UO17: =IF(UO15,EOMONTH(UO16,$F$17),UN17) -> 2059-05-31 | UP17: =IF(UP15,EOMONTH(UP16,$F$17),UO17) -> 2059-05-31 | UQ17: =IF(UQ15,EOMONTH(UQ16,$F$17),UP17) -> 2059-05-31 | UR17: =IF(UR15,EOMONTH(UR16,$F$17),UQ17) -> 2059-05-31 | US17: =IF(US15,EOMONTH(US16,$F$17),UR17) -> 2059-05-31 | UT17: =IF(UT15,EOMONTH(UT16,$F$17),US17) -> 2059-05-31 | UU17: =IF(UU15,EOMONTH(UU16,$F$17),UT17) -> 2059-05-31 | UV17: =IF(UV15,EOMONTH(UV16,$F$17),UU17) -> 2059-05-31 | UW17: =IF(UW15,EOMONTH(UW16,$F$17),UV17) -> 2059-05-31 | UX17: =IF(UX15,EOMONTH(UX16,$F$17),UW17) -> 2059-05-31 | UY17: =IF(UY15,EOMONTH(UY16,$F$17),UX17) -> 2059-05-31 | UZ17: =IF(UZ15,EOMONTH(UZ16,$F$17),UY17) -> 2059-05-31 | VA17: =IF(VA15,EOMONTH(VA16,$F$17),UZ17) -> 2059-05-31 | VB17: =IF(VB15,EOMONTH(VB16,$F$17),VA17) -> 2059-05-31 | VC17: =IF(VC15,EOMONTH(VC16,$F$17),VB17) -> 2059-05-31 | VD17: =IF(VD15,EOMONTH(VD16,$F$17),VC17) -> 2059-05-31 | VE17: =IF(VE15,EOMONTH(VE16,$F$17),VD17) -> 2059-05-31 | VF17: =IF(VF15,EOMONTH(VF16,$F$17),VE17) -> 2059-05-31 | VG17: =IF(VG15,EOMONTH(VG16,$F$17),VF17) -> 2059-05-31 | VH17: =IF(VH15,EOMONTH(VH16,$F$17),VG17) -> 2059-05-31 | VI17: =IF(VI15,EOMONTH(VI16,$F$17),VH17) -> 2059-05-31 | VJ17: =IF(VJ15,EOMONTH(VJ16,$F$17),VI17) -> 2059-05-31 | VK17: =IF(VK15,EOMONTH(VK16,$F$17),VJ17) -> 2059-05-31 | VL17: =IF(VL15,EOMONTH(VL16,$F$17),VK17) -> 2059-05-31 | VM17: =IF(VM15,EOMONTH(VM16,$F$17),VL17) -> 2059-05-31 | VN17: =IF(VN15,EOMONTH(VN16,$F$17),VM17) -> 2059-05-31 | VO17: =IF(VO15,EOMONTH(VO16,$F$17),VN17) -> 2059-05-31 | VP17: =IF(VP15,EOMONTH(VP16,$F$17),VO17) -> 2059-05-31 | VQ17: =IF(VQ15,EOMONTH(VQ16,$F$17),VP17) -> 2059-05-31 | VR17: =IF(VR15,EOMONTH(VR16,$F$17),VQ17) -> 2059-05-31 | VS17: =IF(VS15,EOMONTH(VS16,$F$17),VR17) -> 2059-05-31 | VT17: =IF(VT15,EOMONTH(VT16,$F$17),VS17) -> 2059-05-31 | VU17: =IF(VU15,EOMONTH(VU16,$F$17),VT17) -> 2059-05-31 | VV17: =IF(VV15,EOMONTH(VV16,$F$17),VU17) -> 2059-05-31 | VW17: =IF(VW15,EOMONTH(VW16,$F$17),VV17) -> 2059-05-31 | VX17: =IF(VX15,EOMONTH(VX16,$F$17),VW17) -> 2059-05-31 | VY17: =IF(VY15,EOMONTH(VY16,$F$17),VX17) -> 2059-05-31 | VZ17: =IF(VZ15,EOMONTH(VZ16,$F$17),VY17) -> 2059-05-31 | WA17: =IF(WA15,EOMONTH(WA16,$F$17),VZ17) -> 2059-05-31 | WB17: =IF(WB15,EOMONTH(WB16,$F$17),WA17) -> 2059-05-31 | WC17: =IF(WC15,EOMONTH(WC16,$F$17),WB17) -> 2059-05-31 | WD17: =IF(WD15,EOMONTH(WD16,$F$17),WC17) -> 2059-05-31 | WE17: =IF(WE15,EOMONTH(WE16,$F$17),WD17) -> 2059-05-31 | WF17: =IF(WF15,EOMONTH(WF16,$F$17),WE17) -> 2059-05-31 | WG17: =IF(WG15,EOMONTH(WG16,$F$17),WF17) -> 2059-05-31 | WH17: =IF(WH15,EOMONTH(WH16,$F$17),WG17) -> 2059-05-31 | WI17: =IF(WI15,EOMONTH(WI16,$F$17),WH17) -> 2059-05-31 | WJ17: =IF(WJ15,EOMONTH(WJ16,$F$17),WI17) -> 2059-05-31 | WK17: =IF(WK15,EOMONTH(WK16,$F$17),WJ17) -> 2059-05-31 | WL17: =IF(WL15,EOMONTH(WL16,$F$17),WK17) -> 2059-05-31 | WM17: =IF(WM15,EOMONTH(WM16,$F$17),WL17) -> 2059-05-31 | WN17: =IF(WN15,EOMONTH(WN16,$F$17),WM17) -> 2059-05-31 | WO17: =IF(WO15,EOMONTH(WO16,$F$17),WN17) -> 2059-05-31 | WP17: =IF(WP15,EOMONTH(WP16,$F$17),WO17) -> 2059-05-31 | WQ17: =IF(WQ15,EOMONTH(WQ16,$F$17),WP17) -> 2059-05-31 | WR17: =IF(WR15,EOMONTH(WR16,$F$17),WQ17) -> 2059-05-31 | WS17: =IF(WS15,EOMONTH(WS16,$F$17),WR17) -> 2059-05-31 | WT17: =IF(WT15,EOMONTH(WT16,$F$17),WS17) -> 2059-05-31 | WU17: =IF(WU15,EOMONTH(WU16,$F$17),WT17) -> 2059-05-31 | WV17: =IF(WV15,EOMONTH(WV16,$F$17),WU17) -> 2059-05-31 | WW17: =IF(WW15,EOMONTH(WW16,$F$17),WV17) -> 2059-05-31 | WX17: =IF(WX15,EOMONTH(WX16,$F$17),WW17) -> 2059-05-31 | WY17: =IF(WY15,EOMONTH(WY16,$F$17),WX17) -> 2059-05-31 | WZ17: =IF(WZ15,EOMONTH(WZ16,$F$17),WY17) -> 2059-05-31 | XA17: =IF(XA15,EOMONTH(XA16,$F$17),WZ17) -> 2059-05-31 | XB17: =IF(XB15,EOMONTH(XB16,$F$17),XA17) -> 2059-05-31 | XC17: =IF(XC15,EOMONTH(XC16,$F$17),XB17) -> 2059-05-31 | XD17: =IF(XD15,EOMONTH(XD16,$F$17),XC17) -> 2059-05-31 | XE17: =IF(XE15,EOMONTH(XE16,$F$17),XD17) -> 2059-05-31 | XF17: =IF(XF15,EOMONTH(XF16,$F$17),XE17) -> 2059-05-31 | XG17: =IF(XG15,EOMONTH(XG16,$F$17),XF17) -> 2059-05-31 | XH17: =IF(XH15,EOMONTH(XH16,$F$17),XG17) -> 2059-05-31 | XI17: =IF(XI15,EOMONTH(XI16,$F$17),XH17) -> 2059-05-31 | XJ17: =IF(XJ15,EOMONTH(XJ16,$F$17),XI17) -> 2059-05-31 | XK17: =IF(XK15,EOMONTH(XK16,$F$17),XJ17) -> 2059-05-31 | XL17: =IF(XL15,EOMONTH(XL16,$F$17),XK17) -> 2059-05-31 | XM17: =IF(XM15,EOMONTH(XM16,$F$17),XL17) -> 2059-05-31 | XN17: =IF(XN15,EOMONTH(XN16,$F$17),XM17) -> 2059-05-31 | XO17: =IF(XO15,EOMONTH(XO16,$F$17),XN17) -> 2059-05-31 | XP17: =IF(XP15,EOMONTH(XP16,$F$17),XO17) -> 2059-05-31 | XQ17: =IF(XQ15,EOMONTH(XQ16,$F$17),XP17) -> 2059-05-31 | XR17: =IF(XR15,EOMONTH(XR16,$F$17),XQ17) -> 2059-05-31 | XS17: =IF(XS15,EOMONTH(XS16,$F$17),XR17) -> 2059-05-31 | XT17: =IF(XT15,EOMONTH(XT16,$F$17),XS17) -> 2059-05-31 | XU17: =IF(XU15,EOMONTH(XU16,$F$17),XT17) -> 2059-05-31 | XV17: =IF(XV15,EOMONTH(XV16,$F$17),XU17) -> 2059-05-31 | XW17: =IF(XW15,EOMONTH(XW16,$F$17),XV17) -> 2059-05-31 | XX17: =IF(XX15,EOMONTH(XX16,$F$17),XW17) -> 2059-05-31 | XY17: =IF(XY15,EOMONTH(XY16,$F$17),XX17) -> 2059-05-31 | XZ17: =IF(XZ15,EOMONTH(XZ16,$F$17),XY17) -> 2059-05-31 | YA17: =IF(YA15,EOMONTH(YA16,$F$17),XZ17) -> 2059-05-31 | YB17: =IF(YB15,EOMONTH(YB16,$F$17),YA17) -> 2059-05-31 | YC17: =IF(YC15,EOMONTH(YC16,$F$17),YB17) -> 2059-05-31 | YD17: =IF(YD15,EOMONTH(YD16,$F$17),YC17) -> 2059-05-31 | YE17: =IF(YE15,EOMONTH(YE16,$F$17),YD17) -> 2059-05-31 | YF17: =IF(YF15,EOMONTH(YF16,$F$17),YE17) -> 2059-05-31 | YG17: =IF(YG15,EOMONTH(YG16,$F$17),YF17) -> 2059-05-31 | YH17: =IF(YH15,EOMONTH(YH16,$F$17),YG17) -> 2059-05-31 | YI17: =IF(YI15,EOMONTH(YI16,$F$17),YH17) -> 2059-05-31 | YJ17: =IF(YJ15,EOMONTH(YJ16,$F$17),YI17) -> 2059-05-31 | YK17: =IF(YK15,EOMONTH(YK16,$F$17),YJ17) -> 2059-05-31 | YL17: =IF(YL15,EOMONTH(YL16,$F$17),YK17) -> 2059-05-31 | YM17: =IF(YM15,EOMONTH(YM16,$F$17),YL17) -> 2059-05-31 | YN17: =IF(YN15,EOMONTH(YN16,$F$17),YM17) -> 2059-05-31 | YO17: =IF(YO15,EOMONTH(YO16,$F$17),YN17) -> 2059-05-31 | YP17: =IF(YP15,EOMONTH(YP16,$F$17),YO17) -> 2059-05-31 | YQ17: =IF(YQ15,EOMONTH(YQ16,$F$17),YP17) -> 2059-05-31 | YR17: =IF(YR15,EOMONTH(YR16,$F$17),YQ17) -> 2059-05-31 | YS17: =IF(YS15,EOMONTH(YS16,$F$17),YR17) -> 2059-05-31 | YT17: =IF(YT15,EOMONTH(YT16,$F$17),YS17) -> 2059-05-31 | YU17: =IF(YU15,EOMONTH(YU16,$F$17),YT17) -> 2059-05-31 | YV17: =IF(YV15,EOMONTH(YV16,$F$17),YU17) -> 2059-05-31 | YW17: =IF(YW15,EOMONTH(YW16,$F$17),YV17) -> 2059-05-31 | YX17: =IF(YX15,EOMONTH(YX16,$F$17),YW17) -> 2059-05-31 | YY17: =IF(YY15,EOMONTH(YY16,$F$17),YX17) -> 2059-05-31 | YZ17: =IF(YZ15,EOMONTH(YZ16,$F$17),YY17) -> 2059-05-31 | ZA17: =IF(ZA15,EOMONTH(ZA16,$F$17),YZ17) -> 2059-05-31 | ZB17: =IF(ZB15,EOMONTH(ZB16,$F$17),ZA17) -> 2059-05-31 | ZC17: =IF(ZC15,EOMONTH(ZC16,$F$17),ZB17) -> 2059-05-31 | ZD17: =IF(ZD15,EOMONTH(ZD16,$F$17),ZC17) -> 2059-05-31 | ZE17: =IF(ZE15,EOMONTH(ZE16,$F$17),ZD17) -> 2059-05-31 | ZF17: =IF(ZF15,EOMONTH(ZF16,$F$17),ZE17) -> 2059-05-31 | ZG17: =IF(ZG15,EOMONTH(ZG16,$F$17),ZF17) -> 2059-05-31 | ZH17: =IF(ZH15,EOMONTH(ZH16,$F$17),ZG17) -> 2059-05-31 | ZI17: =IF(ZI15,EOMONTH(ZI16,$F$17),ZH17) -> 2059-05-31 | ZJ17: =IF(ZJ15,EOMONTH(ZJ16,$F$17),ZI17) -> 2059-05-31 | ZK17: =IF(ZK15,EOMONTH(ZK16,$F$17),ZJ17) -> 2059-05-31 | ZL17: =IF(ZL15,EOMONTH(ZL16,$F$17),ZK17) -> 2059-05-31 | ZM17: =IF(ZM15,EOMONTH(ZM16,$F$17),ZL17) -> 2059-05-31 | ZN17: =IF(ZN15,EOMONTH(ZN16,$F$17),ZM17) -> 2059-05-31 | ZO17: =IF(ZO15,EOMONTH(ZO16,$F$17),ZN17) -> 2059-05-31 | ZP17: =IF(ZP15,EOMONTH(ZP16,$F$17),ZO17) -> 2059-05-31 | ZQ17: =IF(ZQ15,EOMONTH(ZQ16,$F$17),ZP17) -> 2059-05-31 | ZR17: =IF(ZR15,EOMONTH(ZR16,$F$17),ZQ17) -> 2059-05-31 | ZS17: =IF(ZS15,EOMONTH(ZS16,$F$17),ZR17) -> 2059-05-31 | ZT17: =IF(ZT15,EOMONTH(ZT16,$F$17),ZS17) -> 2059-05-31 | ZU17: =IF(ZU15,EOMONTH(ZU16,$F$17),ZT17) -> 2059-05-31 | ZV17: =IF(ZV15,EOMONTH(ZV16,$F$17),ZU17) -> 2059-05-31 | ZW17: =IF(ZW15,EOMONTH(ZW16,$F$17),ZV17) -> 2059-05-31 | ZX17: =IF(ZX15,EOMONTH(ZX16,$F$17),ZW17) -> 2059-05-31 | ZY17: =IF(ZY15,EOMONTH(ZY16,$F$17),ZX17) -> 2059-05-31 | ZZ17: =IF(ZZ15,EOMONTH(ZZ16,$F$17),ZY17) -> 2059-05-31 | AAA17: =IF(AAA15,EOMONTH(AAA16,$F$17),ZZ17) -> 2059-05-31 | AAB17: =IF(AAB15,EOMONTH(AAB16,$F$17),AAA17) -> 2059-05-31 | AAC17: =IF(AAC15,EOMONTH(AAC16,$F$17),AAB17) -> 2059-05-31 | AAD17: =IF(AAD15,EOMONTH(AAD16,$F$17),AAC17) -> 2059-05-31 | AAE17: =IF(AAE15,EOMONTH(AAE16,$F$17),AAD17) -> 2059-05-31 | AAF17: =IF(AAF15,EOMONTH(AAF16,$F$17),AAE17) -> 2059-05-31 | AAG17: =IF(AAG15,EOMONTH(AAG16,$F$17),AAF17) -> 2059-05-31 | AAH17: =IF(AAH15,EOMONTH(AAH16,$F$17),AAG17) -> 2059-05-31 | AAI17: =IF(AAI15,EOMONTH(AAI16,$F$17),AAH17) -> 2059-05-31 | AAJ17: =IF(AAJ15,EOMONTH(AAJ16,$F$17),AAI17) -> 2059-05-31 | AAK17: =IF(AAK15,EOMONTH(AAK16,$F$17),AAJ17) -> 2059-05-31 | AAL17: =IF(AAL15,EOMONTH(AAL16,$F$17),AAK17) -> 2059-05-31 | AAM17: =IF(AAM15,EOMONTH(AAM16,$F$17),AAL17) -> 2059-05-31 | AAN17: =IF(AAN15,EOMONTH(AAN16,$F$17),AAM17) -> 2059-05-31 | AAO17: =IF(AAO15,EOMONTH(AAO16,$F$17),AAN17) -> 2059-05-31 | AAP17: =IF(AAP15,EOMONTH(AAP16,$F$17),AAO17) -> 2059-05-31 | AAQ17: =IF(AAQ15,EOMONTH(AAQ16,$F$17),AAP17) -> 2059-05-31 | AAR17: =IF(AAR15,EOMONTH(AAR16,$F$17),AAQ17) -> 2059-05-31 | AAS17: =IF(AAS15,EOMONTH(AAS16,$F$17),AAR17) -> 2059-05-31 | AAT17: =IF(AAT15,EOMONTH(AAT16,$F$17),AAS17) -> 2059-05-31 | AAU17: =IF(AAU15,EOMONTH(AAU16,$F$17),AAT17) -> 2059-05-31 | AAV17: =IF(AAV15,EOMONTH(AAV16,$F$17),AAU17) -> 2059-05-31 | AAW17: =IF(AAW15,EOMONTH(AAW16,$F$17),AAV17) -> 2059-05-31 | AAX17: =IF(AAX15,EOMONTH(AAX16,$F$17),AAW17) -> 2059-05-31 | AAY17: =IF(AAY15,EOMONTH(AAY16,$F$17),AAX17) -> 2059-05-31 | AAZ17: =IF(AAZ15,EOMONTH(AAZ16,$F$17),AAY17) -> 2059-05-31 | ABA17: =IF(ABA15,EOMONTH(ABA16,$F$17),AAZ17) -> 2059-05-31 | ABB17: =IF(ABB15,EOMONTH(ABB16,$F$17),ABA17) -> 2059-05-31 | ABC17: =IF(ABC15,EOMONTH(ABC16,$F$17),ABB17) -> 2059-05-31 | ABD17: =IF(ABD15,EOMONTH(ABD16,$F$17),ABC17) -> 2059-05-31 | ABE17: =IF(ABE15,EOMONTH(ABE16,$F$17),ABD17) -> 2059-05-31 | ABF17: =IF(ABF15,EOMONTH(ABF16,$F$17),ABE17) -> 2059-05-31 | ABG17: =IF(ABG15,EOMONTH(ABG16,$F$17),ABF17) -> 2059-05-31 | ABH17: =IF(ABH15,EOMONTH(ABH16,$F$17),ABG17) -> 2059-05-31 | ABI17: =IF(ABI15,EOMONTH(ABI16,$F$17),ABH17) -> 2059-05-31 | ABJ17: =IF(ABJ15,EOMONTH(ABJ16,$F$17),ABI17) -> 2059-05-31 | ABK17: =IF(ABK15,EOMONTH(ABK16,$F$17),ABJ17) -> 2059-05-31 | ABL17: =IF(ABL15,EOMONTH(ABL16,$F$17),ABK17) -> 2059-05-31 | ABM17: =IF(ABM15,EOMONTH(ABM16,$F$17),ABL17) -> 2059-05-31 | ABN17: =IF(ABN15,EOMONTH(ABN16,$F$17),ABM17) -> 2059-05-31 | ABO17: =IF(ABO15,EOMONTH(ABO16,$F$17),ABN17) -> 2059-05-31 | ABP17: =IF(ABP15,EOMONTH(ABP16,$F$17),ABO17) -> 2059-05-31 | ABQ17: =IF(ABQ15,EOMONTH(ABQ16,$F$17),ABP17) -> 2059-05-31 | ABR17: =IF(ABR15,EOMONTH(ABR16,$F$17),ABQ17) -> 2059-05-31 | ABS17: =IF(ABS15,EOMONTH(ABS16,$F$17),ABR17) -> 2059-05-31 | ABT17: =IF(ABT15,EOMONTH(ABT16,$F$17),ABS17) -> 2059-05-31 | ABU17: =IF(ABU15,EOMONTH(ABU16,$F$17),ABT17) -> 2059-05-31 | ABV17: =IF(ABV15,EOMONTH(ABV16,$F$17),ABU17) -> 2059-05-31 | ABW17: =IF(ABW15,EOMONTH(ABW16,$F$17),ABV17) -> 2059-05-31 | ABX17: =IF(ABX15,EOMONTH(ABX16,$F$17),ABW17) -> 2059-05-31 | ABY17: =IF(ABY15,EOMONTH(ABY16,$F$17),ABX17) -> 2059-05-31 | ABZ17: =IF(ABZ15,EOMONTH(ABZ16,$F$17),ABY17) -> 2059-05-31 | ACA17: =IF(ACA15,EOMONTH(ACA16,$F$17),ABZ17) -> 2059-05-31 | ACB17: =IF(ACB15,EOMONTH(ACB16,$F$17),ACA17) -> 2059-05-31 | ACC17: =IF(ACC15,EOMONTH(ACC16,$F$17),ACB17) -> 2059-05-31 | ACD17: =IF(ACD15,EOMONTH(ACD16,$F$17),ACC17) -> 2059-05-31 | ACE17: =IF(ACE15,EOMONTH(ACE16,$F$17),ACD17) -> 2059-05-31 | ACF17: =IF(ACF15,EOMONTH(ACF16,$F$17),ACE17) -> 2059-05-31 | ACG17: =IF(ACG15,EOMONTH(ACG16,$F$17),ACF17) -> 2059-05-31 | ACH17: =IF(ACH15,EOMONTH(ACH16,$F$17),ACG17) -> 2059-05-31 | ACI17: =IF(ACI15,EOMONTH(ACI16,$F$17),ACH17) -> 2059-05-31 | ACJ17: =IF(ACJ15,EOMONTH(ACJ16,$F$17),ACI17) -> 2059-05-31 | ACK17: =IF(ACK15,EOMONTH(ACK16,$F$17),ACJ17) -> 2059-05-31 | ACL17: =IF(ACL15,EOMONTH(ACL16,$F$17),ACK17) -> 2059-05-31 | ACM17: =IF(ACM15,EOMONTH(ACM16,$F$17),ACL17) -> 2059-05-31 | ACN17: =IF(ACN15,EOMONTH(ACN16,$F$17),ACM17) -> 2059-05-31 | ACO17: =IF(ACO15,EOMONTH(ACO16,$F$17),ACN17) -> 2059-05-31 | ACP17: =IF(ACP15,EOMONTH(ACP16,$F$17),ACO17) -> 2059-05-31 | ACQ17: =IF(ACQ15,EOMONTH(ACQ16,$F$17),ACP17) -> 2059-05-31 | ACR17: =IF(ACR15,EOMONTH(ACR16,$F$17),ACQ17) -> 2059-05-31 | ACS17: =IF(ACS15,EOMONTH(ACS16,$F$17),ACR17) -> 2059-05-31 | ACT17: =IF(ACT15,EOMONTH(ACT16,$F$17),ACS17) -> 2059-05-31 | ACU17: =IF(ACU15,EOMONTH(ACU16,$F$17),ACT17) -> 2059-05-31 | ACV17: =IF(ACV15,EOMONTH(ACV16,$F$17),ACU17) -> 2059-05-31 | ACW17: =IF(ACW15,EOMONTH(ACW16,$F$17),ACV17) -> 2059-05-31 | ACX17: =IF(ACX15,EOMONTH(ACX16,$F$17),ACW17) -> 2059-05-31 | ACY17: =IF(ACY15,EOMONTH(ACY16,$F$17),ACX17) -> 2059-05-31 | ACZ17: =IF(ACZ15,EOMONTH(ACZ16,$F$17),ACY17) -> 2059-05-31 | ADA17: =IF(ADA15,EOMONTH(ADA16,$F$17),ACZ17) -> 2059-05-31 | ADB17: =IF(ADB15,EOMONTH(ADB16,$F$17),ADA17) -> 2059-05-31 | ADC17: =IF(ADC15,EOMONTH(ADC16,$F$17),ADB17) -> 2059-05-31 | ADD17: =IF(ADD15,EOMONTH(ADD16,$F$17),ADC17) -> 2059-05-31 | ADE17: =IF(ADE15,EOMONTH(ADE16,$F$17),ADD17) -> 2059-05-31 | ADF17: =IF(ADF15,EOMONTH(ADF16,$F$17),ADE17) -> 2059-05-31 | ADG17: =IF(ADG15,EOMONTH(ADG16,$F$17),ADF17) -> 2059-05-31 | ADH17: =IF(ADH15,EOMONTH(ADH16,$F$17),ADG17) -> 2059-05-31 | ADI17: =IF(ADI15,EOMONTH(ADI16,$F$17),ADH17) -> 2059-05-31 | ADJ17: =IF(ADJ15,EOMONTH(ADJ16,$F$17),ADI17) -> 2059-05-31 | ADK17: =IF(ADK15,EOMONTH(ADK16,$F$17),ADJ17) -> 2059-05-31 | ADL17: =IF(ADL15,EOMONTH(ADL16,$F$17),ADK17) -> 2059-05-31 | ADM17: =IF(ADM15,EOMONTH(ADM16,$F$17),ADL17) -> 2059-05-31 | ADN17: =IF(ADN15,EOMONTH(ADN16,$F$17),ADM17) -> 2059-05-31 | ADO17: =IF(ADO15,EOMONTH(ADO16,$F$17),ADN17) -> 2059-05-31 | ADP17: =IF(ADP15,EOMONTH(ADP16,$F$17),ADO17) -> 2059-05-31 | ADQ17: =IF(ADQ15,EOMONTH(ADQ16,$F$17),ADP17) -> 2059-05-31 | ADR17: =IF(ADR15,EOMONTH(ADR16,$F$17),ADQ17) -> 2059-05-31 | ADS17: =IF(ADS15,EOMONTH(ADS16,$F$17),ADR17) -> 2059-05-31 | ADT17: =IF(ADT15,EOMONTH(ADT16,$F$17),ADS17) -> 2059-05-31 | ADU17: =IF(ADU15,EOMONTH(ADU16,$F$17),ADT17) -> 2059-05-31 | ADV17: =IF(ADV15,EOMONTH(ADV16,$F$17),ADU17) -> 2059-05-31 | ADW17: =IF(ADW15,EOMONTH(ADW16,$F$17),ADV17) -> 2059-05-31 | ADX17: =IF(ADX15,EOMONTH(ADX16,$F$17),ADW17) -> 2059-05-31 | ADY17: =IF(ADY15,EOMONTH(ADY16,$F$17),ADX17) -> 2059-05-31 | ADZ17: =IF(ADZ15,EOMONTH(ADZ16,$F$17),ADY17) -> 2059-05-31 | AEA17: =IF(AEA15,EOMONTH(AEA16,$F$17),ADZ17) -> 2059-05-31 | AEB17: =IF(AEB15,EOMONTH(AEB16,$F$17),AEA17) -> 2059-05-31 | AEC17: =IF(AEC15,EOMONTH(AEC16,$F$17),AEB17) -> 2059-05-31 | AED17: =IF(AED15,EOMONTH(AED16,$F$17),AEC17) -> 2059-05-31 | AEE17: =IF(AEE15,EOMONTH(AEE16,$F$17),AED17) -> 2059-05-31
D18: Final Semi-Annual Date | G18: Date | J18: =IF(L6,L5,L17) | L18: =IF(L6,L5,L17) -> 2023-01-31 | M18: 2023-02-28 | N18: 2023-03-31 | O18: 2023-04-30 | P18: 2023-05-31 | Q18: 2023-06-30 | R18: 2023-07-31 | S18: 2023-08-31 | T18: 2023-09-30 | U18: 2023-10-31 | V18: 2023-11-30 | W18: 2024-05-31 | X18: 2024-05-31 | Y18: 2024-05-31 | Z18: 2024-05-31 | AA18: 2024-05-31 | AB18: 2024-05-31 | AC18: 2024-11-30 | AD18: 2024-11-30 | AE18: 2024-11-30 | AF18: 2024-11-30 | AG18: 2024-11-30 | AH18: 2024-11-30 | AI18: 2025-05-31 | AJ18: 2025-05-31 | AK18: 2025-05-31 | AL18: 2025-05-31 | AM18: 2025-05-31 | AN18: 2025-05-31 | AO18: 2025-11-30 | AP18: 2025-11-30 | AQ18: 2025-11-30 | AR18: 2025-11-30 | AS18: 2025-11-30 | AT18: 2025-11-30 | AU18: 2026-05-31 | AV18: 2026-05-31 | AW18: 2026-05-31 | AX18: 2026-05-31 | AY18: 2026-05-31 | AZ18: 2026-05-31 | BA18: 2026-11-30 | BB18: 2026-11-30 | BC18: 2026-11-30 | BD18: 2026-11-30 | BE18: 2026-11-30 | BF18: 2026-11-30 | BG18: 2027-05-31 | BH18: 2027-05-31 | BI18: 2027-05-31 | BJ18: 2027-05-31 | BK18: 2027-05-31 | BL18: 2027-05-31 | BM18: 2027-11-30 | BN18: 2027-11-30 | BO18: 2027-11-30 | BP18: 2027-11-30 | BQ18: 2027-11-30 | BR18: 2027-11-30 | BS18: 2028-05-31 | BT18: 2028-05-31 | BU18: 2028-05-31 | BV18: 2028-05-31 | BW18: 2028-05-31 | BX18: =IF(BX6,BX5,BX17) -> 2028-05-31 | BY18: 2028-11-30 | BZ18: 2028-11-30 | CA18: 2028-11-30 | CB18: 2028-11-30 | CC18: 2028-11-30 | CD18: 2028-11-30 | CE18: 2029-05-31 | CF18: 2029-05-31 | CG18: 2029-05-31 | CH18: 2029-05-31 | CI18: 2029-05-31 | CJ18: 2029-05-31 | CK18: 2029-11-30 | CL18: 2029-11-30 | CM18: 2029-11-30 | CN18: 2029-11-30 | CO18: 2029-11-30 | CP18: 2029-11-30 | CQ18: 2030-05-31 | CR18: 2030-05-31 | CS18: 2030-05-31 | CT18: 2030-05-31 | CU18: 2030-05-31 | CV18: 2030-05-31 | CW18: 2030-11-30 | CX18: 2030-11-30 | CY18: 2030-11-30 | CZ18: 2030-11-30 | DA18: 2030-11-30 | DB18: 2030-11-30 | DC18: 2031-05-31 | DD18: 2031-05-31 | DE18: 2031-05-31 | DF18: 2031-05-31 | DG18: 2031-05-31 | DH18: 2031-05-31 | DI18: 2031-11-30 | DJ18: 2031-11-30 | DK18: 2031-11-30 | DL18: 2031-11-30 | DM18: 2031-11-30 | DN18: 2031-11-30 | DO18: 2032-05-31 | DP18: 2032-05-31 | DQ18: 2032-05-31 | DR18: 2032-05-31 | DS18: 2032-05-31 | DT18: 2032-05-31 | DU18: 2032-11-30 | DV18: 2032-11-30 | DW18: 2032-11-30 | DX18: 2032-11-30 | DY18: 2032-11-30 | DZ18: 2032-11-30 | EA18: 2033-05-31 | EB18: 2033-05-31 | EC18: 2033-05-31 | ED18: 2033-05-31 | EE18: 2033-05-31 | EF18: 2033-05-31 | EG18: 2033-11-30 | EH18: 2033-11-30 | EI18: 2033-11-30 | EJ18: =IF(EJ6,EJ5,EJ17) -> 2033-11-30 | EK18: 2033-11-30 | EL18: 2033-11-30 | EM18: 2034-05-31 | EN18: 2034-05-31 | EO18: 2034-05-31 | EP18: 2034-05-31 | EQ18: 2034-05-31 | ER18: 2034-05-31 | ES18: 2034-11-30 | ET18: 2034-11-30 | EU18: 2034-11-30 | EV18: 2034-11-30 | EW18: 2034-11-30 | EX18: 2034-11-30 | EY18: 2035-05-31 | EZ18: 2035-05-31 | FA18: 2035-05-31 | FB18: 2035-05-31 | FC18: 2035-05-31 | FD18: 2035-05-31 | FE18: 2035-11-30 | FF18: 2035-11-30 | FG18: 2035-11-30 | FH18: 2035-11-30 | FI18: 2035-11-30 | FJ18: 2035-11-30 | FK18: 2036-05-31 | FL18: 2036-05-31 | FM18: 2036-05-31 | FN18: 2036-05-31 | FO18: 2036-05-31 | FP18: 2036-05-31 | FQ18: 2036-11-30 | FR18: 2036-11-30 | FS18: 2036-11-30 | FT18: 2036-11-30 | FU18: 2036-11-30 | FV18: 2036-11-30 | FW18: 2037-05-31 | FX18: 2037-05-31 | FY18: 2037-05-31 | FZ18: 2037-05-31 | GA18: 2037-05-31 | GB18: 2037-05-31 | GC18: 2037-11-30 | GD18: 2037-11-30 | GE18: 2037-11-30 | GF18: 2037-11-30 | GG18: 2037-11-30 | GH18: 2037-11-30 | GI18: 2038-05-31 | GJ18: 2038-05-31 | GK18: 2038-05-31 | GL18: 2038-05-31 | GM18: 2038-05-31 | GN18: 2038-05-31 | GO18: 2038-11-30 | GP18: 2038-11-30 | GQ18: 2038-11-30 | GR18: 2038-11-30 | GS18: 2038-11-30 | GT18: 2038-11-30 | GU18: 2039-05-31 | GV18: =IF(GV6,GV5,GV17) -> 2039-05-31 | GW18: 2039-05-31 | GX18: 2039-05-31 | GY18: 2039-05-31 | GZ18: 2039-05-31 | HA18: 2039-11-30 | HB18: 2039-11-30 | HC18: 2039-11-30 | HD18: 2039-11-30 | HE18: 2039-11-30 | HF18: 2039-11-30 | HG18: 2040-05-31 | HH18: 2040-05-31 | HI18: 2040-05-31 | HJ18: 2040-05-31 | HK18: 2040-05-31 | HL18: 2040-05-31 | HM18: 2040-11-30 | HN18: 2040-11-30 | HO18: 2040-11-30 | HP18: 2040-11-30 | HQ18: 2040-11-30 | HR18: 2040-11-30 | HS18: 2041-05-31 | HT18: 2041-05-31 | HU18: 2041-05-31 | HV18: 2041-05-31 | HW18: 2041-05-31 | HX18: 2041-05-31 | HY18: 2041-11-30 | HZ18: 2041-11-30 | IA18: 2041-11-30 | IB18: 2041-11-30 | IC18: 2041-11-30 | ID18: 2041-11-30 | IE18: 2042-05-31 | IF18: 2042-05-31 | IG18: 2042-05-31 | IH18: 2042-05-31 | II18: 2042-05-31 | IJ18: 2042-05-31 | IK18: 2042-11-30 | IL18: 2042-11-30 | IM18: 2042-11-30 | IN18: 2042-11-30 | IO18: 2042-11-30 | IP18: 2042-11-30 | IQ18: 2043-05-31 | IR18: 2043-05-31 | IS18: 2043-05-31 | IT18: 2043-05-31 | IU18: 2043-05-31 | IV18: 2043-05-31 | IW18: 2043-11-30 | IX18: 2043-11-30 | IY18: 2043-11-30 | IZ18: 2043-11-30 | JA18: 2043-11-30 | JB18: 2043-11-30 | JC18: 2044-05-31 | JD18: 2044-05-31 | JE18: 2044-05-31 | JF18: 2044-05-31 | JG18: 2044-05-31 | JH18: =IF(JH6,JH5,JH17) -> 2044-05-31 | JI18: 2044-11-30 | JJ18: 2044-11-30 | JK18: 2044-11-30 | JL18: 2044-11-30 | JM18: 2044-11-30 | JN18: 2044-11-30 | JO18: 2045-05-31 | JP18: 2045-05-31 | JQ18: 2045-05-31 | JR18: 2045-05-31 | JS18: 2045-05-31 | JT18: 2045-05-31 | JU18: 2045-11-30 | JV18: 2045-11-30 | JW18: 2045-11-30 | JX18: 2045-11-30 | JY18: 2045-11-30 | JZ18: 2045-11-30 | KA18: 2046-05-31 | KB18: 2046-05-31 | KC18: 2046-05-31 | KD18: 2046-05-31 | KE18: 2046-05-31 | KF18: 2046-05-31 | KG18: 2046-11-30 | KH18: 2046-11-30 | KI18: 2046-11-30 | KJ18: 2046-11-30 | KK18: 2046-11-30 | KL18: 2046-11-30 | KM18: 2047-05-31 | KN18: 2047-05-31 | KO18: 2047-05-31 | KP18: 2047-05-31 | KQ18: 2047-05-31 | KR18: 2047-05-31 | KS18: 2047-11-30 | KT18: 2047-11-30 | KU18: 2047-11-30 | KV18: 2047-11-30 | KW18: 2047-11-30 | KX18: 2047-11-30 | KY18: 2048-05-31 | KZ18: 2048-05-31 | LA18: 2048-05-31 | LB18: 2048-05-31 | LC18: 2048-05-31 | LD18: 2048-05-31 | LE18: 2048-11-30 | LF18: 2048-11-30 | LG18: 2048-11-30 | LH18: 2048-11-30 | LI18: 2048-11-30 | LJ18: 2048-11-30 | LK18: 2049-05-31 | LL18: 2049-05-31 | LM18: 2049-05-31 | LN18: 2049-05-31 | LO18: 2049-05-31 | LP18: 2049-05-31 | LQ18: 2049-11-30 | LR18: 2049-11-30 | LS18: 2049-11-30 | LT18: =IF(LT6,LT5,LT17) -> 2049-11-30 | LU18: 2049-11-30 | LV18: 2049-11-30 | LW18: 2050-05-31 | LX18: 2050-05-31 | LY18: 2050-05-31 | LZ18: 2050-05-31 | MA18: 2050-05-31 | MB18: 2050-05-31 | MC18: 2050-11-30 | MD18: 2050-11-30 | ME18: 2050-11-30 | MF18: 2050-11-30 | MG18: 2050-11-30 | MH18: 2050-11-30 | MI18: 2051-05-31 | MJ18: 2051-05-31 | MK18: 2051-05-31 | ML18: 2051-05-31 | MM18: 2051-05-31 | MN18: 2051-05-31 | MO18: 2051-11-30 | MP18: 2051-11-30 | MQ18: 2051-11-30 | MR18: 2051-11-30 | MS18: 2051-11-30 | MT18: 2051-11-30 | MU18: 2052-05-31 | MV18: 2052-05-31 | MW18: 2052-05-31 | MX18: 2052-05-31 | MY18: 2052-05-31 | MZ18: 2052-05-31 | NA18: 2052-11-30 | NB18: 2052-11-30 | NC18: 2052-11-30 | ND18: 2052-11-30 | NE18: 2052-11-30 | NF18: 2052-11-30 | NG18: 2053-05-31 | NH18: 2053-05-31 | NI18: 2053-05-31 | NJ18: 2053-05-31 | NK18: 2053-05-31 | NL18: 2053-05-31 | NM18: 2053-11-30 | NN18: 2053-11-30 | NO18: 2053-11-30 | NP18: 2053-11-30 | NQ18: 2053-11-30 | NR18: 2053-11-30 | NS18: 2054-05-31 | NT18: 2054-05-31 | NU18: 2054-05-31 | NV18: 2054-05-31 | NW18: 2054-05-31 | NX18: 2054-05-31 | NY18: 2054-11-30 | NZ18: 2054-11-30 | OA18: 2054-11-30 | OB18: 2054-11-30 | OC18: 2054-11-30 | OD18: 2054-11-30 | OE18: 2055-05-31 | OF18: =IF(OF6,OF5,OF17) -> 2055-05-31 | OG18: 2055-05-31 | OH18: 2055-05-31 | OI18: 2055-05-31 | OJ18: 2055-05-31 | OK18: 2055-11-30 | OL18: 2055-11-30 | OM18: 2055-11-30 | ON18: 2055-11-30 | OO18: 2055-11-30 | OP18: 2055-11-30 | OQ18: 2056-05-31 | OR18: 2056-05-31 | OS18: 2056-05-31 | OT18: 2056-05-31 | OU18: 2056-05-31 | OV18: 2056-05-31 | OW18: 2056-11-30 | OX18: 2056-11-30 | OY18: 2056-11-30 | OZ18: 2056-11-30 | PA18: 2056-11-30 | PB18: 2056-11-30 | PC18: 2057-05-31 | PD18: 2057-05-31 | PE18: 2057-05-31 | PF18: 2057-05-31 | PG18: 2057-05-31 | PH18: 2057-05-31 | PI18: 2057-11-30 | PJ18: 2057-11-30 | PK18: 2057-11-30 | PL18: 2057-11-30 | PM18: 2057-11-30 | PN18: 2057-11-30 | PO18: 2058-05-31 | PP18: 2058-05-31 | PQ18: 2058-05-31 | PR18: 2058-05-31 | PS18: 2058-05-31 | PT18: 2058-05-31 | PU18: 2058-11-30 | PV18: 2058-11-30 | PW18: 2058-11-30 | PX18: 2058-11-30 | PY18: 2058-11-30 | PZ18: 2058-11-30 | QA18: 2059-05-31 | QB18: 2059-05-31 | QC18: 2059-05-31 | QD18: 2059-05-31 | QE18: 2059-05-31 | QF18: 2059-05-31 | QG18: 2059-05-31 | QH18: 2059-05-31 | QI18: 2059-05-31 | QJ18: 2059-05-31 | QK18: 2059-05-31 | QL18: 2059-05-31 | QM18: 2059-05-31 | QN18: 2059-05-31 | QO18: 2059-05-31 | QP18: 2059-05-31 | QQ18: 2059-05-31 | QR18: =IF(QR6,QR5,QR17) -> 2059-05-31 | QS18: 2059-05-31 | QT18: 2059-05-31 | QU18: 2059-05-31 | QV18: 2059-05-31 | QW18: 2059-05-31 | QX18: 2059-05-31 | QY18: 2059-05-31 | QZ18: 2059-05-31 | RA18: 2059-05-31 | RB18: 2059-05-31 | RC18: 2059-05-31 | RD18: 2059-05-31 | RE18: 2059-05-31 | RF18: 2059-05-31 | RG18: 2059-05-31 | RH18: 2059-05-31 | RI18: 2059-05-31 | RJ18: 2059-05-31 | RK18: 2059-05-31 | RL18: 2059-05-31 | RM18: 2059-05-31 | RN18: 2059-05-31 | RO18: 2059-05-31 | RP18: 2059-05-31 | RQ18: 2059-05-31 | RR18: 2059-05-31 | RS18: 2059-05-31 | RT18: 2059-05-31 | RU18: 2059-05-31 | RV18: 2059-05-31 | RW18: 2059-05-31 | RX18: 2059-05-31 | RY18: 2059-05-31 | RZ18: 2059-05-31 | SA18: 2059-05-31 | SB18: 2059-05-31 | SC18: 2059-05-31 | SD18: 2059-05-31 | SE18: 2059-05-31 | SF18: 2059-05-31 | SG18: 2059-05-31 | SH18: 2059-05-31 | SI18: 2059-05-31 | SJ18: 2059-05-31 | SK18: 2059-05-31 | SL18: 2059-05-31 | SM18: 2059-05-31 | SN18: 2059-05-31 | SO18: 2059-05-31 | SP18: 2059-05-31 | SQ18: 2059-05-31 | SR18: 2059-05-31 | SS18: 2059-05-31 | ST18: 2059-05-31 | SU18: 2059-05-31 | SV18: 2059-05-31 | SW18: 2059-05-31 | SX18: 2059-05-31 | SY18: 2059-05-31 | SZ18: 2059-05-31 | TA18: 2059-05-31 | TB18: 2059-05-31 | TC18: 2059-05-31 | TD18: =IF(TD6,TD5,TD17) -> 2059-05-31 | TE18: 2059-05-31 | TF18: 2059-05-31 | TG18: 2059-05-31 | TH18: 2059-05-31 | TI18: 2059-05-31 | TJ18: 2059-05-31 | TK18: 2059-05-31 | TL18: 2059-05-31 | TM18: 2059-05-31 | TN18: 2059-05-31 | TO18: 2059-05-31 | TP18: 2059-05-31 | TQ18: 2059-05-31 | TR18: 2059-05-31 | TS18: 2059-05-31 | TT18: 2059-05-31 | TU18: 2059-05-31 | TV18: 2059-05-31 | TW18: 2059-05-31 | TX18: 2059-05-31 | TY18: 2059-05-31 | TZ18: 2059-05-31 | UA18: 2059-05-31 | UB18: 2059-05-31 | UC18: 2059-05-31 | UD18: 2059-05-31 | UE18: 2059-05-31 | UF18: 2059-05-31 | UG18: 2059-05-31 | UH18: 2059-05-31 | UI18: 2059-05-31 | UJ18: 2059-05-31 | UK18: 2059-05-31 | UL18: 2059-05-31 | UM18: 2059-05-31 | UN18: 2059-05-31 | UO18: 2059-05-31 | UP18: 2059-05-31 | UQ18: 2059-05-31 | UR18: 2059-05-31 | US18: 2059-05-31 | UT18: 2059-05-31 | UU18: 2059-05-31 | UV18: 2059-05-31 | UW18: 2059-05-31 | UX18: 2059-05-31 | UY18: 2059-05-31 | UZ18: 2059-05-31 | VA18: 2059-05-31 | VB18: 2059-05-31 | VC18: 2059-05-31 | VD18: 2059-05-31 | VE18: 2059-05-31 | VF18: 2059-05-31 | VG18: 2059-05-31 | VH18: 2059-05-31 | VI18: 2059-05-31 | VJ18: 2059-05-31 | VK18: 2059-05-31 | VL18: 2059-05-31 | VM18: 2059-05-31 | VN18: 2059-05-31 | VO18: 2059-05-31 | VP18: =IF(VP6,VP5,VP17) -> 2059-05-31 | VQ18: 2059-05-31 | VR18: 2059-05-31 | VS18: 2059-05-31 | VT18: 2059-05-31 | VU18: 2059-05-31 | VV18: 2059-05-31 | VW18: 2059-05-31 | VX18: 2059-05-31 | VY18: 2059-05-31 | VZ18: 2059-05-31 | WA18: 2059-05-31 | WB18: 2059-05-31 | WC18: 2059-05-31 | WD18: 2059-05-31 | WE18: 2059-05-31 | WF18: 2059-05-31 | WG18: 2059-05-31 | WH18: 2059-05-31 | WI18: 2059-05-31 | WJ18: 2059-05-31 | WK18: 2059-05-31 | WL18: 2059-05-31 | WM18: 2059-05-31 | WN18: 2059-05-31 | WO18: 2059-05-31 | WP18: 2059-05-31 | WQ18: 2059-05-31 | WR18: 2059-05-31 | WS18: 2059-05-31 | WT18: 2059-05-31 | WU18: 2059-05-31 | WV18: 2059-05-31 | WW18: 2059-05-31 | WX18: 2059-05-31 | WY18: 2059-05-31 | WZ18: 2059-05-31 | XA18: 2059-05-31 | XB18: 2059-05-31 | XC18: 2059-05-31 | XD18: 2059-05-31 | XE18: 2059-05-31 | XF18: 2059-05-31 | XG18: 2059-05-31 | XH18: 2059-05-31 | XI18: 2059-05-31 | XJ18: 2059-05-31 | XK18: 2059-05-31 | XL18: 2059-05-31 | XM18: 2059-05-31 | XN18: 2059-05-31 | XO18: 2059-05-31 | XP18: 2059-05-31 | XQ18: 2059-05-31 | XR18: 2059-05-31 | XS18: 2059-05-31 | XT18: 2059-05-31 | XU18: 2059-05-31 | XV18: 2059-05-31 | XW18: 2059-05-31 | XX18: 2059-05-31 | XY18: 2059-05-31 | XZ18: 2059-05-31 | YA18: 2059-05-31 | YB18: =IF(YB6,YB5,YB17) -> 2059-05-31 | YC18: 2059-05-31 | YD18: 2059-05-31 | YE18: 2059-05-31 | YF18: 2059-05-31 | YG18: 2059-05-31 | YH18: 2059-05-31 | YI18: 2059-05-31 | YJ18: 2059-05-31 | YK18: 2059-05-31 | YL18: 2059-05-31 | YM18: 2059-05-31 | YN18: 2059-05-31 | YO18: 2059-05-31 | YP18: 2059-05-31 | YQ18: 2059-05-31 | YR18: 2059-05-31 | YS18: 2059-05-31 | YT18: 2059-05-31 | YU18: 2059-05-31 | YV18: 2059-05-31 | YW18: 2059-05-31 | YX18: 2059-05-31 | YY18: 2059-05-31 | YZ18: 2059-05-31 | ZA18: 2059-05-31 | ZB18: 2059-05-31 | ZC18: 2059-05-31 | ZD18: 2059-05-31 | ZE18: 2059-05-31 | ZF18: 2059-05-31 | ZG18: 2059-05-31 | ZH18: 2059-05-31 | ZI18: 2059-05-31 | ZJ18: 2059-05-31 | ZK18: 2059-05-31 | ZL18: 2059-05-31 | ZM18: 2059-05-31 | ZN18: 2059-05-31 | ZO18: 2059-05-31 | ZP18: 2059-05-31 | ZQ18: 2059-05-31 | ZR18: 2059-05-31 | ZS18: 2059-05-31 | ZT18: 2059-05-31 | ZU18: 2059-05-31 | ZV18: 2059-05-31 | ZW18: 2059-05-31 | ZX18: 2059-05-31 | ZY18: 2059-05-31 | ZZ18: 2059-05-31 | AAA18: 2059-05-31 | AAB18: 2059-05-31 | AAC18: 2059-05-31 | AAD18: 2059-05-31 | AAE18: 2059-05-31 | AAF18: 2059-05-31 | AAG18: 2059-05-31 | AAH18: 2059-05-31 | AAI18: 2059-05-31 | AAJ18: 2059-05-31 | AAK18: 2059-05-31 | AAL18: 2059-05-31 | AAM18: 2059-05-31 | AAN18: =IF(AAN6,AAN5,AAN17) -> 2059-05-31 | AAO18: 2059-05-31 | AAP18: 2059-05-31 | AAQ18: 2059-05-31 | AAR18: 2059-05-31 | AAS18: 2059-05-31 | AAT18: 2059-05-31 | AAU18: 2059-05-31 | AAV18: 2059-05-31 | AAW18: 2059-05-31 | AAX18: 2059-05-31 | AAY18: 2059-05-31 | AAZ18: 2059-05-31 | ABA18: 2059-05-31 | ABB18: 2059-05-31 | ABC18: 2059-05-31 | ABD18: 2059-05-31 | ABE18: 2059-05-31 | ABF18: 2059-05-31 | ABG18: 2059-05-31 | ABH18: 2059-05-31 | ABI18: 2059-05-31 | ABJ18: 2059-05-31 | ABK18: 2059-05-31 | ABL18: 2059-05-31 | ABM18: 2059-05-31 | ABN18: 2059-05-31 | ABO18: 2059-05-31 | ABP18: 2059-05-31 | ABQ18: 2059-05-31 | ABR18: 2059-05-31 | ABS18: 2059-05-31 | ABT18: 2059-05-31 | ABU18: 2059-05-31 | ABV18: 2059-05-31 | ABW18: 2059-05-31 | ABX18: 2059-05-31 | ABY18: 2059-05-31 | ABZ18: 2059-05-31 | ACA18: 2059-05-31 | ACB18: 2059-05-31 | ACC18: 2059-05-31 | ACD18: 2059-05-31 | ACE18: 2059-05-31 | ACF18: 2059-05-31 | ACG18: 2059-05-31 | ACH18: 2059-05-31 | ACI18: 2059-05-31 | ACJ18: 2059-05-31 | ACK18: 2059-05-31 | ACL18: 2059-05-31 | ACM18: 2059-05-31 | ACN18: 2059-05-31 | ACO18: 2059-05-31 | ACP18: 2059-05-31 | ACQ18: 2059-05-31 | ACR18: 2059-05-31 | ACS18: 2059-05-31 | ACT18: 2059-05-31 | ACU18: 2059-05-31 | ACV18: 2059-05-31 | ACW18: 2059-05-31 | ACX18: 2059-05-31 | ACY18: 2059-05-31 | ACZ18: =IF(ACZ6,ACZ5,ACZ17) -> 2059-05-31 | ADA18: 2059-05-31 | ADB18: 2059-05-31 | ADC18: 2059-05-31 | ADD18: 2059-05-31 | ADE18: 2059-05-31 | ADF18: 2059-05-31 | ADG18: 2059-05-31 | ADH18: 2059-05-31 | ADI18: 2059-05-31 | ADJ18: 2059-05-31 | ADK18: 2059-05-31 | ADL18: 2059-05-31 | ADM18: 2059-05-31 | ADN18: 2059-05-31 | ADO18: 2059-05-31 | ADP18: 2059-05-31 | ADQ18: 2059-05-31 | ADR18: 2059-05-31 | ADS18: 2059-05-31 | ADT18: 2059-05-31 | ADU18: 2059-05-31 | ADV18: 2059-05-31 | ADW18: 2059-05-31 | ADX18: 2059-05-31 | ADY18: 2059-05-31 | ADZ18: 2059-05-31 | AEA18: 2059-05-31 | AEB18: 2059-05-31 | AEC18: 2059-05-31 | AED18: 2059-05-31 | AEE18: 2059-05-31
B20: Capacity and Production
D21: EBITDA Annual | E21: =to_norminv -> 100 | G21: ='InputC - Operations'!G17 -> Euro | L21: =$E$21*L7 -> 0 | M21: 0 | N21: 0 | O21: 0 | P21: 0 | Q21: 0 | R21: 0 | S21: 0 | T21: 0 | U21: 0 | V21: 0 | W21: 100 | X21: 100 | Y21: 100 | Z21: 100 | AA21: 100 | AB21: 100 | AC21: 100 | AD21: 100 | AE21: 100 | AF21: 100 | AG21: 100 | AH21: 100 | AI21: 100 | AJ21: 100 | AK21: 100 | AL21: 100 | AM21: 100 | AN21: 100 | AO21: 100 | AP21: 100 | AQ21: 100 | AR21: 100 | AS21: 100 | AT21: 100 | AU21: 100 | AV21: 100 | AW21: 100 | AX21: 100 | AY21: 100 | AZ21: 100 | BA21: 100 | BB21: 100 | BC21: 100 | BD21: 100 | BE21: 100 | BF21: 100 | BG21: 100 | BH21: 100 | BI21: 100 | BJ21: 100 | BK21: 100 | BL21: 100 | BM21: 100 | BN21: 100 | BO21: 100 | BP21: 100 | BQ21: 100 | BR21: 100 | BS21: 100 | BT21: 100 | BU21: 100 | BV21: 100 | BW21: 100 | BX21: =$E$21*BX7 -> 100 | BY21: 100 | BZ21: 100 | CA21: 100 | CB21: 100 | CC21: 100 | CD21: 100 | CE21: 100 | CF21: 100 | CG21: 100 | CH21: 100 | CI21: 100 | CJ21: 100 | CK21: 100 | CL21: 100 | CM21: 100 | CN21: 100 | CO21: 100 | CP21: 100 | CQ21: 100 | CR21: 100 | CS21: 100 | CT21: 100 | CU21: 100 | CV21: 100 | CW21: 100 | CX21: 100 | CY21: 100 | CZ21: 100 | DA21: 100 | DB21: 100 | DC21: 100 | DD21: 100 | DE21: 100 | DF21: 100 | DG21: 100 | DH21: 100 | DI21: 100 | DJ21: 100 | DK21: 100 | DL21: 100 | DM21: 100 | DN21: 100 | DO21: 100 | DP21: 100 | DQ21: 100 | DR21: 100 | DS21: 100 | DT21: 100 | DU21: 100 | DV21: 100 | DW21: 100 | DX21: 100 | DY21: 100 | DZ21: 100 | EA21: 100 | EB21: 100 | EC21: 100 | ED21: 100 | EE21: 100 | EF21: 100 | EG21: 100 | EH21: 100 | EI21: 100 | EJ21: =$E$21*EJ7 -> 100 | EK21: 100 | EL21: 100 | EM21: 100 | EN21: 100 | EO21: 100 | EP21: 100 | EQ21: 100 | ER21: 100 | ES21: 100 | ET21: 100 | EU21: 100 | EV21: 100 | EW21: 100 | EX21: 100 | EY21: 100 | EZ21: 100 | FA21: 100 | FB21: 100 | FC21: 100 | FD21: 100 | FE21: 100 | FF21: 100 | FG21: 100 | FH21: 100 | FI21: 100 | FJ21: 100 | FK21: 100 | FL21: 100 | FM21: 100 | FN21: 100 | FO21: 100 | FP21: 100 | FQ21: 100 | FR21: 100 | FS21: 100 | FT21: 100 | FU21: 100 | FV21: 100 | FW21: 100 | FX21: 100 | FY21: 100 | FZ21: 100 | GA21: 100 | GB21: 100 | GC21: 100 | GD21: 100 | GE21: 100 | GF21: 100 | GG21: 100 | GH21: 100 | GI21: 100 | GJ21: 100 | GK21: 100 | GL21: 100 | GM21: 100 | GN21: 100 | GO21: 100 | GP21: 100 | GQ21: 100 | GR21: 100 | GS21: 100 | GT21: 100 | GU21: 100 | GV21: =$E$21*GV7 -> 100 | GW21: 100 | GX21: 100 | GY21: 100 | GZ21: 100 | HA21: 100 | HB21: 100 | HC21: 100 | HD21: 100 | HE21: 100 | HF21: 100 | HG21: 100 | HH21: 100 | HI21: 100 | HJ21: 100 | HK21: 100 | HL21: 100 | HM21: 100 | HN21: 100 | HO21: 100 | HP21: 100 | HQ21: 100 | HR21: 100 | HS21: 100 | HT21: 100 | HU21: 100 | HV21: 100 | HW21: 100 | HX21: 100 | HY21: 100 | HZ21: 100 | IA21: 100 | IB21: 100 | IC21: 100 | ID21: 100 | IE21: 100 | IF21: 100 | IG21: 100 | IH21: 100 | II21: 100 | IJ21: 100 | IK21: 100 | IL21: 100 | IM21: 100 | IN21: 100 | IO21: 100 | IP21: 100 | IQ21: 100 | IR21: 100 | IS21: 100 | IT21: 100 | IU21: 100 | IV21: 100 | IW21: 100 | IX21: 100 | IY21: 100 | IZ21: 100 | JA21: 100 | JB21: 100 | JC21: 100 | JD21: 100 | JE21: 100 | JF21: 100 | JG21: 100 | JH21: =$E$21*JH7 -> 100 | JI21: 100 | JJ21: 100 | JK21: 100 | JL21: 100 | JM21: 100 | JN21: 100 | JO21: 100 | JP21: 100 | JQ21: 100 | JR21: 100 | JS21: 100 | JT21: 100 | JU21: 100 | JV21: 100 | JW21: 100 | JX21: 100 | JY21: 100 | JZ21: 100 | KA21: 100 | KB21: 100 | KC21: 100 | KD21: 100 | KE21: 100 | KF21: 100 | KG21: 100 | KH21: 100 | KI21: 100 | KJ21: 100 | KK21: 100 | KL21: 100 | KM21: 100 | KN21: 100 | KO21: 100 | KP21: 100 | KQ21: 100 | KR21: 100 | KS21: 100 | KT21: 100 | KU21: 100 | KV21: 100 | KW21: 100 | KX21: 100 | KY21: 100 | KZ21: 100 | LA21: 100 | LB21: 100 | LC21: 100 | LD21: 100 | LE21: 100 | LF21: 100 | LG21: 100 | LH21: 100 | LI21: 100 | LJ21: 100 | LK21: 100 | LL21: 100 | LM21: 100 | LN21: 100 | LO21: 100 | LP21: 100 | LQ21: 100 | LR21: 100 | LS21: 100 | LT21: =$E$21*LT7 -> 100 | LU21: 100 | LV21: 100 | LW21: 100 | LX21: 100 | LY21: 100 | LZ21: 100 | MA21: 100 | MB21: 100 | MC21: 100 | MD21: 100 | ME21: 100 | MF21: 100 | MG21: 100 | MH21: 100 | MI21: 100 | MJ21: 100 | MK21: 100 | ML21: 100 | MM21: 100 | MN21: 100 | MO21: 100 | MP21: 100 | MQ21: 100 | MR21: 100 | MS21: 100 | MT21: 100 | MU21: 100 | MV21: 100 | MW21: 100 | MX21: 100 | MY21: 100 | MZ21: 100 | NA21: 100 | NB21: 100 | NC21: 100 | ND21: 100 | NE21: 100 | NF21: 100 | NG21: 100 | NH21: 100 | NI21: 100 | NJ21: 100 | NK21: 100 | NL21: 100 | NM21: 100 | NN21: 100 | NO21: 100 | NP21: 100 | NQ21: 100 | NR21: 100 | NS21: 100 | NT21: 100 | NU21: 100 | NV21: 100 | NW21: 100 | NX21: 100 | NY21: 100 | NZ21: 100 | OA21: 100 | OB21: 100 | OC21: 100 | OD21: 100 | OE21: 100 | OF21: =$E$21*OF7 -> 100 | OG21: 100 | OH21: 100 | OI21: 100 | OJ21: 100 | OK21: 100 | OL21: 100 | OM21: 100 | ON21: 100 | OO21: 100 | OP21: 100 | OQ21: 100 | OR21: 100 | OS21: 100 | OT21: 100 | OU21: 100 | OV21: 100 | OW21: 100 | OX21: 100 | OY21: 100 | OZ21: 100 | PA21: 100 | PB21: 100 | PC21: 100 | PD21: 100 | PE21: 100 | PF21: 100 | PG21: 100 | PH21: 100 | PI21: 100 | PJ21: 100 | PK21: 100 | PL21: 100 | PM21: 100 | PN21: 100 | PO21: 100 | PP21: 100 | PQ21: 100 | PR21: 100 | PS21: 100 | PT21: 100 | PU21: 100 | PV21: 100 | PW21: 100 | PX21: 100 | PY21: 100 | PZ21: 100 | QA21: 0 | QB21: 0 | QC21: 0 | QD21: 0 | QE21: 0 | QF21: 0 | QG21: 0 | QH21: 0 | QI21: 0 | QJ21: 0 | QK21: 0 | QL21: 0 | QM21: 0 | QN21: 0 | QO21: 0 | QP21: 0 | QQ21: 0 | QR21: =$E$21*QR7 -> 0 | QS21: 0 | QT21: 0 | QU21: 0 | QV21: 0 | QW21: 0 | QX21: 0 | QY21: 0 | QZ21: 0 | RA21: 0 | RB21: 0 | RC21: 0 | RD21: 0 | RE21: 0 | RF21: 0 | RG21: 0 | RH21: 0 | RI21: 0 | RJ21: 0 | RK21: 0 | RL21: 0 | RM21: 0 | RN21: 0 | RO21: 0 | RP21: 0 | RQ21: 0 | RR21: 0 | RS21: 0 | RT21: 0 | RU21: 0 | RV21: 0 | RW21: 0 | RX21: 0 | RY21: 0 | RZ21: 0 | SA21: 0 | SB21: 0 | SC21: 0 | SD21: 0 | SE21: 0 | SF21: 0 | SG21: 0 | SH21: 0 | SI21: 0 | SJ21: 0 | SK21: 0 | SL21: 0 | SM21: 0 | SN21: 0 | SO21: 0 | SP21: 0 | SQ21: 0 | SR21: 0 | SS21: 0 | ST21: 0 | SU21: 0 | SV21: 0 | SW21: 0 | SX21: 0 | SY21: 0 | SZ21: 0 | TA21: 0 | TB21: 0 | TC21: 0 | TD21: =$E$21*TD7 -> 0 | TE21: 0 | TF21: 0 | TG21: 0 | TH21: 0 | TI21: 0 | TJ21: 0 | TK21: 0 | TL21: 0 | TM21: 0 | TN21: 0 | TO21: 0 | TP21: 0 | TQ21: 0 | TR21: 0 | TS21: 0 | TT21: 0 | TU21: 0 | TV21: 0 | TW21: 0 | TX21: 0 | TY21: 0 | TZ21: 0 | UA21: 0 | UB21: 0 | UC21: 0 | UD21: 0 | UE21: 0 | UF21: 0 | UG21: 0 | UH21: 0 | UI21: 0 | UJ21: 0 | UK21: 0 | UL21: 0 | UM21: 0 | UN21: 0 | UO21: 0 | UP21: 0 | UQ21: 0 | UR21: 0 | US21: 0 | UT21: 0 | UU21: 0 | UV21: 0 | UW21: 0 | UX21: 0 | UY21: 0 | UZ21: 0 | VA21: 0 | VB21: 0 | VC21: 0 | VD21: 0 | VE21: 0 | VF21: 0 | VG21: 0 | VH21: 0 | VI21: 0 | VJ21: 0 | VK21: 0 | VL21: 0 | VM21: 0 | VN21: 0 | VO21: 0 | VP21: =$E$21*VP7 -> 0 | VQ21: 0 | VR21: 0 | VS21: 0 | VT21: 0 | VU21: 0 | VV21: 0 | VW21: 0 | VX21: 0 | VY21: 0 | VZ21: 0 | WA21: 0 | WB21: 0 | WC21: 0 | WD21: 0 | WE21: 0 | WF21: 0 | WG21: 0 | WH21: 0 | WI21: 0 | WJ21: 0 | WK21: 0 | WL21: 0 | WM21: 0 | WN21: 0 | WO21: 0 | WP21: 0 | WQ21: 0 | WR21: 0 | WS21: 0 | WT21: 0 | WU21: 0 | WV21: 0 | WW21: 0 | WX21: 0 | WY21: 0 | WZ21: 0 | XA21: 0 | XB21: 0 | XC21: 0 | XD21: 0 | XE21: 0 | XF21: 0 | XG21: 0 | XH21: 0 | XI21: 0 | XJ21: 0 | XK21: 0 | XL21: 0 | XM21: 0 | XN21: 0 | XO21: 0 | XP21: 0 | XQ21: 0 | XR21: 0 | XS21: 0 | XT21: 0 | XU21: 0 | XV21: 0 | XW21: 0 | XX21: 0 | XY21: 0 | XZ21: 0 | YA21: 0 | YB21: =$E$21*YB7 -> 0 | YC21: 0 | YD21: 0 | YE21: 0 | YF21: 0 | YG21: 0 | YH21: 0 | YI21: 0 | YJ21: 0 | YK21: 0 | YL21: 0 | YM21: 0 | YN21: 0 | YO21: 0 | YP21: 0 | YQ21: 0 | YR21: 0 | YS21: 0 | YT21: 0 | YU21: 0 | YV21: 0 | YW21: 0 | YX21: 0 | YY21: 0 | YZ21: 0 | ZA21: 0 | ZB21: 0 | ZC21: 0 | ZD21: 0 | ZE21: 0 | ZF21: 0 | ZG21: 0 | ZH21: 0 | ZI21: 0 | ZJ21: 0 | ZK21: 0 | ZL21: 0 | ZM21: 0 | ZN21: 0 | ZO21: 0 | ZP21: 0 | ZQ21: 0 | ZR21: 0 | ZS21: 0 | ZT21: 0 | ZU21: 0 | ZV21: 0 | ZW21: 0 | ZX21: 0 | ZY21: 0 | ZZ21: 0 | AAA21: 0 | AAB21: 0 | AAC21: 0 | AAD21: 0 | AAE21: 0 | AAF21: 0 | AAG21: 0 | AAH21: 0 | AAI21: 0 | AAJ21: 0 | AAK21: 0 | AAL21: 0 | AAM21: 0 | AAN21: =$E$21*AAN7 -> 0 | AAO21: 0 | AAP21: 0 | AAQ21: 0 | AAR21: 0 | AAS21: 0 | AAT21: 0 | AAU21: 0 | AAV21: 0 | AAW21: 0 | AAX21: 0 | AAY21: 0 | AAZ21: 0 | ABA21: 0 | ABB21: 0 | ABC21: 0 | ABD21: 0 | ABE21: 0 | ABF21: 0 | ABG21: 0 | ABH21: 0 | ABI21: 0 | ABJ21: 0 | ABK21: 0 | ABL21: 0 | ABM21: 0 | ABN21: 0 | ABO21: 0 | ABP21: 0 | ABQ21: 0 | ABR21: 0 | ABS21: 0 | ABT21: 0 | ABU21: 0 | ABV21: 0 | ABW21: 0 | ABX21: 0 | ABY21: 0 | ABZ21: 0 | ACA21: 0 | ACB21: 0 | ACC21: 0 | ACD21: 0 | ACE21: 0 | ACF21: 0 | ACG21: 0 | ACH21: 0 | ACI21: 0 | ACJ21: 0 | ACK21: 0 | ACL21: 0 | ACM21: 0 | ACN21: 0 | ACO21: 0 | ACP21: 0 | ACQ21: 0 | ACR21: 0 | ACS21: 0 | ACT21: 0 | ACU21: 0 | ACV21: 0 | ACW21: 0 | ACX21: 0 | ACY21: 0 | ACZ21: =$E$21*ACZ7 -> 0 | ADA21: 0 | ADB21: 0 | ADC21: 0 | ADD21: 0 | ADE21: 0 | ADF21: 0 | ADG21: 0 | ADH21: 0 | ADI21: 0 | ADJ21: 0 | ADK21: 0 | ADL21: 0 | ADM21: 0 | ADN21: 0 | ADO21: 0 | ADP21: 0 | ADQ21: 0 | ADR21: 0 | ADS21: 0 | ADT21: 0 | ADU21: 0 | ADV21: 0 | ADW21: 0 | ADX21: 0 | ADY21: 0 | ADZ21: 0 | AEA21: 0 | AEB21: 0 | AEC21: 0 | AED21: 0 | AEE21: 0
D23: Month Number | G23: Month | L23: =MONTH(L4) -> 1 | M23: 2 | N23: 3 | O23: 4 | P23: 5 | Q23: 6 | R23: 7 | S23: 8 | T23: 9 | U23: 10 | V23: 11 | W23: 12 | X23: 1 | Y23: 2 | Z23: 3 | AA23: 4 | AB23: 5 | AC23: 6 | AD23: 7 | AE23: 8 | AF23: 9 | AG23: 10 | AH23: 11 | AI23: 12 | AJ23: 1 | AK23: 2 | AL23: 3 | AM23: 4 | AN23: 5 | AO23: 6 | AP23: 7 | AQ23: 8 | AR23: 9 | AS23: 10 | AT23: 11 | AU23: 12 | AV23: 1 | AW23: 2 | AX23: 3 | AY23: 4 | AZ23: 5 | BA23: 6 | BB23: 7 | BC23: 8 | BD23: 9 | BE23: 10 | BF23: 11 | BG23: 12 | BH23: 1 | BI23: 2 | BJ23: 3 | BK23: 4 | BL23: 5 | BM23: 6 | BN23: 7 | BO23: 8 | BP23: 9 | BQ23: 10 | BR23: 11 | BS23: 12 | BT23: 1 | BU23: 2 | BV23: 3 | BW23: 4 | BX23: =MONTH(BX4) -> 5 | BY23: 6 | BZ23: 7 | CA23: 8 | CB23: 9 | CC23: 10 | CD23: 11 | CE23: 12 | CF23: 1 | CG23: 2 | CH23: 3 | CI23: 4 | CJ23: 5 | CK23: 6 | CL23: 7 | CM23: 8 | CN23: 9 | CO23: 10 | CP23: 11 | CQ23: 12 | CR23: 1 | CS23: 2 | CT23: 3 | CU23: 4 | CV23: 5 | CW23: 6 | CX23: 7 | CY23: 8 | CZ23: 9 | DA23: 10 | DB23: 11 | DC23: 12 | DD23: 1 | DE23: 2 | DF23: 3 | DG23: 4 | DH23: 5 | DI23: 6 | DJ23: 7 | DK23: 8 | DL23: 9 | DM23: 10 | DN23: 11 | DO23: 12 | DP23: 1 | DQ23: 2 | DR23: 3 | DS23: 4 | DT23: 5 | DU23: 6 | DV23: 7 | DW23: 8 | DX23: 9 | DY23: 10 | DZ23: 11 | EA23: 12 | EB23: 1 | EC23: 2 | ED23: 3 | EE23: 4 | EF23: 5 | EG23: 6 | EH23: 7 | EI23: 8 | EJ23: =MONTH(EJ4) -> 9 | EK23: 10 | EL23: 11 | EM23: 12 | EN23: 1 | EO23: 2 | EP23: 3 | EQ23: 4 | ER23: 5 | ES23: 6 | ET23: 7 | EU23: 8 | EV23: 9 | EW23: 10 | EX23: 11 | EY23: 12 | EZ23: 1 | FA23: 2 | FB23: 3 | FC23: 4 | FD23: 5 | FE23: 6 | FF23: 7 | FG23: 8 | FH23: 9 | FI23: 10 | FJ23: 11 | FK23: 12 | FL23: 1 | FM23: 2 | FN23: 3 | FO23: 4 | FP23: 5 | FQ23: 6 | FR23: 7 | FS23: 8 | FT23: 9 | FU23: 10 | FV23: 11 | FW23: 12 | FX23: 1 | FY23: 2 | FZ23: 3 | GA23: 4 | GB23: 5 | GC23: 6 | GD23: 7 | GE23: 8 | GF23: 9 | GG23: 10 | GH23: 11 | GI23: 12 | GJ23: 1 | GK23: 2 | GL23: 3 | GM23: 4 | GN23: 5 | GO23: 6 | GP23: 7 | GQ23: 8 | GR23: 9 | GS23: 10 | GT23: 11 | GU23: 12 | GV23: =MONTH(GV4) -> 1 | GW23: 2 | GX23: 3 | GY23: 4 | GZ23: 5 | HA23: 6 | HB23: 7 | HC23: 8 | HD23: 9 | HE23: 10 | HF23: 11 | HG23: 12 | HH23: 1 | HI23: 2 | HJ23: 3 | HK23: 4 | HL23: 5 | HM23: 6 | HN23: 7 | HO23: 8 | HP23: 9 | HQ23: 10 | HR23: 11 | HS23: 12 | HT23: 1 | HU23: 2 | HV23: 3 | HW23: 4 | HX23: 5 | HY23: 6 | HZ23: 7 | IA23: 8 | IB23: 9 | IC23: 10 | ID23: 11 | IE23: 12 | IF23: 1 | IG23: 2 | IH23: 3 | II23: 4 | IJ23: 5 | IK23: 6 | IL23: 7 | IM23: 8 | IN23: 9 | IO23: 10 | IP23: 11 | IQ23: 12 | IR23: 1 | IS23: 2 | IT23: 3 | IU23: 4 | IV23: 5 | IW23: 6 | IX23: 7 | IY23: 8 | IZ23: 9 | JA23: 10 | JB23: 11 | JC23: 12 | JD23: 1 | JE23: 2 | JF23: 3 | JG23: 4 | JH23: =MONTH(JH4) -> 5 | JI23: 6 | JJ23: 7 | JK23: 8 | JL23: 9 | JM23: 10 | JN23: 11 | JO23: 12 | JP23: 1 | JQ23: 2 | JR23: 3 | JS23: 4 | JT23: 5 | JU23: 6 | JV23: 7 | JW23: 8 | JX23: 9 | JY23: 10 | JZ23: 11 | KA23: 12 | KB23: 1 | KC23: 2 | KD23: 3 | KE23: 4 | KF23: 5 | KG23: 6 | KH23: 7 | KI23: 8 | KJ23: 9 | KK23: 10 | KL23: 11 | KM23: 12 | KN23: 1 | KO23: 2 | KP23: 3 | KQ23: 4 | KR23: 5 | KS23: 6 | KT23: 7 | KU23: 8 | KV23: 9 | KW23: 10 | KX23: 11 | KY23: 12 | KZ23: 1 | LA23: 2 | LB23: 3 | LC23: 4 | LD23: 5 | LE23: 6 | LF23: 7 | LG23: 8 | LH23: 9 | LI23: 10 | LJ23: 11 | LK23: 12 | LL23: 1 | LM23: 2 | LN23: 3 | LO23: 4 | LP23: 5 | LQ23: 6 | LR23: 7 | LS23: 8 | LT23: =MONTH(LT4) -> 9 | LU23: 10 | LV23: 11 | LW23: 12 | LX23: 1 | LY23: 2 | LZ23: 3 | MA23: 4 | MB23: 5 | MC23: 6 | MD23: 7 | ME23: 8 | MF23: 9 | MG23: 10 | MH23: 11 | MI23: 12 | MJ23: 1 | MK23: 2 | ML23: 3 | MM23: 4 | MN23: 5 | MO23: 6 | MP23: 7 | MQ23: 8 | MR23: 9 | MS23: 10 | MT23: 11 | MU23: 12 | MV23: 1 | MW23: 2 | MX23: 3 | MY23: 4 | MZ23: 5 | NA23: 6 | NB23: 7 | NC23: 8 | ND23: 9 | NE23: 10 | NF23: 11 | NG23: 12 | NH23: 1 | NI23: 2 | NJ23: 3 | NK23: 4 | NL23: 5 | NM23: 6 | NN23: 7 | NO23: 8 | NP23: 9 | NQ23: 10 | NR23: 11 | NS23: 12 | NT23: 1 | NU23: 2 | NV23: 3 | NW23: 4 | NX23: 5 | NY23: 6 | NZ23: 7 | OA23: 8 | OB23: 9 | OC23: 10 | OD23: 11 | OE23: 12 | OF23: =MONTH(OF4) -> 1 | OG23: 2 | OH23: 3 | OI23: 4 | OJ23: 5 | OK23: 6 | OL23: 7 | OM23: 8 | ON23: 9 | OO23: 10 | OP23: 11 | OQ23: 12 | OR23: 1 | OS23: 2 | OT23: 3 | OU23: 4 | OV23: 5 | OW23: 6 | OX23: 7 | OY23: 8 | OZ23: 9 | PA23: 10 | PB23: 11 | PC23: 12 | PD23: 1 | PE23: 2 | PF23: 3 | PG23: 4 | PH23: 5 | PI23: 6 | PJ23: 7 | PK23: 8 | PL23: 9 | PM23: 10 | PN23: 11 | PO23: 12 | PP23: 1 | PQ23: 2 | PR23: 3 | PS23: 4 | PT23: 5 | PU23: 6 | PV23: 7 | PW23: 8 | PX23: 9 | PY23: 10 | PZ23: 11 | QA23: 12 | QB23: 1 | QC23: 2 | QD23: 3 | QE23: 4 | QF23: 5 | QG23: 6 | QH23: 7 | QI23: 8 | QJ23: 9 | QK23: 10 | QL23: 11 | QM23: 12 | QN23: 1 | QO23: 2 | QP23: 3 | QQ23: 4 | QR23: =MONTH(QR4) -> 5 | QS23: 6 | QT23: 7 | QU23: 8 | QV23: 9 | QW23: 10 | QX23: 11 | QY23: 12 | QZ23: 1 | RA23: 2 | RB23: 3 | RC23: 4 | RD23: 5 | RE23: 6 | RF23: 7 | RG23: 8 | RH23: 9 | RI23: 10 | RJ23: 11 | RK23: 12 | RL23: 1 | RM23: 2 | RN23: 3 | RO23: 4 | RP23: 5 | RQ23: 6 | RR23: 7 | RS23: 8 | RT23: 9 | RU23: 10 | RV23: 11 | RW23: 12 | RX23: 1 | RY23: 2 | RZ23: 3 | SA23: 4 | SB23: 5 | SC23: 6 | SD23: 7 | SE23: 8 | SF23: 9 | SG23: 10 | SH23: 11 | SI23: 12 | SJ23: 1 | SK23: 2 | SL23: 3 | SM23: 4 | SN23: 5 | SO23: 6 | SP23: 7 | SQ23: 8 | SR23: 9 | SS23: 10 | ST23: 11 | SU23: 12 | SV23: 1 | SW23: 2 | SX23: 3 | SY23: 4 | SZ23: 5 | TA23: 6 | TB23: 7 | TC23: 8 | TD23: =MONTH(TD4) -> 9 | TE23: 10 | TF23: 11 | TG23: 12 | TH23: 1 | TI23: 2 | TJ23: 3 | TK23: 4 | TL23: 5 | TM23: 6 | TN23: 7 | TO23: 8 | TP23: 9 | TQ23: 10 | TR23: 11 | TS23: 12 | TT23: 1 | TU23: 2 | TV23: 3 | TW23: 4 | TX23: 5 | TY23: 6 | TZ23: 7 | UA23: 8 | UB23: 9 | UC23: 10 | UD23: 11 | UE23: 12 | UF23: 1 | UG23: 2 | UH23: 3 | UI23: 4 | UJ23: 5 | UK23: 6 | UL23: 7 | UM23: 8 | UN23: 9 | UO23: 10 | UP23: 11 | UQ23: 12 | UR23: 1 | US23: 2 | UT23: 3 | UU23: 4 | UV23: 5 | UW23: 6 | UX23: 7 | UY23: 8 | UZ23: 9 | VA23: 10 | VB23: 11 | VC23: 12 | VD23: 1 | VE23: 2 | VF23: 3 | VG23: 4 | VH23: 5 | VI23: 6 | VJ23: 7 | VK23: 8 | VL23: 9 | VM23: 10 | VN23: 11 | VO23: 12 | VP23: =MONTH(VP4) -> 1 | VQ23: 2 | VR23: 3 | VS23: 4 | VT23: 5 | VU23: 6 | VV23: 7 | VW23: 8 | VX23: 9 | VY23: 10 | VZ23: 11 | WA23: 12 | WB23: 1 | WC23: 2 | WD23: 3 | WE23: 4 | WF23: 5 | WG23: 6 | WH23: 7 | WI23: 8 | WJ23: 9 | WK23: 10 | WL23: 11 | WM23: 12 | WN23: 1 | WO23: 2 | WP23: 3 | WQ23: 4 | WR23: 5 | WS23: 6 | WT23: 7 | WU23: 8 | WV23: 9 | WW23: 10 | WX23: 11 | WY23: 12 | WZ23: 1 | XA23: 2 | XB23: 3 | XC23: 4 | XD23: 5 | XE23: 6 | XF23: 7 | XG23: 8 | XH23: 9 | XI23: 10 | XJ23: 11 | XK23: 12 | XL23: 1 | XM23: 2 | XN23: 3 | XO23: 4 | XP23: 5 | XQ23: 6 | XR23: 7 | XS23: 8 | XT23: 9 | XU23: 10 | XV23: 11 | XW23: 12 | XX23: 1 | XY23: 2 | XZ23: 3 | YA23: 4 | YB23: =MONTH(YB4) -> 5 | YC23: 6 | YD23: 7 | YE23: 8 | YF23: 9 | YG23: 10 | YH23: 11 | YI23: 12 | YJ23: 1 | YK23: 2 | YL23: 3 | YM23: 4 | YN23: 5 | YO23: 6 | YP23: 7 | YQ23: 8 | YR23: 9 | YS23: 10 | YT23: 11 | YU23: 12 | YV23: 1 | YW23: 2 | YX23: 3 | YY23: 4 | YZ23: 5 | ZA23: 6 | ZB23: 7 | ZC23: 8 | ZD23: 9 | ZE23: 10 | ZF23: 11 | ZG23: 12 | ZH23: 1 | ZI23: 2 | ZJ23: 3 | ZK23: 4 | ZL23: 5 | ZM23: 6 | ZN23: 7 | ZO23: 8 | ZP23: 9 | ZQ23: 10 | ZR23: 11 | ZS23: 12 | ZT23: 1 | ZU23: 2 | ZV23: 3 | ZW23: 4 | ZX23: 5 | ZY23: 6 | ZZ23: 7 | AAA23: 8 | AAB23: 9 | AAC23: 10 | AAD23: 11 | AAE23: 12 | AAF23: 1 | AAG23: 2 | AAH23: 3 | AAI23: 4 | AAJ23: 5 | AAK23: 6 | AAL23: 7 | AAM23: 8 | AAN23: =MONTH(AAN4) -> 9 | AAO23: 10 | AAP23: 11 | AAQ23: 12 | AAR23: 1 | AAS23: 2 | AAT23: 3 | AAU23: 4 | AAV23: 5 | AAW23: 6 | AAX23: 7 | AAY23: 8 | AAZ23: 9 | ABA23: 10 | ABB23: 11 | ABC23: 12 | ABD23: 1 | ABE23: 2 | ABF23: 3 | ABG23: 4 | ABH23: 5 | ABI23: 6 | ABJ23: 7 | ABK23: 8 | ABL23: 9 | ABM23: 10 | ABN23: 11 | ABO23: 12 | ABP23: 1 | ABQ23: 2 | ABR23: 3 | ABS23: 4 | ABT23: 5 | ABU23: 6 | ABV23: 7 | ABW23: 8 | ABX23: 9 | ABY23: 10 | ABZ23: 11 | ACA23: 12 | ACB23: 1 | ACC23: 2 | ACD23: 3 | ACE23: 4 | ACF23: 5 | ACG23: 6 | ACH23: 7 | ACI23: 8 | ACJ23: 9 | ACK23: 10 | ACL23: 11 | ACM23: 12 | ACN23: 1 | ACO23: 2 | ACP23: 3 | ACQ23: 4 | ACR23: 5 | ACS23: 6 | ACT23: 7 | ACU23: 8 | ACV23: 9 | ACW23: 10 | ACX23: 11 | ACY23: 12 | ACZ23: =MONTH(ACZ4) -> 1 | ADA23: 2 | ADB23: 3 | ADC23: 4 | ADD23: 5 | ADE23: 6 | ADF23: 7 | ADG23: 8 | ADH23: 9 | ADI23: 10 | ADJ23: 11 | ADK23: 12 | ADL23: 1 | ADM23: 2 | ADN23: 3 | ADO23: 4 | ADP23: 5 | ADQ23: 6 | ADR23: 7 | ADS23: 8 | ADT23: 9 | ADU23: 10 | ADV23: 11 | ADW23: 12 | ADX23: 1 | ADY23: 2 | ADZ23: 3 | AEA23: 4 | AEB23: 5 | AEC23: 6 | AED23: 7 | AEE23: 8
D24: Seasonality | G24: % | L24: =LOOKUP(L23,InputS!20:20,InputS!21:21) -> 0.06666666667 | M24: =LOOKUP(M23,InputS!20:20,InputS!21:21) -> 0.06666666667 | N24: =LOOKUP(N23,InputS!20:20,InputS!21:21) -> 0.08 | O24: =LOOKUP(O23,InputS!20:20,InputS!21:21) -> 0.085 | P24: =LOOKUP(P23,InputS!20:20,InputS!21:21) -> 0.09 | Q24: =LOOKUP(Q23,InputS!20:20,InputS!21:21) -> 0.12 | R24: =LOOKUP(R23,InputS!20:20,InputS!21:21) -> 0.12 | S24: =LOOKUP(S23,InputS!20:20,InputS!21:21) -> 0.09 | T24: =LOOKUP(T23,InputS!20:20,InputS!21:21) -> 0.08 | U24: =LOOKUP(U23,InputS!20:20,InputS!21:21) -> 0.07 | V24: =LOOKUP(V23,InputS!20:20,InputS!21:21) -> 0.065 | W24: =LOOKUP(W23,InputS!20:20,InputS!21:21) -> 0.06666666667 | X24: =LOOKUP(X23,InputS!20:20,InputS!21:21) -> 0.06666666667 | Y24: =LOOKUP(Y23,InputS!20:20,InputS!21:21) -> 0.06666666667 | Z24: =LOOKUP(Z23,InputS!20:20,InputS!21:21) -> 0.08 | AA24: =LOOKUP(AA23,InputS!20:20,InputS!21:21) -> 0.085 | AB24: =LOOKUP(AB23,InputS!20:20,InputS!21:21) -> 0.09 | AC24: =LOOKUP(AC23,InputS!20:20,InputS!21:21) -> 0.12 | AD24: =LOOKUP(AD23,InputS!20:20,InputS!21:21) -> 0.12 | AE24: =LOOKUP(AE23,InputS!20:20,InputS!21:21) -> 0.09 | AF24: =LOOKUP(AF23,InputS!20:20,InputS!21:21) -> 0.08 | AG24: =LOOKUP(AG23,InputS!20:20,InputS!21:21) -> 0.07 | AH24: =LOOKUP(AH23,InputS!20:20,InputS!21:21) -> 0.065 | AI24: =LOOKUP(AI23,InputS!20:20,InputS!21:21) -> 0.06666666667 | AJ24: =LOOKUP(AJ23,InputS!20:20,InputS!21:21) -> 0.06666666667 | AK24: =LOOKUP(AK23,InputS!20:20,InputS!21:21) -> 0.06666666667 | AL24: =LOOKUP(AL23,InputS!20:20,InputS!21:21) -> 0.08 | AM24: =LOOKUP(AM23,InputS!20:20,InputS!21:21) -> 0.085 | AN24: =LOOKUP(AN23,InputS!20:20,InputS!21:21) -> 0.09 | AO24: =LOOKUP(AO23,InputS!20:20,InputS!21:21) -> 0.12 | AP24: =LOOKUP(AP23,InputS!20:20,InputS!21:21) -> 0.12 | AQ24: =LOOKUP(AQ23,InputS!20:20,InputS!21:21) -> 0.09 | AR24: =LOOKUP(AR23,InputS!20:20,InputS!21:21) -> 0.08 | AS24: =LOOKUP(AS23,InputS!20:20,InputS!21:21) -> 0.07 | AT24: =LOOKUP(AT23,InputS!20:20,InputS!21:21) -> 0.065 | AU24: =LOOKUP(AU23,InputS!20:20,InputS!21:21) -> 0.06666666667 | AV24: =LOOKUP(AV23,InputS!20:20,InputS!21:21) -> 0.06666666667 | AW24: =LOOKUP(AW23,InputS!20:20,InputS!21:21) -> 0.06666666667 | AX24: =LOOKUP(AX23,InputS!20:20,InputS!21:21) -> 0.08 | AY24: =LOOKUP(AY23,InputS!20:20,InputS!21:21) -> 0.085 | AZ24: =LOOKUP(AZ23,InputS!20:20,InputS!21:21) -> 0.09 | BA24: =LOOKUP(BA23,InputS!20:20,InputS!21:21) -> 0.12 | BB24: =LOOKUP(BB23,InputS!20:20,InputS!21:21) -> 0.12 | BC24: =LOOKUP(BC23,InputS!20:20,InputS!21:21) -> 0.09 | BD24: =LOOKUP(BD23,InputS!20:20,InputS!21:21) -> 0.08 | BE24: =LOOKUP(BE23,InputS!20:20,InputS!21:21) -> 0.07 | BF24: =LOOKUP(BF23,InputS!20:20,InputS!21:21) -> 0.065 | BG24: =LOOKUP(BG23,InputS!20:20,InputS!21:21) -> 0.06666666667 | BH24: =LOOKUP(BH23,InputS!20:20,InputS!21:21) -> 0.06666666667 | BI24: =LOOKUP(BI23,InputS!20:20,InputS!21:21) -> 0.06666666667 | BJ24: =LOOKUP(BJ23,InputS!20:20,InputS!21:21) -> 0.08 | BK24: =LOOKUP(BK23,InputS!20:20,InputS!21:21) -> 0.085 | BL24: =LOOKUP(BL23,InputS!20:20,InputS!21:21) -> 0.09 | BM24: =LOOKUP(BM23,InputS!20:20,InputS!21:21) -> 0.12 | BN24: =LOOKUP(BN23,InputS!20:20,InputS!21:21) -> 0.12 | BO24: =LOOKUP(BO23,InputS!20:20,InputS!21:21) -> 0.09 | BP24: =LOOKUP(BP23,InputS!20:20,InputS!21:21) -> 0.08 | BQ24: =LOOKUP(BQ23,InputS!20:20,InputS!21:21) -> 0.07 | BR24: =LOOKUP(BR23,InputS!20:20,InputS!21:21) -> 0.065 | BS24: =LOOKUP(BS23,InputS!20:20,InputS!21:21) -> 0.06666666667 | BT24: =LOOKUP(BT23,InputS!20:20,InputS!21:21) -> 0.06666666667 | BU24: =LOOKUP(BU23,InputS!20:20,InputS!21:21) -> 0.06666666667 | BV24: =LOOKUP(BV23,InputS!20:20,InputS!21:21) -> 0.08 | BW24: =LOOKUP(BW23,InputS!20:20,InputS!21:21) -> 0.085 | BX24: =LOOKUP(BX23,InputS!20:20,InputS!21:21) -> 0.09 | BY24: =LOOKUP(BY23,InputS!20:20,InputS!21:21) -> 0.12 | BZ24: =LOOKUP(BZ23,InputS!20:20,InputS!21:21) -> 0.12 | CA24: =LOOKUP(CA23,InputS!20:20,InputS!21:21) -> 0.09 | CB24: =LOOKUP(CB23,InputS!20:20,InputS!21:21) -> 0.08 | CC24: =LOOKUP(CC23,InputS!20:20,InputS!21:21) -> 0.07 | CD24: =LOOKUP(CD23,InputS!20:20,InputS!21:21) -> 0.065 | CE24: =LOOKUP(CE23,InputS!20:20,InputS!21:21) -> 0.06666666667 | CF24: =LOOKUP(CF23,InputS!20:20,InputS!21:21) -> 0.06666666667 | CG24: =LOOKUP(CG23,InputS!20:20,InputS!21:21) -> 0.06666666667 | CH24: =LOOKUP(CH23,InputS!20:20,InputS!21:21) -> 0.08 | CI24: =LOOKUP(CI23,InputS!20:20,InputS!21:21) -> 0.085 | CJ24: =LOOKUP(CJ23,InputS!20:20,InputS!21:21) -> 0.09 | CK24: =LOOKUP(CK23,InputS!20:20,InputS!21:21) -> 0.12 | CL24: =LOOKUP(CL23,InputS!20:20,InputS!21:21) -> 0.12 | CM24: =LOOKUP(CM23,InputS!20:20,InputS!21:21) -> 0.09 | CN24: =LOOKUP(CN23,InputS!20:20,InputS!21:21) -> 0.08 | CO24: =LOOKUP(CO23,InputS!20:20,InputS!21:21) -> 0.07 | CP24: =LOOKUP(CP23,InputS!20:20,InputS!21:21) -> 0.065 | CQ24: =LOOKUP(CQ23,InputS!20:20,InputS!21:21) -> 0.06666666667 | CR24: =LOOKUP(CR23,InputS!20:20,InputS!21:21) -> 0.06666666667 | CS24: =LOOKUP(CS23,InputS!20:20,InputS!21:21) -> 0.06666666667 | CT24: =LOOKUP(CT23,InputS!20:20,InputS!21:21) -> 0.08 | CU24: =LOOKUP(CU23,InputS!20:20,InputS!21:21) -> 0.085 | CV24: =LOOKUP(CV23,InputS!20:20,InputS!21:21) -> 0.09 | CW24: =LOOKUP(CW23,InputS!20:20,InputS!21:21) -> 0.12 | CX24: =LOOKUP(CX23,InputS!20:20,InputS!21:21) -> 0.12 | CY24: =LOOKUP(CY23,InputS!20:20,InputS!21:21) -> 0.09 | CZ24: =LOOKUP(CZ23,InputS!20:20,InputS!21:21) -> 0.08 | DA24: =LOOKUP(DA23,InputS!20:20,InputS!21:21) -> 0.07 | DB24: =LOOKUP(DB23,InputS!20:20,InputS!21:21) -> 0.065 | DC24: =LOOKUP(DC23,InputS!20:20,InputS!21:21) -> 0.06666666667 | DD24: =LOOKUP(DD23,InputS!20:20,InputS!21:21) -> 0.06666666667 | DE24: =LOOKUP(DE23,InputS!20:20,InputS!21:21) -> 0.06666666667 | DF24: =LOOKUP(DF23,InputS!20:20,InputS!21:21) -> 0.08 | DG24: =LOOKUP(DG23,InputS!20:20,InputS!21:21) -> 0.085 | DH24: =LOOKUP(DH23,InputS!20:20,InputS!21:21) -> 0.09 | DI24: =LOOKUP(DI23,InputS!20:20,InputS!21:21) -> 0.12 | DJ24: =LOOKUP(DJ23,InputS!20:20,InputS!21:21) -> 0.12 | DK24: =LOOKUP(DK23,InputS!20:20,InputS!21:21) -> 0.09 | DL24: =LOOKUP(DL23,InputS!20:20,InputS!21:21) -> 0.08 | DM24: =LOOKUP(DM23,InputS!20:20,InputS!21:21) -> 0.07 | DN24: =LOOKUP(DN23,InputS!20:20,InputS!21:21) -> 0.065 | DO24: =LOOKUP(DO23,InputS!20:20,InputS!21:21) -> 0.06666666667 | DP24: =LOOKUP(DP23,InputS!20:20,InputS!21:21) -> 0.06666666667 | DQ24: =LOOKUP(DQ23,InputS!20:20,InputS!21:21) -> 0.06666666667 | DR24: =LOOKUP(DR23,InputS!20:20,InputS!21:21) -> 0.08 | DS24: =LOOKUP(DS23,InputS!20:20,InputS!21:21) -> 0.085 | DT24: =LOOKUP(DT23,InputS!20:20,InputS!21:21) -> 0.09 | DU24: =LOOKUP(DU23,InputS!20:20,InputS!21:21) -> 0.12 | DV24: =LOOKUP(DV23,InputS!20:20,InputS!21:21) -> 0.12 | DW24: =LOOKUP(DW23,InputS!20:20,InputS!21:21) -> 0.09 | DX24: =LOOKUP(DX23,InputS!20:20,InputS!21:21) -> 0.08 | DY24: =LOOKUP(DY23,InputS!20:20,InputS!21:21) -> 0.07 | DZ24: =LOOKUP(DZ23,InputS!20:20,InputS!21:21) -> 0.065 | EA24: =LOOKUP(EA23,InputS!20:20,InputS!21:21) -> 0.06666666667 | EB24: =LOOKUP(EB23,InputS!20:20,InputS!21:21) -> 0.06666666667 | EC24: =LOOKUP(EC23,InputS!20:20,InputS!21:21) -> 0.06666666667 | ED24: =LOOKUP(ED23,InputS!20:20,InputS!21:21) -> 0.08 | EE24: =LOOKUP(EE23,InputS!20:20,InputS!21:21) -> 0.085 | EF24: =LOOKUP(EF23,InputS!20:20,InputS!21:21) -> 0.09 | EG24: =LOOKUP(EG23,InputS!20:20,InputS!21:21) -> 0.12 | EH24: =LOOKUP(EH23,InputS!20:20,InputS!21:21) -> 0.12 | EI24: =LOOKUP(EI23,InputS!20:20,InputS!21:21) -> 0.09 | EJ24: =LOOKUP(EJ23,InputS!20:20,InputS!21:21) -> 0.08 | EK24: =LOOKUP(EK23,InputS!20:20,InputS!21:21) -> 0.07 | EL24: =LOOKUP(EL23,InputS!20:20,InputS!21:21) -> 0.065 | EM24: =LOOKUP(EM23,InputS!20:20,InputS!21:21) -> 0.06666666667 | EN24: =LOOKUP(EN23,InputS!20:20,InputS!21:21) -> 0.06666666667 | EO24: =LOOKUP(EO23,InputS!20:20,InputS!21:21) -> 0.06666666667 | EP24: =LOOKUP(EP23,InputS!20:20,InputS!21:21) -> 0.08 | EQ24: =LOOKUP(EQ23,InputS!20:20,InputS!21:21) -> 0.085 | ER24: =LOOKUP(ER23,InputS!20:20,InputS!21:21) -> 0.09 | ES24: =LOOKUP(ES23,InputS!20:20,InputS!21:21) -> 0.12 | ET24: =LOOKUP(ET23,InputS!20:20,InputS!21:21) -> 0.12 | EU24: =LOOKUP(EU23,InputS!20:20,InputS!21:21) -> 0.09 | EV24: =LOOKUP(EV23,InputS!20:20,InputS!21:21) -> 0.08 | EW24: =LOOKUP(EW23,InputS!20:20,InputS!21:21) -> 0.07 | EX24: =LOOKUP(EX23,InputS!20:20,InputS!21:21) -> 0.065 | EY24: =LOOKUP(EY23,InputS!20:20,InputS!21:21) -> 0.06666666667 | EZ24: =LOOKUP(EZ23,InputS!20:20,InputS!21:21) -> 0.06666666667 | FA24: =LOOKUP(FA23,InputS!20:20,InputS!21:21) -> 0.06666666667 | FB24: =LOOKUP(FB23,InputS!20:20,InputS!21:21) -> 0.08 | FC24: =LOOKUP(FC23,InputS!20:20,InputS!21:21) -> 0.085 | FD24: =LOOKUP(FD23,InputS!20:20,InputS!21:21) -> 0.09 | FE24: =LOOKUP(FE23,InputS!20:20,InputS!21:21) -> 0.12 | FF24: =LOOKUP(FF23,InputS!20:20,InputS!21:21) -> 0.12 | FG24: =LOOKUP(FG23,InputS!20:20,InputS!21:21) -> 0.09 | FH24: =LOOKUP(FH23,InputS!20:20,InputS!21:21) -> 0.08 | FI24: =LOOKUP(FI23,InputS!20:20,InputS!21:21) -> 0.07 | FJ24: =LOOKUP(FJ23,InputS!20:20,InputS!21:21) -> 0.065 | FK24: =LOOKUP(FK23,InputS!20:20,InputS!21:21) -> 0.06666666667 | FL24: =LOOKUP(FL23,InputS!20:20,InputS!21:21) -> 0.06666666667 | FM24: =LOOKUP(FM23,InputS!20:20,InputS!21:21) -> 0.06666666667 | FN24: =LOOKUP(FN23,InputS!20:20,InputS!21:21) -> 0.08 | FO24: =LOOKUP(FO23,InputS!20:20,InputS!21:21) -> 0.085 | FP24: =LOOKUP(FP23,InputS!20:20,InputS!21:21) -> 0.09 | FQ24: =LOOKUP(FQ23,InputS!20:20,InputS!21:21) -> 0.12 | FR24: =LOOKUP(FR23,InputS!20:20,InputS!21:21) -> 0.12 | FS24: =LOOKUP(FS23,InputS!20:20,InputS!21:21) -> 0.09 | FT24: =LOOKUP(FT23,InputS!20:20,InputS!21:21) -> 0.08 | FU24: =LOOKUP(FU23,InputS!20:20,InputS!21:21) -> 0.07 | FV24: =LOOKUP(FV23,InputS!20:20,InputS!21:21) -> 0.065 | FW24: =LOOKUP(FW23,InputS!20:20,InputS!21:21) -> 0.06666666667 | FX24: =LOOKUP(FX23,InputS!20:20,InputS!21:21) -> 0.06666666667 | FY24: =LOOKUP(FY23,InputS!20:20,InputS!21:21) -> 0.06666666667 | FZ24: =LOOKUP(FZ23,InputS!20:20,InputS!21:21) -> 0.08 | GA24: =LOOKUP(GA23,InputS!20:20,InputS!21:21) -> 0.085 | GB24: =LOOKUP(GB23,InputS!20:20,InputS!21:21) -> 0.09 | GC24: =LOOKUP(GC23,InputS!20:20,InputS!21:21) -> 0.12 | GD24: =LOOKUP(GD23,InputS!20:20,InputS!21:21) -> 0.12 | GE24: =LOOKUP(GE23,InputS!20:20,InputS!21:21) -> 0.09 | GF24: =LOOKUP(GF23,InputS!20:20,InputS!21:21) -> 0.08 | GG24: =LOOKUP(GG23,InputS!20:20,InputS!21:21) -> 0.07 | GH24: =LOOKUP(GH23,InputS!20:20,InputS!21:21) -> 0.065 | GI24: =LOOKUP(GI23,InputS!20:20,InputS!21:21) -> 0.06666666667 | GJ24: =LOOKUP(GJ23,InputS!20:20,InputS!21:21) -> 0.06666666667 | GK24: =LOOKUP(GK23,InputS!20:20,InputS!21:21) -> 0.06666666667 | GL24: =LOOKUP(GL23,InputS!20:20,InputS!21:21) -> 0.08 | GM24: =LOOKUP(GM23,InputS!20:20,InputS!21:21) -> 0.085 | GN24: =LOOKUP(GN23,InputS!20:20,InputS!21:21) -> 0.09 | GO24: =LOOKUP(GO23,InputS!20:20,InputS!21:21) -> 0.12 | GP24: =LOOKUP(GP23,InputS!20:20,InputS!21:21) -> 0.12 | GQ24: =LOOKUP(GQ23,InputS!20:20,InputS!21:21) -> 0.09 | GR24: =LOOKUP(GR23,InputS!20:20,InputS!21:21) -> 0.08 | GS24: =LOOKUP(GS23,InputS!20:20,InputS!21:21) -> 0.07 | GT24: =LOOKUP(GT23,InputS!20:20,InputS!21:21) -> 0.065 | GU24: =LOOKUP(GU23,InputS!20:20,InputS!21:21) -> 0.06666666667 | GV24: =LOOKUP(GV23,InputS!20:20,InputS!21:21) -> 0.06666666667 | GW24: =LOOKUP(GW23,InputS!20:20,InputS!21:21) -> 0.06666666667 | GX24: =LOOKUP(GX23,InputS!20:20,InputS!21:21) -> 0.08 | GY24: =LOOKUP(GY23,InputS!20:20,InputS!21:21) -> 0.085 | GZ24: =LOOKUP(GZ23,InputS!20:20,InputS!21:21) -> 0.09 | HA24: =LOOKUP(HA23,InputS!20:20,InputS!21:21) -> 0.12 | HB24: =LOOKUP(HB23,InputS!20:20,InputS!21:21) -> 0.12 | HC24: =LOOKUP(HC23,InputS!20:20,InputS!21:21) -> 0.09 | HD24: =LOOKUP(HD23,InputS!20:20,InputS!21:21) -> 0.08 | HE24: =LOOKUP(HE23,InputS!20:20,InputS!21:21) -> 0.07 | HF24: =LOOKUP(HF23,InputS!20:20,InputS!21:21) -> 0.065 | HG24: =LOOKUP(HG23,InputS!20:20,InputS!21:21) -> 0.06666666667 | HH24: =LOOKUP(HH23,InputS!20:20,InputS!21:21) -> 0.06666666667 | HI24: =LOOKUP(HI23,InputS!20:20,InputS!21:21) -> 0.06666666667 | HJ24: =LOOKUP(HJ23,InputS!20:20,InputS!21:21) -> 0.08 | HK24: =LOOKUP(HK23,InputS!20:20,InputS!21:21) -> 0.085 | HL24: =LOOKUP(HL23,InputS!20:20,InputS!21:21) -> 0.09 | HM24: =LOOKUP(HM23,InputS!20:20,InputS!21:21) -> 0.12 | HN24: =LOOKUP(HN23,InputS!20:20,InputS!21:21) -> 0.12 | HO24: =LOOKUP(HO23,InputS!20:20,InputS!21:21) -> 0.09 | HP24: =LOOKUP(HP23,InputS!20:20,InputS!21:21) -> 0.08 | HQ24: =LOOKUP(HQ23,InputS!20:20,InputS!21:21) -> 0.07 | HR24: =LOOKUP(HR23,InputS!20:20,InputS!21:21) -> 0.065 | HS24: =LOOKUP(HS23,InputS!20:20,InputS!21:21) -> 0.06666666667 | HT24: =LOOKUP(HT23,InputS!20:20,InputS!21:21) -> 0.06666666667 | HU24: =LOOKUP(HU23,InputS!20:20,InputS!21:21) -> 0.06666666667 | HV24: =LOOKUP(HV23,InputS!20:20,InputS!21:21) -> 0.08 | HW24: =LOOKUP(HW23,InputS!20:20,InputS!21:21) -> 0.085 | HX24: =LOOKUP(HX23,InputS!20:20,InputS!21:21) -> 0.09 | HY24: =LOOKUP(HY23,InputS!20:20,InputS!21:21) -> 0.12 | HZ24: =LOOKUP(HZ23,InputS!20:20,InputS!21:21) -> 0.12 | IA24: =LOOKUP(IA23,InputS!20:20,InputS!21:21) -> 0.09 | IB24: =LOOKUP(IB23,InputS!20:20,InputS!21:21) -> 0.08 | IC24: =LOOKUP(IC23,InputS!20:20,InputS!21:21) -> 0.07 | ID24: =LOOKUP(ID23,InputS!20:20,InputS!21:21) -> 0.065 | IE24: =LOOKUP(IE23,InputS!20:20,InputS!21:21) -> 0.06666666667 | IF24: =LOOKUP(IF23,InputS!20:20,InputS!21:21) -> 0.06666666667 | IG24: =LOOKUP(IG23,InputS!20:20,InputS!21:21) -> 0.06666666667 | IH24: =LOOKUP(IH23,InputS!20:20,InputS!21:21) -> 0.08 | II24: =LOOKUP(II23,InputS!20:20,InputS!21:21) -> 0.085 | IJ24: =LOOKUP(IJ23,InputS!20:20,InputS!21:21) -> 0.09 | IK24: =LOOKUP(IK23,InputS!20:20,InputS!21:21) -> 0.12 | IL24: =LOOKUP(IL23,InputS!20:20,InputS!21:21) -> 0.12 | IM24: =LOOKUP(IM23,InputS!20:20,InputS!21:21) -> 0.09 | IN24: =LOOKUP(IN23,InputS!20:20,InputS!21:21) -> 0.08 | IO24: =LOOKUP(IO23,InputS!20:20,InputS!21:21) -> 0.07 | IP24: =LOOKUP(IP23,InputS!20:20,InputS!21:21) -> 0.065 | IQ24: =LOOKUP(IQ23,InputS!20:20,InputS!21:21) -> 0.06666666667 | IR24: =LOOKUP(IR23,InputS!20:20,InputS!21:21) -> 0.06666666667 | IS24: =LOOKUP(IS23,InputS!20:20,InputS!21:21) -> 0.06666666667 | IT24: =LOOKUP(IT23,InputS!20:20,InputS!21:21) -> 0.08 | IU24: =LOOKUP(IU23,InputS!20:20,InputS!21:21) -> 0.085 | IV24: =LOOKUP(IV23,InputS!20:20,InputS!21:21) -> 0.09 | IW24: =LOOKUP(IW23,InputS!20:20,InputS!21:21) -> 0.12 | IX24: =LOOKUP(IX23,InputS!20:20,InputS!21:21) -> 0.12 | IY24: =LOOKUP(IY23,InputS!20:20,InputS!21:21) -> 0.09 | IZ24: =LOOKUP(IZ23,InputS!20:20,InputS!21:21) -> 0.08 | JA24: =LOOKUP(JA23,InputS!20:20,InputS!21:21) -> 0.07 | JB24: =LOOKUP(JB23,InputS!20:20,InputS!21:21) -> 0.065 | JC24: =LOOKUP(JC23,InputS!20:20,InputS!21:21) -> 0.06666666667 | JD24: =LOOKUP(JD23,InputS!20:20,InputS!21:21) -> 0.06666666667 | JE24: =LOOKUP(JE23,InputS!20:20,InputS!21:21) -> 0.06666666667 | JF24: =LOOKUP(JF23,InputS!20:20,InputS!21:21) -> 0.08 | JG24: =LOOKUP(JG23,InputS!20:20,InputS!21:21) -> 0.085 | JH24: =LOOKUP(JH23,InputS!20:20,InputS!21:21) -> 0.09 | JI24: =LOOKUP(JI23,InputS!20:20,InputS!21:21) -> 0.12 | JJ24: =LOOKUP(JJ23,InputS!20:20,InputS!21:21) -> 0.12 | JK24: =LOOKUP(JK23,InputS!20:20,InputS!21:21) -> 0.09 | JL24: =LOOKUP(JL23,InputS!20:20,InputS!21:21) -> 0.08 | JM24: =LOOKUP(JM23,InputS!20:20,InputS!21:21) -> 0.07 | JN24: =LOOKUP(JN23,InputS!20:20,InputS!21:21) -> 0.065 | JO24: =LOOKUP(JO23,InputS!20:20,InputS!21:21) -> 0.06666666667 | JP24: =LOOKUP(JP23,InputS!20:20,InputS!21:21) -> 0.06666666667 | JQ24: =LOOKUP(JQ23,InputS!20:20,InputS!21:21) -> 0.06666666667 | JR24: =LOOKUP(JR23,InputS!20:20,InputS!21:21) -> 0.08 | JS24: =LOOKUP(JS23,InputS!20:20,InputS!21:21) -> 0.085 | JT24: =LOOKUP(JT23,InputS!20:20,InputS!21:21) -> 0.09 | JU24: =LOOKUP(JU23,InputS!20:20,InputS!21:21) -> 0.12 | JV24: =LOOKUP(JV23,InputS!20:20,InputS!21:21) -> 0.12 | JW24: =LOOKUP(JW23,InputS!20:20,InputS!21:21) -> 0.09 | JX24: =LOOKUP(JX23,InputS!20:20,InputS!21:21) -> 0.08 | JY24: =LOOKUP(JY23,InputS!20:20,InputS!21:21) -> 0.07 | JZ24: =LOOKUP(JZ23,InputS!20:20,InputS!21:21) -> 0.065 | KA24: =LOOKUP(KA23,InputS!20:20,InputS!21:21) -> 0.06666666667 | KB24: =LOOKUP(KB23,InputS!20:20,InputS!21:21) -> 0.06666666667 | KC24: =LOOKUP(KC23,InputS!20:20,InputS!21:21) -> 0.06666666667 | KD24: =LOOKUP(KD23,InputS!20:20,InputS!21:21) -> 0.08 | KE24: =LOOKUP(KE23,InputS!20:20,InputS!21:21) -> 0.085 | KF24: =LOOKUP(KF23,InputS!20:20,InputS!21:21) -> 0.09 | KG24: =LOOKUP(KG23,InputS!20:20,InputS!21:21) -> 0.12 | KH24: =LOOKUP(KH23,InputS!20:20,InputS!21:21) -> 0.12 | KI24: =LOOKUP(KI23,InputS!20:20,InputS!21:21) -> 0.09 | KJ24: =LOOKUP(KJ23,InputS!20:20,InputS!21:21) -> 0.08 | KK24: =LOOKUP(KK23,InputS!20:20,InputS!21:21) -> 0.07 | KL24: =LOOKUP(KL23,InputS!20:20,InputS!21:21) -> 0.065 | KM24: =LOOKUP(KM23,InputS!20:20,InputS!21:21) -> 0.06666666667 | KN24: =LOOKUP(KN23,InputS!20:20,InputS!21:21) -> 0.06666666667 | KO24: =LOOKUP(KO23,InputS!20:20,InputS!21:21) -> 0.06666666667 | KP24: =LOOKUP(KP23,InputS!20:20,InputS!21:21) -> 0.08 | KQ24: =LOOKUP(KQ23,InputS!20:20,InputS!21:21) -> 0.085 | KR24: =LOOKUP(KR23,InputS!20:20,InputS!21:21) -> 0.09 | KS24: =LOOKUP(KS23,InputS!20:20,InputS!21:21) -> 0.12 | KT24: =LOOKUP(KT23,InputS!20:20,InputS!21:21) -> 0.12 | KU24: =LOOKUP(KU23,InputS!20:20,InputS!21:21) -> 0.09 | KV24: =LOOKUP(KV23,InputS!20:20,InputS!21:21) -> 0.08 | KW24: =LOOKUP(KW23,InputS!20:20,InputS!21:21) -> 0.07 | KX24: =LOOKUP(KX23,InputS!20:20,InputS!21:21) -> 0.065 | KY24: =LOOKUP(KY23,InputS!20:20,InputS!21:21) -> 0.06666666667 | KZ24: =LOOKUP(KZ23,InputS!20:20,InputS!21:21) -> 0.06666666667 | LA24: =LOOKUP(LA23,InputS!20:20,InputS!21:21) -> 0.06666666667 | LB24: =LOOKUP(LB23,InputS!20:20,InputS!21:21) -> 0.08 | LC24: =LOOKUP(LC23,InputS!20:20,InputS!21:21) -> 0.085 | LD24: =LOOKUP(LD23,InputS!20:20,InputS!21:21) -> 0.09 | LE24: =LOOKUP(LE23,InputS!20:20,InputS!21:21) -> 0.12 | LF24: =LOOKUP(LF23,InputS!20:20,InputS!21:21) -> 0.12 | LG24: =LOOKUP(LG23,InputS!20:20,InputS!21:21) -> 0.09 | LH24: =LOOKUP(LH23,InputS!20:20,InputS!21:21) -> 0.08 | LI24: =LOOKUP(LI23,InputS!20:20,InputS!21:21) -> 0.07 | LJ24: =LOOKUP(LJ23,InputS!20:20,InputS!21:21) -> 0.065 | LK24: =LOOKUP(LK23,InputS!20:20,InputS!21:21) -> 0.06666666667 | LL24: =LOOKUP(LL23,InputS!20:20,InputS!21:21) -> 0.06666666667 | LM24: =LOOKUP(LM23,InputS!20:20,InputS!21:21) -> 0.06666666667 | LN24: =LOOKUP(LN23,InputS!20:20,InputS!21:21) -> 0.08 | LO24: =LOOKUP(LO23,InputS!20:20,InputS!21:21) -> 0.085 | LP24: =LOOKUP(LP23,InputS!20:20,InputS!21:21) -> 0.09 | LQ24: =LOOKUP(LQ23,InputS!20:20,InputS!21:21) -> 0.12 | LR24: =LOOKUP(LR23,InputS!20:20,InputS!21:21) -> 0.12 | LS24: =LOOKUP(LS23,InputS!20:20,InputS!21:21) -> 0.09 | LT24: =LOOKUP(LT23,InputS!20:20,InputS!21:21) -> 0.08 | LU24: =LOOKUP(LU23,InputS!20:20,InputS!21:21) -> 0.07 | LV24: =LOOKUP(LV23,InputS!20:20,InputS!21:21) -> 0.065 | LW24: =LOOKUP(LW23,InputS!20:20,InputS!21:21) -> 0.06666666667 | LX24: =LOOKUP(LX23,InputS!20:20,InputS!21:21) -> 0.06666666667 | LY24: =LOOKUP(LY23,InputS!20:20,InputS!21:21) -> 0.06666666667 | LZ24: =LOOKUP(LZ23,InputS!20:20,InputS!21:21) -> 0.08 | MA24: =LOOKUP(MA23,InputS!20:20,InputS!21:21) -> 0.085 | MB24: =LOOKUP(MB23,InputS!20:20,InputS!21:21) -> 0.09 | MC24: =LOOKUP(MC23,InputS!20:20,InputS!21:21) -> 0.12 | MD24: =LOOKUP(MD23,InputS!20:20,InputS!21:21) -> 0.12 | ME24: =LOOKUP(ME23,InputS!20:20,InputS!21:21) -> 0.09 | MF24: =LOOKUP(MF23,InputS!20:20,InputS!21:21) -> 0.08 | MG24: =LOOKUP(MG23,InputS!20:20,InputS!21:21) -> 0.07 | MH24: =LOOKUP(MH23,InputS!20:20,InputS!21:21) -> 0.065 | MI24: =LOOKUP(MI23,InputS!20:20,InputS!21:21) -> 0.06666666667 | MJ24: =LOOKUP(MJ23,InputS!20:20,InputS!21:21) -> 0.06666666667 | MK24: =LOOKUP(MK23,InputS!20:20,InputS!21:21) -> 0.06666666667 | ML24: =LOOKUP(ML23,InputS!20:20,InputS!21:21) -> 0.08 | MM24: =LOOKUP(MM23,InputS!20:20,InputS!21:21) -> 0.085 | MN24: =LOOKUP(MN23,InputS!20:20,InputS!21:21) -> 0.09 | MO24: =LOOKUP(MO23,InputS!20:20,InputS!21:21) -> 0.12 | MP24: =LOOKUP(MP23,InputS!20:20,InputS!21:21) -> 0.12 | MQ24: =LOOKUP(MQ23,InputS!20:20,InputS!21:21) -> 0.09 | MR24: =LOOKUP(MR23,InputS!20:20,InputS!21:21) -> 0.08 | MS24: =LOOKUP(MS23,InputS!20:20,InputS!21:21) -> 0.07 | MT24: =LOOKUP(MT23,InputS!20:20,InputS!21:21) -> 0.065 | MU24: =LOOKUP(MU23,InputS!20:20,InputS!21:21) -> 0.06666666667 | MV24: =LOOKUP(MV23,InputS!20:20,InputS!21:21) -> 0.06666666667 | MW24: =LOOKUP(MW23,InputS!20:20,InputS!21:21) -> 0.06666666667 | MX24: =LOOKUP(MX23,InputS!20:20,InputS!21:21) -> 0.08 | MY24: =LOOKUP(MY23,InputS!20:20,InputS!21:21) -> 0.085 | MZ24: =LOOKUP(MZ23,InputS!20:20,InputS!21:21) -> 0.09 | NA24: =LOOKUP(NA23,InputS!20:20,InputS!21:21) -> 0.12 | NB24: =LOOKUP(NB23,InputS!20:20,InputS!21:21) -> 0.12 | NC24: =LOOKUP(NC23,InputS!20:20,InputS!21:21) -> 0.09 | ND24: =LOOKUP(ND23,InputS!20:20,InputS!21:21) -> 0.08 | NE24: =LOOKUP(NE23,InputS!20:20,InputS!21:21) -> 0.07 | NF24: =LOOKUP(NF23,InputS!20:20,InputS!21:21) -> 0.065 | NG24: =LOOKUP(NG23,InputS!20:20,InputS!21:21) -> 0.06666666667 | NH24: =LOOKUP(NH23,InputS!20:20,InputS!21:21) -> 0.06666666667 | NI24: =LOOKUP(NI23,InputS!20:20,InputS!21:21) -> 0.06666666667 | NJ24: =LOOKUP(NJ23,InputS!20:20,InputS!21:21) -> 0.08 | NK24: =LOOKUP(NK23,InputS!20:20,InputS!21:21) -> 0.085 | NL24: =LOOKUP(NL23,InputS!20:20,InputS!21:21) -> 0.09 | NM24: =LOOKUP(NM23,InputS!20:20,InputS!21:21) -> 0.12 | NN24: =LOOKUP(NN23,InputS!20:20,InputS!21:21) -> 0.12 | NO24: =LOOKUP(NO23,InputS!20:20,InputS!21:21) -> 0.09 | NP24: =LOOKUP(NP23,InputS!20:20,InputS!21:21) -> 0.08 | NQ24: =LOOKUP(NQ23,InputS!20:20,InputS!21:21) -> 0.07 | NR24: =LOOKUP(NR23,InputS!20:20,InputS!21:21) -> 0.065 | NS24: =LOOKUP(NS23,InputS!20:20,InputS!21:21) -> 0.06666666667 | NT24: =LOOKUP(NT23,InputS!20:20,InputS!21:21) -> 0.06666666667 | NU24: =LOOKUP(NU23,InputS!20:20,InputS!21:21) -> 0.06666666667 | NV24: =LOOKUP(NV23,InputS!20:20,InputS!21:21) -> 0.08 | NW24: =LOOKUP(NW23,InputS!20:20,InputS!21:21) -> 0.085 | NX24: =LOOKUP(NX23,InputS!20:20,InputS!21:21) -> 0.09 | NY24: =LOOKUP(NY23,InputS!20:20,InputS!21:21) -> 0.12 | NZ24: =LOOKUP(NZ23,InputS!20:20,InputS!21:21) -> 0.12 | OA24: =LOOKUP(OA23,InputS!20:20,InputS!21:21) -> 0.09 | OB24: =LOOKUP(OB23,InputS!20:20,InputS!21:21) -> 0.08 | OC24: =LOOKUP(OC23,InputS!20:20,InputS!21:21) -> 0.07 | OD24: =LOOKUP(OD23,InputS!20:20,InputS!21:21) -> 0.065 | OE24: =LOOKUP(OE23,InputS!20:20,InputS!21:21) -> 0.06666666667 | OF24: =LOOKUP(OF23,InputS!20:20,InputS!21:21) -> 0.06666666667 | OG24: =LOOKUP(OG23,InputS!20:20,InputS!21:21) -> 0.06666666667 | OH24: =LOOKUP(OH23,InputS!20:20,InputS!21:21) -> 0.08 | OI24: =LOOKUP(OI23,InputS!20:20,InputS!21:21) -> 0.085 | OJ24: =LOOKUP(OJ23,InputS!20:20,InputS!21:21) -> 0.09 | OK24: =LOOKUP(OK23,InputS!20:20,InputS!21:21) -> 0.12 | OL24: =LOOKUP(OL23,InputS!20:20,InputS!21:21) -> 0.12 | OM24: =LOOKUP(OM23,InputS!20:20,InputS!21:21) -> 0.09 | ON24: =LOOKUP(ON23,InputS!20:20,InputS!21:21) -> 0.08 | OO24: =LOOKUP(OO23,InputS!20:20,InputS!21:21) -> 0.07 | OP24: =LOOKUP(OP23,InputS!20:20,InputS!21:21) -> 0.065 | OQ24: =LOOKUP(OQ23,InputS!20:20,InputS!21:21) -> 0.06666666667 | OR24: =LOOKUP(OR23,InputS!20:20,InputS!21:21) -> 0.06666666667 | OS24: =LOOKUP(OS23,InputS!20:20,InputS!21:21) -> 0.06666666667 | OT24: =LOOKUP(OT23,InputS!20:20,InputS!21:21) -> 0.08 | OU24: =LOOKUP(OU23,InputS!20:20,InputS!21:21) -> 0.085 | OV24: =LOOKUP(OV23,InputS!20:20,InputS!21:21) -> 0.09 | OW24: =LOOKUP(OW23,InputS!20:20,InputS!21:21) -> 0.12 | OX24: =LOOKUP(OX23,InputS!20:20,InputS!21:21) -> 0.12 | OY24: =LOOKUP(OY23,InputS!20:20,InputS!21:21) -> 0.09 | OZ24: =LOOKUP(OZ23,InputS!20:20,InputS!21:21) -> 0.08 | PA24: =LOOKUP(PA23,InputS!20:20,InputS!21:21) -> 0.07 | PB24: =LOOKUP(PB23,InputS!20:20,InputS!21:21) -> 0.065 | PC24: =LOOKUP(PC23,InputS!20:20,InputS!21:21) -> 0.06666666667 | PD24: =LOOKUP(PD23,InputS!20:20,InputS!21:21) -> 0.06666666667 | PE24: =LOOKUP(PE23,InputS!20:20,InputS!21:21) -> 0.06666666667 | PF24: =LOOKUP(PF23,InputS!20:20,InputS!21:21) -> 0.08 | PG24: =LOOKUP(PG23,InputS!20:20,InputS!21:21) -> 0.085 | PH24: =LOOKUP(PH23,InputS!20:20,InputS!21:21) -> 0.09 | PI24: =LOOKUP(PI23,InputS!20:20,InputS!21:21) -> 0.12 | PJ24: =LOOKUP(PJ23,InputS!20:20,InputS!21:21) -> 0.12 | PK24: =LOOKUP(PK23,InputS!20:20,InputS!21:21) -> 0.09 | PL24: =LOOKUP(PL23,InputS!20:20,InputS!21:21) -> 0.08 | PM24: =LOOKUP(PM23,InputS!20:20,InputS!21:21) -> 0.07 | PN24: =LOOKUP(PN23,InputS!20:20,InputS!21:21) -> 0.065 | PO24: =LOOKUP(PO23,InputS!20:20,InputS!21:21) -> 0.06666666667 | PP24: =LOOKUP(PP23,InputS!20:20,InputS!21:21) -> 0.06666666667 | PQ24: =LOOKUP(PQ23,InputS!20:20,InputS!21:21) -> 0.06666666667 | PR24: =LOOKUP(PR23,InputS!20:20,InputS!21:21) -> 0.08 | PS24: =LOOKUP(PS23,InputS!20:20,InputS!21:21) -> 0.085 | PT24: =LOOKUP(PT23,InputS!20:20,InputS!21:21) -> 0.09 | PU24: =LOOKUP(PU23,InputS!20:20,InputS!21:21) -> 0.12 | PV24: =LOOKUP(PV23,InputS!20:20,InputS!21:21) -> 0.12 | PW24: =LOOKUP(PW23,InputS!20:20,InputS!21:21) -> 0.09 | PX24: =LOOKUP(PX23,InputS!20:20,InputS!21:21) -> 0.08 | PY24: =LOOKUP(PY23,InputS!20:20,InputS!21:21) -> 0.07 | PZ24: =LOOKUP(PZ23,InputS!20:20,InputS!21:21) -> 0.065 | QA24: =LOOKUP(QA23,InputS!20:20,InputS!21:21) -> 0.06666666667 | QB24: =LOOKUP(QB23,InputS!20:20,InputS!21:21) -> 0.06666666667 | QC24: =LOOKUP(QC23,InputS!20:20,InputS!21:21) -> 0.06666666667 | QD24: =LOOKUP(QD23,InputS!20:20,InputS!21:21) -> 0.08 | QE24: =LOOKUP(QE23,InputS!20:20,InputS!21:21) -> 0.085 | QF24: =LOOKUP(QF23,InputS!20:20,InputS!21:21) -> 0.09 | QG24: =LOOKUP(QG23,InputS!20:20,InputS!21:21) -> 0.12 | QH24: =LOOKUP(QH23,InputS!20:20,InputS!21:21) -> 0.12 | QI24: =LOOKUP(QI23,InputS!20:20,InputS!21:21) -> 0.09 | QJ24: =LOOKUP(QJ23,InputS!20:20,InputS!21:21) -> 0.08 | QK24: =LOOKUP(QK23,InputS!20:20,InputS!21:21) -> 0.07 | QL24: =LOOKUP(QL23,InputS!20:20,InputS!21:21) -> 0.065 | QM24: =LOOKUP(QM23,InputS!20:20,InputS!21:21) -> 0.06666666667 | QN24: =LOOKUP(QN23,InputS!20:20,InputS!21:21) -> 0.06666666667 | QO24: =LOOKUP(QO23,InputS!20:20,InputS!21:21) -> 0.06666666667 | QP24: =LOOKUP(QP23,InputS!20:20,InputS!21:21) -> 0.08 | QQ24: =LOOKUP(QQ23,InputS!20:20,InputS!21:21) -> 0.085 | QR24: =LOOKUP(QR23,InputS!20:20,InputS!21:21) -> 0.09 | QS24: =LOOKUP(QS23,InputS!20:20,InputS!21:21) -> 0.12 | QT24: =LOOKUP(QT23,InputS!20:20,InputS!21:21) -> 0.12 | QU24: =LOOKUP(QU23,InputS!20:20,InputS!21:21) -> 0.09 | QV24: =LOOKUP(QV23,InputS!20:20,InputS!21:21) -> 0.08 | QW24: =LOOKUP(QW23,InputS!20:20,InputS!21:21) -> 0.07 | QX24: =LOOKUP(QX23,InputS!20:20,InputS!21:21) -> 0.065 | QY24: =LOOKUP(QY23,InputS!20:20,InputS!21:21) -> 0.06666666667 | QZ24: =LOOKUP(QZ23,InputS!20:20,InputS!21:21) -> 0.06666666667 | RA24: =LOOKUP(RA23,InputS!20:20,InputS!21:21) -> 0.06666666667 | RB24: =LOOKUP(RB23,InputS!20:20,InputS!21:21) -> 0.08 | RC24: =LOOKUP(RC23,InputS!20:20,InputS!21:21) -> 0.085 | RD24: =LOOKUP(RD23,InputS!20:20,InputS!21:21) -> 0.09 | RE24: =LOOKUP(RE23,InputS!20:20,InputS!21:21) -> 0.12 | RF24: =LOOKUP(RF23,InputS!20:20,InputS!21:21) -> 0.12 | RG24: =LOOKUP(RG23,InputS!20:20,InputS!21:21) -> 0.09 | RH24: =LOOKUP(RH23,InputS!20:20,InputS!21:21) -> 0.08 | RI24: =LOOKUP(RI23,InputS!20:20,InputS!21:21) -> 0.07 | RJ24: =LOOKUP(RJ23,InputS!20:20,InputS!21:21) -> 0.065 | RK24: =LOOKUP(RK23,InputS!20:20,InputS!21:21) -> 0.06666666667 | RL24: =LOOKUP(RL23,InputS!20:20,InputS!21:21) -> 0.06666666667 | RM24: =LOOKUP(RM23,InputS!20:20,InputS!21:21) -> 0.06666666667 | RN24: =LOOKUP(RN23,InputS!20:20,InputS!21:21) -> 0.08 | RO24: =LOOKUP(RO23,InputS!20:20,InputS!21:21) -> 0.085 | RP24: =LOOKUP(RP23,InputS!20:20,InputS!21:21) -> 0.09 | RQ24: =LOOKUP(RQ23,InputS!20:20,InputS!21:21) -> 0.12 | RR24: =LOOKUP(RR23,InputS!20:20,InputS!21:21) -> 0.12 | RS24: =LOOKUP(RS23,InputS!20:20,InputS!21:21) -> 0.09 | RT24: =LOOKUP(RT23,InputS!20:20,InputS!21:21) -> 0.08 | RU24: =LOOKUP(RU23,InputS!20:20,InputS!21:21) -> 0.07 | RV24: =LOOKUP(RV23,InputS!20:20,InputS!21:21) -> 0.065 | RW24: =LOOKUP(RW23,InputS!20:20,InputS!21:21) -> 0.06666666667 | RX24: =LOOKUP(RX23,InputS!20:20,InputS!21:21) -> 0.06666666667 | RY24: =LOOKUP(RY23,InputS!20:20,InputS!21:21) -> 0.06666666667 | RZ24: =LOOKUP(RZ23,InputS!20:20,InputS!21:21) -> 0.08 | SA24: =LOOKUP(SA23,InputS!20:20,InputS!21:21) -> 0.085 | SB24: =LOOKUP(SB23,InputS!20:20,InputS!21:21) -> 0.09 | SC24: =LOOKUP(SC23,InputS!20:20,InputS!21:21) -> 0.12 | SD24: =LOOKUP(SD23,InputS!20:20,InputS!21:21) -> 0.12 | SE24: =LOOKUP(SE23,InputS!20:20,InputS!21:21) -> 0.09 | SF24: =LOOKUP(SF23,InputS!20:20,InputS!21:21) -> 0.08 | SG24: =LOOKUP(SG23,InputS!20:20,InputS!21:21) -> 0.07 | SH24: =LOOKUP(SH23,InputS!20:20,InputS!21:21) -> 0.065 | SI24: =LOOKUP(SI23,InputS!20:20,InputS!21:21) -> 0.06666666667 | SJ24: =LOOKUP(SJ23,InputS!20:20,InputS!21:21) -> 0.06666666667 | SK24: =LOOKUP(SK23,InputS!20:20,InputS!21:21) -> 0.06666666667 | SL24: =LOOKUP(SL23,InputS!20:20,InputS!21:21) -> 0.08 | SM24: =LOOKUP(SM23,InputS!20:20,InputS!21:21) -> 0.085 | SN24: =LOOKUP(SN23,InputS!20:20,InputS!21:21) -> 0.09 | SO24: =LOOKUP(SO23,InputS!20:20,InputS!21:21) -> 0.12 | SP24: =LOOKUP(SP23,InputS!20:20,InputS!21:21) -> 0.12 | SQ24: =LOOKUP(SQ23,InputS!20:20,InputS!21:21) -> 0.09 | SR24: =LOOKUP(SR23,InputS!20:20,InputS!21:21) -> 0.08 | SS24: =LOOKUP(SS23,InputS!20:20,InputS!21:21) -> 0.07 | ST24: =LOOKUP(ST23,InputS!20:20,InputS!21:21) -> 0.065 | SU24: =LOOKUP(SU23,InputS!20:20,InputS!21:21) -> 0.06666666667 | SV24: =LOOKUP(SV23,InputS!20:20,InputS!21:21) -> 0.06666666667 | SW24: =LOOKUP(SW23,InputS!20:20,InputS!21:21) -> 0.06666666667 | SX24: =LOOKUP(SX23,InputS!20:20,InputS!21:21) -> 0.08 | SY24: =LOOKUP(SY23,InputS!20:20,InputS!21:21) -> 0.085 | SZ24: =LOOKUP(SZ23,InputS!20:20,InputS!21:21) -> 0.09 | TA24: =LOOKUP(TA23,InputS!20:20,InputS!21:21) -> 0.12 | TB24: =LOOKUP(TB23,InputS!20:20,InputS!21:21) -> 0.12 | TC24: =LOOKUP(TC23,InputS!20:20,InputS!21:21) -> 0.09 | TD24: =LOOKUP(TD23,InputS!20:20,InputS!21:21) -> 0.08 | TE24: =LOOKUP(TE23,InputS!20:20,InputS!21:21) -> 0.07 | TF24: =LOOKUP(TF23,InputS!20:20,InputS!21:21) -> 0.065 | TG24: =LOOKUP(TG23,InputS!20:20,InputS!21:21) -> 0.06666666667 | TH24: =LOOKUP(TH23,InputS!20:20,InputS!21:21) -> 0.06666666667 | TI24: =LOOKUP(TI23,InputS!20:20,InputS!21:21) -> 0.06666666667 | TJ24: =LOOKUP(TJ23,InputS!20:20,InputS!21:21) -> 0.08 | TK24: =LOOKUP(TK23,InputS!20:20,InputS!21:21) -> 0.085 | TL24: =LOOKUP(TL23,InputS!20:20,InputS!21:21) -> 0.09 | TM24: =LOOKUP(TM23,InputS!20:20,InputS!21:21) -> 0.12 | TN24: =LOOKUP(TN23,InputS!20:20,InputS!21:21) -> 0.12 | TO24: =LOOKUP(TO23,InputS!20:20,InputS!21:21) -> 0.09 | TP24: =LOOKUP(TP23,InputS!20:20,InputS!21:21) -> 0.08 | TQ24: =LOOKUP(TQ23,InputS!20:20,InputS!21:21) -> 0.07 | TR24: =LOOKUP(TR23,InputS!20:20,InputS!21:21) -> 0.065 | TS24: =LOOKUP(TS23,InputS!20:20,InputS!21:21) -> 0.06666666667 | TT24: =LOOKUP(TT23,InputS!20:20,InputS!21:21) -> 0.06666666667 | TU24: =LOOKUP(TU23,InputS!20:20,InputS!21:21) -> 0.06666666667 | TV24: =LOOKUP(TV23,InputS!20:20,InputS!21:21) -> 0.08 | TW24: =LOOKUP(TW23,InputS!20:20,InputS!21:21) -> 0.085 | TX24: =LOOKUP(TX23,InputS!20:20,InputS!21:21) -> 0.09 | TY24: =LOOKUP(TY23,InputS!20:20,InputS!21:21) -> 0.12 | TZ24: =LOOKUP(TZ23,InputS!20:20,InputS!21:21) -> 0.12 | UA24: =LOOKUP(UA23,InputS!20:20,InputS!21:21) -> 0.09 | UB24: =LOOKUP(UB23,InputS!20:20,InputS!21:21) -> 0.08 | UC24: =LOOKUP(UC23,InputS!20:20,InputS!21:21) -> 0.07 | UD24: =LOOKUP(UD23,InputS!20:20,InputS!21:21) -> 0.065 | UE24: =LOOKUP(UE23,InputS!20:20,InputS!21:21) -> 0.06666666667 | UF24: =LOOKUP(UF23,InputS!20:20,InputS!21:21) -> 0.06666666667 | UG24: =LOOKUP(UG23,InputS!20:20,InputS!21:21) -> 0.06666666667 | UH24: =LOOKUP(UH23,InputS!20:20,InputS!21:21) -> 0.08 | UI24: =LOOKUP(UI23,InputS!20:20,InputS!21:21) -> 0.085 | UJ24: =LOOKUP(UJ23,InputS!20:20,InputS!21:21) -> 0.09 | UK24: =LOOKUP(UK23,InputS!20:20,InputS!21:21) -> 0.12 | UL24: =LOOKUP(UL23,InputS!20:20,InputS!21:21) -> 0.12 | UM24: =LOOKUP(UM23,InputS!20:20,InputS!21:21) -> 0.09 | UN24: =LOOKUP(UN23,InputS!20:20,InputS!21:21) -> 0.08 | UO24: =LOOKUP(UO23,InputS!20:20,InputS!21:21) -> 0.07 | UP24: =LOOKUP(UP23,InputS!20:20,InputS!21:21) -> 0.065 | UQ24: =LOOKUP(UQ23,InputS!20:20,InputS!21:21) -> 0.06666666667 | UR24: =LOOKUP(UR23,InputS!20:20,InputS!21:21) -> 0.06666666667 | US24: =LOOKUP(US23,InputS!20:20,InputS!21:21) -> 0.06666666667 | UT24: =LOOKUP(UT23,InputS!20:20,InputS!21:21) -> 0.08 | UU24: =LOOKUP(UU23,InputS!20:20,InputS!21:21) -> 0.085 | UV24: =LOOKUP(UV23,InputS!20:20,InputS!21:21) -> 0.09 | UW24: =LOOKUP(UW23,InputS!20:20,InputS!21:21) -> 0.12 | UX24: =LOOKUP(UX23,InputS!20:20,InputS!21:21) -> 0.12 | UY24: =LOOKUP(UY23,InputS!20:20,InputS!21:21) -> 0.09 | UZ24: =LOOKUP(UZ23,InputS!20:20,InputS!21:21) -> 0.08 | VA24: =LOOKUP(VA23,InputS!20:20,InputS!21:21) -> 0.07 | VB24: =LOOKUP(VB23,InputS!20:20,InputS!21:21) -> 0.065 | VC24: =LOOKUP(VC23,InputS!20:20,InputS!21:21) -> 0.06666666667 | VD24: =LOOKUP(VD23,InputS!20:20,InputS!21:21) -> 0.06666666667 | VE24: =LOOKUP(VE23,InputS!20:20,InputS!21:21) -> 0.06666666667 | VF24: =LOOKUP(VF23,InputS!20:20,InputS!21:21) -> 0.08 | VG24: =LOOKUP(VG23,InputS!20:20,InputS!21:21) -> 0.085 | VH24: =LOOKUP(VH23,InputS!20:20,InputS!21:21) -> 0.09 | VI24: =LOOKUP(VI23,InputS!20:20,InputS!21:21) -> 0.12 | VJ24: =LOOKUP(VJ23,InputS!20:20,InputS!21:21) -> 0.12 | VK24: =LOOKUP(VK23,InputS!20:20,InputS!21:21) -> 0.09 | VL24: =LOOKUP(VL23,InputS!20:20,InputS!21:21) -> 0.08 | VM24: =LOOKUP(VM23,InputS!20:20,InputS!21:21) -> 0.07 | VN24: =LOOKUP(VN23,InputS!20:20,InputS!21:21) -> 0.065 | VO24: =LOOKUP(VO23,InputS!20:20,InputS!21:21) -> 0.06666666667 | VP24: =LOOKUP(VP23,InputS!20:20,InputS!21:21) -> 0.06666666667 | VQ24: =LOOKUP(VQ23,InputS!20:20,InputS!21:21) -> 0.06666666667 | VR24: =LOOKUP(VR23,InputS!20:20,InputS!21:21) -> 0.08 | VS24: =LOOKUP(VS23,InputS!20:20,InputS!21:21) -> 0.085 | VT24: =LOOKUP(VT23,InputS!20:20,InputS!21:21) -> 0.09 | VU24: =LOOKUP(VU23,InputS!20:20,InputS!21:21) -> 0.12 | VV24: =LOOKUP(VV23,InputS!20:20,InputS!21:21) -> 0.12 | VW24: =LOOKUP(VW23,InputS!20:20,InputS!21:21) -> 0.09 | VX24: =LOOKUP(VX23,InputS!20:20,InputS!21:21) -> 0.08 | VY24: =LOOKUP(VY23,InputS!20:20,InputS!21:21) -> 0.07 | VZ24: =LOOKUP(VZ23,InputS!20:20,InputS!21:21) -> 0.065 | WA24: =LOOKUP(WA23,InputS!20:20,InputS!21:21) -> 0.06666666667 | WB24: =LOOKUP(WB23,InputS!20:20,InputS!21:21) -> 0.06666666667 | WC24: =LOOKUP(WC23,InputS!20:20,InputS!21:21) -> 0.06666666667 | WD24: =LOOKUP(WD23,InputS!20:20,InputS!21:21) -> 0.08 | WE24: =LOOKUP(WE23,InputS!20:20,InputS!21:21) -> 0.085 | WF24: =LOOKUP(WF23,InputS!20:20,InputS!21:21) -> 0.09 | WG24: =LOOKUP(WG23,InputS!20:20,InputS!21:21) -> 0.12 | WH24: =LOOKUP(WH23,InputS!20:20,InputS!21:21) -> 0.12 | WI24: =LOOKUP(WI23,InputS!20:20,InputS!21:21) -> 0.09 | WJ24: =LOOKUP(WJ23,InputS!20:20,InputS!21:21) -> 0.08 | WK24: =LOOKUP(WK23,InputS!20:20,InputS!21:21) -> 0.07 | WL24: =LOOKUP(WL23,InputS!20:20,InputS!21:21) -> 0.065 | WM24: =LOOKUP(WM23,InputS!20:20,InputS!21:21) -> 0.06666666667 | WN24: =LOOKUP(WN23,InputS!20:20,InputS!21:21) -> 0.06666666667 | WO24: =LOOKUP(WO23,InputS!20:20,InputS!21:21) -> 0.06666666667 | WP24: =LOOKUP(WP23,InputS!20:20,InputS!21:21) -> 0.08 | WQ24: =LOOKUP(WQ23,InputS!20:20,InputS!21:21) -> 0.085 | WR24: =LOOKUP(WR23,InputS!20:20,InputS!21:21) -> 0.09 | WS24: =LOOKUP(WS23,InputS!20:20,InputS!21:21) -> 0.12 | WT24: =LOOKUP(WT23,InputS!20:20,InputS!21:21) -> 0.12 | WU24: =LOOKUP(WU23,InputS!20:20,InputS!21:21) -> 0.09 | WV24: =LOOKUP(WV23,InputS!20:20,InputS!21:21) -> 0.08 | WW24: =LOOKUP(WW23,InputS!20:20,InputS!21:21) -> 0.07 | WX24: =LOOKUP(WX23,InputS!20:20,InputS!21:21) -> 0.065 | WY24: =LOOKUP(WY23,InputS!20:20,InputS!21:21) -> 0.06666666667 | WZ24: =LOOKUP(WZ23,InputS!20:20,InputS!21:21) -> 0.06666666667 | XA24: =LOOKUP(XA23,InputS!20:20,InputS!21:21) -> 0.06666666667 | XB24: =LOOKUP(XB23,InputS!20:20,InputS!21:21) -> 0.08 | XC24: =LOOKUP(XC23,InputS!20:20,InputS!21:21) -> 0.085 | XD24: =LOOKUP(XD23,InputS!20:20,InputS!21:21) -> 0.09 | XE24: =LOOKUP(XE23,InputS!20:20,InputS!21:21) -> 0.12 | XF24: =LOOKUP(XF23,InputS!20:20,InputS!21:21) -> 0.12 | XG24: =LOOKUP(XG23,InputS!20:20,InputS!21:21) -> 0.09 | XH24: =LOOKUP(XH23,InputS!20:20,InputS!21:21) -> 0.08 | XI24: =LOOKUP(XI23,InputS!20:20,InputS!21:21) -> 0.07 | XJ24: =LOOKUP(XJ23,InputS!20:20,InputS!21:21) -> 0.065 | XK24: =LOOKUP(XK23,InputS!20:20,InputS!21:21) -> 0.06666666667 | XL24: =LOOKUP(XL23,InputS!20:20,InputS!21:21) -> 0.06666666667 | XM24: =LOOKUP(XM23,InputS!20:20,InputS!21:21) -> 0.06666666667 | XN24: =LOOKUP(XN23,InputS!20:20,InputS!21:21) -> 0.08 | XO24: =LOOKUP(XO23,InputS!20:20,InputS!21:21) -> 0.085 | XP24: =LOOKUP(XP23,InputS!20:20,InputS!21:21) -> 0.09 | XQ24: =LOOKUP(XQ23,InputS!20:20,InputS!21:21) -> 0.12 | XR24: =LOOKUP(XR23,InputS!20:20,InputS!21:21) -> 0.12 | XS24: =LOOKUP(XS23,InputS!20:20,InputS!21:21) -> 0.09 | XT24: =LOOKUP(XT23,InputS!20:20,InputS!21:21) -> 0.08 | XU24: =LOOKUP(XU23,InputS!20:20,InputS!21:21) -> 0.07 | XV24: =LOOKUP(XV23,InputS!20:20,InputS!21:21) -> 0.065 | XW24: =LOOKUP(XW23,InputS!20:20,InputS!21:21) -> 0.06666666667 | XX24: =LOOKUP(XX23,InputS!20:20,InputS!21:21) -> 0.06666666667 | XY24: =LOOKUP(XY23,InputS!20:20,InputS!21:21) -> 0.06666666667 | XZ24: =LOOKUP(XZ23,InputS!20:20,InputS!21:21) -> 0.08 | YA24: =LOOKUP(YA23,InputS!20:20,InputS!21:21) -> 0.085 | YB24: =LOOKUP(YB23,InputS!20:20,InputS!21:21) -> 0.09 | YC24: =LOOKUP(YC23,InputS!20:20,InputS!21:21) -> 0.12 | YD24: =LOOKUP(YD23,InputS!20:20,InputS!21:21) -> 0.12 | YE24: =LOOKUP(YE23,InputS!20:20,InputS!21:21) -> 0.09 | YF24: =LOOKUP(YF23,InputS!20:20,InputS!21:21) -> 0.08 | YG24: =LOOKUP(YG23,InputS!20:20,InputS!21:21) -> 0.07 | YH24: =LOOKUP(YH23,InputS!20:20,InputS!21:21) -> 0.065 | YI24: =LOOKUP(YI23,InputS!20:20,InputS!21:21) -> 0.06666666667 | YJ24: =LOOKUP(YJ23,InputS!20:20,InputS!21:21) -> 0.06666666667 | YK24: =LOOKUP(YK23,InputS!20:20,InputS!21:21) -> 0.06666666667 | YL24: =LOOKUP(YL23,InputS!20:20,InputS!21:21) -> 0.08 | YM24: =LOOKUP(YM23,InputS!20:20,InputS!21:21) -> 0.085 | YN24: =LOOKUP(YN23,InputS!20:20,InputS!21:21) -> 0.09 | YO24: =LOOKUP(YO23,InputS!20:20,InputS!21:21) -> 0.12 | YP24: =LOOKUP(YP23,InputS!20:20,InputS!21:21) -> 0.12 | YQ24: =LOOKUP(YQ23,InputS!20:20,InputS!21:21) -> 0.09 | YR24: =LOOKUP(YR23,InputS!20:20,InputS!21:21) -> 0.08 | YS24: =LOOKUP(YS23,InputS!20:20,InputS!21:21) -> 0.07 | YT24: =LOOKUP(YT23,InputS!20:20,InputS!21:21) -> 0.065 | YU24: =LOOKUP(YU23,InputS!20:20,InputS!21:21) -> 0.06666666667 | YV24: =LOOKUP(YV23,InputS!20:20,InputS!21:21) -> 0.06666666667 | YW24: =LOOKUP(YW23,InputS!20:20,InputS!21:21) -> 0.06666666667 | YX24: =LOOKUP(YX23,InputS!20:20,InputS!21:21) -> 0.08 | YY24: =LOOKUP(YY23,InputS!20:20,InputS!21:21) -> 0.085 | YZ24: =LOOKUP(YZ23,InputS!20:20,InputS!21:21) -> 0.09 | ZA24: =LOOKUP(ZA23,InputS!20:20,InputS!21:21) -> 0.12 | ZB24: =LOOKUP(ZB23,InputS!20:20,InputS!21:21) -> 0.12 | ZC24: =LOOKUP(ZC23,InputS!20:20,InputS!21:21) -> 0.09 | ZD24: =LOOKUP(ZD23,InputS!20:20,InputS!21:21) -> 0.08 | ZE24: =LOOKUP(ZE23,InputS!20:20,InputS!21:21) -> 0.07 | ZF24: =LOOKUP(ZF23,InputS!20:20,InputS!21:21) -> 0.065 | ZG24: =LOOKUP(ZG23,InputS!20:20,InputS!21:21) -> 0.06666666667 | ZH24: =LOOKUP(ZH23,InputS!20:20,InputS!21:21) -> 0.06666666667 | ZI24: =LOOKUP(ZI23,InputS!20:20,InputS!21:21) -> 0.06666666667 | ZJ24: =LOOKUP(ZJ23,InputS!20:20,InputS!21:21) -> 0.08 | ZK24: =LOOKUP(ZK23,InputS!20:20,InputS!21:21) -> 0.085 | ZL24: =LOOKUP(ZL23,InputS!20:20,InputS!21:21) -> 0.09 | ZM24: =LOOKUP(ZM23,InputS!20:20,InputS!21:21) -> 0.12 | ZN24: =LOOKUP(ZN23,InputS!20:20,InputS!21:21) -> 0.12 | ZO24: =LOOKUP(ZO23,InputS!20:20,InputS!21:21) -> 0.09 | ZP24: =LOOKUP(ZP23,InputS!20:20,InputS!21:21) -> 0.08 | ZQ24: =LOOKUP(ZQ23,InputS!20:20,InputS!21:21) -> 0.07 | ZR24: =LOOKUP(ZR23,InputS!20:20,InputS!21:21) -> 0.065 | ZS24: =LOOKUP(ZS23,InputS!20:20,InputS!21:21) -> 0.06666666667 | ZT24: =LOOKUP(ZT23,InputS!20:20,InputS!21:21) -> 0.06666666667 | ZU24: =LOOKUP(ZU23,InputS!20:20,InputS!21:21) -> 0.06666666667 | ZV24: =LOOKUP(ZV23,InputS!20:20,InputS!21:21) -> 0.08 | ZW24: =LOOKUP(ZW23,InputS!20:20,InputS!21:21) -> 0.085 | ZX24: =LOOKUP(ZX23,InputS!20:20,InputS!21:21) -> 0.09 | ZY24: =LOOKUP(ZY23,InputS!20:20,InputS!21:21) -> 0.12 | ZZ24: =LOOKUP(ZZ23,InputS!20:20,InputS!21:21) -> 0.12 | AAA24: =LOOKUP(AAA23,InputS!20:20,InputS!21:21) -> 0.09 | AAB24: =LOOKUP(AAB23,InputS!20:20,InputS!21:21) -> 0.08 | AAC24: =LOOKUP(AAC23,InputS!20:20,InputS!21:21) -> 0.07 | AAD24: =LOOKUP(AAD23,InputS!20:20,InputS!21:21) -> 0.065 | AAE24: =LOOKUP(AAE23,InputS!20:20,InputS!21:21) -> 0.06666666667 | AAF24: =LOOKUP(AAF23,InputS!20:20,InputS!21:21) -> 0.06666666667 | AAG24: =LOOKUP(AAG23,InputS!20:20,InputS!21:21) -> 0.06666666667 | AAH24: =LOOKUP(AAH23,InputS!20:20,InputS!21:21) -> 0.08 | AAI24: =LOOKUP(AAI23,InputS!20:20,InputS!21:21) -> 0.085 | AAJ24: =LOOKUP(AAJ23,InputS!20:20,InputS!21:21) -> 0.09 | AAK24: =LOOKUP(AAK23,InputS!20:20,InputS!21:21) -> 0.12 | AAL24: =LOOKUP(AAL23,InputS!20:20,InputS!21:21) -> 0.12 | AAM24: =LOOKUP(AAM23,InputS!20:20,InputS!21:21) -> 0.09 | AAN24: =LOOKUP(AAN23,InputS!20:20,InputS!21:21) -> 0.08 | AAO24: =LOOKUP(AAO23,InputS!20:20,InputS!21:21) -> 0.07 | AAP24: =LOOKUP(AAP23,InputS!20:20,InputS!21:21) -> 0.065 | AAQ24: =LOOKUP(AAQ23,InputS!20:20,InputS!21:21) -> 0.06666666667 | AAR24: =LOOKUP(AAR23,InputS!20:20,InputS!21:21) -> 0.06666666667 | AAS24: =LOOKUP(AAS23,InputS!20:20,InputS!21:21) -> 0.06666666667 | AAT24: =LOOKUP(AAT23,InputS!20:20,InputS!21:21) -> 0.08 | AAU24: =LOOKUP(AAU23,InputS!20:20,InputS!21:21) -> 0.085 | AAV24: =LOOKUP(AAV23,InputS!20:20,InputS!21:21) -> 0.09 | AAW24: =LOOKUP(AAW23,InputS!20:20,InputS!21:21) -> 0.12 | AAX24: =LOOKUP(AAX23,InputS!20:20,InputS!21:21) -> 0.12 | AAY24: =LOOKUP(AAY23,InputS!20:20,InputS!21:21) -> 0.09 | AAZ24: =LOOKUP(AAZ23,InputS!20:20,InputS!21:21) -> 0.08 | ABA24: =LOOKUP(ABA23,InputS!20:20,InputS!21:21) -> 0.07 | ABB24: =LOOKUP(ABB23,InputS!20:20,InputS!21:21) -> 0.065 | ABC24: =LOOKUP(ABC23,InputS!20:20,InputS!21:21) -> 0.06666666667 | ABD24: =LOOKUP(ABD23,InputS!20:20,InputS!21:21) -> 0.06666666667 | ABE24: =LOOKUP(ABE23,InputS!20:20,InputS!21:21) -> 0.06666666667 | ABF24: =LOOKUP(ABF23,InputS!20:20,InputS!21:21) -> 0.08 | ABG24: =LOOKUP(ABG23,InputS!20:20,InputS!21:21) -> 0.085 | ABH24: =LOOKUP(ABH23,InputS!20:20,InputS!21:21) -> 0.09 | ABI24: =LOOKUP(ABI23,InputS!20:20,InputS!21:21) -> 0.12 | ABJ24: =LOOKUP(ABJ23,InputS!20:20,InputS!21:21) -> 0.12 | ABK24: =LOOKUP(ABK23,InputS!20:20,InputS!21:21) -> 0.09 | ABL24: =LOOKUP(ABL23,InputS!20:20,InputS!21:21) -> 0.08 | ABM24: =LOOKUP(ABM23,InputS!20:20,InputS!21:21) -> 0.07 | ABN24: =LOOKUP(ABN23,InputS!20:20,InputS!21:21) -> 0.065 | ABO24: =LOOKUP(ABO23,InputS!20:20,InputS!21:21) -> 0.06666666667 | ABP24: =LOOKUP(ABP23,InputS!20:20,InputS!21:21) -> 0.06666666667 | ABQ24: =LOOKUP(ABQ23,InputS!20:20,InputS!21:21) -> 0.06666666667 | ABR24: =LOOKUP(ABR23,InputS!20:20,InputS!21:21) -> 0.08 | ABS24: =LOOKUP(ABS23,InputS!20:20,InputS!21:21) -> 0.085 | ABT24: =LOOKUP(ABT23,InputS!20:20,InputS!21:21) -> 0.09 | ABU24: =LOOKUP(ABU23,InputS!20:20,InputS!21:21) -> 0.12 | ABV24: =LOOKUP(ABV23,InputS!20:20,InputS!21:21) -> 0.12 | ABW24: =LOOKUP(ABW23,InputS!20:20,InputS!21:21) -> 0.09 | ABX24: =LOOKUP(ABX23,InputS!20:20,InputS!21:21) -> 0.08 | ABY24: =LOOKUP(ABY23,InputS!20:20,InputS!21:21) -> 0.07 | ABZ24: =LOOKUP(ABZ23,InputS!20:20,InputS!21:21) -> 0.065 | ACA24: =LOOKUP(ACA23,InputS!20:20,InputS!21:21) -> 0.06666666667 | ACB24: =LOOKUP(ACB23,InputS!20:20,InputS!21:21) -> 0.06666666667 | ACC24: =LOOKUP(ACC23,InputS!20:20,InputS!21:21) -> 0.06666666667 | ACD24: =LOOKUP(ACD23,InputS!20:20,InputS!21:21) -> 0.08 | ACE24: =LOOKUP(ACE23,InputS!20:20,InputS!21:21) -> 0.085 | ACF24: =LOOKUP(ACF23,InputS!20:20,InputS!21:21) -> 0.09 | ACG24: =LOOKUP(ACG23,InputS!20:20,InputS!21:21) -> 0.12 | ACH24: =LOOKUP(ACH23,InputS!20:20,InputS!21:21) -> 0.12 | ACI24: =LOOKUP(ACI23,InputS!20:20,InputS!21:21) -> 0.09 | ACJ24: =LOOKUP(ACJ23,InputS!20:20,InputS!21:21) -> 0.08 | ACK24: =LOOKUP(ACK23,InputS!20:20,InputS!21:21) -> 0.07 | ACL24: =LOOKUP(ACL23,InputS!20:20,InputS!21:21) -> 0.065 | ACM24: =LOOKUP(ACM23,InputS!20:20,InputS!21:21) -> 0.06666666667 | ACN24: =LOOKUP(ACN23,InputS!20:20,InputS!21:21) -> 0.06666666667 | ACO24: =LOOKUP(ACO23,InputS!20:20,InputS!21:21) -> 0.06666666667 | ACP24: =LOOKUP(ACP23,InputS!20:20,InputS!21:21) -> 0.08 | ACQ24: =LOOKUP(ACQ23,InputS!20:20,InputS!21:21) -> 0.085 | ACR24: =LOOKUP(ACR23,InputS!20:20,InputS!21:21) -> 0.09 | ACS24: =LOOKUP(ACS23,InputS!20:20,InputS!21:21) -> 0.12 | ACT24: =LOOKUP(ACT23,InputS!20:20,InputS!21:21) -> 0.12 | ACU24: =LOOKUP(ACU23,InputS!20:20,InputS!21:21) -> 0.09 | ACV24: =LOOKUP(ACV23,InputS!20:20,InputS!21:21) -> 0.08 | ACW24: =LOOKUP(ACW23,InputS!20:20,InputS!21:21) -> 0.07 | ACX24: =LOOKUP(ACX23,InputS!20:20,InputS!21:21) -> 0.065 | ACY24: =LOOKUP(ACY23,InputS!20:20,InputS!21:21) -> 0.06666666667 | ACZ24: =LOOKUP(ACZ23,InputS!20:20,InputS!21:21) -> 0.06666666667 | ADA24: =LOOKUP(ADA23,InputS!20:20,InputS!21:21) -> 0.06666666667 | ADB24: =LOOKUP(ADB23,InputS!20:20,InputS!21:21) -> 0.08 | ADC24: =LOOKUP(ADC23,InputS!20:20,InputS!21:21) -> 0.085 | ADD24: =LOOKUP(ADD23,InputS!20:20,InputS!21:21) -> 0.09 | ADE24: =LOOKUP(ADE23,InputS!20:20,InputS!21:21) -> 0.12 | ADF24: =LOOKUP(ADF23,InputS!20:20,InputS!21:21) -> 0.12 | ADG24: =LOOKUP(ADG23,InputS!20:20,InputS!21:21) -> 0.09 | ADH24: =LOOKUP(ADH23,InputS!20:20,InputS!21:21) -> 0.08 | ADI24: =LOOKUP(ADI23,InputS!20:20,InputS!21:21) -> 0.07 | ADJ24: =LOOKUP(ADJ23,InputS!20:20,InputS!21:21) -> 0.065 | ADK24: =LOOKUP(ADK23,InputS!20:20,InputS!21:21) -> 0.06666666667 | ADL24: =LOOKUP(ADL23,InputS!20:20,InputS!21:21) -> 0.06666666667 | ADM24: =LOOKUP(ADM23,InputS!20:20,InputS!21:21) -> 0.06666666667 | ADN24: =LOOKUP(ADN23,InputS!20:20,InputS!21:21) -> 0.08 | ADO24: =LOOKUP(ADO23,InputS!20:20,InputS!21:21) -> 0.085 | ADP24: =LOOKUP(ADP23,InputS!20:20,InputS!21:21) -> 0.09 | ADQ24: =LOOKUP(ADQ23,InputS!20:20,InputS!21:21) -> 0.12 | ADR24: =LOOKUP(ADR23,InputS!20:20,InputS!21:21) -> 0.12 | ADS24: =LOOKUP(ADS23,InputS!20:20,InputS!21:21) -> 0.09 | ADT24: =LOOKUP(ADT23,InputS!20:20,InputS!21:21) -> 0.08 | ADU24: =LOOKUP(ADU23,InputS!20:20,InputS!21:21) -> 0.07 | ADV24: =LOOKUP(ADV23,InputS!20:20,InputS!21:21) -> 0.065 | ADW24: =LOOKUP(ADW23,InputS!20:20,InputS!21:21) -> 0.06666666667 | ADX24: =LOOKUP(ADX23,InputS!20:20,InputS!21:21) -> 0.06666666667 | ADY24: =LOOKUP(ADY23,InputS!20:20,InputS!21:21) -> 0.06666666667 | ADZ24: =LOOKUP(ADZ23,InputS!20:20,InputS!21:21) -> 0.08 | AEA24: =LOOKUP(AEA23,InputS!20:20,InputS!21:21) -> 0.085 | AEB24: =LOOKUP(AEB23,InputS!20:20,InputS!21:21) -> 0.09 | AEC24: =LOOKUP(AEC23,InputS!20:20,InputS!21:21) -> 0.12 | AED24: =LOOKUP(AED23,InputS!20:20,InputS!21:21) -> 0.12 | AEE24: =LOOKUP(AEE23,InputS!20:20,InputS!21:21) -> 0.09
D25: Seasonal EBITDA | G25: Euro | J25: =SUM(K25:XFD25) -> 3500 | L25: =L21*L24 -> 0 | M25: =M21*M24 -> 0 | N25: 0 | O25: 0 | P25: 0 | Q25: 0 | R25: 0 | S25: 0 | T25: 0 | U25: 0 | V25: 0 | W25: 6.666666667 | X25: 6.666666667 | Y25: 6.666666667 | Z25: 8 | AA25: 8.5 | AB25: 9 | AC25: 12 | AD25: 12 | AE25: 9 | AF25: 8 | AG25: 7 | AH25: 6.5 | AI25: 6.666666667 | AJ25: 6.666666667 | AK25: 6.666666667 | AL25: 8 | AM25: 8.5 | AN25: 9 | AO25: 12 | AP25: 12 | AQ25: 9 | AR25: 8 | AS25: 7 | AT25: 6.5 | AU25: 6.666666667 | AV25: 6.666666667 | AW25: 6.666666667 | AX25: 8 | AY25: 8.5 | AZ25: 9 | BA25: 12 | BB25: 12 | BC25: 9 | BD25: 8 | BE25: 7 | BF25: 6.5 | BG25: 6.666666667 | BH25: 6.666666667 | BI25: 6.666666667 | BJ25: 8 | BK25: 8.5 | BL25: 9 | BM25: 12 | BN25: 12 | BO25: 9 | BP25: 8 | BQ25: 7 | BR25: 6.5 | BS25: 6.666666667 | BT25: 6.666666667 | BU25: 6.666666667 | BV25: 8 | BW25: 8.5 | BX25: 9 | BY25: =BY21*BY24 -> 12 | BZ25: 12 | CA25: 9 | CB25: 8 | CC25: 7 | CD25: 6.5 | CE25: 6.666666667 | CF25: 6.666666667 | CG25: 6.666666667 | CH25: 8 | CI25: 8.5 | CJ25: 9 | CK25: 12 | CL25: 12 | CM25: 9 | CN25: 8 | CO25: 7 | CP25: 6.5 | CQ25: 6.666666667 | CR25: 6.666666667 | CS25: 6.666666667 | CT25: 8 | CU25: 8.5 | CV25: 9 | CW25: 12 | CX25: 12 | CY25: 9 | CZ25: 8 | DA25: 7 | DB25: 6.5 | DC25: 6.666666667 | DD25: 6.666666667 | DE25: 6.666666667 | DF25: 8 | DG25: 8.5 | DH25: 9 | DI25: 12 | DJ25: 12 | DK25: 9 | DL25: 8 | DM25: 7 | DN25: 6.5 | DO25: 6.666666667 | DP25: 6.666666667 | DQ25: 6.666666667 | DR25: 8 | DS25: 8.5 | DT25: 9 | DU25: 12 | DV25: 12 | DW25: 9 | DX25: 8 | DY25: 7 | DZ25: 6.5 | EA25: 6.666666667 | EB25: 6.666666667 | EC25: 6.666666667 | ED25: 8 | EE25: 8.5 | EF25: 9 | EG25: 12 | EH25: 12 | EI25: 9 | EJ25: 8 | EK25: =EK21*EK24 -> 7 | EL25: 6.5 | EM25: 6.666666667 | EN25: 6.666666667 | EO25: 6.666666667 | EP25: 8 | EQ25: 8.5 | ER25: 9 | ES25: 12 | ET25: 12 | EU25: 9 | EV25: 8 | EW25: 7 | EX25: 6.5 | EY25: 6.666666667 | EZ25: 6.666666667 | FA25: 6.666666667 | FB25: 8 | FC25: 8.5 | FD25: 9 | FE25: 12 | FF25: 12 | FG25: 9 | FH25: 8 | FI25: 7 | FJ25: 6.5 | FK25: 6.666666667 | FL25: 6.666666667 | FM25: 6.666666667 | FN25: 8 | FO25: 8.5 | FP25: 9 | FQ25: 12 | FR25: 12 | FS25: 9 | FT25: 8 | FU25: 7 | FV25: 6.5 | FW25: 6.666666667 | FX25: 6.666666667 | FY25: 6.666666667 | FZ25: 8 | GA25: 8.5 | GB25: 9 | GC25: 12 | GD25: 12 | GE25: 9 | GF25: 8 | GG25: 7 | GH25: 6.5 | GI25: 6.666666667 | GJ25: 6.666666667 | GK25: 6.666666667 | GL25: 8 | GM25: 8.5 | GN25: 9 | GO25: 12 | GP25: 12 | GQ25: 9 | GR25: 8 | GS25: 7 | GT25: 6.5 | GU25: 6.666666667 | GV25: 6.666666667 | GW25: =GW21*GW24 -> 6.666666667 | GX25: 8 | GY25: 8.5 | GZ25: 9 | HA25: 12 | HB25: 12 | HC25: 9 | HD25: 8 | HE25: 7 | HF25: 6.5 | HG25: 6.666666667 | HH25: 6.666666667 | HI25: 6.666666667 | HJ25: 8 | HK25: 8.5 | HL25: 9 | HM25: 12 | HN25: 12 | HO25: 9 | HP25: 8 | HQ25: 7 | HR25: 6.5 | HS25: 6.666666667 | HT25: 6.666666667 | HU25: 6.666666667 | HV25: 8 | HW25: 8.5 | HX25: 9 | HY25: 12 | HZ25: 12 | IA25: 9 | IB25: 8 | IC25: 7 | ID25: 6.5 | IE25: 6.666666667 | IF25: 6.666666667 | IG25: 6.666666667 | IH25: 8 | II25: 8.5 | IJ25: 9 | IK25: 12 | IL25: 12 | IM25: 9 | IN25: 8 | IO25: 7 | IP25: 6.5 | IQ25: 6.666666667 | IR25: 6.666666667 | IS25: 6.666666667 | IT25: 8 | IU25: 8.5 | IV25: 9 | IW25: 12 | IX25: 12 | IY25: 9 | IZ25: 8 | JA25: 7 | JB25: 6.5 | JC25: 6.666666667 | JD25: 6.666666667 | JE25: 6.666666667 | JF25: 8 | JG25: 8.5 | JH25: 9 | JI25: =JI21*JI24 -> 12 | JJ25: 12 | JK25: 9 | JL25: 8 | JM25: 7 | JN25: 6.5 | JO25: 6.666666667 | JP25: 6.666666667 | JQ25: 6.666666667 | JR25: 8 | JS25: 8.5 | JT25: 9 | JU25: 12 | JV25: 12 | JW25: 9 | JX25: 8 | JY25: 7 | JZ25: 6.5 | KA25: 6.666666667 | KB25: 6.666666667 | KC25: 6.666666667 | KD25: 8 | KE25: 8.5 | KF25: 9 | KG25: 12 | KH25: 12 | KI25: 9 | KJ25: 8 | KK25: 7 | KL25: 6.5 | KM25: 6.666666667 | KN25: 6.666666667 | KO25: 6.666666667 | KP25: 8 | KQ25: 8.5 | KR25: 9 | KS25: 12 | KT25: 12 | KU25: 9 | KV25: 8 | KW25: 7 | KX25: 6.5 | KY25: 6.666666667 | KZ25: 6.666666667 | LA25: 6.666666667 | LB25: 8 | LC25: 8.5 | LD25: 9 | LE25: 12 | LF25: 12 | LG25: 9 | LH25: 8 | LI25: 7 | LJ25: 6.5 | LK25: 6.666666667 | LL25: 6.666666667 | LM25: 6.666666667 | LN25: 8 | LO25: 8.5 | LP25: 9 | LQ25: 12 | LR25: 12 | LS25: 9 | LT25: 8 | LU25: =LU21*LU24 -> 7 | LV25: 6.5 | LW25: 6.666666667 | LX25: 6.666666667 | LY25: 6.666666667 | LZ25: 8 | MA25: 8.5 | MB25: 9 | MC25: 12 | MD25: 12 | ME25: 9 | MF25: 8 | MG25: 7 | MH25: 6.5 | MI25: 6.666666667 | MJ25: 6.666666667 | MK25: 6.666666667 | ML25: 8 | MM25: 8.5 | MN25: 9 | MO25: 12 | MP25: 12 | MQ25: 9 | MR25: 8 | MS25: 7 | MT25: 6.5 | MU25: 6.666666667 | MV25: 6.666666667 | MW25: 6.666666667 | MX25: 8 | MY25: 8.5 | MZ25: 9 | NA25: 12 | NB25: 12 | NC25: 9 | ND25: 8 | NE25: 7 | NF25: 6.5 | NG25: 6.666666667 | NH25: 6.666666667 | NI25: 6.666666667 | NJ25: 8 | NK25: 8.5 | NL25: 9 | NM25: 12 | NN25: 12 | NO25: 9 | NP25: 8 | NQ25: 7 | NR25: 6.5 | NS25: 6.666666667 | NT25: 6.666666667 | NU25: 6.666666667 | NV25: 8 | NW25: 8.5 | NX25: 9 | NY25: 12 | NZ25: 12 | OA25: 9 | OB25: 8 | OC25: 7 | OD25: 6.5 | OE25: 6.666666667 | OF25: 6.666666667 | OG25: =OG21*OG24 -> 6.666666667 | OH25: 8 | OI25: 8.5 | OJ25: 9 | OK25: 12 | OL25: 12 | OM25: 9 | ON25: 8 | OO25: 7 | OP25: 6.5 | OQ25: 6.666666667 | OR25: 6.666666667 | OS25: 6.666666667 | OT25: 8 | OU25: 8.5 | OV25: 9 | OW25: 12 | OX25: 12 | OY25: 9 | OZ25: 8 | PA25: 7 | PB25: 6.5 | PC25: 6.666666667 | PD25: 6.666666667 | PE25: 6.666666667 | PF25: 8 | PG25: 8.5 | PH25: 9 | PI25: 12 | PJ25: 12 | PK25: 9 | PL25: 8 | PM25: 7 | PN25: 6.5 | PO25: 6.666666667 | PP25: 6.666666667 | PQ25: 6.666666667 | PR25: 8 | PS25: 8.5 | PT25: 9 | PU25: 12 | PV25: 12 | PW25: 9 | PX25: 8 | PY25: 7 | PZ25: 6.5 | QA25: 0 | QB25: 0 | QC25: 0 | QD25: 0 | QE25: 0 | QF25: 0 | QG25: 0 | QH25: 0 | QI25: 0 | QJ25: 0 | QK25: 0 | QL25: 0 | QM25: 0 | QN25: 0 | QO25: 0 | QP25: 0 | QQ25: 0 | QR25: 0 | QS25: =QS21*QS24 -> 0 | QT25: 0 | QU25: 0 | QV25: 0 | QW25: 0 | QX25: 0 | QY25: 0 | QZ25: 0 | RA25: 0 | RB25: 0 | RC25: 0 | RD25: 0 | RE25: 0 | RF25: 0 | RG25: 0 | RH25: 0 | RI25: 0 | RJ25: 0 | RK25: 0 | RL25: 0 | RM25: 0 | RN25: 0 | RO25: 0 | RP25: 0 | RQ25: 0 | RR25: 0 | RS25: 0 | RT25: 0 | RU25: 0 | RV25: 0 | RW25: 0 | RX25: 0 | RY25: 0 | RZ25: 0 | SA25: 0 | SB25: 0 | SC25: 0 | SD25: 0 | SE25: 0 | SF25: 0 | SG25: 0 | SH25: 0 | SI25: 0 | SJ25: 0 | SK25: 0 | SL25: 0 | SM25: 0 | SN25: 0 | SO25: 0 | SP25: 0 | SQ25: 0 | SR25: 0 | SS25: 0 | ST25: 0 | SU25: 0 | SV25: 0 | SW25: 0 | SX25: 0 | SY25: 0 | SZ25: 0 | TA25: 0 | TB25: 0 | TC25: 0 | TD25: 0 | TE25: =TE21*TE24 -> 0 | TF25: 0 | TG25: 0 | TH25: 0 | TI25: 0 | TJ25: 0 | TK25: 0 | TL25: 0 | TM25: 0 | TN25: 0 | TO25: 0 | TP25: 0 | TQ25: 0 | TR25: 0 | TS25: 0 | TT25: 0 | TU25: 0 | TV25: 0 | TW25: 0 | TX25: 0 | TY25: 0 | TZ25: 0 | UA25: 0 | UB25: 0 | UC25: 0 | UD25: 0 | UE25: 0 | UF25: 0 | UG25: 0 | UH25: 0 | UI25: 0 | UJ25: 0 | UK25: 0 | UL25: 0 | UM25: 0 | UN25: 0 | UO25: 0 | UP25: 0 | UQ25: 0 | UR25: 0 | US25: 0 | UT25: 0 | UU25: 0 | UV25: 0 | UW25: 0 | UX25: 0 | UY25: 0 | UZ25: 0 | VA25: 0 | VB25: 0 | VC25: 0 | VD25: 0 | VE25: 0 | VF25: 0 | VG25: 0 | VH25: 0 | VI25: 0 | VJ25: 0 | VK25: 0 | VL25: 0 | VM25: 0 | VN25: 0 | VO25: 0 | VP25: 0 | VQ25: =VQ21*VQ24 -> 0 | VR25: 0 | VS25: 0 | VT25: 0 | VU25: 0 | VV25: 0 | VW25: 0 | VX25: 0 | VY25: 0 | VZ25: 0 | WA25: 0 | WB25: 0 | WC25: 0 | WD25: 0 | WE25: 0 | WF25: 0 | WG25: 0 | WH25: 0 | WI25: 0 | WJ25: 0 | WK25: 0 | WL25: 0 | WM25: 0 | WN25: 0 | WO25: 0 | WP25: 0 | WQ25: 0 | WR25: 0 | WS25: 0 | WT25: 0 | WU25: 0 | WV25: 0 | WW25: 0 | WX25: 0 | WY25: 0 | WZ25: 0 | XA25: 0 | XB25: 0 | XC25: 0 | XD25: 0 | XE25: 0 | XF25: 0 | XG25: 0 | XH25: 0 | XI25: 0 | XJ25: 0 | XK25: 0 | XL25: 0 | XM25: 0 | XN25: 0 | XO25: 0 | XP25: 0 | XQ25: 0 | XR25: 0 | XS25: 0 | XT25: 0 | XU25: 0 | XV25: 0 | XW25: 0 | XX25: 0 | XY25: 0 | XZ25: 0 | YA25: 0 | YB25: 0 | YC25: =YC21*YC24 -> 0 | YD25: 0 | YE25: 0 | YF25: 0 | YG25: 0 | YH25: 0 | YI25: 0 | YJ25: 0 | YK25: 0 | YL25: 0 | YM25: 0 | YN25: 0 | YO25: 0 | YP25: 0 | YQ25: 0 | YR25: 0 | YS25: 0 | YT25: 0 | YU25: 0 | YV25: 0 | YW25: 0 | YX25: 0 | YY25: 0 | YZ25: 0 | ZA25: 0 | ZB25: 0 | ZC25: 0 | ZD25: 0 | ZE25: 0 | ZF25: 0 | ZG25: 0 | ZH25: 0 | ZI25: 0 | ZJ25: 0 | ZK25: 0 | ZL25: 0 | ZM25: 0 | ZN25: 0 | ZO25: 0 | ZP25: 0 | ZQ25: 0 | ZR25: 0 | ZS25: 0 | ZT25: 0 | ZU25: 0 | ZV25: 0 | ZW25: 0 | ZX25: 0 | ZY25: 0 | ZZ25: 0 | AAA25: 0 | AAB25: 0 | AAC25: 0 | AAD25: 0 | AAE25: 0 | AAF25: 0 | AAG25: 0 | AAH25: 0 | AAI25: 0 | AAJ25: 0 | AAK25: 0 | AAL25: 0 | AAM25: 0 | AAN25: 0 | AAO25: =AAO21*AAO24 -> 0 | AAP25: 0 | AAQ25: 0 | AAR25: 0 | AAS25: 0 | AAT25: 0 | AAU25: 0 | AAV25: 0 | AAW25: 0 | AAX25: 0 | AAY25: 0 | AAZ25: 0 | ABA25: 0 | ABB25: 0 | ABC25: 0 | ABD25: 0 | ABE25: 0 | ABF25: 0 | ABG25: 0 | ABH25: 0 | ABI25: 0 | ABJ25: 0 | ABK25: 0 | ABL25: 0 | ABM25: 0 | ABN25: 0 | ABO25: 0 | ABP25: 0 | ABQ25: 0 | ABR25: 0 | ABS25: 0 | ABT25: 0 | ABU25: 0 | ABV25: 0 | ABW25: 0 | ABX25: 0 | ABY25: 0 | ABZ25: 0 | ACA25: 0 | ACB25: 0 | ACC25: 0 | ACD25: 0 | ACE25: 0 | ACF25: 0 | ACG25: 0 | ACH25: 0 | ACI25: 0 | ACJ25: 0 | ACK25: 0 | ACL25: 0 | ACM25: 0 | ACN25: 0 | ACO25: 0 | ACP25: 0 | ACQ25: 0 | ACR25: 0 | ACS25: 0 | ACT25: 0 | ACU25: 0 | ACV25: 0 | ACW25: 0 | ACX25: 0 | ACY25: 0 | ACZ25: 0 | ADA25: =ADA21*ADA24 -> 0 | ADB25: 0 | ADC25: 0 | ADD25: 0 | ADE25: 0 | ADF25: 0 | ADG25: 0 | ADH25: 0 | ADI25: 0 | ADJ25: 0 | ADK25: 0 | ADL25: 0 | ADM25: 0 | ADN25: 0 | ADO25: 0 | ADP25: 0 | ADQ25: 0 | ADR25: 0 | ADS25: 0 | ADT25: 0 | ADU25: 0 | ADV25: 0 | ADW25: 0 | ADX25: 0 | ADY25: 0 | ADZ25: 0 | AEA25: 0 | AEB25: 0 | AEC25: 0 | AED25: 0 | AEE25: 0
C27: Inflation Index
D28: Year | G28: Year | L28: =YEAR(L4) -> 2023 | M28: 2023 | N28: 2023 | O28: 2023 | P28: 2023 | Q28: 2023 | R28: 2023 | S28: 2023 | T28: 2023 | U28: 2023 | V28: 2023 | W28: 2023 | X28: 2024 | Y28: 2024 | Z28: 2024 | AA28: 2024 | AB28: 2024 | AC28: 2024 | AD28: 2024 | AE28: 2024 | AF28: 2024 | AG28: 2024 | AH28: 2024 | AI28: 2024 | AJ28: 2025 | AK28: 2025 | AL28: 2025 | AM28: 2025 | AN28: 2025 | AO28: 2025 | AP28: 2025 | AQ28: 2025 | AR28: 2025 | AS28: 2025 | AT28: 2025 | AU28: 2025 | AV28: 2026 | AW28: 2026 | AX28: 2026 | AY28: 2026 | AZ28: 2026 | BA28: 2026 | BB28: 2026 | BC28: 2026 | BD28: 2026 | BE28: 2026 | BF28: 2026 | BG28: 2026 | BH28: 2027 | BI28: 2027 | BJ28: 2027 | BK28: 2027 | BL28: 2027 | BM28: 2027 | BN28: 2027 | BO28: 2027 | BP28: 2027 | BQ28: 2027 | BR28: 2027 | BS28: 2027 | BT28: 2028 | BU28: 2028 | BV28: 2028 | BW28: 2028 | BX28: =YEAR(BX4) -> 2028 | BY28: 2028 | BZ28: 2028 | CA28: 2028 | CB28: 2028 | CC28: 2028 | CD28: 2028 | CE28: 2028 | CF28: 2029 | CG28: 2029 | CH28: 2029 | CI28: 2029 | CJ28: 2029 | CK28: 2029 | CL28: 2029 | CM28: 2029 | CN28: 2029 | CO28: 2029 | CP28: 2029 | CQ28: 2029 | CR28: 2030 | CS28: 2030 | CT28: 2030 | CU28: 2030 | CV28: 2030 | CW28: 2030 | CX28: 2030 | CY28: 2030 | CZ28: 2030 | DA28: 2030 | DB28: 2030 | DC28: 2030 | DD28: 2031 | DE28: 2031 | DF28: 2031 | DG28: 2031 | DH28: 2031 | DI28: 2031 | DJ28: 2031 | DK28: 2031 | DL28: 2031 | DM28: 2031 | DN28: 2031 | DO28: 2031 | DP28: 2032 | DQ28: 2032 | DR28: 2032 | DS28: 2032 | DT28: 2032 | DU28: 2032 | DV28: 2032 | DW28: 2032 | DX28: 2032 | DY28: 2032 | DZ28: 2032 | EA28: 2032 | EB28: 2033 | EC28: 2033 | ED28: 2033 | EE28: 2033 | EF28: 2033 | EG28: 2033 | EH28: 2033 | EI28: 2033 | EJ28: =YEAR(EJ4) -> 2033 | EK28: 2033 | EL28: 2033 | EM28: 2033 | EN28: 2034 | EO28: 2034 | EP28: 2034 | EQ28: 2034 | ER28: 2034 | ES28: 2034 | ET28: 2034 | EU28: 2034 | EV28: 2034 | EW28: 2034 | EX28: 2034 | EY28: 2034 | EZ28: 2035 | FA28: 2035 | FB28: 2035 | FC28: 2035 | FD28: 2035 | FE28: 2035 | FF28: 2035 | FG28: 2035 | FH28: 2035 | FI28: 2035 | FJ28: 2035 | FK28: 2035 | FL28: 2036 | FM28: 2036 | FN28: 2036 | FO28: 2036 | FP28: 2036 | FQ28: 2036 | FR28: 2036 | FS28: 2036 | FT28: 2036 | FU28: 2036 | FV28: 2036 | FW28: 2036 | FX28: 2037 | FY28: 2037 | FZ28: 2037 | GA28: 2037 | GB28: 2037 | GC28: 2037 | GD28: 2037 | GE28: 2037 | GF28: 2037 | GG28: 2037 | GH28: 2037 | GI28: 2037 | GJ28: 2038 | GK28: 2038 | GL28: 2038 | GM28: 2038 | GN28: 2038 | GO28: 2038 | GP28: 2038 | GQ28: 2038 | GR28: 2038 | GS28: 2038 | GT28: 2038 | GU28: 2038 | GV28: =YEAR(GV4) -> 2039 | GW28: 2039 | GX28: 2039 | GY28: 2039 | GZ28: 2039 | HA28: 2039 | HB28: 2039 | HC28: 2039 | HD28: 2039 | HE28: 2039 | HF28: 2039 | HG28: 2039 | HH28: 2040 | HI28: 2040 | HJ28: 2040 | HK28: 2040 | HL28: 2040 | HM28: 2040 | HN28: 2040 | HO28: 2040 | HP28: 2040 | HQ28: 2040 | HR28: 2040 | HS28: 2040 | HT28: 2041 | HU28: 2041 | HV28: 2041 | HW28: 2041 | HX28: 2041 | HY28: 2041 | HZ28: 2041 | IA28: 2041 | IB28: 2041 | IC28: 2041 | ID28: 2041 | IE28: 2041 | IF28: 2042 | IG28: 2042 | IH28: 2042 | II28: 2042 | IJ28: 2042 | IK28: 2042 | IL28: 2042 | IM28: 2042 | IN28: 2042 | IO28: 2042 | IP28: 2042 | IQ28: 2042 | IR28: 2043 | IS28: 2043 | IT28: 2043 | IU28: 2043 | IV28: 2043 | IW28: 2043 | IX28: 2043 | IY28: 2043 | IZ28: 2043 | JA28: 2043 | JB28: 2043 | JC28: 2043 | JD28: 2044 | JE28: 2044 | JF28: 2044 | JG28: 2044 | JH28: =YEAR(JH4) -> 2044 | JI28: 2044 | JJ28: 2044 | JK28: 2044 | JL28: 2044 | JM28: 2044 | JN28: 2044 | JO28: 2044 | JP28: 2045 | JQ28: 2045 | JR28: 2045 | JS28: 2045 | JT28: 2045 | JU28: 2045 | JV28: 2045 | JW28: 2045 | JX28: 2045 | JY28: 2045 | JZ28: 2045 | KA28: 2045 | KB28: 2046 | KC28: 2046 | KD28: 2046 | KE28: 2046 | KF28: 2046 | KG28: 2046 | KH28: 2046 | KI28: 2046 | KJ28: 2046 | KK28: 2046 | KL28: 2046 | KM28: 2046 | KN28: 2047 | KO28: 2047 | KP28: 2047 | KQ28: 2047 | KR28: 2047 | KS28: 2047 | KT28: 2047 | KU28: 2047 | KV28: 2047 | KW28: 2047 | KX28: 2047 | KY28: 2047 | KZ28: 2048 | LA28: 2048 | LB28: 2048 | LC28: 2048 | LD28: 2048 | LE28: 2048 | LF28: 2048 | LG28: 2048 | LH28: 2048 | LI28: 2048 | LJ28: 2048 | LK28: 2048 | LL28: 2049 | LM28: 2049 | LN28: 2049 | LO28: 2049 | LP28: 2049 | LQ28: 2049 | LR28: 2049 | LS28: 2049 | LT28: =YEAR(LT4) -> 2049 | LU28: 2049 | LV28: 2049 | LW28: 2049 | LX28: 2050 | LY28: 2050 | LZ28: 2050 | MA28: 2050 | MB28: 2050 | MC28: 2050 | MD28: 2050 | ME28: 2050 | MF28: 2050 | MG28: 2050 | MH28: 2050 | MI28: 2050 | MJ28: 2051 | MK28: 2051 | ML28: 2051 | MM28: 2051 | MN28: 2051 | MO28: 2051 | MP28: 2051 | MQ28: 2051 | MR28: 2051 | MS28: 2051 | MT28: 2051 | MU28: 2051 | MV28: 2052 | MW28: 2052 | MX28: 2052 | MY28: 2052 | MZ28: 2052 | NA28: 2052 | NB28: 2052 | NC28: 2052 | ND28: 2052 | NE28: 2052 | NF28: 2052 | NG28: 2052 | NH28: 2053 | NI28: 2053 | NJ28: 2053 | NK28: 2053 | NL28: 2053 | NM28: 2053 | NN28: 2053 | NO28: 2053 | NP28: 2053 | NQ28: 2053 | NR28: 2053 | NS28: 2053 | NT28: 2054 | NU28: 2054 | NV28: 2054 | NW28: 2054 | NX28: 2054 | NY28: 2054 | NZ28: 2054 | OA28: 2054 | OB28: 2054 | OC28: 2054 | OD28: 2054 | OE28: 2054 | OF28: =YEAR(OF4) -> 2055 | OG28: 2055 | OH28: 2055 | OI28: 2055 | OJ28: 2055 | OK28: 2055 | OL28: 2055 | OM28: 2055 | ON28: 2055 | OO28: 2055 | OP28: 2055 | OQ28: 2055 | OR28: 2056 | OS28: 2056 | OT28: 2056 | OU28: 2056 | OV28: 2056 | OW28: 2056 | OX28: 2056 | OY28: 2056 | OZ28: 2056 | PA28: 2056 | PB28: 2056 | PC28: 2056 | PD28: 2057 | PE28: 2057 | PF28: 2057 | PG28: 2057 | PH28: 2057 | PI28: 2057 | PJ28: 2057 | PK28: 2057 | PL28: 2057 | PM28: 2057 | PN28: 2057 | PO28: 2057 | PP28: 2058 | PQ28: 2058 | PR28: 2058 | PS28: 2058 | PT28: 2058 | PU28: 2058 | PV28: 2058 | PW28: 2058 | PX28: 2058 | PY28: 2058 | PZ28: 2058 | QA28: 2058 | QB28: 2059 | QC28: 2059 | QD28: 2059 | QE28: 2059 | QF28: 2059 | QG28: 2059 | QH28: 2059 | QI28: 2059 | QJ28: 2059 | QK28: 2059 | QL28: 2059 | QM28: 2059 | QN28: 2060 | QO28: 2060 | QP28: 2060 | QQ28: 2060 | QR28: =YEAR(QR4) -> 2060 | QS28: 2060 | QT28: 2060 | QU28: 2060 | QV28: 2060 | QW28: 2060 | QX28: 2060 | QY28: 2060 | QZ28: 2061 | RA28: 2061 | RB28: 2061 | RC28: 2061 | RD28: 2061 | RE28: 2061 | RF28: 2061 | RG28: 2061 | RH28: 2061 | RI28: 2061 | RJ28: 2061 | RK28: 2061 | RL28: 2062 | RM28: 2062 | RN28: 2062 | RO28: 2062 | RP28: 2062 | RQ28: 2062 | RR28: 2062 | RS28: 2062 | RT28: 2062 | RU28: 2062 | RV28: 2062 | RW28: 2062 | RX28: 2063 | RY28: 2063 | RZ28: 2063 | SA28: 2063 | SB28: 2063 | SC28: 2063 | SD28: 2063 | SE28: 2063 | SF28: 2063 | SG28: 2063 | SH28: 2063 | SI28: 2063 | SJ28: 2064 | SK28: 2064 | SL28: 2064 | SM28: 2064 | SN28: 2064 | SO28: 2064 | SP28: 2064 | SQ28: 2064 | SR28: 2064 | SS28: 2064 | ST28: 2064 | SU28: 2064 | SV28: 2065 | SW28: 2065 | SX28: 2065 | SY28: 2065 | SZ28: 2065 | TA28: 2065 | TB28: 2065 | TC28: 2065 | TD28: =YEAR(TD4) -> 2065 | TE28: 2065 | TF28: 2065 | TG28: 2065 | TH28: 2066 | TI28: 2066 | TJ28: 2066 | TK28: 2066 | TL28: 2066 | TM28: 2066 | TN28: 2066 | TO28: 2066 | TP28: 2066 | TQ28: 2066 | TR28: 2066 | TS28: 2066 | TT28: 2067 | TU28: 2067 | TV28: 2067 | TW28: 2067 | TX28: 2067 | TY28: 2067 | TZ28: 2067 | UA28: 2067 | UB28: 2067 | UC28: 2067 | UD28: 2067 | UE28: 2067 | UF28: 2068 | UG28: 2068 | UH28: 2068 | UI28: 2068 | UJ28: 2068 | UK28: 2068 | UL28: 2068 | UM28: 2068 | UN28: 2068 | UO28: 2068 | UP28: 2068 | UQ28: 2068 | UR28: 2069 | US28: 2069 | UT28: 2069 | UU28: 2069 | UV28: 2069 | UW28: 2069 | UX28: 2069 | UY28: 2069 | UZ28: 2069 | VA28: 2069 | VB28: 2069 | VC28: 2069 | VD28: 2070 | VE28: 2070 | VF28: 2070 | VG28: 2070 | VH28: 2070 | VI28: 2070 | VJ28: 2070 | VK28: 2070 | VL28: 2070 | VM28: 2070 | VN28: 2070 | VO28: 2070 | VP28: =YEAR(VP4) -> 2071 | VQ28: 2071 | VR28: 2071 | VS28: 2071 | VT28: 2071 | VU28: 2071 | VV28: 2071 | VW28: 2071 | VX28: 2071 | VY28: 2071 | VZ28: 2071 | WA28: 2071 | WB28: 2072 | WC28: 2072 | WD28: 2072 | WE28: 2072 | WF28: 2072 | WG28: 2072 | WH28: 2072 | WI28: 2072 | WJ28: 2072 | WK28: 2072 | WL28: 2072 | WM28: 2072 | WN28: 2073 | WO28: 2073 | WP28: 2073 | WQ28: 2073 | WR28: 2073 | WS28: 2073 | WT28: 2073 | WU28: 2073 | WV28: 2073 | WW28: 2073 | WX28: 2073 | WY28: 2073 | WZ28: 2074 | XA28: 2074 | XB28: 2074 | XC28: 2074 | XD28: 2074 | XE28: 2074 | XF28: 2074 | XG28: 2074 | XH28: 2074 | XI28: 2074 | XJ28: 2074 | XK28: 2074 | XL28: 2075 | XM28: 2075 | XN28: 2075 | XO28: 2075 | XP28: 2075 | XQ28: 2075 | XR28: 2075 | XS28: 2075 | XT28: 2075 | XU28: 2075 | XV28: 2075 | XW28: 2075 | XX28: 2076 | XY28: 2076 | XZ28: 2076 | YA28: 2076 | YB28: =YEAR(YB4) -> 2076 | YC28: 2076 | YD28: 2076 | YE28: 2076 | YF28: 2076 | YG28: 2076 | YH28: 2076 | YI28: 2076 | YJ28: 2077 | YK28: 2077 | YL28: 2077 | YM28: 2077 | YN28: 2077 | YO28: 2077 | YP28: 2077 | YQ28: 2077 | YR28: 2077 | YS28: 2077 | YT28: 2077 | YU28: 2077 | YV28: 2078 | YW28: 2078 | YX28: 2078 | YY28: 2078 | YZ28: 2078 | ZA28: 2078 | ZB28: 2078 | ZC28: 2078 | ZD28: 2078 | ZE28: 2078 | ZF28: 2078 | ZG28: 2078 | ZH28: 2079 | ZI28: 2079 | ZJ28: 2079 | ZK28: 2079 | ZL28: 2079 | ZM28: 2079 | ZN28: 2079 | ZO28: 2079 | ZP28: 2079 | ZQ28: 2079 | ZR28: 2079 | ZS28: 2079 | ZT28: 2080 | ZU28: 2080 | ZV28: 2080 | ZW28: 2080 | ZX28: 2080 | ZY28: 2080 | ZZ28: 2080 | AAA28: 2080 | AAB28: 2080 | AAC28: 2080 | AAD28: 2080 | AAE28: 2080 | AAF28: 2081 | AAG28: 2081 | AAH28: 2081 | AAI28: 2081 | AAJ28: 2081 | AAK28: 2081 | AAL28: 2081 | AAM28: 2081 | AAN28: =YEAR(AAN4) -> 2081 | AAO28: 2081 | AAP28: 2081 | AAQ28: 2081 | AAR28: 2082 | AAS28: 2082 | AAT28: 2082 | AAU28: 2082 | AAV28: 2082 | AAW28: 2082 | AAX28: 2082 | AAY28: 2082 | AAZ28: 2082 | ABA28: 2082 | ABB28: 2082 | ABC28: 2082 | ABD28: 2083 | ABE28: 2083 | ABF28: 2083 | ABG28: 2083 | ABH28: 2083 | ABI28: 2083 | ABJ28: 2083 | ABK28: 2083 | ABL28: 2083 | ABM28: 2083 | ABN28: 2083 | ABO28: 2083 | ABP28: 2084 | ABQ28: 2084 | ABR28: 2084 | ABS28: 2084 | ABT28: 2084 | ABU28: 2084 | ABV28: 2084 | ABW28: 2084 | ABX28: 2084 | ABY28: 2084 | ABZ28: 2084 | ACA28: 2084 | ACB28: 2085 | ACC28: 2085 | ACD28: 2085 | ACE28: 2085 | ACF28: 2085 | ACG28: 2085 | ACH28: 2085 | ACI28: 2085 | ACJ28: 2085 | ACK28: 2085 | ACL28: 2085 | ACM28: 2085 | ACN28: 2086 | ACO28: 2086 | ACP28: 2086 | ACQ28: 2086 | ACR28: 2086 | ACS28: 2086 | ACT28: 2086 | ACU28: 2086 | ACV28: 2086 | ACW28: 2086 | ACX28: 2086 | ACY28: 2086 | ACZ28: =YEAR(ACZ4) -> 2087 | ADA28: 2087 | ADB28: 2087 | ADC28: 2087 | ADD28: 2087 | ADE28: 2087 | ADF28: 2087 | ADG28: 2087 | ADH28: 2087 | ADI28: 2087 | ADJ28: 2087 | ADK28: 2087 | ADL28: 2088 | ADM28: 2088 | ADN28: 2088 | ADO28: 2088 | ADP28: 2088 | ADQ28: 2088 | ADR28: 2088 | ADS28: 2088 | ADT28: 2088 | ADU28: 2088 | ADV28: 2088 | ADW28: 2088 | ADX28: 2089 | ADY28: 2089 | ADZ28: 2089 | AEA28: 2089 | AEB28: 2089 | AEC28: 2089 | AED28: 2089 | AEE28: 2089
